Workbook

Sheet Données à modifier (hidden)
A1: OCTOBRE
A2: 2021-10-01
A3: ="* /2020 = Cumul "&TEXT('Index depuis janvier'!C2,"mmm aaaa")&"-"&TEXT('Index depuis janvier'!D2,"mmm aaaa")&" / Cumul "&TEXT('Index depuis janvier'!E2,"mmm aaaa")&"-"&TEXT('Index depuis janvier'!F2,"mmm aaaa") -> * /2020 = Cumul janv 2021-oct 2021 / Cumul janv 2020-oct 2020
A4: ="* /2019 = Cumul "&TEXT('Index depuis janvier'!C1,"mmm aaaa")&"-"&TEXT('Index depuis janvier'!D1,"mmm aaaa")&" / Cumul "&TEXT('Index depuis janvier'!E1,"mmm aaaa")&"-"&TEXT('Index depuis janvier'!F1,"mmm aaaa") -> * /2019 = Cumul janv 2021-oct 2021 / Cumul janv 2019-oct 2019
A5: ="Cumul "&TEXT('Index depuis janvier'!C2,"mmm aaaa")&"-"&TEXT('Index depuis janvier'!D2,"mmm aaaa")&" / Cumul "&TEXT('Index depuis janvier'!E2,"mmm aaaa")&"-"&TEXT('Index depuis janvier'!F2,"mmm aaaa") -> Cumul janv 2021-oct 2021 / Cumul janv 2020-oct 2020
A6: ="Cumul "&TEXT('Index depuis janvier'!C1,"mmm aaaa")&"-"&TEXT('Index depuis janvier'!D1,"mmm aaaa")&" / Cumul "&TEXT('Index depuis janvier'!E1,"mmm aaaa")&"-"&TEXT('Index depuis janvier'!F1,"mmm aaaa") -> Cumul janv 2021-oct 2021 / Cumul janv 2019-oct 2019

Sheet Composition index (hidden)
D1: K | E1: L | F1: E | G1: E | H1: S | I1: T | J1: L | K1: E | L1: E | M1: E | N1: M | O1: M | P1: M | Q1: M | R1: M | S1: M | T1: M | U1: M | V1: M | W1: M | X1: M | Y1: M | Z1: M | AA1: M | AB1: M | AC1: M | AD1: M | AE1: M | AF1: M | AG1: M | AH1: M | AI1: M | AJ1: M | AK1: M | AL1: M | AM1: M | AN1: M | AO1: M | AP1: S | AQ1: D | AR1: D
B2: TP01 | D2: Matériel | E2: Travail | F2: GNR | G2: Gazole | H2: Frais divers | I2: Transports routiers | J2: Travail activités spécialisées | K2: Électricité vendue aux entreprises consommatrices finales | L2: Fioul lourd | M2: Gazole routier HTT | N2: Tubes, tuyaux en matière plastique | O2: Ensemble des produits du sciage | P2: Béton prêt à l'emploi | Q2: Barres crénelées ou nervurées pour béton armé | R2: Sables et granulats | S2: Plaques, feuilles, tubes et profilés en matières plastiques | T2: Ciment, chaux et plâtre | U2: Produits explosifs | V2: Acier pour la construction | W2: Bitume | X2: Produits de voierie en béton | Y2: Mortiers et bétons secs | Z2: Travaux de fonderie de fonte | AA2: Tuiles, briques et produits de construction en terre cuite | AB2: Tuyaux d'assainissement | AC2: Autres textiles n.c.a. | AD2: Matières plastiques sous formes primaires | AE2: Tubes, tuyaux, profilés creux et accessoires correspondants en acier | AF2: Éléments en béton pour la construction | AG2: Fils et câbles d'énergie | AH2: Moteurs, génératrices, transfo. électr., matér. distrib., cmde électr. | AI2: Matériel de distribution et de commande électrique | AJ2: Appareils d'éclairage électrique | AK2: Câbles de fibres optiques | AL2: Peintures Industries | AM2: Produits sidérurgiques en acier non allié | AN2: Tôles quarto en aciers non alliés | AO2: Éléments en métal pour la construction | AP2: Restaurants et hôtels | AQ2: Traitement et élimination des déchets non dangereux | AR2: Collecte, traitement et élimination des déchets ; récupération de matériaux
D3: 001711009 | E3: 5540998 | F3: 010534596 | G3: 001764283 | H3: 001711011 | I3: 001711943 | J3: 001565195 | K3: 010534769 | L3: Fioul lourd | M3: Gazole routier HTT | N3: 010534207 | O3: 010534575 | P3: 010534646 | Q3: 010546545 | R3: 010536067 | S3: 010534625 | T3: 010534642 | U3: 010534614 | V3: 010536462 | W3: 010534598 | X3: 010534252 | Y3: 010534647 | Z3: 010534662 | AA3: 010534638 | AB3: 010534253 | AC3: 010534559 | AD3: 010534606 | AE3: 010534654 | AF3: 010534645 | AG3: 010534330 | AH3: 010534696 | AI3: 010534698 | AJ3: 010534702 | AK3: 010535345 | AL3: 010534180 | AM3: 010534267 | AN3: 010536480 | AO3: 010534667 | AP3: 001763781 | AQ3: 010534789 | AR3: 010534784
A4: TP01
A5: TP02 | B5: 0.1 | C5: =SUM(D5:AR5) -> 1 | D5: 0.15 | E5: 0.55 | H5: 0.01 | I5: 0.01 | K5: 0.01 | N5: 0.04 | O5: 0.02 | P5: 0.12 | Q5: 0.09
A6: TP03a | B6: 0.19 | C6: =SUM(D6:AR6) -> 1 | D6: 0.27 | E6: 0.29 | F6: 0.07 | G6: 0.01 | H6: 0.02 | I6: 0.05 | J6: 0.04 | R6: 0.12 | S6: 0.03 | T6: 0.06 | U6: 0.01 | AQ6: 0.03
A7: TP03b | B7: 0.002 | C7: 1 | D7: 0.23 | E7: 0.18 | F7: 0.07 | H7: 0.03 | J7: 0.09 | U7: 0.4
A8: TP04 | B8: 0.04 | C8: 1 | D8: 0.16 | E8: 0.44 | F8: 0.05 | H8: 0.02 | I8: 0.03 | P8: 0.12 | Q8: 0.1 | R8: 0.02 | T8: 0.03 | AR8: 0.03
A9: TP05a | B9: 0.015 | C9: 1 | D9: 0.17 | E9: 0.39 | F9: 0.01 | H9: 0.05 | I9: 0.01 | K9: 0.01 | P9: 0.23 | Q9: 0.07 | U9: 0.03 | AQ9: 0.03
A10: TP05b | B10: 0.015 | C10: 1 | D10: 0.27 | E10: 0.33 | F10: 0.01 | H10: 0.06 | I10: 0.01 | K10: 0.02 | P10: 0.19 | Q10: 0.06 | AQ10: 0.05
A11: TP06a | B11: 0.009 | C11: 1 | D11: 0.54 | E11: 0.2 | F11: 0.02 | H11: 0.07 | M11: 0.17
A12: TP06b | B12: 0.005 | C12: 1 | D12: 0.47 | E12: 0.38 | F12: 0.12 | H12: 0.03
A13: TP07b | B13: 0.002 | C13: 1 | D13: 0.13 | E13: 0.2 | F13: 0.03 | H13: 0.05 | I13: 0.02 | P13: 0.08 | Q13: 0.05 | V13: 0.22 | AN13: 0.22
A14: TP08 | B14: 0.125 | C14: 0.99 | D14: 0.12 | E14: 0.22 | F14: 0.04 | G14: 0.02 | H14: 0.07 | I14: 0.15 | K14: 0.01 | L14: 0.01 | N14: 0.02 | P14: 0.025 | Q14: ss | R14: 0.15 | V14: ss | W14: 0.12 | X14: 0.015 | Y14: 0.01 | Z14: 0.01
A15: TP09 | B15: 0.125 | C15: 1 | D15: 0.11 | E15: 0.14 | F15: 0.02 | G15: 0.02 | H15: 0.01 | I15: 0.15 | K15: 0.01 | L15: 0.04 | R15: 0.15 | W15: 0.35
A16: TP10a | B16: 0.157 | C16: 1 | D16: 0.22 | E16: 0.34 | F16: 0.02 | G16: 0.01 | H16: 0.03 | I16: 0.04 | N16: 0.09 | R16: 0.11 | Z16: 0.08 | AA16: 0.02 | AB16: 0.01 | AR16: 0.03
A17: TP10b | B17: 0.02 | C17: 1 | D17: 0.25 | E17: 0.43 | F17: 0.02 | G17: 0.02 | H17: 0.02 | I17: 0.05 | R17: 0.16 | AR17: 0.05
A18: TP10c | B18: 0.014 | C18: 1 | D18: 0.25 | E18: 0.3 | F18: 0.01 | G18: 0.02 | H18: 0.02 | I18: 0.01 | AC18: 0.1 | AD18: 0.28 | AR18: 0.01
A19: TP10d | B19: 0.003 | C19: 1 | D19: 0.22 | E19: 0.32 | F19: 0.01 | G19: 0.01 | H19: 0.04 | I19: 0.02 | R19: 0.12 | AE19: 0.21 | AR19: 0.05
A20: TP11 | B20: 0.006 | C20: 1 | D20: 0.14 | E20: 0.18 | F20: 0.02 | G20: 0.01 | H20: 0.03 | I20: 0.03 | R20: 0.08 | Z20: 0.37 | AE20: 0.12 | AR20: 0.02
A21: TP12a | B21: 0.0925 | C21: 1 | D21: 0.1 | E21: 0.45 | F21: 0.0084 | G21: 0.0316 | H21: 0.07 | N21: 0.02 | R21: 0.09 | AF21: 0.02 | AG21: 0.09 | AH21: 0.12
A22: TP12b | B22: 0.016 | C22: 1 | D22: 0.08 | E22: 0.24 | F22: 0.0063 | G22: 0.0237 | H22: 0.08 | N22: 0.02 | R22: 0.02 | AE22: 0.22 | AF22: 0.01 | AG22: 0.05 | AJ22: 0.25
A23: TP12c | B23: 0.024 | C23: 1 | D23: 0.13 | E23: 0.62 | F23: 0.0063 | G23: 0.0237 | H23: 0.09 | AJ23: 0.13
A24: TP12d | B24: 0.0275 | C24: 1 | D24: 0.08 | E24: 0.4 | G24: 0.02 | H24: 0.02 | J24: 0.16 | R24: 0.02 | AF24: 0.01 | AI24: 0.1 | AK24: 0.19
A25: TP13 | B25: 0.01 | C25: 1 | D25: 0.11 | E25: 0.47 | F25: 0.01 | H25: 0.01 | I25: 0.03 | K25: 0.02 | AL25: 0.02 | AM25: 0.02 | AN25: 0.31
A26: TP14 | B26: 0.002 | C26: 1 | D26: 0.17 | E26: 0.6 | F26: 0.03 | G26: 0.03 | I26: 0.03 | AF26: 0.02 | AO26: 0.02 | AP26: 0.1

Sheet Données 3-6 mois glissants (hidden)
B1: =EDATE(date,-2) -> 2021-08-01 | C1: =DATE(2021,MONTH(date),1) -> 2021-10-01 | D1: =EDATE(date,-5) -> 2021-05-01 | E1: =EDATE(date,-3) -> 2021-07-01
A3: =SUM(IF((INDEX(compo,2,)="TP01")*(INDEX(compo,,1)=$C$13),INDEX(compo,,),0)) -> 0.1 | B3: =EDATE(date,-5) -> 2021-05-01 | C3: =DATE(2021,MONTH(date),1) -> 2021-10-01 | D3: =EDATE(date,-11) -> 2020-11-01 | E3: =EDATE(date,-6) -> 2021-04-01
A5: K | B5: Matériel | C5: =SUM(IF((INDEX(compo,1,)='Données 3-6 mois glissants'!A5)*(INDEX(compo,,1)=$A$52),INDEX(compo,,),0)) -> 0.15 | D5: 001711009
A6: L | B6: Travail | C6: =SUM(IF((INDEX(compo,1,)='Données 3-6 mois glissants'!A6)*(INDEX(compo,,1)=$A$52),INDEX(compo,,),0)) -> 0.55 | D6: 5540998
A7: E | B7: Energie | C7: =SUM(IF((INDEX(compo,1,)='Données 3-6 mois glissants'!A7)*(INDEX(compo,,1)=$A$52),INDEX(compo,,),0)) -> 0.01 | D7: 010534596
A8: M | B8: Matériaux | C8: =SUM(IF((INDEX(compo,1,)='Données 3-6 mois glissants'!A8)*(INDEX(compo,,1)=$A$52),INDEX(compo,,),0)) -> 0.27 | D8: 001764283
A9: S | B9: Frais divers | C9: =SUM(IF((INDEX(compo,1,)='Données 3-6 mois glissants'!A9)*(INDEX(compo,,1)=$A$52),INDEX(compo,,),0)) -> 0.01 | D9: 001711011
A10: T | B10: Transport | C10: =SUM(IF((INDEX(compo,1,)='Données 3-6 mois glissants'!A10)*(INDEX(compo,,1)=$A$52),INDEX(compo,,),0)) -> 0.01 | D10: 001711943
A11: D | B11: Déchets | C11: =SUM(IF((INDEX(compo,1,)='Données 3-6 mois glissants'!A11)*(INDEX(compo,,1)=$A$52),INDEX(compo,,),0)) -> 0
D12: Matériel | E12: Travail | F12: GNR | G12: =HLOOKUP(G13,'Indice prix'!$B$2:$AP$5,4,FALSE) -> Béton prêt à l'emploi | H12: =HLOOKUP(H13,'Indice prix'!$B$2:$AP$5,4,FALSE) -> Barres crénelées ou nervurées pour béton armé
B13: TP01 | C13: ='Résultats 3-6 mois glissants'!B4 -> TP02 | D13: =HLOOKUP(D12,'Composition index'!$A$2:$AR$3,2,FALSE) -> 001711009 | E13: =HLOOKUP(E12,'Composition index'!$A$2:$AR$3,2,FALSE) -> 5540998 | F13: =HLOOKUP(F12,'Composition index'!$A$2:$AR$3,2,FALSE) -> 010534596 | G13: =IF(D54>0,E54,"") -> 010534646 | H13: =IF(D55>0,E55,"") -> 010546545
A14: =DATE(2018,MONTH(date),1) -> 2018-10-01 | B14: =IF(A14>date,"",SUM(IF((INDEX(base_index,1,)=B$13)*(INDEX(base_index,,1)=$A14),INDEX(base_index,,),0))) -> 110.9 | C14: =IF(A14>date,"",IF((SUM(IF((INDEX(base_index,1,)=C$13)*(INDEX(base_index,,1)=$A14),INDEX(base_index,,),0)))=0,#N/A,SUM(IF((INDEX(base_index,1,)=C$13)*(INDEX(base_index,,1)=$A14),INDEX(base_index,,),0)))) -> 113 | D14: =IF(A14>date,"",SUM(IF((INDEX(base_indices,1,)=D$13)*(INDEX(base_indices,,1)=$A14),INDEX(base_indices,,),0))) -> 104.3 | E14: =IF(A14>date,"",SUM(IF((INDEX(base_indices,1,)=E$13)*(INDEX(base_indices,,1)=$A14),INDEX(base_indices,,),0))) -> 119.7 | F14: =IF(A14>date,"",SUM(IF((INDEX(base_indices,1,)=F$13)*(INDEX(base_indices,,1)=$A14),INDEX(base_indices,,),0))) -> 132.8 | G14: =IF(A14>date,"",IF(OR(G$13="",G$13="Fioul lourd"),#N/A,SUM(IF((INDEX(base_indices,1,)=G$13)*(INDEX(base_indices,,1)=$A14),INDEX(base_indices,,),0)))) -> 102.2 | H14: =IF(A14>date,"",IF(OR(H$13="",H$13="Fioul lourd"),#N/A,SUM(IF((INDEX(base_indices,1,)=H$13)*(INDEX(base_indices,,1)=$A14),INDEX(base_indices,,),0)))) -> 127.8
A15: =EDATE(A14,1) -> 2018-11-01 | B15: =IF(A15>date,"",SUM(IF((INDEX(base_index,1,)=B$13)*(INDEX(base_index,,1)=$A15),INDEX(base_index,,),0))) -> 111.1 | C15: =IF(A15>date,"",IF((SUM(IF((INDEX(base_index,1,)=C$13)*(INDEX(base_index,,1)=$A15),INDEX(base_index,,),0)))=0,#N/A,SUM(IF((INDEX(base_index,1,)=C$13)*(INDEX(base_index,,1)=$A15),INDEX(base_index,,),0)))) -> 113.1 | D15: =IF(A15>date,"",SUM(IF((INDEX(base_indices,1,)=D$13)*(INDEX(base_indices,,1)=$A15),INDEX(base_indices,,),0))) -> 104.3 | E15: =IF(A15>date,"",SUM(IF((INDEX(base_indices,1,)=E$13)*(INDEX(base_indices,,1)=$A15),INDEX(base_indices,,),0))) -> 120 | F15: =IF(A15>date,"",SUM(IF((INDEX(base_indices,1,)=F$13)*(INDEX(base_indices,,1)=$A15),INDEX(base_indices,,),0))) -> 125.8 | G15: =IF(A15>date,"",IF(OR(G$13="",G$13="Fioul lourd"),#N/A,SUM(IF((INDEX(base_indices,1,)=G$13)*(INDEX(base_indices,,1)=$A15),INDEX(base_indices,,),0)))) -> 102.4 | H15: =IF(A15>date,"",IF(OR(H$13="",H$13="Fioul lourd"),#N/A,SUM(IF((INDEX(base_indices,1,)=H$13)*(INDEX(base_indices,,1)=$A15),INDEX(base_indices,,),0)))) -> 126.6
A16: =EDATE(A15,1) -> 2018-12-01 | B16: =IF(A16>date,"",SUM(IF((INDEX(base_index,1,)=B$13)*(INDEX(base_index,,1)=$A16),INDEX(base_index,,),0))) -> 110 | C16: =IF(A16>date,"",IF((SUM(IF((INDEX(base_index,1,)=C$13)*(INDEX(base_index,,1)=$A16),INDEX(base_index,,),0)))=0,#N/A,SUM(IF((INDEX(base_index,1,)=C$13)*(INDEX(base_index,,1)=$A16),INDEX(base_index,,),0)))) -> 113.2 | D16: =IF(A16>date,"",SUM(IF((INDEX(base_indices,1,)=D$13)*(INDEX(base_indices,,1)=$A16),INDEX(base_indices,,),0))) -> 104.1 | E16: =IF(A16>date,"",SUM(IF((INDEX(base_indices,1,)=E$13)*(INDEX(base_indices,,1)=$A16),INDEX(base_indices,,),0))) -> 120.2 | F16: =IF(A16>date,"",SUM(IF((INDEX(base_indices,1,)=F$13)*(INDEX(base_indices,,1)=$A16),INDEX(base_indices,,),0))) -> 118.1 | G16: =IF(A16>date,"",IF(OR(G$13="",G$13="Fioul lourd"),#N/A,SUM(IF((INDEX(base_indices,1,)=G$13)*(INDEX(base_indices,,1)=$A16),INDEX(base_indices,,),0)))) -> 102.2 | H16: =IF(A16>date,"",IF(OR(H$13="",H$13="Fioul lourd"),#N/A,SUM(IF((INDEX(base_indices,1,)=H$13)*(INDEX(base_indices,,1)=$A16),INDEX(base_indices,,),0)))) -> 125.5
A17: 2019-01-01 | B17: =IF(A17>date,"",SUM(IF((INDEX(base_index,1,)=B$13)*(INDEX(base_index,,1)=$A17),INDEX(base_index,,),0))) -> 109.7 | C17: =IF(A17>date,"",IF((SUM(IF((INDEX(base_index,1,)=C$13)*(INDEX(base_index,,1)=$A17),INDEX(base_index,,),0)))=0,#N/A,SUM(IF((INDEX(base_index,1,)=C$13)*(INDEX(base_index,,1)=$A17),INDEX(base_index,,),0)))) -> 113.5 | D17: =IF(A17>date,"",SUM(IF((INDEX(base_indices,1,)=D$13)*(INDEX(base_indices,,1)=$A17),INDEX(base_indices,,),0))) -> 104.7 | E17: =IF(A17>date,"",SUM(IF((INDEX(base_indices,1,)=E$13)*(INDEX(base_indices,,1)=$A17),INDEX(base_indices,,),0))) -> 120.8 | F17: =IF(A17>date,"",SUM(IF((INDEX(base_indices,1,)=F$13)*(INDEX(base_indices,,1)=$A17),INDEX(base_indices,,),0))) -> 118.2 | G17: =IF(A17>date,"",IF(OR(G$13="",G$13="Fioul lourd"),#N/A,SUM(IF((INDEX(base_indices,1,)=G$13)*(INDEX(base_indices,,1)=$A17),INDEX(base_indices,,),0)))) -> 103.8 | H17: =IF(A17>date,"",IF(OR(H$13="",H$13="Fioul lourd"),#N/A,SUM(IF((INDEX(base_indices,1,)=H$13)*(INDEX(base_indices,,1)=$A17),INDEX(base_indices,,),0)))) -> 124.6
A18: 2019-02-01 | B18: =IF(A18>date,"",SUM(IF((INDEX(base_index,1,)=B$13)*(INDEX(base_index,,1)=$A18),INDEX(base_index,,),0))) -> 110.3 | C18: =IF(A18>date,"",IF((SUM(IF((INDEX(base_index,1,)=C$13)*(INDEX(base_index,,1)=$A18),INDEX(base_index,,),0)))=0,#N/A,SUM(IF((INDEX(base_index,1,)=C$13)*(INDEX(base_index,,1)=$A18),INDEX(base_index,,),0)))) -> 113.6 | D18: =IF(A18>date,"",SUM(IF((INDEX(base_indices,1,)=D$13)*(INDEX(base_indices,,1)=$A18),INDEX(base_indices,,),0))) -> 104.7 | E18: =IF(A18>date,"",SUM(IF((INDEX(base_indices,1,)=E$13)*(INDEX(base_indices,,1)=$A18),INDEX(base_indices,,),0))) -> 121.4 | F18: =IF(A18>date,"",SUM(IF((INDEX(base_indices,1,)=F$13)*(INDEX(base_indices,,1)=$A18),INDEX(base_indices,,),0))) -> 122.5 | G18: =IF(A18>date,"",IF(OR(G$13="",G$13="Fioul lourd"),#N/A,SUM(IF((INDEX(base_indices,1,)=G$13)*(INDEX(base_indices,,1)=$A18),INDEX(base_indices,,),0)))) -> 104.2 | H18: =IF(A18>date,"",IF(OR(H$13="",H$13="Fioul lourd"),#N/A,SUM(IF((INDEX(base_indices,1,)=H$13)*(INDEX(base_indices,,1)=$A18),INDEX(base_indices,,),0)))) -> 123.8
A19: 2019-03-01 | B19: =IF(A19>date,"",SUM(IF((INDEX(base_index,1,)=B$13)*(INDEX(base_index,,1)=$A19),INDEX(base_index,,),0))) -> 111.3 | C19: =IF(A19>date,"",IF((SUM(IF((INDEX(base_index,1,)=C$13)*(INDEX(base_index,,1)=$A19),INDEX(base_index,,),0)))=0,#N/A,SUM(IF((INDEX(base_index,1,)=C$13)*(INDEX(base_index,,1)=$A19),INDEX(base_index,,),0)))) -> 114.1 | D19: =IF(A19>date,"",SUM(IF((INDEX(base_indices,1,)=D$13)*(INDEX(base_indices,,1)=$A19),INDEX(base_indices,,),0))) -> 105.7 | E19: =IF(A19>date,"",SUM(IF((INDEX(base_indices,1,)=E$13)*(INDEX(base_indices,,1)=$A19),INDEX(base_indices,,),0))) -> 122 | F19: =IF(A19>date,"",SUM(IF((INDEX(base_indices,1,)=F$13)*(INDEX(base_indices,,1)=$A19),INDEX(base_indices,,),0))) -> 123.5 | G19: =IF(A19>date,"",IF(OR(G$13="",G$13="Fioul lourd"),#N/A,SUM(IF((INDEX(base_indices,1,)=G$13)*(INDEX(base_indices,,1)=$A19),INDEX(base_indices,,),0)))) -> 104.3 | H19: =IF(A19>date,"",IF(OR(H$13="",H$13="Fioul lourd"),#N/A,SUM(IF((INDEX(base_indices,1,)=H$13)*(INDEX(base_indices,,1)=$A19),INDEX(base_indices,,),0)))) -> 123.9
A20: 2019-04-01 | B20: =IF(A20>date,"",SUM(IF((INDEX(base_index,1,)=B$13)*(INDEX(base_index,,1)=$A20),INDEX(base_index,,),0))) -> 111.6 | C20: =IF(A20>date,"",IF((SUM(IF((INDEX(base_index,1,)=C$13)*(INDEX(base_index,,1)=$A20),INDEX(base_index,,),0)))=0,#N/A,SUM(IF((INDEX(base_index,1,)=C$13)*(INDEX(base_index,,1)=$A20),INDEX(base_index,,),0)))) -> 114.1 | D20: =IF(A20>date,"",SUM(IF((INDEX(base_indices,1,)=D$13)*(INDEX(base_indices,,1)=$A20),INDEX(base_indices,,),0))) -> 105.3 | E20: =IF(A20>date,"",SUM(IF((INDEX(base_indices,1,)=E$13)*(INDEX(base_indices,,1)=$A20),INDEX(base_indices,,),0))) -> 122.3 | F20: =IF(A20>date,"",SUM(IF((INDEX(base_indices,1,)=F$13)*(INDEX(base_indices,,1)=$A20),INDEX(base_indices,,),0))) -> 125.8 | G20: =IF(A20>date,"",IF(OR(G$13="",G$13="Fioul lourd"),#N/A,SUM(IF((INDEX(base_indices,1,)=G$13)*(INDEX(base_indices,,1)=$A20),INDEX(base_indices,,),0)))) -> 104.1 | H20: =IF(A20>date,"",IF(OR(H$13="",H$13="Fioul lourd"),#N/A,SUM(IF((INDEX(base_indices,1,)=H$13)*(INDEX(base_indices,,1)=$A20),INDEX(base_indices,,),0)))) -> 123.8
A21: 2019-05-01 | B21: =IF(A21>date,"",SUM(IF((INDEX(base_index,1,)=B$13)*(INDEX(base_index,,1)=$A21),INDEX(base_index,,),0))) -> 111.8 | C21: =IF(A21>date,"",IF((SUM(IF((INDEX(base_index,1,)=C$13)*(INDEX(base_index,,1)=$A21),INDEX(base_index,,),0)))=0,#N/A,SUM(IF((INDEX(base_index,1,)=C$13)*(INDEX(base_index,,1)=$A21),INDEX(base_index,,),0)))) -> 114.1 | D21: =IF(A21>date,"",SUM(IF((INDEX(base_indices,1,)=D$13)*(INDEX(base_indices,,1)=$A21),INDEX(base_indices,,),0))) -> 105 | E21: =IF(A21>date,"",SUM(IF((INDEX(base_indices,1,)=E$13)*(INDEX(base_indices,,1)=$A21),INDEX(base_indices,,),0))) -> 122.5 | F21: =IF(A21>date,"",SUM(IF((INDEX(base_indices,1,)=F$13)*(INDEX(base_indices,,1)=$A21),INDEX(base_indices,,),0))) -> 126.4 | G21: =IF(A21>date,"",IF(OR(G$13="",G$13="Fioul lourd"),#N/A,SUM(IF((INDEX(base_indices,1,)=G$13)*(INDEX(base_indices,,1)=$A21),INDEX(base_indices,,),0)))) -> 104.9 | H21: =IF(A21>date,"",IF(OR(H$13="",H$13="Fioul lourd"),#N/A,SUM(IF((INDEX(base_indices,1,)=H$13)*(INDEX(base_indices,,1)=$A21),INDEX(base_indices,,),0)))) -> 123
A22: 2019-06-01 | B22: =IF(A22>date,"",SUM(IF((INDEX(base_index,1,)=B$13)*(INDEX(base_index,,1)=$A22),INDEX(base_index,,),0))) -> 111.5 | C22: =IF(A22>date,"",IF((SUM(IF((INDEX(base_index,1,)=C$13)*(INDEX(base_index,,1)=$A22),INDEX(base_index,,),0)))=0,#N/A,SUM(IF((INDEX(base_index,1,)=C$13)*(INDEX(base_index,,1)=$A22),INDEX(base_index,,),0)))) -> 114.3 | D22: =IF(A22>date,"",SUM(IF((INDEX(base_indices,1,)=D$13)*(INDEX(base_indices,,1)=$A22),INDEX(base_indices,,),0))) -> 104.9 | E22: =IF(A22>date,"",SUM(IF((INDEX(base_indices,1,)=E$13)*(INDEX(base_indices,,1)=$A22),INDEX(base_indices,,),0))) -> 122.7 | F22: =IF(A22>date,"",SUM(IF((INDEX(base_indices,1,)=F$13)*(INDEX(base_indices,,1)=$A22),INDEX(base_indices,,),0))) -> 119.9 | G22: =IF(A22>date,"",IF(OR(G$13="",G$13="Fioul lourd"),#N/A,SUM(IF((INDEX(base_indices,1,)=G$13)*(INDEX(base_indices,,1)=$A22),INDEX(base_indices,,),0)))) -> 105.3 | H22: =IF(A22>date,"",IF(OR(H$13="",H$13="Fioul lourd"),#N/A,SUM(IF((INDEX(base_indices,1,)=H$13)*(INDEX(base_indices,,1)=$A22),INDEX(base_indices,,),0)))) -> 122
A23: 2019-07-01 | B23: =IF(A23>date,"",SUM(IF((INDEX(base_index,1,)=B$13)*(INDEX(base_index,,1)=$A23),INDEX(base_index,,),0))) -> 111.5 | C23: =IF(A23>date,"",IF((SUM(IF((INDEX(base_index,1,)=C$13)*(INDEX(base_index,,1)=$A23),INDEX(base_index,,),0)))=0,#N/A,SUM(IF((INDEX(base_index,1,)=C$13)*(INDEX(base_index,,1)=$A23),INDEX(base_index,,),0)))) -> 114.5 | D23: =IF(A23>date,"",SUM(IF((INDEX(base_indices,1,)=D$13)*(INDEX(base_indices,,1)=$A23),INDEX(base_indices,,),0))) -> 105 | E23: =IF(A23>date,"",SUM(IF((INDEX(base_indices,1,)=E$13)*(INDEX(base_indices,,1)=$A23),INDEX(base_indices,,),0))) -> 122.9 | F23: =IF(A23>date,"",SUM(IF((INDEX(base_indices,1,)=F$13)*(INDEX(base_indices,,1)=$A23),INDEX(base_indices,,),0))) -> 121.5 | G23: =IF(A23>date,"",IF(OR(G$13="",G$13="Fioul lourd"),#N/A,SUM(IF((INDEX(base_indices,1,)=G$13)*(INDEX(base_indices,,1)=$A23),INDEX(base_indices,,),0)))) -> 105.4 | H23: =IF(A23>date,"",IF(OR(H$13="",H$13="Fioul lourd"),#N/A,SUM(IF((INDEX(base_indices,1,)=H$13)*(INDEX(base_indices,,1)=$A23),INDEX(base_indices,,),0)))) -> 120.5
A24: 2019-08-01 | B24: =IF(A24>date,"",SUM(IF((INDEX(base_index,1,)=B$13)*(INDEX(base_index,,1)=$A24),INDEX(base_index,,),0))) -> 111.5 | C24: =IF(A24>date,"",IF((SUM(IF((INDEX(base_index,1,)=C$13)*(INDEX(base_index,,1)=$A24),INDEX(base_index,,),0)))=0,#N/A,SUM(IF((INDEX(base_index,1,)=C$13)*(INDEX(base_index,,1)=$A24),INDEX(base_index,,),0)))) -> 114.7 | D24: =IF(A24>date,"",SUM(IF((INDEX(base_indices,1,)=D$13)*(INDEX(base_indices,,1)=$A24),INDEX(base_indices,,),0))) -> 105.1 | E24: =IF(A24>date,"",SUM(IF((INDEX(base_indices,1,)=E$13)*(INDEX(base_indices,,1)=$A24),INDEX(base_indices,,),0))) -> 123.1 | F24: =IF(A24>date,"",SUM(IF((INDEX(base_indices,1,)=F$13)*(INDEX(base_indices,,1)=$A24),INDEX(base_indices,,),0))) -> 119.9 | G24: =IF(A24>date,"",IF(OR(G$13="",G$13="Fioul lourd"),#N/A,SUM(IF((INDEX(base_indices,1,)=G$13)*(INDEX(base_indices,,1)=$A24),INDEX(base_indices,,),0)))) -> 106.7 | H24: =IF(A24>date,"",IF(OR(H$13="",H$13="Fioul lourd"),#N/A,SUM(IF((INDEX(base_indices,1,)=H$13)*(INDEX(base_indices,,1)=$A24),INDEX(base_indices,,),0)))) -> 119.8
A25: 2019-09-01 | B25: =IF(A25>date,"",SUM(IF((INDEX(base_index,1,)=B$13)*(INDEX(base_index,,1)=$A25),INDEX(base_index,,),0))) -> 111.2 | C25: =IF(A25>date,"",IF((SUM(IF((INDEX(base_index,1,)=C$13)*(INDEX(base_index,,1)=$A25),INDEX(base_index,,),0)))=0,#N/A,SUM(IF((INDEX(base_index,1,)=C$13)*(INDEX(base_index,,1)=$A25),INDEX(base_index,,),0)))) -> 114.6 | D25: =IF(A25>date,"",SUM(IF((INDEX(base_indices,1,)=D$13)*(INDEX(base_indices,,1)=$A25),INDEX(base_indices,,),0))) -> 105.7 | E25: =IF(A25>date,"",SUM(IF((INDEX(base_indices,1,)=E$13)*(INDEX(base_indices,,1)=$A25),INDEX(base_indices,,),0))) -> 123.3 | F25: =IF(A25>date,"",SUM(IF((INDEX(base_indices,1,)=F$13)*(INDEX(base_indices,,1)=$A25),INDEX(base_indices,,),0))) -> 123.3 | G25: =IF(A25>date,"",IF(OR(G$13="",G$13="Fioul lourd"),#N/A,SUM(IF((INDEX(base_indices,1,)=G$13)*(INDEX(base_indices,,1)=$A25),INDEX(base_indices,,),0)))) -> 105.2 | H25: =IF(A25>date,"",IF(OR(H$13="",H$13="Fioul lourd"),#N/A,SUM(IF((INDEX(base_indices,1,)=H$13)*(INDEX(base_indices,,1)=$A25),INDEX(base_indices,,),0)))) -> 118.3
A26: 2019-10-01 | B26: =IF(A26>date,"",SUM(IF((INDEX(base_index,1,)=B$13)*(INDEX(base_index,,1)=$A26),INDEX(base_index,,),0))) -> 111.2 | C26: =IF(A26>date,"",IF((SUM(IF((INDEX(base_index,1,)=C$13)*(INDEX(base_index,,1)=$A26),INDEX(base_index,,),0)))=0,#N/A,SUM(IF((INDEX(base_index,1,)=C$13)*(INDEX(base_index,,1)=$A26),INDEX(base_index,,),0)))) -> 114.2 | D26: =IF(A26>date,"",SUM(IF((INDEX(base_indices,1,)=D$13)*(INDEX(base_indices,,1)=$A26),INDEX(base_indices,,),0))) -> 105.6 | E26: =IF(A26>date,"",SUM(IF((INDEX(base_indices,1,)=E$13)*(INDEX(base_indices,,1)=$A26),INDEX(base_indices,,),0))) -> 123.5 | F26: =IF(A26>date,"",SUM(IF((INDEX(base_indices,1,)=F$13)*(INDEX(base_indices,,1)=$A26),INDEX(base_indices,,),0))) -> 122.4 | G26: =IF(A26>date,"",IF(OR(G$13="",G$13="Fioul lourd"),#N/A,SUM(IF((INDEX(base_indices,1,)=G$13)*(INDEX(base_indices,,1)=$A26),INDEX(base_indices,,),0)))) -> 104.7 | H26: =IF(A26>date,"",IF(OR(H$13="",H$13="Fioul lourd"),#N/A,SUM(IF((INDEX(base_indices,1,)=H$13)*(INDEX(base_indices,,1)=$A26),INDEX(base_indices,,),0)))) -> 114.1
A27: 2019-11-01 | B27: =IF(A27>date,"",SUM(IF((INDEX(base_index,1,)=B$13)*(INDEX(base_index,,1)=$A27),INDEX(base_index,,),0))) -> 110.5 | C27: =IF(A27>date,"",IF((SUM(IF((INDEX(base_index,1,)=C$13)*(INDEX(base_index,,1)=$A27),INDEX(base_index,,),0)))=0,#N/A,SUM(IF((INDEX(base_index,1,)=C$13)*(INDEX(base_index,,1)=$A27),INDEX(base_index,,),0)))) -> 114.2 | D27: =IF(A27>date,"",SUM(IF((INDEX(base_indices,1,)=D$13)*(INDEX(base_indices,,1)=$A27),INDEX(base_indices,,),0))) -> 105.1 | E27: =IF(A27>date,"",SUM(IF((INDEX(base_indices,1,)=E$13)*(INDEX(base_indices,,1)=$A27),INDEX(base_indices,,),0))) -> 123.7 | F27: =IF(A27>date,"",SUM(IF((INDEX(base_indices,1,)=F$13)*(INDEX(base_indices,,1)=$A27),INDEX(base_indices,,),0))) -> 122.5 | G27: =IF(A27>date,"",IF(OR(G$13="",G$13="Fioul lourd"),#N/A,SUM(IF((INDEX(base_indices,1,)=G$13)*(INDEX(base_indices,,1)=$A27),INDEX(base_indices,,),0)))) -> 104.5 | H27: =IF(A27>date,"",IF(OR(H$13="",H$13="Fioul lourd"),#N/A,SUM(IF((INDEX(base_indices,1,)=H$13)*(INDEX(base_indices,,1)=$A27),INDEX(base_indices,,),0)))) -> 111.3
A28: 2019-12-01 | B28: =IF(A28>date,"",SUM(IF((INDEX(base_index,1,)=B$13)*(INDEX(base_index,,1)=$A28),INDEX(base_index,,),0))) -> 110.4 | C28: =IF(A28>date,"",IF((SUM(IF((INDEX(base_index,1,)=C$13)*(INDEX(base_index,,1)=$A28),INDEX(base_index,,),0)))=0,#N/A,SUM(IF((INDEX(base_index,1,)=C$13)*(INDEX(base_index,,1)=$A28),INDEX(base_index,,),0)))) -> 114.3 | D28: =IF(A28>date,"",SUM(IF((INDEX(base_indices,1,)=D$13)*(INDEX(base_indices,,1)=$A28),INDEX(base_indices,,),0))) -> 104.6 | E28: =IF(A28>date,"",SUM(IF((INDEX(base_indices,1,)=E$13)*(INDEX(base_indices,,1)=$A28),INDEX(base_indices,,),0))) -> 123.9 | F28: =IF(A28>date,"",SUM(IF((INDEX(base_indices,1,)=F$13)*(INDEX(base_indices,,1)=$A28),INDEX(base_indices,,),0))) -> 124.1 | G28: =IF(A28>date,"",IF(OR(G$13="",G$13="Fioul lourd"),#N/A,SUM(IF((INDEX(base_indices,1,)=G$13)*(INDEX(base_indices,,1)=$A28),INDEX(base_indices,,),0)))) -> 104.8 | H28: =IF(A28>date,"",IF(OR(H$13="",H$13="Fioul lourd"),#N/A,SUM(IF((INDEX(base_indices,1,)=H$13)*(INDEX(base_indices,,1)=$A28),INDEX(base_indices,,),0)))) -> 111.2
A29: 2020-01-01 | B29: =IF(A29>date,"",SUM(IF((INDEX(base_index,1,)=B$13)*(INDEX(base_index,,1)=$A29),INDEX(base_index,,),0))) -> 111.4 | C29: =IF(A29>date,"",IF((SUM(IF((INDEX(base_index,1,)=C$13)*(INDEX(base_index,,1)=$A29),INDEX(base_index,,),0)))=0,#N/A,SUM(IF((INDEX(base_index,1,)=C$13)*(INDEX(base_index,,1)=$A29),INDEX(base_index,,),0)))) -> 114.7 | D29: =IF(A29>date,"",SUM(IF((INDEX(base_indices,1,)=D$13)*(INDEX(base_indices,,1)=$A29),INDEX(base_indices,,),0))) -> 104.7 | E29: =IF(A29>date,"",SUM(IF((INDEX(base_indices,1,)=E$13)*(INDEX(base_indices,,1)=$A29),INDEX(base_indices,,),0))) -> 123.7 | F29: =IF(A29>date,"",SUM(IF((INDEX(base_indices,1,)=F$13)*(INDEX(base_indices,,1)=$A29),INDEX(base_indices,,),0))) -> 120.9 | G29: =IF(A29>date,"",IF(OR(G$13="",G$13="Fioul lourd"),#N/A,SUM(IF((INDEX(base_indices,1,)=G$13)*(INDEX(base_indices,,1)=$A29),INDEX(base_indices,,),0)))) -> 105.2 | H29: =IF(A29>date,"",IF(OR(H$13="",H$13="Fioul lourd"),#N/A,SUM(IF((INDEX(base_indices,1,)=H$13)*(INDEX(base_indices,,1)=$A29),INDEX(base_indices,,),0)))) -> 112.6
A30: 2020-02-01 | B30: =IF(A30>date,"",SUM(IF((INDEX(base_index,1,)=B$13)*(INDEX(base_index,,1)=$A30),INDEX(base_index,,),0))) -> 111.7 | C30: =IF(A30>date,"",IF((SUM(IF((INDEX(base_index,1,)=C$13)*(INDEX(base_index,,1)=$A30),INDEX(base_index,,),0)))=0,#N/A,SUM(IF((INDEX(base_index,1,)=C$13)*(INDEX(base_index,,1)=$A30),INDEX(base_index,,),0)))) -> 114.8 | D30: =IF(A30>date,"",SUM(IF((INDEX(base_indices,1,)=D$13)*(INDEX(base_indices,,1)=$A30),INDEX(base_indices,,),0))) -> 105.5 | E30: =IF(A30>date,"",SUM(IF((INDEX(base_indices,1,)=E$13)*(INDEX(base_indices,,1)=$A30),INDEX(base_indices,,),0))) -> 123.5 | F30: =IF(A30>date,"",SUM(IF((INDEX(base_indices,1,)=F$13)*(INDEX(base_indices,,1)=$A30),INDEX(base_indices,,),0))) -> 115.3 | G30: =IF(A30>date,"",IF(OR(G$13="",G$13="Fioul lourd"),#N/A,SUM(IF((INDEX(base_indices,1,)=G$13)*(INDEX(base_indices,,1)=$A30),INDEX(base_indices,,),0)))) -> 103.7 | H30: =IF(A30>date,"",IF(OR(H$13="",H$13="Fioul lourd"),#N/A,SUM(IF((INDEX(base_indices,1,)=H$13)*(INDEX(base_indices,,1)=$A30),INDEX(base_indices,,),0)))) -> 113.5
A31: 2020-03-01 | B31: =IF(A31>date,"",SUM(IF((INDEX(base_index,1,)=B$13)*(INDEX(base_index,,1)=$A31),INDEX(base_index,,),0))) -> 110.8 | C31: =IF(A31>date,"",IF((SUM(IF((INDEX(base_index,1,)=C$13)*(INDEX(base_index,,1)=$A31),INDEX(base_index,,),0)))=0,#N/A,SUM(IF((INDEX(base_index,1,)=C$13)*(INDEX(base_index,,1)=$A31),INDEX(base_index,,),0)))) -> 114.7 | D31: =IF(A31>date,"",SUM(IF((INDEX(base_indices,1,)=D$13)*(INDEX(base_indices,,1)=$A31),INDEX(base_indices,,),0))) -> 105.3 | E31: =IF(A31>date,"",SUM(IF((INDEX(base_indices,1,)=E$13)*(INDEX(base_indices,,1)=$A31),INDEX(base_indices,,),0))) -> 123.3 | F31: =IF(A31>date,"",SUM(IF((INDEX(base_indices,1,)=F$13)*(INDEX(base_indices,,1)=$A31),INDEX(base_indices,,),0))) -> 99.2 | G31: =IF(A31>date,"",IF(OR(G$13="",G$13="Fioul lourd"),#N/A,SUM(IF((INDEX(base_indices,1,)=G$13)*(INDEX(base_indices,,1)=$A31),INDEX(base_indices,,),0)))) -> 103.5 | H31: =IF(A31>date,"",IF(OR(H$13="",H$13="Fioul lourd"),#N/A,SUM(IF((INDEX(base_indices,1,)=H$13)*(INDEX(base_indices,,1)=$A31),INDEX(base_indices,,),0)))) -> 112.3
A32: 2020-04-01 | B32: =IF(A32>date,"",SUM(IF((INDEX(base_index,1,)=B$13)*(INDEX(base_index,,1)=$A32),INDEX(base_index,,),0))) -> 108.9 | C32: =IF(A32>date,"",IF((SUM(IF((INDEX(base_index,1,)=C$13)*(INDEX(base_index,,1)=$A32),INDEX(base_index,,),0)))=0,#N/A,SUM(IF((INDEX(base_index,1,)=C$13)*(INDEX(base_index,,1)=$A32),INDEX(base_index,,),0)))) -> 114.4 | D32: =IF(A32>date,"",SUM(IF((INDEX(base_indices,1,)=D$13)*(INDEX(base_indices,,1)=$A32),INDEX(base_indices,,),0))) -> 105.5 | E32: =IF(A32>date,"",SUM(IF((INDEX(base_indices,1,)=E$13)*(INDEX(base_indices,,1)=$A32),INDEX(base_indices,,),0))) -> 123.6 | F32: =IF(A32>date,"",SUM(IF((INDEX(base_indices,1,)=F$13)*(INDEX(base_indices,,1)=$A32),INDEX(base_indices,,),0))) -> 88.2 | G32: =IF(A32>date,"",IF(OR(G$13="",G$13="Fioul lourd"),#N/A,SUM(IF((INDEX(base_indices,1,)=G$13)*(INDEX(base_indices,,1)=$A32),INDEX(base_indices,,),0)))) -> 102.7 | H32: =IF(A32>date,"",IF(OR(H$13="",H$13="Fioul lourd"),#N/A,SUM(IF((INDEX(base_indices,1,)=H$13)*(INDEX(base_indices,,1)=$A32),INDEX(base_indices,,),0)))) -> 112.1
A33: 2020-05-01 | B33: =IF(A33>date,"",SUM(IF((INDEX(base_index,1,)=B$13)*(INDEX(base_index,,1)=$A33),INDEX(base_index,,),0))) -> 108.7 | C33: =IF(A33>date,"",IF((SUM(IF((INDEX(base_index,1,)=C$13)*(INDEX(base_index,,1)=$A33),INDEX(base_index,,),0)))=0,#N/A,SUM(IF((INDEX(base_index,1,)=C$13)*(INDEX(base_index,,1)=$A33),INDEX(base_index,,),0)))) -> 114.2 | D33: =IF(A33>date,"",SUM(IF((INDEX(base_indices,1,)=D$13)*(INDEX(base_indices,,1)=$A33),INDEX(base_indices,,),0))) -> 104.9 | E33: =IF(A33>date,"",SUM(IF((INDEX(base_indices,1,)=E$13)*(INDEX(base_indices,,1)=$A33),INDEX(base_indices,,),0))) -> 123.8 | F33: =IF(A33>date,"",SUM(IF((INDEX(base_indices,1,)=F$13)*(INDEX(base_indices,,1)=$A33),INDEX(base_indices,,),0))) -> 91.2 | G33: =IF(A33>date,"",IF(OR(G$13="",G$13="Fioul lourd"),#N/A,SUM(IF((INDEX(base_indices,1,)=G$13)*(INDEX(base_indices,,1)=$A33),INDEX(base_indices,,),0)))) -> 104.4 | H33: =IF(A33>date,"",IF(OR(H$13="",H$13="Fioul lourd"),#N/A,SUM(IF((INDEX(base_indices,1,)=H$13)*(INDEX(base_indices,,1)=$A33),INDEX(base_indices,,),0)))) -> 111.3
A34: 2020-06-01 | B34: =IF(A34>date,"",SUM(IF((INDEX(base_index,1,)=B$13)*(INDEX(base_index,,1)=$A34),INDEX(base_index,,),0))) -> 108.8 | C34: =IF(A34>date,"",IF((SUM(IF((INDEX(base_index,1,)=C$13)*(INDEX(base_index,,1)=$A34),INDEX(base_index,,),0)))=0,#N/A,SUM(IF((INDEX(base_index,1,)=C$13)*(INDEX(base_index,,1)=$A34),INDEX(base_index,,),0)))) -> 113.7 | D34: =IF(A34>date,"",SUM(IF((INDEX(base_indices,1,)=D$13)*(INDEX(base_indices,,1)=$A34),INDEX(base_indices,,),0))) -> 103 | E34: =IF(A34>date,"",SUM(IF((INDEX(base_indices,1,)=E$13)*(INDEX(base_indices,,1)=$A34),INDEX(base_indices,,),0))) -> 124 | F34: =IF(A34>date,"",SUM(IF((INDEX(base_indices,1,)=F$13)*(INDEX(base_indices,,1)=$A34),INDEX(base_indices,,),0))) -> 97.2 | G34: =IF(A34>date,"",IF(OR(G$13="",G$13="Fioul lourd"),#N/A,SUM(IF((INDEX(base_indices,1,)=G$13)*(INDEX(base_indices,,1)=$A34),INDEX(base_indices,,),0)))) -> 105.4 | H34: =IF(A34>date,"",IF(OR(H$13="",H$13="Fioul lourd"),#N/A,SUM(IF((INDEX(base_indices,1,)=H$13)*(INDEX(base_indices,,1)=$A34),INDEX(base_indices,,),0)))) -> 109.7
A35: 2020-07-01 | B35: =IF(A35>date,"",SUM(IF((INDEX(base_index,1,)=B$13)*(INDEX(base_index,,1)=$A35),INDEX(base_index,,),0))) -> 109.9 | C35: =IF(A35>date,"",IF((SUM(IF((INDEX(base_index,1,)=C$13)*(INDEX(base_index,,1)=$A35),INDEX(base_index,,),0)))=0,#N/A,SUM(IF((INDEX(base_index,1,)=C$13)*(INDEX(base_index,,1)=$A35),INDEX(base_index,,),0)))) -> 113.7 | D35: =IF(A35>date,"",SUM(IF((INDEX(base_indices,1,)=D$13)*(INDEX(base_indices,,1)=$A35),INDEX(base_indices,,),0))) -> 102.6 | E35: =IF(A35>date,"",SUM(IF((INDEX(base_indices,1,)=E$13)*(INDEX(base_indices,,1)=$A35),INDEX(base_indices,,),0))) -> 123.8 | F35: =IF(A35>date,"",SUM(IF((INDEX(base_indices,1,)=F$13)*(INDEX(base_indices,,1)=$A35),INDEX(base_indices,,),0))) -> 99.7 | G35: =IF(A35>date,"",IF(OR(G$13="",G$13="Fioul lourd"),#N/A,SUM(IF((INDEX(base_indices,1,)=G$13)*(INDEX(base_indices,,1)=$A35),INDEX(base_indices,,),0)))) -> 105.6 | H35: =IF(A35>date,"",IF(OR(H$13="",H$13="Fioul lourd"),#N/A,SUM(IF((INDEX(base_indices,1,)=H$13)*(INDEX(base_indices,,1)=$A35),INDEX(base_indices,,),0)))) -> 108
A36: 2020-08-01 | B36: =IF(A36>date,"",SUM(IF((INDEX(base_index,1,)=B$13)*(INDEX(base_index,,1)=$A36),INDEX(base_index,,),0))) -> 110 | C36: =IF(A36>date,"",IF((SUM(IF((INDEX(base_index,1,)=C$13)*(INDEX(base_index,,1)=$A36),INDEX(base_index,,),0)))=0,#N/A,SUM(IF((INDEX(base_index,1,)=C$13)*(INDEX(base_index,,1)=$A36),INDEX(base_index,,),0)))) -> 113.8 | D36: =IF(A36>date,"",SUM(IF((INDEX(base_indices,1,)=D$13)*(INDEX(base_indices,,1)=$A36),INDEX(base_indices,,),0))) -> 102.8 | E36: =IF(A36>date,"",SUM(IF((INDEX(base_indices,1,)=E$13)*(INDEX(base_indices,,1)=$A36),INDEX(base_indices,,),0))) -> 123.7 | F36: =IF(A36>date,"",SUM(IF((INDEX(base_indices,1,)=F$13)*(INDEX(base_indices,,1)=$A36),INDEX(base_indices,,),0))) -> 98.3 | G36: =IF(A36>date,"",IF(OR(G$13="",G$13="Fioul lourd"),#N/A,SUM(IF((INDEX(base_indices,1,)=G$13)*(INDEX(base_indices,,1)=$A36),INDEX(base_indices,,),0)))) -> 105.4 | H36: =IF(A36>date,"",IF(OR(H$13="",H$13="Fioul lourd"),#N/A,SUM(IF((INDEX(base_indices,1,)=H$13)*(INDEX(base_indices,,1)=$A36),INDEX(base_indices,,),0)))) -> 107.4
A37: 2020-09-01 | B37: =IF(A37>date,"",SUM(IF((INDEX(base_index,1,)=B$13)*(INDEX(base_index,,1)=$A37),INDEX(base_index,,),0))) -> 110.1 | C37: =IF(A37>date,"",IF((SUM(IF((INDEX(base_index,1,)=C$13)*(INDEX(base_index,,1)=$A37),INDEX(base_index,,),0)))=0,#N/A,SUM(IF((INDEX(base_index,1,)=C$13)*(INDEX(base_index,,1)=$A37),INDEX(base_index,,),0)))) -> 114.4 | D37: =IF(A37>date,"",SUM(IF((INDEX(base_indices,1,)=D$13)*(INDEX(base_indices,,1)=$A37),INDEX(base_indices,,),0))) -> 104.4 | E37: =IF(A37>date,"",SUM(IF((INDEX(base_indices,1,)=E$13)*(INDEX(base_indices,,1)=$A37),INDEX(base_indices,,),0))) -> 123.6 | F37: =IF(A37>date,"",SUM(IF((INDEX(base_indices,1,)=F$13)*(INDEX(base_indices,,1)=$A37),INDEX(base_indices,,),0))) -> 94.9 | G37: =IF(A37>date,"",IF(OR(G$13="",G$13="Fioul lourd"),#N/A,SUM(IF((INDEX(base_indices,1,)=G$13)*(INDEX(base_indices,,1)=$A37),INDEX(base_indices,,),0)))) -> 106.5 | H37: =IF(A37>date,"",IF(OR(H$13="",H$13="Fioul lourd"),#N/A,SUM(IF((INDEX(base_indices,1,)=H$13)*(INDEX(base_indices,,1)=$A37),INDEX(base_indices,,),0)))) -> 108.5
A38: 2020-10-01 | B38: =IF(A38>date,"",SUM(IF((INDEX(base_index,1,)=B$13)*(INDEX(base_index,,1)=$A38),INDEX(base_index,,),0))) -> 109.5 | C38: =IF(A38>date,"",IF((SUM(IF((INDEX(base_index,1,)=C$13)*(INDEX(base_index,,1)=$A38),INDEX(base_index,,),0)))=0,#N/A,SUM(IF((INDEX(base_index,1,)=C$13)*(INDEX(base_index,,1)=$A38),INDEX(base_index,,),0)))) -> 114.4 | D38: =IF(A38>date,"",SUM(IF((INDEX(base_indices,1,)=D$13)*(INDEX(base_indices,,1)=$A38),INDEX(base_indices,,),0))) -> 104.1 | E38: =IF(A38>date,"",SUM(IF((INDEX(base_indices,1,)=E$13)*(INDEX(base_indices,,1)=$A38),INDEX(base_indices,,),0))) -> 123.5 | F38: =IF(A38>date,"",SUM(IF((INDEX(base_indices,1,)=F$13)*(INDEX(base_indices,,1)=$A38),INDEX(base_indices,,),0))) -> 95 | G38: =IF(A38>date,"",IF(OR(G$13="",G$13="Fioul lourd"),#N/A,SUM(IF((INDEX(base_indices,1,)=G$13)*(INDEX(base_indices,,1)=$A38),INDEX(base_indices,,),0)))) -> 105.9 | H38: =IF(A38>date,"",IF(OR(H$13="",H$13="Fioul lourd"),#N/A,SUM(IF((INDEX(base_indices,1,)=H$13)*(INDEX(base_indices,,1)=$A38),INDEX(base_indices,,),0)))) -> 110.7
A39: 2020-11-01 | B39: =IF(A39>date,"",SUM(IF((INDEX(base_index,1,)=B$13)*(INDEX(base_index,,1)=$A39),INDEX(base_index,,),0))) -> 109.5 | C39: =IF(A39>date,"",IF((SUM(IF((INDEX(base_index,1,)=C$13)*(INDEX(base_index,,1)=$A39),INDEX(base_index,,),0)))=0,#N/A,SUM(IF((INDEX(base_index,1,)=C$13)*(INDEX(base_index,,1)=$A39),INDEX(base_index,,),0)))) -> 114.5 | D39: =IF(A39>date,"",SUM(IF((INDEX(base_indices,1,)=D$13)*(INDEX(base_indices,,1)=$A39),INDEX(base_indices,,),0))) -> 104.4 | E39: =IF(A39>date,"",SUM(IF((INDEX(base_indices,1,)=E$13)*(INDEX(base_indices,,1)=$A39),INDEX(base_indices,,),0))) -> 123.5 | F39: =IF(A39>date,"",SUM(IF((INDEX(base_indices,1,)=F$13)*(INDEX(base_indices,,1)=$A39),INDEX(base_indices,,),0))) -> 96.6 | G39: =IF(A39>date,"",IF(OR(G$13="",G$13="Fioul lourd"),#N/A,SUM(IF((INDEX(base_indices,1,)=G$13)*(INDEX(base_indices,,1)=$A39),INDEX(base_indices,,),0)))) -> 105.4 | H39: =IF(A39>date,"",IF(OR(H$13="",H$13="Fioul lourd"),#N/A,SUM(IF((INDEX(base_indices,1,)=H$13)*(INDEX(base_indices,,1)=$A39),INDEX(base_indices,,),0)))) -> 112.6
A40: 2020-12-01 | B40: =IF(A40>date,"",SUM(IF((INDEX(base_index,1,)=B$13)*(INDEX(base_index,,1)=$A40),INDEX(base_index,,),0))) -> 109.8 | C40: =IF(A40>date,"",IF((SUM(IF((INDEX(base_index,1,)=C$13)*(INDEX(base_index,,1)=$A40),INDEX(base_index,,),0)))=0,#N/A,SUM(IF((INDEX(base_index,1,)=C$13)*(INDEX(base_index,,1)=$A40),INDEX(base_index,,),0)))) -> 114.9 | D40: =IF(A40>date,"",SUM(IF((INDEX(base_indices,1,)=D$13)*(INDEX(base_indices,,1)=$A40),INDEX(base_indices,,),0))) -> 104.4 | E40: =IF(A40>date,"",SUM(IF((INDEX(base_indices,1,)=E$13)*(INDEX(base_indices,,1)=$A40),INDEX(base_indices,,),0))) -> 123.4 | F40: =IF(A40>date,"",SUM(IF((INDEX(base_indices,1,)=F$13)*(INDEX(base_indices,,1)=$A40),INDEX(base_indices,,),0))) -> 101.2 | G40: =IF(A40>date,"",IF(OR(G$13="",G$13="Fioul lourd"),#N/A,SUM(IF((INDEX(base_indices,1,)=G$13)*(INDEX(base_indices,,1)=$A40),INDEX(base_indices,,),0)))) -> 104.7 | H40: =IF(A40>date,"",IF(OR(H$13="",H$13="Fioul lourd"),#N/A,SUM(IF((INDEX(base_indices,1,)=H$13)*(INDEX(base_indices,,1)=$A40),INDEX(base_indices,,),0)))) -> 116.1
A41: 2021-01-01 | B41: =IF(A41>date,"",SUM(IF((INDEX(base_index,1,)=B$13)*(INDEX(base_index,,1)=$A41),INDEX(base_index,,),0))) -> 111.2 | C41: =IF(A41>date,"",IF((SUM(IF((INDEX(base_index,1,)=C$13)*(INDEX(base_index,,1)=$A41),INDEX(base_index,,),0)))=0,#N/A,SUM(IF((INDEX(base_index,1,)=C$13)*(INDEX(base_index,,1)=$A41),INDEX(base_index,,),0)))) -> 116.3 | D41: =IF(A41>date,"",SUM(IF((INDEX(base_indices,1,)=D$13)*(INDEX(base_indices,,1)=$A41),INDEX(base_indices,,),0))) -> 104.5 | E41: =IF(A41>date,"",SUM(IF((INDEX(base_indices,1,)=E$13)*(INDEX(base_indices,,1)=$A41),INDEX(base_indices,,),0))) -> 123.4 | F41: =IF(A41>date,"",SUM(IF((INDEX(base_indices,1,)=F$13)*(INDEX(base_indices,,1)=$A41),INDEX(base_indices,,),0))) -> 104.6 | G41: =IF(A41>date,"",IF(OR(G$13="",G$13="Fioul lourd"),#N/A,SUM(IF((INDEX(base_indices,1,)=G$13)*(INDEX(base_indices,,1)=$A41),INDEX(base_indices,,),0)))) -> 105.8 | H41: =IF(A41>date,"",IF(OR(H$13="",H$13="Fioul lourd"),#N/A,SUM(IF((INDEX(base_indices,1,)=H$13)*(INDEX(base_indices,,1)=$A41),INDEX(base_indices,,),0)))) -> 130.8
A42: 2021-02-01 | B42: =IF(A42>date,"",SUM(IF((INDEX(base_index,1,)=B$13)*(INDEX(base_index,,1)=$A42),INDEX(base_index,,),0))) -> 112.1 | C42: =IF(A42>date,"",IF((SUM(IF((INDEX(base_index,1,)=C$13)*(INDEX(base_index,,1)=$A42),INDEX(base_index,,),0)))=0,#N/A,SUM(IF((INDEX(base_index,1,)=C$13)*(INDEX(base_index,,1)=$A42),INDEX(base_index,,),0)))) -> 117.2 | D42: =IF(A42>date,"",SUM(IF((INDEX(base_indices,1,)=D$13)*(INDEX(base_indices,,1)=$A42),INDEX(base_indices,,),0))) -> 104.5 | E42: =IF(A42>date,"",SUM(IF((INDEX(base_indices,1,)=E$13)*(INDEX(base_indices,,1)=$A42),INDEX(base_indices,,),0))) -> 123.3 | F42: =IF(A42>date,"",SUM(IF((INDEX(base_indices,1,)=F$13)*(INDEX(base_indices,,1)=$A42),INDEX(base_indices,,),0))) -> 109.6 | G42: =IF(A42>date,"",IF(OR(G$13="",G$13="Fioul lourd"),#N/A,SUM(IF((INDEX(base_indices,1,)=G$13)*(INDEX(base_indices,,1)=$A42),INDEX(base_indices,,),0)))) -> 105.9 | H42: =IF(A42>date,"",IF(OR(H$13="",H$13="Fioul lourd"),#N/A,SUM(IF((INDEX(base_indices,1,)=H$13)*(INDEX(base_indices,,1)=$A42),INDEX(base_indices,,),0)))) -> 139.2
A43: 2021-03-01 | B43: =IF(A43>date,"",SUM(IF((INDEX(base_index,1,)=B$13)*(INDEX(base_index,,1)=$A43),INDEX(base_index,,),0))) -> 113.5 | C43: =IF(A43>date,"",IF((SUM(IF((INDEX(base_index,1,)=C$13)*(INDEX(base_index,,1)=$A43),INDEX(base_index,,),0)))=0,#N/A,SUM(IF((INDEX(base_index,1,)=C$13)*(INDEX(base_index,,1)=$A43),INDEX(base_index,,),0)))) -> 118.3 | D43: =IF(A43>date,"",SUM(IF((INDEX(base_indices,1,)=D$13)*(INDEX(base_indices,,1)=$A43),INDEX(base_indices,,),0))) -> 107.6 | E43: =IF(A43>date,"",SUM(IF((INDEX(base_indices,1,)=E$13)*(INDEX(base_indices,,1)=$A43),INDEX(base_indices,,),0))) -> 123.3 | F43: =IF(A43>date,"",SUM(IF((INDEX(base_indices,1,)=F$13)*(INDEX(base_indices,,1)=$A43),INDEX(base_indices,,),0))) -> 111.5 | G43: =IF(A43>date,"",IF(OR(G$13="",G$13="Fioul lourd"),#N/A,SUM(IF((INDEX(base_indices,1,)=G$13)*(INDEX(base_indices,,1)=$A43),INDEX(base_indices,,),0)))) -> 106.2 | H43: =IF(A43>date,"",IF(OR(H$13="",H$13="Fioul lourd"),#N/A,SUM(IF((INDEX(base_indices,1,)=H$13)*(INDEX(base_indices,,1)=$A43),INDEX(base_indices,,),0)))) -> 144.6
A44: 2021-04-01 | B44: =IF(A44>date,"",SUM(IF((INDEX(base_index,1,)=B$13)*(INDEX(base_index,,1)=$A44),INDEX(base_index,,),0))) -> 113.8 | C44: =IF(A44>date,"",IF((SUM(IF((INDEX(base_index,1,)=C$13)*(INDEX(base_index,,1)=$A44),INDEX(base_index,,),0)))=0,#N/A,SUM(IF((INDEX(base_index,1,)=C$13)*(INDEX(base_index,,1)=$A44),INDEX(base_index,,),0)))) -> 118.9 | D44: =IF(A44>date,"",SUM(IF((INDEX(base_indices,1,)=D$13)*(INDEX(base_indices,,1)=$A44),INDEX(base_indices,,),0))) -> 107.8 | E44: =IF(A44>date,"",SUM(IF((INDEX(base_indices,1,)=E$13)*(INDEX(base_indices,,1)=$A44),INDEX(base_indices,,),0))) -> 123 | F44: =IF(A44>date,"",SUM(IF((INDEX(base_indices,1,)=F$13)*(INDEX(base_indices,,1)=$A44),INDEX(base_indices,,),0))) -> 110.9 | G44: =IF(A44>date,"",IF(OR(G$13="",G$13="Fioul lourd"),#N/A,SUM(IF((INDEX(base_indices,1,)=G$13)*(INDEX(base_indices,,1)=$A44),INDEX(base_indices,,),0)))) -> 106.4 | H44: =IF(A44>date,"",IF(OR(H$13="",H$13="Fioul lourd"),#N/A,SUM(IF((INDEX(base_indices,1,)=H$13)*(INDEX(base_indices,,1)=$A44),INDEX(base_indices,,),0)))) -> 149.4
A45: 2021-05-01 | B45: =IF(A45>date,"",SUM(IF((INDEX(base_index,1,)=B$13)*(INDEX(base_index,,1)=$A45),INDEX(base_index,,),0))) -> 114 | C45: =IF(A45>date,"",IF((SUM(IF((INDEX(base_index,1,)=C$13)*(INDEX(base_index,,1)=$A45),INDEX(base_index,,),0)))=0,#N/A,SUM(IF((INDEX(base_index,1,)=C$13)*(INDEX(base_index,,1)=$A45),INDEX(base_index,,),0)))) -> 119 | D45: =IF(A45>date,"",SUM(IF((INDEX(base_indices,1,)=D$13)*(INDEX(base_indices,,1)=$A45),INDEX(base_indices,,),0))) -> 107.2 | E45: =IF(A45>date,"",SUM(IF((INDEX(base_indices,1,)=E$13)*(INDEX(base_indices,,1)=$A45),INDEX(base_indices,,),0))) -> 122.7 | F45: =IF(A45>date,"",SUM(IF((INDEX(base_indices,1,)=F$13)*(INDEX(base_indices,,1)=$A45),INDEX(base_indices,,),0))) -> 112.9 | G45: =IF(A45>date,"",IF(OR(G$13="",G$13="Fioul lourd"),#N/A,SUM(IF((INDEX(base_indices,1,)=G$13)*(INDEX(base_indices,,1)=$A45),INDEX(base_indices,,),0)))) -> 106 | H45: =IF(A45>date,"",IF(OR(H$13="",H$13="Fioul lourd"),#N/A,SUM(IF((INDEX(base_indices,1,)=H$13)*(INDEX(base_indices,,1)=$A45),INDEX(base_indices,,),0)))) -> 153.5
A46: 2021-06-01 | B46: =IF(A46>date,"",SUM(IF((INDEX(base_index,1,)=B$13)*(INDEX(base_index,,1)=$A46),INDEX(base_index,,),0))) -> 114.8 | C46: =IF(A46>date,"",IF((SUM(IF((INDEX(base_index,1,)=C$13)*(INDEX(base_index,,1)=$A46),INDEX(base_index,,),0)))=0,#N/A,SUM(IF((INDEX(base_index,1,)=C$13)*(INDEX(base_index,,1)=$A46),INDEX(base_index,,),0)))) -> 120.8 | D46: =IF(A46>date,"",SUM(IF((INDEX(base_indices,1,)=D$13)*(INDEX(base_indices,,1)=$A46),INDEX(base_indices,,),0))) -> 107.8 | E46: =IF(A46>date,"",SUM(IF((INDEX(base_indices,1,)=E$13)*(INDEX(base_indices,,1)=$A46),INDEX(base_indices,,),0))) -> 122.5 | F46: =IF(A46>date,"",SUM(IF((INDEX(base_indices,1,)=F$13)*(INDEX(base_indices,,1)=$A46),INDEX(base_indices,,),0))) -> 117.1 | G46: =IF(A46>date,"",IF(OR(G$13="",G$13="Fioul lourd"),#N/A,SUM(IF((INDEX(base_indices,1,)=G$13)*(INDEX(base_indices,,1)=$A46),INDEX(base_indices,,),0)))) -> 105.6 | H46: =IF(A46>date,"",IF(OR(H$13="",H$13="Fioul lourd"),#N/A,SUM(IF((INDEX(base_indices,1,)=H$13)*(INDEX(base_indices,,1)=$A46),INDEX(base_indices,,),0)))) -> 167.7
A47: 2021-07-01 | B47: =IF(A47>date,"",SUM(IF((INDEX(base_index,1,)=B$13)*(INDEX(base_index,,1)=$A47),INDEX(base_index,,),0))) -> 115.9 | C47: =IF(A47>date,"",IF((SUM(IF((INDEX(base_index,1,)=C$13)*(INDEX(base_index,,1)=$A47),INDEX(base_index,,),0)))=0,#N/A,SUM(IF((INDEX(base_index,1,)=C$13)*(INDEX(base_index,,1)=$A47),INDEX(base_index,,),0)))) -> 122.7 | D47: =IF(A47>date,"",SUM(IF((INDEX(base_indices,1,)=D$13)*(INDEX(base_indices,,1)=$A47),INDEX(base_indices,,),0))) -> 108.3 | E47: =IF(A47>date,"",SUM(IF((INDEX(base_indices,1,)=E$13)*(INDEX(base_indices,,1)=$A47),INDEX(base_indices,,),0))) -> 122.5 | F47: =IF(A47>date,"",SUM(IF((INDEX(base_indices,1,)=F$13)*(INDEX(base_indices,,1)=$A47),INDEX(base_indices,,),0))) -> 120.9 | G47: =IF(A47>date,"",IF(OR(G$13="",G$13="Fioul lourd"),#N/A,SUM(IF((INDEX(base_indices,1,)=G$13)*(INDEX(base_indices,,1)=$A47),INDEX(base_indices,,),0)))) -> 106.7 | H47: =IF(A47>date,"",IF(OR(H$13="",H$13="Fioul lourd"),#N/A,SUM(IF((INDEX(base_indices,1,)=H$13)*(INDEX(base_indices,,1)=$A47),INDEX(base_indices,,),0)))) -> 185.7
A48: 2021-08-01 | B48: =IF(A48>date,"",SUM(IF((INDEX(base_index,1,)=B$13)*(INDEX(base_index,,1)=$A48),INDEX(base_index,,),0))) -> 116.1 | C48: =IF(A48>date,"",IF((SUM(IF((INDEX(base_index,1,)=C$13)*(INDEX(base_index,,1)=$A48),INDEX(base_index,,),0)))=0,#N/A,SUM(IF((INDEX(base_index,1,)=C$13)*(INDEX(base_index,,1)=$A48),INDEX(base_index,,),0)))) -> 123.1 | D48: =IF(A48>date,"",SUM(IF((INDEX(base_indices,1,)=D$13)*(INDEX(base_indices,,1)=$A48),INDEX(base_indices,,),0))) -> 108.2 | E48: =IF(A48>date,"",SUM(IF((INDEX(base_indices,1,)=E$13)*(INDEX(base_indices,,1)=$A48),INDEX(base_indices,,),0))) -> 122.6 | F48: =IF(A48>date,"",SUM(IF((INDEX(base_indices,1,)=F$13)*(INDEX(base_indices,,1)=$A48),INDEX(base_indices,,),0))) -> 122.5 | G48: =IF(A48>date,"",IF(OR(G$13="",G$13="Fioul lourd"),#N/A,SUM(IF((INDEX(base_indices,1,)=G$13)*(INDEX(base_indices,,1)=$A48),INDEX(base_indices,,),0)))) -> 108.3 | H48: =IF(A48>date,"",IF(OR(H$13="",H$13="Fioul lourd"),#N/A,SUM(IF((INDEX(base_indices,1,)=H$13)*(INDEX(base_indices,,1)=$A48),INDEX(base_indices,,),0)))) -> 191.7
A49: 2021-09-01 | B49: =IF(A49>date,"",SUM(IF((INDEX(base_index,1,)=B$13)*(INDEX(base_index,,1)=$A49),INDEX(base_index,,),0))) -> 116.4 | C49: =IF(A49>date,"",IF((SUM(IF((INDEX(base_index,1,)=C$13)*(INDEX(base_index,,1)=$A49),INDEX(base_index,,),0)))=0,#N/A,SUM(IF((INDEX(base_index,1,)=C$13)*(INDEX(base_index,,1)=$A49),INDEX(base_index,,),0)))) -> 123.7 | D49: =IF(A49>date,"",SUM(IF((INDEX(base_indices,1,)=D$13)*(INDEX(base_indices,,1)=$A49),INDEX(base_indices,,),0))) -> 108.6 | E49: =IF(A49>date,"",SUM(IF((INDEX(base_indices,1,)=E$13)*(INDEX(base_indices,,1)=$A49),INDEX(base_indices,,),0))) -> 122.7 | F49: =IF(A49>date,"",SUM(IF((INDEX(base_indices,1,)=F$13)*(INDEX(base_indices,,1)=$A49),INDEX(base_indices,,),0))) -> 123.3 | G49: =IF(A49>date,"",IF(OR(G$13="",G$13="Fioul lourd"),#N/A,SUM(IF((INDEX(base_indices,1,)=G$13)*(INDEX(base_indices,,1)=$A49),INDEX(base_indices,,),0)))) -> 105.5 | H49: =IF(A49>date,"",IF(OR(H$13="",H$13="Fioul lourd"),#N/A,SUM(IF((INDEX(base_indices,1,)=H$13)*(INDEX(base_indices,,1)=$A49),INDEX(base_indices,,),0)))) -> 196.7
A50: 2021-10-01 | B50: =IF(A50>date,"",SUM(IF((INDEX(base_index,1,)=B$13)*(INDEX(base_index,,1)=$A50),INDEX(base_index,,),0))) -> 117.5 | C50: =IF(A50>date,"",IF((SUM(IF((INDEX(base_index,1,)=C$13)*(INDEX(base_index,,1)=$A50),INDEX(base_index,,),0)))=0,#N/A,SUM(IF((INDEX(base_index,1,)=C$13)*(INDEX(base_index,,1)=$A50),INDEX(base_index,,),0)))) -> 123.6 | D50: =IF(A50>date,"",SUM(IF((INDEX(base_indices,1,)=D$13)*(INDEX(base_indices,,1)=$A50),INDEX(base_indices,,),0))) -> 109 | E50: =IF(A50>date,"",SUM(IF((INDEX(base_indices,1,)=E$13)*(INDEX(base_indices,,1)=$A50),INDEX(base_indices,,),0))) -> 122.7 | F50: =IF(A50>date,"",SUM(IF((INDEX(base_indices,1,)=F$13)*(INDEX(base_indices,,1)=$A50),INDEX(base_indices,,),0))) -> 133 | G50: =IF(A50>date,"",IF(OR(G$13="",G$13="Fioul lourd"),#N/A,SUM(IF((INDEX(base_indices,1,)=G$13)*(INDEX(base_indices,,1)=$A50),INDEX(base_indices,,),0)))) -> 106.4 | H50: =IF(A50>date,"",IF(OR(H$13="",H$13="Fioul lourd"),#N/A,SUM(IF((INDEX(base_indices,1,)=H$13)*(INDEX(base_indices,,1)=$A50),INDEX(base_indices,,),0)))) -> 193
A52: ='Résultats 3-6 mois glissants'!B4 -> TP02
A54: =OFFSET('Composition index'!$J$2,0,I54) -> Travail activités spécialisées | B54: =SUM(IF((INDEX(compo,2,)='Données 3-6 mois glissants'!A54)*(INDEX(compo,,1)=$A$52),INDEX(compo,,),0)) -> 0 | C54: =_xlfn._xlws.SORT(A54:B88,2,-1) -> Béton prêt à l'emploi | D54: 0.12 | E54: =HLOOKUP(C54,'Composition index'!$A$2:$AR$3,2,FALSE) -> 010534646 | F54: =SUM(IF((INDEX(base_indices,1,)=E54)*(INDEX(base_indices,,1)>=$B$1)*(INDEX(base_indices,,1)<=$C$1),INDEX(base_indices,,),0))/SUM(IF((INDEX(base_indices,1,)=E54)*(INDEX(base_indices,,1)>=$D$1)*(INDEX(base_indices,,1)<=$E$1),INDEX(base_indices,,),0))-1 -> 0.005969211436 | G54: =SUM(IF((INDEX(base_indices,1,)=E54)*(INDEX(base_indices,,1)>=$B$3)*(INDEX(base_indices,,1)<=$C$3),INDEX(base_indices,,),0))/SUM(IF((INDEX(base_indices,1,)=E54)*(INDEX(base_indices,,1)>=$D$3)*(INDEX(base_indices,,1)<=$E$3),INDEX(base_indices,,),0))-1 -> 0.006462799496 | H54: =INDEX('Indice prix'!$B$1:$AP$2,1,MATCH('Données cumul depuis janvier'!E54,'Indice prix'!$B$2:$AP$2,0)) -> base 2015 | J54: =IF(D54=0,"","base 100 en "&RIGHT(H54,4)) -> base 100 en 2015
A55: =OFFSET('Composition index'!$J$2,0,I55) -> Électricité vendue aux entreprises consommatrices finales | B55: =SUM(IF((INDEX(compo,2,)='Données 3-6 mois glissants'!A55)*(INDEX(compo,,1)=$A$52),INDEX(compo,,),0)) -> 0.01 | C55: Barres crénelées ou nervurées pour béton armé | D55: 0.09 | E55: =HLOOKUP(C55,'Composition index'!$A$2:$AR$3,2,FALSE) -> 010546545 | F55: =SUM(IF((INDEX(base_indices,1,)=E55)*(INDEX(base_indices,,1)>=$B$1)*(INDEX(base_indices,,1)<=$C$1),INDEX(base_indices,,),0))/SUM(IF((INDEX(base_indices,1,)=E55)*(INDEX(base_indices,,1)>=$D$1)*(INDEX(base_indices,,1)<=$E$1),INDEX(base_indices,,),0))-1 -> 0.1469717893 | G55: =SUM(IF((INDEX(base_indices,1,)=E55)*(INDEX(base_indices,,1)>=$B$3)*(INDEX(base_indices,,1)<=$C$3),INDEX(base_indices,,),0))/SUM(IF((INDEX(base_indices,1,)=E55)*(INDEX(base_indices,,1)>=$D$3)*(INDEX(base_indices,,1)<=$E$3),INDEX(base_indices,,),0))-1 -> 0.3729027375 | H55: =INDEX('Indice prix'!$B$1:$AP$2,1,MATCH('Données cumul depuis janvier'!E55,'Indice prix'!$B$2:$AP$2,0)) -> base 2015 | I55: 1 | J55: =IF(D55=0,"","base 100 en "&RIGHT(H55,4)) -> base 100 en 2015
A56: =OFFSET('Composition index'!$J$2,0,I56) -> Fioul lourd | B56: =SUM(IF((INDEX(compo,2,)='Données 3-6 mois glissants'!A56)*(INDEX(compo,,1)=$A$52),INDEX(compo,,),0)) -> 0 | C56: Tubes, tuyaux en matière plastique | D56: 0.04 | E56: =HLOOKUP(C56,'Composition index'!$A$2:$AR$3,2,FALSE) -> 010534207 | F56: =SUM(IF((INDEX(base_indices,1,)=E56)*(INDEX(base_indices,,1)>=$B$1)*(INDEX(base_indices,,1)<=$C$1),INDEX(base_indices,,),0))/SUM(IF((INDEX(base_indices,1,)=E56)*(INDEX(base_indices,,1)>=$D$1)*(INDEX(base_indices,,1)<=$E$1),INDEX(base_indices,,),0))-1 -> 0.07833430402 | G56: =SUM(IF((INDEX(base_indices,1,)=E56)*(INDEX(base_indices,,1)>=$B$3)*(INDEX(base_indices,,1)<=$C$3),INDEX(base_indices,,),0))/SUM(IF((INDEX(base_indices,1,)=E56)*(INDEX(base_indices,,1)>=$D$3)*(INDEX(base_indices,,1)<=$E$3),INDEX(base_indices,,),0))-1 -> 0.1839747843 | I56: 2
A57: =OFFSET('Composition index'!$J$2,0,I57) -> Gazole routier HTT | B57: =SUM(IF((INDEX(compo,2,)='Données 3-6 mois glissants'!A57)*(INDEX(compo,,1)=$A$52),INDEX(compo,,),0)) -> 0 | C57: Ensemble des produits du sciage | D57: 0.02 | E57: =HLOOKUP(C57,'Composition index'!$A$2:$AR$3,2,FALSE) -> 010534575 | F57: =SUM(IF((INDEX(base_indices,1,)=E57)*(INDEX(base_indices,,1)>=$B$1)*(INDEX(base_indices,,1)<=$C$1),INDEX(base_indices,,),0))/SUM(IF((INDEX(base_indices,1,)=E57)*(INDEX(base_indices,,1)>=$D$1)*(INDEX(base_indices,,1)<=$E$1),INDEX(base_indices,,),0))-1 -> 0.07161458333 | G57: =SUM(IF((INDEX(base_indices,1,)=E57)*(INDEX(base_indices,,1)>=$B$3)*(INDEX(base_indices,,1)<=$C$3),INDEX(base_indices,,),0))/SUM(IF((INDEX(base_indices,1,)=E57)*(INDEX(base_indices,,1)>=$D$3)*(INDEX(base_indices,,1)<=$E$3),INDEX(base_indices,,),0))-1 -> 0.1619924043 | I57: 3
A58: =OFFSET('Composition index'!$J$2,0,I58) -> Tubes, tuyaux en matière plastique | B58: =SUM(IF((INDEX(compo,2,)='Données 3-6 mois glissants'!A58)*(INDEX(compo,,1)=$A$52),INDEX(compo,,),0)) -> 0.04 | C58: Électricité vendue aux entreprises consommatrices finales | D58: 0.01 | E58: =HLOOKUP(C58,'Composition index'!$A$2:$AR$3,2,FALSE) -> 010534769 | F58: =SUM(IF((INDEX(base_indices,1,)=E58)*(INDEX(base_indices,,1)>=$B$1)*(INDEX(base_indices,,1)<=$C$1),INDEX(base_indices,,),0))/SUM(IF((INDEX(base_indices,1,)=E58)*(INDEX(base_indices,,1)>=$D$1)*(INDEX(base_indices,,1)<=$E$1),INDEX(base_indices,,),0))-1 -> -0.02103418054 | G58: =SUM(IF((INDEX(base_indices,1,)=E58)*(INDEX(base_indices,,1)>=$B$3)*(INDEX(base_indices,,1)<=$C$3),INDEX(base_indices,,),0))/SUM(IF((INDEX(base_indices,1,)=E58)*(INDEX(base_indices,,1)>=$D$3)*(INDEX(base_indices,,1)<=$E$3),INDEX(base_indices,,),0))-1 -> -0.133981079 | I58: 4
A59: =OFFSET('Composition index'!$J$2,0,I59) -> Ensemble des produits du sciage | B59: =SUM(IF((INDEX(compo,2,)='Données 3-6 mois glissants'!A59)*(INDEX(compo,,1)=$A$52),INDEX(compo,,),0)) -> 0.02 | C59: Travail activités spécialisées | D59: 0 | E59: =HLOOKUP(C59,'Composition index'!$A$2:$AR$3,2,FALSE) -> 001565195 | F59: =SUM(IF((INDEX(base_indices,1,)=E59)*(INDEX(base_indices,,1)>=$B$1)*(INDEX(base_indices,,1)<=$C$1),INDEX(base_indices,,),0))/SUM(IF((INDEX(base_indices,1,)=E59)*(INDEX(base_indices,,1)>=$D$1)*(INDEX(base_indices,,1)<=$E$1),INDEX(base_indices,,),0))-1 -> -0.0002707092583 | G59: =SUM(IF((INDEX(base_indices,1,)=E59)*(INDEX(base_indices,,1)>=$B$3)*(INDEX(base_indices,,1)<=$C$3),INDEX(base_indices,,),0))/SUM(IF((INDEX(base_indices,1,)=E59)*(INDEX(base_indices,,1)>=$D$3)*(INDEX(base_indices,,1)<=$E$3),INDEX(base_indices,,),0))-1 -> -0.003641758835 | I59: 5
A60: =OFFSET('Composition index'!$J$2,0,I60) -> Béton prêt à l'emploi | B60: =SUM(IF((INDEX(compo,2,)='Données 3-6 mois glissants'!A60)*(INDEX(compo,,1)=$A$52),INDEX(compo,,),0)) -> 0.12 | C60: Fioul lourd | D60: 0 | E60: =HLOOKUP(C60,'Composition index'!$A$2:$AR$3,2,FALSE) -> Fioul lourd | F60: =SUM(IF((INDEX(base_indices,1,)=E60)*(INDEX(base_indices,,1)>=$B$1)*(INDEX(base_indices,,1)<=$C$1),INDEX(base_indices,,),0))/SUM(IF((INDEX(base_indices,1,)=E60)*(INDEX(base_indices,,1)>=$D$1)*(INDEX(base_indices,,1)<=$E$1),INDEX(base_indices,,),0))-1 -> 0.07733521808 | G60: =SUM(IF((INDEX(base_indices,1,)=E60)*(INDEX(base_indices,,1)>=$B$3)*(INDEX(base_indices,,1)<=$C$3),INDEX(base_indices,,),0))/SUM(IF((INDEX(base_indices,1,)=E60)*(INDEX(base_indices,,1)>=$D$3)*(INDEX(base_indices,,1)<=$E$3),INDEX(base_indices,,),0))-1 -> 0.1489459631 | I60: 6
A61: =OFFSET('Composition index'!$J$2,0,I61) -> Barres crénelées ou nervurées pour béton armé | B61: =SUM(IF((INDEX(compo,2,)='Données 3-6 mois glissants'!A61)*(INDEX(compo,,1)=$A$52),INDEX(compo,,),0)) -> 0.09 | C61: Gazole routier HTT | D61: 0 | E61: =HLOOKUP(C61,'Composition index'!$A$2:$AR$3,2,FALSE) -> Gazole routier HTT | F61: =SUM(IF((INDEX(base_indices,1,)=E61)*(INDEX(base_indices,,1)>=$B$1)*(INDEX(base_indices,,1)<=$C$1),INDEX(base_indices,,),0))/SUM(IF((INDEX(base_indices,1,)=E61)*(INDEX(base_indices,,1)>=$D$1)*(INDEX(base_indices,,1)<=$E$1),INDEX(base_indices,,),0))-1 -> 0.08987882897 | G61: =SUM(IF((INDEX(base_indices,1,)=E61)*(INDEX(base_indices,,1)>=$B$3)*(INDEX(base_indices,,1)<=$C$3),INDEX(base_indices,,),0))/SUM(IF((INDEX(base_indices,1,)=E61)*(INDEX(base_indices,,1)>=$D$3)*(INDEX(base_indices,,1)<=$E$3),INDEX(base_indices,,),0))-1 -> 0.1558836643 | I61: 7
A62: =OFFSET('Composition index'!$J$2,0,I62) -> Sables et granulats | B62: =SUM(IF((INDEX(compo,2,)='Données 3-6 mois glissants'!A62)*(INDEX(compo,,1)=$A$52),INDEX(compo,,),0)) -> 0 | C62: Sables et granulats | D62: 0 | E62: =HLOOKUP(C62,'Composition index'!$A$2:$AR$3,2,FALSE) -> 010536067 | F62: =SUM(IF((INDEX(base_indices,1,)=E62)*(INDEX(base_indices,,1)>=$B$1)*(INDEX(base_indices,,1)<=$C$1),INDEX(base_indices,,),0))/SUM(IF((INDEX(base_indices,1,)=E62)*(INDEX(base_indices,,1)>=$D$1)*(INDEX(base_indices,,1)<=$E$1),INDEX(base_indices,,),0))-1 -> 0.001921229587 | G62: =SUM(IF((INDEX(base_indices,1,)=E62)*(INDEX(base_indices,,1)>=$B$3)*(INDEX(base_indices,,1)<=$C$3),INDEX(base_indices,,),0))/SUM(IF((INDEX(base_indices,1,)=E62)*(INDEX(base_indices,,1)>=$D$3)*(INDEX(base_indices,,1)<=$E$3),INDEX(base_indices,,),0))-1 -> 0.005306319344 | I62: 8
A63: =OFFSET('Composition index'!$J$2,0,I63) -> Plaques, feuilles, tubes et profilés en matières plastiques | B63: =SUM(IF((INDEX(compo,2,)='Données 3-6 mois glissants'!A63)*(INDEX(compo,,1)=$A$52),INDEX(compo,,),0)) -> 0 | C63: Plaques, feuilles, tubes et profilés en matières plastiques | D63: 0 | E63: =HLOOKUP(C63,'Composition index'!$A$2:$AR$3,2,FALSE) -> 010534625 | F63: =SUM(IF((INDEX(base_indices,1,)=E63)*(INDEX(base_indices,,1)>=$B$1)*(INDEX(base_indices,,1)<=$C$1),INDEX(base_indices,,),0))/SUM(IF((INDEX(base_indices,1,)=E63)*(INDEX(base_indices,,1)>=$D$1)*(INDEX(base_indices,,1)<=$E$1),INDEX(base_indices,,),0))-1 -> 0.04579493088 | G63: =SUM(IF((INDEX(base_indices,1,)=E63)*(INDEX(base_indices,,1)>=$B$3)*(INDEX(base_indices,,1)<=$C$3),INDEX(base_indices,,),0))/SUM(IF((INDEX(base_indices,1,)=E63)*(INDEX(base_indices,,1)>=$D$3)*(INDEX(base_indices,,1)<=$E$3),INDEX(base_indices,,),0))-1 -> 0.1923787141 | I63: 9
A64: =OFFSET('Composition index'!$J$2,0,I64) -> Ciment, chaux et plâtre | B64: =SUM(IF((INDEX(compo,2,)='Données 3-6 mois glissants'!A64)*(INDEX(compo,,1)=$A$52),INDEX(compo,,),0)) -> 0 | C64: Ciment, chaux et plâtre | D64: 0 | E64: =HLOOKUP(C64,'Composition index'!$A$2:$AR$3,2,FALSE) -> 010534642 | F64: =SUM(IF((INDEX(base_indices,1,)=E64)*(INDEX(base_indices,,1)>=$B$1)*(INDEX(base_indices,,1)<=$C$1),INDEX(base_indices,,),0))/SUM(IF((INDEX(base_indices,1,)=E64)*(INDEX(base_indices,,1)>=$D$1)*(INDEX(base_indices,,1)<=$E$1),INDEX(base_indices,,),0))-1 -> 0.02023121387 | G64: =SUM(IF((INDEX(base_indices,1,)=E64)*(INDEX(base_indices,,1)>=$B$3)*(INDEX(base_indices,,1)<=$C$3),INDEX(base_indices,,),0))/SUM(IF((INDEX(base_indices,1,)=E64)*(INDEX(base_indices,,1)>=$D$3)*(INDEX(base_indices,,1)<=$E$3),INDEX(base_indices,,),0))-1 -> 0.005755395683 | I64: 10
A65: =OFFSET('Composition index'!$J$2,0,I65) -> Produits explosifs | B65: =SUM(IF((INDEX(compo,2,)='Données 3-6 mois glissants'!A65)*(INDEX(compo,,1)=$A$52),INDEX(compo,,),0)) -> 0 | C65: Produits explosifs | D65: 0 | E65: =HLOOKUP(C65,'Composition index'!$A$2:$AR$3,2,FALSE) -> 010534614 | F65: =SUM(IF((INDEX(base_indices,1,)=E65)*(INDEX(base_indices,,1)>=$B$1)*(INDEX(base_indices,,1)<=$C$1),INDEX(base_indices,,),0))/SUM(IF((INDEX(base_indices,1,)=E65)*(INDEX(base_indices,,1)>=$D$1)*(INDEX(base_indices,,1)<=$E$1),INDEX(base_indices,,),0))-1 -> 0.0006387735548 | G65: =SUM(IF((INDEX(base_indices,1,)=E65)*(INDEX(base_indices,,1)>=$B$3)*(INDEX(base_indices,,1)<=$C$3),INDEX(base_indices,,),0))/SUM(IF((INDEX(base_indices,1,)=E65)*(INDEX(base_indices,,1)>=$D$3)*(INDEX(base_indices,,1)<=$E$3),INDEX(base_indices,,),0))-1 -> 0.007884151247 | I65: 11
A66: =OFFSET('Composition index'!$J$2,0,I66) -> Acier pour la construction | B66: =SUM(IF((INDEX(compo,2,)='Données 3-6 mois glissants'!A66)*(INDEX(compo,,1)=$A$52),INDEX(compo,,),0)) -> 0 | C66: Acier pour la construction | D66: 0 | E66: =HLOOKUP(C66,'Composition index'!$A$2:$AR$3,2,FALSE) -> 010536462 | F66: =SUM(IF((INDEX(base_indices,1,)=E66)*(INDEX(base_indices,,1)>=$B$1)*(INDEX(base_indices,,1)<=$C$1),INDEX(base_indices,,),0))/SUM(IF((INDEX(base_indices,1,)=E66)*(INDEX(base_indices,,1)>=$D$1)*(INDEX(base_indices,,1)<=$E$1),INDEX(base_indices,,),0))-1 -> 0.1711656442 | G66: =SUM(IF((INDEX(base_indices,1,)=E66)*(INDEX(base_indices,,1)>=$B$3)*(INDEX(base_indices,,1)<=$C$3),INDEX(base_indices,,),0))/SUM(IF((INDEX(base_indices,1,)=E66)*(INDEX(base_indices,,1)>=$D$3)*(INDEX(base_indices,,1)<=$E$3),INDEX(base_indices,,),0))-1 -> 0.3918458311 | I66: 12
A67: =OFFSET('Composition index'!$J$2,0,I67) -> Bitume | B67: =SUM(IF((INDEX(compo,2,)='Données 3-6 mois glissants'!A67)*(INDEX(compo,,1)=$A$52),INDEX(compo,,),0)) -> 0 | C67: Bitume | D67: 0 | E67: =HLOOKUP(C67,'Composition index'!$A$2:$AR$3,2,FALSE) -> 010534598 | F67: =SUM(IF((INDEX(base_indices,1,)=E67)*(INDEX(base_indices,,1)>=$B$1)*(INDEX(base_indices,,1)<=$C$1),INDEX(base_indices,,),0))/SUM(IF((INDEX(base_indices,1,)=E67)*(INDEX(base_indices,,1)>=$D$1)*(INDEX(base_indices,,1)<=$E$1),INDEX(base_indices,,),0))-1 -> 0.0989746809 | G67: =SUM(IF((INDEX(base_indices,1,)=E67)*(INDEX(base_indices,,1)>=$B$3)*(INDEX(base_indices,,1)<=$C$3),INDEX(base_indices,,),0))/SUM(IF((INDEX(base_indices,1,)=E67)*(INDEX(base_indices,,1)>=$D$3)*(INDEX(base_indices,,1)<=$E$3),INDEX(base_indices,,),0))-1 -> 0.1896347249 | I67: 13
A68: =OFFSET('Composition index'!$J$2,0,I68) -> Produits de voierie en béton | B68: =SUM(IF((INDEX(compo,2,)='Données 3-6 mois glissants'!A68)*(INDEX(compo,,1)=$A$52),INDEX(compo,,),0)) -> 0 | C68: Produits de voierie en béton | D68: 0 | E68: =HLOOKUP(C68,'Composition index'!$A$2:$AR$3,2,FALSE) -> 010534252 | F68: =SUM(IF((INDEX(base_indices,1,)=E68)*(INDEX(base_indices,,1)>=$B$1)*(INDEX(base_indices,,1)<=$C$1),INDEX(base_indices,,),0))/SUM(IF((INDEX(base_indices,1,)=E68)*(INDEX(base_indices,,1)>=$D$1)*(INDEX(base_indices,,1)<=$E$1),INDEX(base_indices,,),0))-1 -> 0.02003699137 | G68: =SUM(IF((INDEX(base_indices,1,)=E68)*(INDEX(base_indices,,1)>=$B$3)*(INDEX(base_indices,,1)<=$C$3),INDEX(base_indices,,),0))/SUM(IF((INDEX(base_indices,1,)=E68)*(INDEX(base_indices,,1)>=$D$3)*(INDEX(base_indices,,1)<=$E$3),INDEX(base_indices,,),0))-1 -> 0.01833721834 | I68: 14
A69: =OFFSET('Composition index'!$J$2,0,I69) -> Mortiers et bétons secs | B69: =SUM(IF((INDEX(compo,2,)='Données 3-6 mois glissants'!A69)*(INDEX(compo,,1)=$A$52),INDEX(compo,,),0)) -> 0 | C69: Mortiers et bétons secs | D69: 0 | E69: =HLOOKUP(C69,'Composition index'!$A$2:$AR$3,2,FALSE) -> 010534647 | F69: =SUM(IF((INDEX(base_indices,1,)=E69)*(INDEX(base_indices,,1)>=$B$1)*(INDEX(base_indices,,1)<=$C$1),INDEX(base_indices,,),0))/SUM(IF((INDEX(base_indices,1,)=E69)*(INDEX(base_indices,,1)>=$D$1)*(INDEX(base_indices,,1)<=$E$1),INDEX(base_indices,,),0))-1 -> 0.01051939513 | G69: =SUM(IF((INDEX(base_indices,1,)=E69)*(INDEX(base_indices,,1)>=$B$3)*(INDEX(base_indices,,1)<=$C$3),INDEX(base_indices,,),0))/SUM(IF((INDEX(base_indices,1,)=E69)*(INDEX(base_indices,,1)>=$D$3)*(INDEX(base_indices,,1)<=$E$3),INDEX(base_indices,,),0))-1 -> 0.01662234043 | I69: 15
A70: =OFFSET('Composition index'!$J$2,0,I70) -> Travaux de fonderie de fonte | B70: =SUM(IF((INDEX(compo,2,)='Données 3-6 mois glissants'!A70)*(INDEX(compo,,1)=$A$52),INDEX(compo,,),0)) -> 0 | C70: Travaux de fonderie de fonte | D70: 0 | E70: =HLOOKUP(C70,'Composition index'!$A$2:$AR$3,2,FALSE) -> 010534662 | F70: =SUM(IF((INDEX(base_indices,1,)=E70)*(INDEX(base_indices,,1)>=$B$1)*(INDEX(base_indices,,1)<=$C$1),INDEX(base_indices,,),0))/SUM(IF((INDEX(base_indices,1,)=E70)*(INDEX(base_indices,,1)>=$D$1)*(INDEX(base_indices,,1)<=$E$1),INDEX(base_indices,,),0))-1 -> 0.04123365739 | G70: =SUM(IF((INDEX(base_indices,1,)=E70)*(INDEX(base_indices,,1)>=$B$3)*(INDEX(base_indices,,1)<=$C$3),INDEX(base_indices,,),0))/SUM(IF((INDEX(base_indices,1,)=E70)*(INDEX(base_indices,,1)>=$D$3)*(INDEX(base_indices,,1)<=$E$3),INDEX(base_indices,,),0))-1 -> 0.07031112674 | I70: 16
A71: =OFFSET('Composition index'!$J$2,0,I71) -> Tuiles, briques et produits de construction en terre cuite | B71: =SUM(IF((INDEX(compo,2,)='Données 3-6 mois glissants'!A71)*(INDEX(compo,,1)=$A$52),INDEX(compo,,),0)) -> 0 | C71: Tuiles, briques et produits de construction en terre cuite | D71: 0 | E71: =HLOOKUP(C71,'Composition index'!$A$2:$AR$3,2,FALSE) -> 010534638 | F71: =SUM(IF((INDEX(base_indices,1,)=E71)*(INDEX(base_indices,,1)>=$B$1)*(INDEX(base_indices,,1)<=$C$1),INDEX(base_indices,,),0))/SUM(IF((INDEX(base_indices,1,)=E71)*(INDEX(base_indices,,1)>=$D$1)*(INDEX(base_indices,,1)<=$E$1),INDEX(base_indices,,),0))-1 -> 0.007643312102 | G71: =SUM(IF((INDEX(base_indices,1,)=E71)*(INDEX(base_indices,,1)>=$B$3)*(INDEX(base_indices,,1)<=$C$3),INDEX(base_indices,,),0))/SUM(IF((INDEX(base_indices,1,)=E71)*(INDEX(base_indices,,1)>=$D$3)*(INDEX(base_indices,,1)<=$E$3),INDEX(base_indices,,),0))-1 -> 0.02204928664 | I71: 17
A72: =OFFSET('Composition index'!$J$2,0,I72) -> Tuyaux d'assainissement | B72: =SUM(IF((INDEX(compo,2,)='Données 3-6 mois glissants'!A72)*(INDEX(compo,,1)=$A$52),INDEX(compo,,),0)) -> 0 | C72: Tuyaux d'assainissement | D72: 0 | E72: =HLOOKUP(C72,'Composition index'!$A$2:$AR$3,2,FALSE) -> 010534253 | F72: =SUM(IF((INDEX(base_indices,1,)=E72)*(INDEX(base_indices,,1)>=$B$1)*(INDEX(base_indices,,1)<=$C$1),INDEX(base_indices,,),0))/SUM(IF((INDEX(base_indices,1,)=E72)*(INDEX(base_indices,,1)>=$D$1)*(INDEX(base_indices,,1)<=$E$1),INDEX(base_indices,,),0))-1 -> 0.01451905626 | G72: =SUM(IF((INDEX(base_indices,1,)=E72)*(INDEX(base_indices,,1)>=$B$3)*(INDEX(base_indices,,1)<=$C$3),INDEX(base_indices,,),0))/SUM(IF((INDEX(base_indices,1,)=E72)*(INDEX(base_indices,,1)>=$D$3)*(INDEX(base_indices,,1)<=$E$3),INDEX(base_indices,,),0))-1 -> 0.06203157391 | I72: 18
A73: =OFFSET('Composition index'!$J$2,0,I73) -> Autres textiles n.c.a. | B73: =SUM(IF((INDEX(compo,2,)='Données 3-6 mois glissants'!A73)*(INDEX(compo,,1)=$A$52),INDEX(compo,,),0)) -> 0 | C73: Autres textiles n.c.a. | D73: 0 | E73: =HLOOKUP(C73,'Composition index'!$A$2:$AR$3,2,FALSE) -> 010534559 | F73: =SUM(IF((INDEX(base_indices,1,)=E73)*(INDEX(base_indices,,1)>=$B$1)*(INDEX(base_indices,,1)<=$C$1),INDEX(base_indices,,),0))/SUM(IF((INDEX(base_indices,1,)=E73)*(INDEX(base_indices,,1)>=$D$1)*(INDEX(base_indices,,1)<=$E$1),INDEX(base_indices,,),0))-1 -> 0.006792219821 | G73: =SUM(IF((INDEX(base_indices,1,)=E73)*(INDEX(base_indices,,1)>=$B$3)*(INDEX(base_indices,,1)<=$C$3),INDEX(base_indices,,),0))/SUM(IF((INDEX(base_indices,1,)=E73)*(INDEX(base_indices,,1)>=$D$3)*(INDEX(base_indices,,1)<=$E$3),INDEX(base_indices,,),0))-1 -> 0.003086419753 | I73: 19
A74: =OFFSET('Composition index'!$J$2,0,I74) -> Matières plastiques sous formes primaires | B74: =SUM(IF((INDEX(compo,2,)='Données 3-6 mois glissants'!A74)*(INDEX(compo,,1)=$A$52),INDEX(compo,,),0)) -> 0 | C74: Matières plastiques sous formes primaires | D74: 0 | E74: =HLOOKUP(C74,'Composition index'!$A$2:$AR$3,2,FALSE) -> 010534606 | F74: =SUM(IF((INDEX(base_indices,1,)=E74)*(INDEX(base_indices,,1)>=$B$1)*(INDEX(base_indices,,1)<=$C$1),INDEX(base_indices,,),0))/SUM(IF((INDEX(base_indices,1,)=E74)*(INDEX(base_indices,,1)>=$D$1)*(INDEX(base_indices,,1)<=$E$1),INDEX(base_indices,,),0))-1 -> -0.00168959691 | G74: =SUM(IF((INDEX(base_indices,1,)=E74)*(INDEX(base_indices,,1)>=$B$3)*(INDEX(base_indices,,1)<=$C$3),INDEX(base_indices,,),0))/SUM(IF((INDEX(base_indices,1,)=E74)*(INDEX(base_indices,,1)>=$D$3)*(INDEX(base_indices,,1)<=$E$3),INDEX(base_indices,,),0))-1 -> 0.2653217179 | I74: 20
A75: =OFFSET('Composition index'!$J$2,0,I75) -> Tubes, tuyaux, profilés creux et accessoires correspondants en acier | B75: =SUM(IF((INDEX(compo,2,)='Données 3-6 mois glissants'!A75)*(INDEX(compo,,1)=$A$52),INDEX(compo,,),0)) -> 0 | C75: Tubes, tuyaux, profilés creux et accessoires correspondants en acier | D75: 0 | E75: =HLOOKUP(C75,'Composition index'!$A$2:$AR$3,2,FALSE) -> 010534654 | F75: =SUM(IF((INDEX(base_indices,1,)=E75)*(INDEX(base_indices,,1)>=$B$1)*(INDEX(base_indices,,1)<=$C$1),INDEX(base_indices,,),0))/SUM(IF((INDEX(base_indices,1,)=E75)*(INDEX(base_indices,,1)>=$D$1)*(INDEX(base_indices,,1)<=$E$1),INDEX(base_indices,,),0))-1 -> 0.02828813065 | G75: =SUM(IF((INDEX(base_indices,1,)=E75)*(INDEX(base_indices,,1)>=$B$3)*(INDEX(base_indices,,1)<=$C$3),INDEX(base_indices,,),0))/SUM(IF((INDEX(base_indices,1,)=E75)*(INDEX(base_indices,,1)>=$D$3)*(INDEX(base_indices,,1)<=$E$3),INDEX(base_indices,,),0))-1 -> 0.05827754108 | I75: 21
A76: =OFFSET('Composition index'!$J$2,0,I76) -> Éléments en béton pour la construction | B76: =SUM(IF((INDEX(compo,2,)='Données 3-6 mois glissants'!A76)*(INDEX(compo,,1)=$A$52),INDEX(compo,,),0)) -> 0 | C76: Éléments en béton pour la construction | D76: 0 | E76: =HLOOKUP(C76,'Composition index'!$A$2:$AR$3,2,FALSE) -> 010534645 | F76: =SUM(IF((INDEX(base_indices,1,)=E76)*(INDEX(base_indices,,1)>=$B$1)*(INDEX(base_indices,,1)<=$C$1),INDEX(base_indices,,),0))/SUM(IF((INDEX(base_indices,1,)=E76)*(INDEX(base_indices,,1)>=$D$1)*(INDEX(base_indices,,1)<=$E$1),INDEX(base_indices,,),0))-1 -> 0.007623888183 | G76: =SUM(IF((INDEX(base_indices,1,)=E76)*(INDEX(base_indices,,1)>=$B$3)*(INDEX(base_indices,,1)<=$C$3),INDEX(base_indices,,),0))/SUM(IF((INDEX(base_indices,1,)=E76)*(INDEX(base_indices,,1)>=$D$3)*(INDEX(base_indices,,1)<=$E$3),INDEX(base_indices,,),0))-1 -> 0.01509797623 | I76: 22
A77: =OFFSET('Composition index'!$J$2,0,I77) -> Fils et câbles d'énergie | B77: =SUM(IF((INDEX(compo,2,)='Données 3-6 mois glissants'!A77)*(INDEX(compo,,1)=$A$52),INDEX(compo,,),0)) -> 0 | C77: Fils et câbles d'énergie | D77: 0 | E77: =HLOOKUP(C77,'Composition index'!$A$2:$AR$3,2,FALSE) -> 010534330 | F77: =SUM(IF((INDEX(base_indices,1,)=E77)*(INDEX(base_indices,,1)>=$B$1)*(INDEX(base_indices,,1)<=$C$1),INDEX(base_indices,,),0))/SUM(IF((INDEX(base_indices,1,)=E77)*(INDEX(base_indices,,1)>=$D$1)*(INDEX(base_indices,,1)<=$E$1),INDEX(base_indices,,),0))-1 -> 0.06436781609 | G77: =SUM(IF((INDEX(base_indices,1,)=E77)*(INDEX(base_indices,,1)>=$B$3)*(INDEX(base_indices,,1)<=$C$3),INDEX(base_indices,,),0))/SUM(IF((INDEX(base_indices,1,)=E77)*(INDEX(base_indices,,1)>=$D$3)*(INDEX(base_indices,,1)<=$E$3),INDEX(base_indices,,),0))-1 -> 0.1841107631 | I77: 23
A78: =OFFSET('Composition index'!$J$2,0,I78) -> Moteurs, génératrices, transfo. électr., matér. distrib., cmde électr. | B78: =SUM(IF((INDEX(compo,2,)='Données 3-6 mois glissants'!A78)*(INDEX(compo,,1)=$A$52),INDEX(compo,,),0)) -> 0 | C78: Moteurs, génératrices, transfo. électr., matér. distrib., cmde électr. | D78: 0 | E78: =HLOOKUP(C78,'Composition index'!$A$2:$AR$3,2,FALSE) -> 010534696 | F78: =SUM(IF((INDEX(base_indices,1,)=E78)*(INDEX(base_indices,,1)>=$B$1)*(INDEX(base_indices,,1)<=$C$1),INDEX(base_indices,,),0))/SUM(IF((INDEX(base_indices,1,)=E78)*(INDEX(base_indices,,1)>=$D$1)*(INDEX(base_indices,,1)<=$E$1),INDEX(base_indices,,),0))-1 -> 0.01429479034 | G78: =SUM(IF((INDEX(base_indices,1,)=E78)*(INDEX(base_indices,,1)>=$B$3)*(INDEX(base_indices,,1)<=$C$3),INDEX(base_indices,,),0))/SUM(IF((INDEX(base_indices,1,)=E78)*(INDEX(base_indices,,1)>=$D$3)*(INDEX(base_indices,,1)<=$E$3),INDEX(base_indices,,),0))-1 -> 0.01261577771 | I78: 24
A79: =OFFSET('Composition index'!$J$2,0,I79) -> Matériel de distribution et de commande électrique | B79: =SUM(IF((INDEX(compo,2,)='Données 3-6 mois glissants'!A79)*(INDEX(compo,,1)=$A$52),INDEX(compo,,),0)) -> 0 | C79: Matériel de distribution et de commande électrique | D79: 0 | E79: =HLOOKUP(C79,'Composition index'!$A$2:$AR$3,2,FALSE) -> 010534698 | F79: =SUM(IF((INDEX(base_indices,1,)=E79)*(INDEX(base_indices,,1)>=$B$1)*(INDEX(base_indices,,1)<=$C$1),INDEX(base_indices,,),0))/SUM(IF((INDEX(base_indices,1,)=E79)*(INDEX(base_indices,,1)>=$D$1)*(INDEX(base_indices,,1)<=$E$1),INDEX(base_indices,,),0))-1 -> 0.01261431725 | G79: =SUM(IF((INDEX(base_indices,1,)=E79)*(INDEX(base_indices,,1)>=$B$3)*(INDEX(base_indices,,1)<=$C$3),INDEX(base_indices,,),0))/SUM(IF((INDEX(base_indices,1,)=E79)*(INDEX(base_indices,,1)>=$D$3)*(INDEX(base_indices,,1)<=$E$3),INDEX(base_indices,,),0))-1 -> 0.01430387794 | I79: 25
A80: =OFFSET('Composition index'!$J$2,0,I80) -> Appareils d'éclairage électrique | B80: =SUM(IF((INDEX(compo,2,)='Données 3-6 mois glissants'!A80)*(INDEX(compo,,1)=$A$52),INDEX(compo,,),0)) -> 0 | C80: Appareils d'éclairage électrique | D80: 0 | E80: =HLOOKUP(C80,'Composition index'!$A$2:$AR$3,2,FALSE) -> 010534702 | F80: =SUM(IF((INDEX(base_indices,1,)=E80)*(INDEX(base_indices,,1)>=$B$1)*(INDEX(base_indices,,1)<=$C$1),INDEX(base_indices,,),0))/SUM(IF((INDEX(base_indices,1,)=E80)*(INDEX(base_indices,,1)>=$D$1)*(INDEX(base_indices,,1)<=$E$1),INDEX(base_indices,,),0))-1 -> -0.009605488851 | G80: =SUM(IF((INDEX(base_indices,1,)=E80)*(INDEX(base_indices,,1)>=$B$3)*(INDEX(base_indices,,1)<=$C$3),INDEX(base_indices,,),0))/SUM(IF((INDEX(base_indices,1,)=E80)*(INDEX(base_indices,,1)>=$D$3)*(INDEX(base_indices,,1)<=$E$3),INDEX(base_indices,,),0))-1 -> -0.01242553191 | I80: 26
A81: =OFFSET('Composition index'!$J$2,0,I81) -> Câbles de fibres optiques | B81: =SUM(IF((INDEX(compo,2,)='Données 3-6 mois glissants'!A81)*(INDEX(compo,,1)=$A$52),INDEX(compo,,),0)) -> 0 | C81: Câbles de fibres optiques | D81: 0 | E81: =HLOOKUP(C81,'Composition index'!$A$2:$AR$3,2,FALSE) -> 010535345 | F81: =SUM(IF((INDEX(base_indices,1,)=E81)*(INDEX(base_indices,,1)>=$B$1)*(INDEX(base_indices,,1)<=$C$1),INDEX(base_indices,,),0))/SUM(IF((INDEX(base_indices,1,)=E81)*(INDEX(base_indices,,1)>=$D$1)*(INDEX(base_indices,,1)<=$E$1),INDEX(base_indices,,),0))-1 -> -0.0009752925878 | G81: =SUM(IF((INDEX(base_indices,1,)=E81)*(INDEX(base_indices,,1)>=$B$3)*(INDEX(base_indices,,1)<=$C$3),INDEX(base_indices,,),0))/SUM(IF((INDEX(base_indices,1,)=E81)*(INDEX(base_indices,,1)>=$D$3)*(INDEX(base_indices,,1)<=$E$3),INDEX(base_indices,,),0))-1 -> -0.02797976604 | I81: 27
A82: =OFFSET('Composition index'!$J$2,0,I82) -> Peintures Industries | B82: =SUM(IF((INDEX(compo,2,)='Données 3-6 mois glissants'!A82)*(INDEX(compo,,1)=$A$52),INDEX(compo,,),0)) -> 0 | C82: Peintures Industries | D82: 0 | E82: =HLOOKUP(C82,'Composition index'!$A$2:$AR$3,2,FALSE) -> 010534180 | F82: =SUM(IF((INDEX(base_indices,1,)=E82)*(INDEX(base_indices,,1)>=$B$1)*(INDEX(base_indices,,1)<=$C$1),INDEX(base_indices,,),0))/SUM(IF((INDEX(base_indices,1,)=E82)*(INDEX(base_indices,,1)>=$D$1)*(INDEX(base_indices,,1)<=$E$1),INDEX(base_indices,,),0))-1 -> 0.0640684972 | G82: =SUM(IF((INDEX(base_indices,1,)=E82)*(INDEX(base_indices,,1)>=$B$3)*(INDEX(base_indices,,1)<=$C$3),INDEX(base_indices,,),0))/SUM(IF((INDEX(base_indices,1,)=E82)*(INDEX(base_indices,,1)>=$D$3)*(INDEX(base_indices,,1)<=$E$3),INDEX(base_indices,,),0))-1 -> 0.05940293984 | I82: 28
A83: =OFFSET('Composition index'!$J$2,0,I83) -> Produits sidérurgiques en acier non allié | B83: =SUM(IF((INDEX(compo,2,)='Données 3-6 mois glissants'!A83)*(INDEX(compo,,1)=$A$52),INDEX(compo,,),0)) -> 0 | C83: Produits sidérurgiques en acier non allié | D83: 0 | E83: =HLOOKUP(C83,'Composition index'!$A$2:$AR$3,2,FALSE) -> 010534267 | F83: =SUM(IF((INDEX(base_indices,1,)=E83)*(INDEX(base_indices,,1)>=$B$1)*(INDEX(base_indices,,1)<=$C$1),INDEX(base_indices,,),0))/SUM(IF((INDEX(base_indices,1,)=E83)*(INDEX(base_indices,,1)>=$D$1)*(INDEX(base_indices,,1)<=$E$1),INDEX(base_indices,,),0))-1 -> 0.09625275533 | G83: =SUM(IF((INDEX(base_indices,1,)=E83)*(INDEX(base_indices,,1)>=$B$3)*(INDEX(base_indices,,1)<=$C$3),INDEX(base_indices,,),0))/SUM(IF((INDEX(base_indices,1,)=E83)*(INDEX(base_indices,,1)>=$D$3)*(INDEX(base_indices,,1)<=$E$3),INDEX(base_indices,,),0))-1 -> 0.2214927929 | I83: 29
A84: =OFFSET('Composition index'!$J$2,0,I84) -> Tôles quarto en aciers non alliés | B84: =SUM(IF((INDEX(compo,2,)='Données 3-6 mois glissants'!A84)*(INDEX(compo,,1)=$A$52),INDEX(compo,,),0)) -> 0 | C84: Tôles quarto en aciers non alliés | D84: 0 | E84: =HLOOKUP(C84,'Composition index'!$A$2:$AR$3,2,FALSE) -> 010536480 | F84: =SUM(IF((INDEX(base_indices,1,)=E84)*(INDEX(base_indices,,1)>=$B$1)*(INDEX(base_indices,,1)<=$C$1),INDEX(base_indices,,),0))/SUM(IF((INDEX(base_indices,1,)=E84)*(INDEX(base_indices,,1)>=$D$1)*(INDEX(base_indices,,1)<=$E$1),INDEX(base_indices,,),0))-1 -> 0.1917534915 | G84: =SUM(IF((INDEX(base_indices,1,)=E84)*(INDEX(base_indices,,1)>=$B$3)*(INDEX(base_indices,,1)<=$C$3),INDEX(base_indices,,),0))/SUM(IF((INDEX(base_indices,1,)=E84)*(INDEX(base_indices,,1)>=$D$3)*(INDEX(base_indices,,1)<=$E$3),INDEX(base_indices,,),0))-1 -> 0.4941816533 | I84: 30
A85: =OFFSET('Composition index'!$J$2,0,I85) -> Éléments en métal pour la construction | B85: =SUM(IF((INDEX(compo,2,)='Données 3-6 mois glissants'!A85)*(INDEX(compo,,1)=$A$52),INDEX(compo,,),0)) -> 0 | C85: Éléments en métal pour la construction | D85: 0 | E85: =HLOOKUP(C85,'Composition index'!$A$2:$AR$3,2,FALSE) -> 010534667 | F85: =SUM(IF((INDEX(base_indices,1,)=E85)*(INDEX(base_indices,,1)>=$B$1)*(INDEX(base_indices,,1)<=$C$1),INDEX(base_indices,,),0))/SUM(IF((INDEX(base_indices,1,)=E85)*(INDEX(base_indices,,1)>=$D$1)*(INDEX(base_indices,,1)<=$E$1),INDEX(base_indices,,),0))-1 -> 0.04878752887 | G85: =SUM(IF((INDEX(base_indices,1,)=E85)*(INDEX(base_indices,,1)>=$B$3)*(INDEX(base_indices,,1)<=$C$3),INDEX(base_indices,,),0))/SUM(IF((INDEX(base_indices,1,)=E85)*(INDEX(base_indices,,1)>=$D$3)*(INDEX(base_indices,,1)<=$E$3),INDEX(base_indices,,),0))-1 -> 0.06786036714 | I85: 31
A86: =OFFSET('Composition index'!$J$2,0,I86) -> Restaurants et hôtels | B86: =SUM(IF((INDEX(compo,2,)='Données 3-6 mois glissants'!A86)*(INDEX(compo,,1)=$A$52),INDEX(compo,,),0)) -> 0 | C86: Restaurants et hôtels | D86: 0 | E86: =HLOOKUP(C86,'Composition index'!$A$2:$AR$3,2,FALSE) -> 001763781 | F86: =SUM(IF((INDEX(base_indices,1,)=E86)*(INDEX(base_indices,,1)>=$B$1)*(INDEX(base_indices,,1)<=$C$1),INDEX(base_indices,,),0))/SUM(IF((INDEX(base_indices,1,)=E86)*(INDEX(base_indices,,1)>=$D$1)*(INDEX(base_indices,,1)<=$E$1),INDEX(base_indices,,),0))-1 -> 0.02018253093 | G86: =SUM(IF((INDEX(base_indices,1,)=E86)*(INDEX(base_indices,,1)>=$B$3)*(INDEX(base_indices,,1)<=$C$3),INDEX(base_indices,,),0))/SUM(IF((INDEX(base_indices,1,)=E86)*(INDEX(base_indices,,1)>=$D$3)*(INDEX(base_indices,,1)<=$E$3),INDEX(base_indices,,),0))-1 -> 0.02579932819 | I86: 32
A87: =OFFSET('Composition index'!$J$2,0,I87) -> Traitement et élimination des déchets non dangereux | B87: =SUM(IF((INDEX(compo,2,)='Données 3-6 mois glissants'!A87)*(INDEX(compo,,1)=$A$52),INDEX(compo,,),0)) -> 0 | C87: Traitement et élimination des déchets non dangereux | D87: 0 | E87: =HLOOKUP(C87,'Composition index'!$A$2:$AR$3,2,FALSE) -> 010534789 | F87: =SUM(IF((INDEX(base_indices,1,)=E87)*(INDEX(base_indices,,1)>=$B$1)*(INDEX(base_indices,,1)<=$C$1),INDEX(base_indices,,),0))/SUM(IF((INDEX(base_indices,1,)=E87)*(INDEX(base_indices,,1)>=$D$1)*(INDEX(base_indices,,1)<=$E$1),INDEX(base_indices,,),0))-1 -> 0.0019768427 | G87: =SUM(IF((INDEX(base_indices,1,)=E87)*(INDEX(base_indices,,1)>=$B$3)*(INDEX(base_indices,,1)<=$C$3),INDEX(base_indices,,),0))/SUM(IF((INDEX(base_indices,1,)=E87)*(INDEX(base_indices,,1)>=$D$3)*(INDEX(base_indices,,1)<=$E$3),INDEX(base_indices,,),0))-1 -> 0.02575604109 | I87: 33
A88: =OFFSET('Composition index'!$J$2,0,I88) -> Collecte, traitement et élimination des déchets ; récupération de matériaux | B88: =SUM(IF((INDEX(compo,2,)='Données 3-6 mois glissants'!A88)*(INDEX(compo,,1)=$A$52),INDEX(compo,,),0)) -> 0 | C88: Collecte, traitement et élimination des déchets ; récupération de matériaux | D88: 0 | E88: =HLOOKUP(C88,'Composition index'!$A$2:$AR$3,2,FALSE) -> 010534784 | F88: =SUM(IF((INDEX(base_indices,1,)=E88)*(INDEX(base_indices,,1)>=$B$1)*(INDEX(base_indices,,1)<=$C$1),INDEX(base_indices,,),0))/SUM(IF((INDEX(base_indices,1,)=E88)*(INDEX(base_indices,,1)>=$D$1)*(INDEX(base_indices,,1)<=$E$1),INDEX(base_indices,,),0))-1 -> -0.00575815739 | G88: =SUM(IF((INDEX(base_indices,1,)=E88)*(INDEX(base_indices,,1)>=$B$3)*(INDEX(base_indices,,1)<=$C$3),INDEX(base_indices,,),0))/SUM(IF((INDEX(base_indices,1,)=E88)*(INDEX(base_indices,,1)>=$D$3)*(INDEX(base_indices,,1)<=$E$3),INDEX(base_indices,,),0))-1 -> 0.09980341751 | I88: 34

Sheet Index (hidden)
A1: Les index Bâtiment, Travaux publics et divers de la construction en juillet 2021 - Informations rapides - 264 | Insee
B4: Index général tous travaux | C4: Travaux de génie civil et d’ouvrages d’art neufs ou rénovation | D4: Grands terrassements | E4: Travaux à l’explosif | F4: Fondations et travaux géotechniques | G4: Travaux en souterrains traditionnels | H4: Travaux en souterrains avec tunnelier | I4: Grands dragages maritimes | J4: Dragages fluviaux et petits dragages maritimes | K4: Travaux de génie civil, béton et acier pour ouvrages maritimes | L4: Travaux d’aménagement et entretien de voirie | M4: Fabrication et mise en œuvre d’enrobés | N4: Canalisations, assainissement et adduction d’eau avec fourniture de tuyaux | O4: Canalisations sans fourniture de tuyaux | P4: Réhabilitation de canalisations non visitables | Q4: Réseaux de chauffage et de froid avec fourniture de tuyaux | R4: Canalisations grandes distances de transport / transfert avec fourniture de tuyaux | S4: Réseaux d'énergie et de communication | T4: Éclairage public -Travaux d'installation | U4: Éclairage public - Travaux de maintenance | V4: Réseaux de communication en fibre optique | W4: Charpentes et ouvrages d’art métalliques | X4: Travaux immergés par scaphandriers
B5: All works General index | C5: New civil engineering and structure works, or renovation | D5: Large-scale excavation works | E5: Blasting works | F5: Foundations and geotechnical works | G5: Traditional underground works | H5: Underground works in tunnel boring machines | I5: Large-scale marine dredging | J5: River dredging and small marine dredging | K5: Civil works, concrete and steel for maritime works | L5: Roads development works and maintenance | M5: Making and implementation of mixes | N5: Pipe works, sanitation and water supply, with supply of pipes | O5: Pipe works, with no supply of pipes | P5: Rehabilitation of non-visitable pipes | Q5: Heating and cooling networks with supply of pipes | R5: Long-distance transport / transfer pipelines, pipes supplied | S5: Energy and communication networking | T5: Public lighting Installation works | U5: Public lighting Maintenance works | V5: Fiber optic networks | W5: Carpentry and metal art works | X5: Underwater works by divers
B6: Base 2010 | C6: Base 2010 | D6: Base 2010 | E6: Base 2010 | F6: Base 2010 | G6: Base 2010 | H6: Base 2010 | I6: Base 2010 | J6: Base 2010 | K6: Base 2010 | L6: Base 2010 | M6: Base 2010 | N6: Base 2010 | O6: Base 2010 | P6: Base 2010 | Q6: Base 2010 | R6: Base 2010 | S6: Base 2010 | T6: Base 2010 | U6: Base 2010 | V6: Base 2010 | W6: Base 2010 | X6: Base 2010
B7: TP01 | C7: TP02 | D7: TP03a | E7: TP03b | F7: TP04 | G7: TP05a | H7: TP05b | I7: TP06a | J7: TP06b | K7: TP07b | L7: TP08 | M7: TP09 | N7: TP10a | O7: TP10b | P7: TP10c | Q7: TP10d | R7: TP11 | S7: TP12a | T7: TP12b | U7: TP12c | V7: TP12d | W7: TP13 | X7: TP14
A8: 2014-10-01 | B8: 106.5 | C8: 106.4 | D8: 105.8 | E8: 103.3 | F8: 105.4 | G8: 105 | H8: 105 | I8: 104.6 | J8: 104.7 | K8: 99.9 | L8: 107.1 | M8: 108.6 | N8: 106.5 | O8: 107 | P8: 106.9 | R8: 105.4 | S8: 106.3 | T8: 106.5 | U8: 107.2 | V8: nd | W8: 103.9 | X8: 106.9
A9: 2014-11-01 | B9: 105.6 | C9: 106 | D9: 105.4 | E9: 103 | F9: 104.8 | G9: 104.5 | H9: 104.5 | I9: 102.1 | J9: 104.1 | K9: 99.2 | L9: 105.5 | M9: 104.7 | N9: 106.4 | O9: 106.8 | P9: 106 | R9: 105.2 | S9: 106.2 | T9: 105.9 | U9: 106.8 | V9: nd | W9: 103.9 | X9: 106.6
A10: 2014-12-01 | B10: 104.1 | C10: 105.7 | D10: 104.2 | E10: 101.3 | F10: 103.8 | G10: 103.8 | H10: 103.9 | I10: 97.6 | J10: 102.2 | K10: 98.3 | L10: 103.2 | M10: 99.3 | N10: 105.7 | O10: 106.4 | P10: 104.5 | R10: 103.7 | S10: 105.9 | T10: 105.7 | U10: 106.6 | V10: nd | W10: 103.1 | X10: 106
A11: 2015-01-01 | B11: 102.8 | C11: 105.8 | D11: 104.2 | E11: 102.3 | F11: 103.7 | G11: 104.1 | H11: 104.2 | I11: 98.7 | J11: 102.2 | K11: 97.5 | L11: 100.6 | M11: 92.5 | N11: 105.6 | O11: 106.6 | P11: 102.9 | R11: 103.1 | S11: 105.7 | T11: 105.4 | U11: 106.6 | V11: nd | W11: 102.9 | X11: 105.8
A12: 2015-02-01 | B12: 103 | C12: 105.7 | D12: 104.9 | E12: 103 | F12: 104.1 | G12: 104.3 | H12: 104.5 | I12: 102.2 | J12: 103.4 | K12: 97.8 | L12: 100.8 | M12: 92.2 | N12: 105.6 | O12: 106.8 | P12: 101.9 | R12: 102.6 | S12: 105.9 | T12: 104.7 | U12: 106.7 | V12: nd | W12: 103.1 | X12: 106.4
A13: 2015-03-01 | B13: 103.5 | C13: 105.8 | D13: 104.9 | E13: 103.7 | F13: 104.2 | G13: 104.4 | H13: 104.6 | I13: 101.8 | J13: 103.6 | K13: 98.4 | L13: 101.6 | M13: 94.3 | N13: 105.7 | O13: 106.9 | P13: 102.8 | R13: 102.6 | S13: 105.9 | T13: 105.4 | U13: 107 | V13: nd | W13: 103.2 | X13: 106.7
A14: 2015-04-01 | B14: 103.6 | C14: 105.9 | D14: 105 | E14: 103.7 | F14: 104.2 | G14: 104.6 | H14: 104.7 | I14: 104.3 | J14: 103.8 | K14: 98.5 | L14: 101.5 | M14: 94.6 | N14: 105.8 | O14: 106.8 | P14: 103.6 | R14: 102.8 | S14: 105.9 | T14: 105.4 | U14: 107.1 | V14: nd | W14: 103.2 | X14: 106.7
A15: 2015-05-01 | B15: 104.1 | C15: 106.1 | D15: 105.6 | E15: 103.9 | F15: 104.8 | G15: 104.7 | H15: 104.9 | I15: 104 | J15: 104.5 | K15: 98.4 | L15: 102.3 | M15: 96 | N15: 105.9 | O15: 107.2 | P15: 107.4 | R15: 102.3 | S15: 106.2 | T15: 104.8 | U15: 107 | V15: nd | W15: 103.1 | X15: 106.9
A16: 2015-06-01 | B16: 104.1 | C16: 106 | D16: 105.3 | E16: 103.7 | F16: 104.5 | G16: 104.5 | H16: 104.7 | I16: 103.5 | J16: 104 | K16: 97.7 | L16: 102.7 | M16: 97.4 | N16: 105.6 | O16: 106.9 | P16: 108 | R16: 101.8 | S16: 106.2 | T16: 104.8 | U16: 106.9 | V16: nd | W16: 102.8 | X16: 106.9
A17: 2015-07-01 | B17: 103.6 | C17: 106.2 | D17: 104.9 | E17: 103.2 | F17: 104.2 | G17: 104.4 | H17: 104.7 | I17: 101.4 | J17: 103.4 | K17: 97.6 | L17: 102.1 | M17: 95.7 | N17: 106 | O17: 106.9 | P17: 108.4 | R17: 101.8 | S17: 106.2 | T17: 104.3 | U17: 106.8 | V17: nd | W17: 102.8 | X17: 106.9
A18: 2015-08-01 | B18: 102.9 | C18: 106.2 | D18: 104.4 | E18: 102.7 | F18: 103.7 | G18: 104.4 | H18: 104.6 | I18: 98.7 | J18: 102.3 | K18: 97.7 | L18: 101 | M18: 93 | N18: 105.9 | O18: 106.9 | P18: 107 | R18: 101.4 | S18: 105.9 | T18: 104.1 | U18: 106.8 | V18: nd | W18: 102.3 | X18: 106.6
A19: 2015-09-01 | B19: 101.9 | C19: 105.6 | D19: 104.2 | E19: 102.7 | F19: 103.2 | G19: 103.5 | H19: 103.8 | I19: 98.2 | J19: 102.2 | K19: 96.7 | L19: 99.4 | M19: 89.2 | N19: 105.4 | O19: 106.5 | P19: 105.2 | R19: 100.6 | S19: 105.5 | T19: 103.8 | U19: 106.6 | V19: nd | W19: 101.7 | X19: 106
A20: 2015-10-01 | B20: 101.7 | C20: 105.2 | D20: 104 | E20: 102.6 | F20: 102.7 | G20: 103.3 | H20: 103.6 | I20: 98.5 | J20: 102 | K20: 96.1 | L20: 99 | M20: 88.4 | N20: 105.5 | O20: 106.5 | P20: 103.8 | R20: 100.7 | S20: 105.5 | T20: 103.6 | U20: 106.7 | V20: nd | W20: 101.6 | X20: 105.9
A21: 2015-11-01 | B21: 101.6 | C21: 105.2 | D21: 104.2 | E21: 102.7 | F21: 102.7 | G21: 103.2 | H21: 103.7 | I21: 98.6 | J21: 102.4 | K21: 94.7 | L21: 98.8 | M21: 87.8 | N21: 105.8 | O21: 106.7 | P21: 104.2 | R21: 101.1 | S21: 105.3 | T21: 103 | U21: 106.6 | V21: nd | W21: 101.6 | X21: 106
A22: 2015-12-01 | B22: 100.8 | C22: 104.5 | D22: 103.2 | E22: 101.6 | F22: 101.4 | G22: 102.5 | H22: 103 | I22: 95.2 | J22: 100.6 | K22: 92.9 | L22: 97.9 | M22: 86.2 | N22: 105.2 | O22: 106.5 | P22: 104.1 | R22: 99.9 | S22: 105.1 | T22: 103.2 | U22: 106.5 | V22: nd | W22: 100.8 | X22: 105.7
A23: 2016-01-01 | B23: 100.2 | C23: 104.1 | D23: 103.3 | E23: 101.6 | F23: 100.9 | G23: 102.1 | H23: 102.7 | I23: 96.3 | J23: 100.6 | K23: 91.5 | L23: 96.7 | M23: 83.2 | N23: 105.2 | O23: 106.5 | P23: 103.9 | R23: 100.8 | S23: 105.2 | T23: 103.7 | U23: 106.5 | V23: nd | W23: 100.6 | X23: 105.5
A24: 2016-02-01 | B24: 100 | C24: 103.6 | D24: 103.3 | E24: 101.7 | F24: 100.4 | G24: 101.8 | H24: 102.4 | I24: 96.1 | J24: 100.6 | K24: 91.1 | L24: 96.4 | M24: 82.6 | N24: 105.1 | O24: 106.5 | P24: 103.1 | R24: 100.7 | S24: 104.7 | T24: 103.6 | U24: 106.6 | V24: nd | W24: 100.9 | X24: 105.6
A25: 2016-03-01 | B25: 100.3 | C25: 103.6 | D25: 103.6 | E25: 102.3 | F25: 100.7 | G25: 101.7 | H25: 102.4 | I25: 96.8 | J25: 101.5 | K25: 91.1 | L25: 96.5 | M25: 82.8 | N25: 105.1 | O25: 106.5 | P25: 103 | R25: 99.7 | S25: 104.9 | T25: 103 | U25: 106.8 | V25: nd | W25: 101.3 | X25: 106
A26: 2016-04-01 | B26: 100.6 | C26: 103.9 | D26: 103.7 | E26: 102 | F26: 101.1 | G26: 101.9 | H26: 102.6 | I26: 98 | J26: 101.5 | K26: 91.6 | L26: 96.9 | M26: 83.7 | N26: 105.1 | O26: 106.7 | P26: 104.4 | R26: 99.3 | S26: 105 | T26: 103.1 | U26: 107.1 | V26: nd | W26: 101.7 | X26: 106.2
A27: 2016-05-01 | B27: 101.2 | C27: 104.4 | D27: 104.2 | E27: 102.6 | F27: 101.8 | G27: 102.3 | H27: 102.8 | I27: 99 | J27: 102.4 | K27: 92.4 | L27: 97.7 | M27: 85.4 | N27: 105.4 | O27: 107.1 | P27: 104.6 | R27: 99.9 | S27: 105.4 | T27: 102.8 | U27: 107.2 | V27: nd | W27: 101.8 | X27: 106.7
A28: 2016-06-01 | B28: 102.1 | C28: 105.6 | D28: 104.4 | E28: 102.8 | F28: 103.2 | G28: 103.3 | H28: 103.7 | I28: 100.7 | J28: 102.7 | K28: 95.1 | L28: 99 | M28: 88.6 | N28: 105.3 | O28: 107.2 | P28: 105.2 | R28: 98.7 | S28: 105.6 | T28: 103.3 | U28: 107.8 | V28: nd | W28: 102.3 | X28: 107.2
A29: 2016-07-01 | B29: 102.3 | C29: 105.9 | D29: 104.4 | E29: 102.6 | F29: 103.4 | G29: 103.8 | H29: 104.1 | I29: 99.7 | J29: 102.4 | K29: 95.6 | L29: 99.5 | M29: 89.8 | N29: 105.2 | O29: 107.4 | P29: 105.1 | R29: 98.4 | S29: 105.7 | T29: 102.1 | U29: 107.4 | V29: nd | W29: 102.7 | X29: 107.5
A30: 2016-08-01 | B30: 102.3 | C30: 106.4 | D30: 104.3 | E30: 102.6 | F30: 103.8 | G30: 104.2 | H30: 104.5 | I30: 101 | J30: 102.5 | K30: 96.4 | L30: 99.3 | M30: 89.5 | N30: 105.2 | O30: 107.2 | P30: 105 | R30: 98.6 | S30: 105.6 | T30: 102.2 | U30: 107.4 | V30: nd | W30: 102.7 | X30: 107.6
A31: 2016-09-01 | B31: 102.6 | C31: 106.5 | D31: 104.5 | E31: 102.7 | F31: 104 | G31: 104.2 | H31: 104.5 | I31: 101 | J31: 102.6 | K31: 96.9 | L31: 99.6 | M31: 90.2 | N31: 105.3 | O31: 107.4 | P31: 105.5 | R31: 99.2 | S31: 105.8 | T31: 103.5 | U31: 107.7 | V31: nd | W31: 102.9 | X31: 107.4
A32: 2016-10-01 | B32: 103 | C32: 106 | D32: 104.9 | E32: 103.3 | F32: 103.6 | G32: 103.7 | H32: 104.2 | I32: 102.1 | J32: 103.3 | K32: 96.2 | L32: 100.3 | M32: 91.6 | N32: 105.5 | O32: 107.7 | P32: 105.9 | R32: 99.6 | S32: 105.9 | T32: 104.4 | U32: 108.2 | V32: nd | W32: 103 | X32: 107.7
A33: 2016-11-01 | B33: 103.3 | C33: 106.2 | D33: 104.9 | E33: 103.2 | F33: 103.5 | G33: 103.9 | H33: 104.5 | I33: 102.1 | J33: 103.2 | K33: 96.2 | L33: 100.8 | M33: 93.1 | N33: 105.8 | O33: 107.9 | P33: 105.8 | R33: 100 | S33: 105.9 | T33: 104.1 | U33: 108.2 | V33: nd | W33: 103.4 | X33: 107.8
A34: 2016-12-01 | B34: 103.7 | C34: 106.5 | D34: 105.2 | E34: 103.8 | F34: 104.1 | G34: 104.3 | H34: 104.7 | I34: 104.9 | J34: 103.9 | K34: 97.3 | L34: 101.5 | M34: 94.3 | N34: 105.8 | O34: 107.9 | P34: 105.5 | R34: 100.1 | S34: 106.3 | T34: 104.3 | U34: 108.2 | V34: nd | W34: 104 | X34: 108.3
A35: 2017-01-01 | B35: 104.9 | C35: 107 | D35: 105.8 | E35: 104 | F35: 104.8 | G35: 104.7 | H35: 105.2 | I35: 105.9 | J35: 104.4 | K35: 98.5 | L35: 103.2 | M35: 98.6 | N35: 106.1 | O35: 108.5 | P35: 107 | R35: 100.2 | S35: 107 | T35: 104.8 | U35: 108.7 | V35: nd | W35: 104.1 | X35: 108.8
A36: 2017-02-01 | B36: 105 | C36: 107.2 | D36: 106 | E36: 104.5 | F36: 105.1 | G36: 105.1 | H36: 105.5 | I36: 106.1 | J36: 104.6 | K36: 99.9 | L36: 103.2 | M36: 98.4 | N36: 106.1 | O36: 108.6 | P36: 108 | R36: 100.5 | S36: 107.2 | T36: 105.2 | U36: 108.9 | V36: 109.2 | W36: 104.3 | X36: 109
A37: 2017-03-01 | B37: 105.1 | C37: 107.6 | D37: 106 | E37: 104.7 | F37: 105.2 | G37: 105.3 | H37: 105.8 | I37: 105.6 | J37: 104.6 | K37: 101.6 | L37: 102.9 | M37: 97.7 | N37: 106.4 | O37: 108.7 | P37: 108.8 | R37: 100.7 | S37: 107.4 | T37: 105.5 | U37: 109 | V37: 109.4 | W37: 104.6 | X37: 109.2
A38: 2017-04-01 | B38: 104.8 | C38: 107.7 | D38: 105.9 | E38: 104.8 | F38: 105.5 | G38: 105.5 | H38: 105.8 | I38: 105.4 | J38: 104.6 | K38: 102.5 | L38: 102.4 | M38: 96.2 | N38: 106.4 | O38: 108.7 | P38: 108.6 | R38: 101 | S38: 107.5 | T38: 105.1 | U38: 109 | V38: 109.6 | W38: 104.6 | X38: 109.1
A39: 2017-05-01 | B39: 105 | C39: 107.9 | D39: 105.9 | E39: 104.4 | F39: 105.5 | G39: 105.5 | H39: 105.8 | I39: 105.5 | J39: 104.4 | K39: 102.6 | L39: 102.6 | M39: 96.9 | N39: 106.7 | O39: 108.7 | P39: 108.8 | R39: 101 | S39: 107.4 | T39: 105.1 | U39: 108.9 | V39: 109.5 | W39: 104.3 | X39: 109.1
A40: 2017-06-01 | B40: 104.7 | C40: 107.9 | D40: 105.5 | E40: 104.1 | F40: 105.5 | G40: 105.8 | H40: 106 | I40: 104.7 | J40: 103.9 | K40: 102.9 | L40: 102 | M40: 95.9 | N40: 106.3 | O40: 108.6 | P40: 108.2 | R40: 101.2 | S40: 107.3 | T40: 105.6 | U40: 109 | V40: 109.7 | W40: 104.4 | X40: 109
A41: 2017-07-01 | B41: 104.7 | C41: 108.1 | D41: 105.7 | E41: 104.4 | F41: 105.7 | G41: 105.9 | H41: 106.1 | I41: 104.8 | J41: 104.1 | K41: 103.2 | L41: 102.1 | M41: 95.7 | N41: 106.4 | O41: 108.7 | P41: 107.3 | R41: 101.7 | S41: 107.4 | T41: 105.6 | U41: 109 | V41: 109.8 | W41: 104.6 | X41: 109.4
A42: 2017-08-01 | B42: 105 | C42: 108.4 | D42: 106 | E42: 104.5 | F42: 106 | G42: 106.4 | H42: 106.5 | I42: 105.1 | J42: 104.4 | K42: 102.8 | L42: 102.4 | M42: 95.8 | N42: 106.8 | O42: 109 | P42: 107.9 | R42: 102.1 | S42: 107.6 | T42: 105.2 | U42: 109.1 | V42: 109.8 | W42: 104.7 | X42: 109.9
A43: 2017-09-01 | B43: 105.2 | C43: 108.8 | D43: 106.2 | E43: 104.7 | F43: 106.6 | G43: 106.5 | H43: 106.6 | I43: 105.2 | J43: 104.8 | K43: 102.3 | L43: 102.6 | M43: 96.4 | N43: 106.8 | O43: 109.1 | P43: 108.5 | R43: 101.4 | S43: 107.7 | T43: 105.1 | U43: 109.3 | V43: 110 | W43: 106.1 | X43: 109.7
A44: 2017-10-01 | B44: 105.7 | C44: 109.6 | D44: 106.3 | E44: 105 | F44: 107.4 | G44: 107.2 | H44: 107.1 | I44: 105.9 | J44: 104.9 | K44: 102.5 | L44: 103 | M44: 97.4 | N44: 107 | O44: 109.1 | P44: 108.8 | R44: 101.9 | S44: 107.9 | T44: 105.7 | U44: 109.5 | V44: 110.1 | W44: 106.1 | X44: 109.8
A45: 2017-11-01 | B45: 106.1 | C45: 110.4 | D45: 106.6 | E45: 105 | F45: 108.3 | G45: 107.9 | H45: 107.8 | I45: 107.2 | J45: 105.2 | K45: 101.6 | L45: 103.5 | M45: 98.4 | N45: 107.2 | O45: 109.3 | P45: 108.5 | R45: 101.7 | S45: 108.1 | T45: 105.5 | U45: 109.6 | V45: 110.2 | W45: 106 | X45: 110.1
A46: 2017-12-01 | B46: 106.4 | C46: 110.7 | D46: 106.5 | E46: 105 | F46: 108.4 | G46: 108 | H46: 107.9 | I46: 107.2 | J46: 105.4 | K46: 103.2 | L46: 104.1 | M46: 99.8 | N46: 107.3 | O46: 109.3 | P46: 108.9 | R46: 101.6 | S46: 108.2 | T46: 105.8 | U46: 109.8 | V46: 110.3 | W46: 106.5 | X46: 110.3
A47: 2018-01-01 | B47: 107.3 | C47: 111.2 | D47: 107.7 | E47: 107.2 | F47: 109.5 | G47: 108.8 | H47: 108.6 | I47: 109.7 | J47: 106.7 | K47: 105.3 | L47: 105.1 | M47: 100.7 | N47: 107.9 | O47: 110.1 | P47: 109.7 | R47: 102.5 | S47: 109 | T47: 106.5 | U47: 110.4 | V47: 110.8 | W47: 108.4 | X47: 111.2
A48: 2018-02-01 | B48: 107.4 | C48: 111.5 | D48: 107.6 | E48: 106.4 | F48: 109.5 | G48: 108.9 | H48: 108.9 | I48: 109.6 | J48: 106.4 | K48: 104.9 | L48: 105.2 | M48: 100.8 | N48: 108 | O48: 110.2 | P48: 110 | R48: 102.6 | S48: 109.2 | T48: 106.7 | U48: 110.5 | V48: 110.9 | W48: 107.7 | X48: 111.1
A49: 2018-03-01 | B49: 107.7 | C49: 112 | D49: 108.1 | E49: 107.1 | F49: 110 | G49: 109.4 | H49: 109.3 | I49: 109.2 | J49: 106.8 | K49: 105.3 | L49: 105.4 | M49: 100.1 | N49: 108.3 | O49: 110.7 | P49: 110.1 | R49: 102.7 | S49: 109.5 | T49: 106.8 | U49: 110.8 | V49: 111.3 | W49: 112.1 | X49: 111.7
A50: 2018-04-01 | B50: 108.1 | C50: 112.2 | D50: 108.5 | E50: 106.7 | F50: 110.5 | G50: 109.6 | H50: 109.5 | I50: 110.4 | J50: 107.5 | K50: 105.2 | L50: 105.9 | M50: 101 | N50: 108.6 | O50: 111 | P50: 109.7 | R50: 103.8 | S50: 109.8 | T50: 108 | U50: 111.2 | V50: 111.6 | W50: 112.5 | X50: 111.9
A51: 2018-05-01 | B51: 108.8 | C51: 112.4 | D51: 109.1 | E51: 107.7 | F51: 110.9 | G51: 109.9 | H51: 109.6 | I51: 111.2 | J51: 108 | K51: 106.7 | L51: 107 | M51: 103.5 | N51: 109.1 | O51: 111.5 | P51: 110.3 | R51: 104.2 | S51: 110 | T51: 107.7 | U51: 111.2 | V51: 112.1 | W51: 112.2 | X51: 112.3
A52: 2018-06-01 | B52: 109.6 | C52: 112.2 | D52: 108.9 | E52: 107.8 | F52: 110.6 | G52: 109.8 | H52: 109.5 | I52: 113.4 | J52: 108 | K52: 106.5 | L52: 108.5 | M52: 108.3 | N52: 109.1 | O52: 111.6 | P52: 110.9 | R52: 104.6 | S52: 110 | T52: 108.7 | U52: 111.8 | V52: 112.5 | W52: 112.1 | X52: 112.6
A53: 2018-07-01 | B53: 109.8 | C53: 112.1 | D53: 109.1 | E53: 107.5 | F53: 110.6 | G53: 109.9 | H53: 109.7 | I53: 114 | J53: 108.1 | K53: 106.3 | L53: 108.8 | M53: 109 | N53: 109.2 | O53: 111.6 | P53: 111.1 | R53: 104.9 | S53: 110.2 | T53: 108.9 | U53: 111.8 | V53: 112.5 | W53: 113.2 | X53: 113
A54: 2018-08-01 | B54: 110.2 | C54: 112.6 | D54: 109.3 | E54: 107.8 | F54: 111 | G54: 110.3 | H54: 110 | I54: 113.8 | J54: 108.3 | K54: 107.2 | L54: 109.3 | M54: 109.8 | N54: 109.4 | O54: 111.7 | P54: 111.4 | R54: 105.1 | S54: 110.5 | T54: 109.1 | U54: 112 | V54: 112.8 | W54: 112.7 | X54: 113.5
A55: 2018-09-01 | B55: 110.4 | C55: 112.9 | D55: 109.6 | E55: 108 | F55: 111.3 | G55: 110.4 | H55: 110.1 | I55: 114.1 | J55: 108.6 | K55: 107.4 | L55: 109.4 | M55: 110.1 | N55: 109.7 | O55: 111.9 | P55: 111.3 | R55: 105.4 | S55: 110.3 | T55: 109.3 | U55: 112.2 | V55: 113.2 | W55: 113.9 | X55: 113.3
A56: 2018-10-01 | B56: 110.9 | C56: 113 | D56: 109.9 | E56: 108.1 | F56: 111.6 | G56: 110.7 | H56: 110.4 | I56: 115.9 | J56: 109 | K56: 107.4 | L56: 110.2 | M56: 111.7 | N56: 109.9 | O56: 112 | P56: 111.8 | R56: 104.9 | S56: 110.6 | T56: 108.4 | U56: 112.4 | V56: 113.5 | W56: 113.8 | X56: 113.6
A57: 2018-11-01 | B57: 111.1 | C57: 113.1 | D57: 109.4 | E57: 107.8 | F57: 111.1 | G57: 110.5 | H57: 110.2 | I57: 113.4 | J57: 108.5 | K57: 107.2 | L57: 110.7 | M57: 113.7 | N57: 109.8 | O57: 112 | P57: 112.3 | R57: 105 | S57: 110.6 | T57: 108.7 | U57: 112.4 | V57: 113.7 | W57: 114 | X57: 113.5
A58: 2018-12-01 | B58: 110 | C58: 113.2 | D58: 108.9 | E58: 107.6 | F58: 110.9 | G58: 110.5 | H58: 110.2 | I58: 110.7 | J58: 107.7 | K58: 107.3 | L58: 108.9 | M58: 108.9 | N58: 109.7 | O58: 111.7 | P58: 111.6 | R58: 104.1 | S58: 110.4 | T58: 107.1 | U58: 112.4 | V58: 113.4 | W58: 113.9 | X58: 113.2
A59: 2019-01-01 | B59: 109.7 | C59: 113.5 | D59: 109.6 | E59: 107.6 | F59: 111.2 | G59: 110.9 | H59: 110.7 | I59: 111.2 | J59: 108.1 | K59: 107.2 | L59: 107.9 | M59: 105.1 | N59: 110 | O59: 112.2 | P59: 110.9 | R59: 104.7 | S59: 110.7 | T59: 108.4 | U59: 112.8 | V59: 113.5 | W59: 113.1 | X59: 113.5
A60: 2019-02-01 | B60: 110.3 | C60: 113.6 | D60: 110 | E60: 108.1 | F60: 111.4 | G60: 111.3 | H60: 111.2 | I60: 113.4 | J60: 108.6 | K60: 106.3 | L60: 108.8 | M60: 106.9 | N60: 110.1 | O60: 112.4 | P60: 111.3 | R60: 104.8 | S60: 111 | T60: 108.3 | U60: 112.7 | V60: 113.8 | W60: 113.3 | X60: 113.8
A61: 2019-03-01 | B61: 111.3 | C61: 114.1 | D61: 110.5 | E61: 108.5 | F61: 111.9 | G61: 111.8 | H61: 111.8 | I61: 114.4 | J61: 109.3 | K61: 106.8 | L61: 110.3 | M61: 110.4 | N61: 110.7 | O61: 112.8 | P61: 112.1 | R61: 104.9 | S61: 111.4 | T61: 108.9 | U61: 113.4 | V61: 114 | W61: 113.2 | X61: 114.3
A62: 2019-04-01 | B62: 111.6 | C62: 114.1 | D62: 110.7 | E62: 108.6 | F62: 112 | G62: 111.6 | H62: 111.6 | I62: 114.9 | J62: 109.5 | K62: 106.9 | L62: 110.8 | M62: 111.5 | N62: 110.8 | O62: 113.1 | P62: 112.2 | R62: 105.1 | S62: 111.8 | T62: 109.7 | U62: 114 | V62: 114.4 | W62: 112.3 | X62: 114.6
A63: 2019-05-01 | B63: 111.8 | C63: 114.1 | D63: 110.7 | E63: 108.6 | F63: 112.1 | G63: 111.6 | H63: 111.3 | I63: 114.3 | J63: 109.5 | K63: 106 | L63: 111.1 | M63: 112.5 | N63: 110.8 | O63: 113.3 | P63: 112.9 | R63: 105.4 | S63: 111.8 | T63: 109.5 | U63: 114.3 | V63: 114.6 | W63: 111 | X63: 115
A64: 2019-06-01 | B64: 111.5 | C64: 114.3 | D64: 110.4 | E64: 108.2 | F64: 112 | G64: 111.7 | H64: 111.3 | I64: 112.7 | J64: 108.9 | K64: 105.1 | L64: 110.6 | M64: 111.2 | N64: 110.8 | O64: 113.3 | P64: 112.7 | R64: 105.5 | S64: 111.9 | T64: 109.4 | U64: 114.4 | V64: 114.8 | W64: 110.9 | X64: 115.1
A65: 2019-07-01 | B65: 111.5 | C65: 114.5 | D65: 110.6 | E65: 108.4 | F65: 112 | G65: 111.9 | H65: 111.5 | I65: 114.2 | J65: 109.2 | K65: 104.9 | L65: 110.4 | M65: 110 | N65: 111.2 | O65: 113.4 | P65: 112 | R65: 105.3 | S65: 112.1 | T65: 108.8 | U65: 114.4 | V65: 114.9 | W65: 113.5 | X65: 115.7
A66: 2019-08-01 | B66: 111.5 | C66: 114.7 | D66: 110.6 | E66: 108.2 | F66: 112.1 | G66: 112.3 | H66: 111.9 | I66: 110.9 | J66: 109.2 | K66: 105.4 | L66: 110.4 | M66: 109.9 | N66: 111.3 | O66: 113.5 | P66: 111.5 | R66: 105.5 | S66: 112.1 | T66: 108.8 | U66: 114.5 | V66: 115 | W66: 109.7 | X66: 115.9
A67: 2019-09-01 | B67: 111.2 | C67: 114.6 | D67: 111 | E67: 108.4 | F67: 112.2 | G67: 112.1 | H67: 111.8 | I67: 113 | J67: 110 | K67: 104.4 | L67: 109.5 | M67: 107.3 | N67: 111.3 | O67: 113.7 | P67: 111.8 | R67: 106 | S67: 112.2 | T67: 109.1 | U67: 114.7 | V67: 115.1 | W67: 111.9 | X67: 115.9
A68: 2019-10-01 | B68: 111.2 | C68: 114.2 | D68: 111 | E68: 108.8 | F68: 111.6 | G68: 111.7 | H68: 111.5 | I68: 110.6 | J68: 110 | K68: 102.8 | L68: 109.9 | M68: 108.2 | N68: 111.3 | O68: 113.6 | P68: 111.5 | Q68: 105.9 | R68: 106 | S68: 112.1 | T68: 108.9 | U68: 114.7 | V68: 115.2 | W68: 112.8 | X68: 115.9
A69: 2019-11-01 | B69: 110.5 | C69: 114.2 | D69: 110.9 | E69: 108.8 | F69: 111.4 | G69: 111.7 | H69: 111.6 | I69: 108.9 | J69: 109.8 | K69: 101.1 | L69: 108.6 | M69: 104.3 | N69: 111.2 | O69: 113.6 | P69: 110.7 | Q69: 106 | R69: 105.6 | S69: 112.4 | T69: 108.9 | U69: 114.6 | V69: 115.3 | W69: 112.8 | X69: 115.9
A70: 2019-12-01 | B70: 110.4 | C70: 114.3 | D70: 111 | E70: 109.3 | F70: 111.5 | G70: 111.8 | H70: 111.7 | I70: 108.3 | J70: 109.9 | K70: 99.3 | L70: 108.4 | M70: 103.2 | N70: 111.4 | O70: 113.6 | P70: 110.6 | Q70: 105.6 | R70: 105.7 | S70: 112.6 | T70: 108.7 | U70: 114.7 | V70: 115.2 | W70: 112.5 | X70: 116.1
A71: 2020-01-01 | B71: 111.4 | C71: 114.7 | D71: 111.3 | E71: 108.8 | F71: 111.9 | G71: 112.3 | H71: 112.3 | I71: 111.4 | J71: 109.9 | K71: 101.1 | L71: 110.1 | M71: 107.7 | N71: 111.5 | O71: 114 | P71: 110.4 | Q71: 105.7 | R71: 105.3 | S71: 112.9 | T71: 108.4 | U71: 114.8 | V71: 115.4 | W71: 112.4 | X71: 116.3
A72: 2020-02-01 | B72: 111.7 | C72: 114.8 | D72: 111.1 | E72: 108.7 | F72: 111.6 | G72: 112.1 | H72: 112.2 | I72: 110 | J72: 109.6 | K72: 100.6 | L72: 110.7 | M72: 109.5 | N72: 111.6 | O72: 114.1 | P72: 110.4 | Q72: 105.7 | R72: 105.1 | S72: 113 | T72: 108.3 | U72: 114.9 | V72: 115.5 | W72: 111.5 | X72: 116.2
A73: 2020-03-01 | B73: 110.8 | C73: 114.7 | D73: 110.2 | E73: 107.8 | F73: 111 | G73: 111.8 | H73: 111.9 | I73: 105.9 | J73: 108 | K73: 100.8 | L73: 109.3 | M73: 106.8 | N73: 111.3 | O73: 113.6 | P73: 109.7 | Q73: 105.6 | R73: 105 | S73: 112.6 | T73: 108.3 | U73: 114.7 | V73: 115.4 | W73: 112.9 | X73: 115.7
A74: 2020-04-01 | B74: 108.9 | C74: 114.4 | D74: 109.4 | E74: 107.4 | F74: 110.1 | G74: 111.3 | H74: 111.4 | I74: 103.3 | J74: 106.6 | K74: 99.6 | L74: 106 | M74: 98.3 | N74: 111 | O74: 113.4 | P74: 108.2 | Q74: 105.4 | R74: 104.3 | S74: 112.1 | T74: 107.8 | U74: 114.3 | V74: 115.1 | W74: 110.6 | X74: 115
A75: 2020-05-01 | B75: 108.7 | C75: 114.2 | D75: 109.5 | E75: 107.4 | F75: 110.3 | G75: 111.4 | H75: 111.2 | I75: 103.7 | J75: 106.6 | K75: 100.5 | L75: 105.8 | M75: 97.8 | N75: 110.9 | O75: 113.3 | P75: 106.1 | Q75: 105.5 | R75: 104.7 | S75: 111.9 | T75: 107.5 | U75: 113.9 | V75: 114.9 | W75: 109.8 | X75: 114.8
A76: 2020-06-01 | B76: 108.8 | C76: 113.7 | D76: 108.8 | E76: 107.3 | F76: 110 | G76: 111.1 | H76: 110.7 | I76: 105.5 | J76: 106.2 | K76: 99.6 | L76: 106.3 | M76: 100.9 | N76: 110.3 | O76: 112.4 | P76: 106.2 | Q76: 104.6 | R76: 104.5 | S76: 111.5 | T76: 107.6 | U76: 114 | V76: 114.8 | W76: 108.8 | X76: 114.6
A77: 2020-07-01 | B77: 109.9 | C77: 113.7 | D77: 108.9 | E77: 107.3 | F77: 110 | G77: 111.2 | H77: 110.7 | I77: 106 | J77: 106.3 | K77: 99.5 | L77: 108.4 | M77: 106.6 | N77: 110.3 | O77: 112.6 | P77: 107.3 | Q77: 104.7 | R77: 104 | S77: 111.8 | T77: 108 | U77: 114.4 | V77: 115.1 | W77: 108.5 | X77: 115.1
A78: 2020-08-01 | B78: 110 | C78: 113.8 | D78: 109.1 | E78: 107.6 | F78: 110 | G78: 111.3 | H78: 110.8 | I78: 106.4 | J78: 106.4 | K78: 100.5 | L78: 108.3 | M78: 106.3 | N78: 110.4 | O78: 112.7 | P78: 107.6 | Q78: 104.5 | R78: 103.7 | S78: 112.2 | T78: 107.9 | U78: 114.5 | V78: 115.4 | W78: 110.2 | X78: 115.5
A79: 2020-09-01 | B79: 110.1 | C79: 114.4 | D79: 109.2 | E79: 107.4 | F79: 110.5 | G79: 111.9 | H79: 111.5 | I79: 106.5 | J79: 106.7 | K79: 100.1 | L79: 108.2 | M79: 105.6 | N79: 110.8 | O79: 113.2 | P79: 107.9 | Q79: 105.1 | R79: 104.4 | S79: 112.1 | T79: 108 | U79: 114.6 | V79: 115.5 | W79: 110.8 | X79: 115.1
A80: 2020-10-01 | B80: 109.5 | C80: 114.4 | D80: 109.1 | E80: 107.3 | F80: 110.4 | G80: 111.7 | H80: 111.3 | I80: 106.8 | J80: 106.6 | K80: 100.3 | L80: 107.2 | M80: 103.1 | N80: 110.5 | O80: 112.9 | P80: 107.9 | Q80: 105.3 | R80: 104.4 | S80: 111.9 | T80: 108.4 | U80: 114.4 | V80: 115.3 | W80: 110.5 | X80: 114.9
A81: 2020-11-01 | B81: 109.5 | C81: 114.5 | D81: 109.3 | E81: 107.8 | F81: 110.8 | G81: 111.9 | H81: 111.6 | I81: 107.7 | J81: 107 | K81: 100.7 | L81: 106.9 | M81: 102.1 | N81: 110.4 | O81: 113 | P81: 108.7 | Q81: 105.3 | R81: 104.3 | S81: 112 | T81: 108.5 | U81: 114.5 | V81: 115.3 | W81: 110.3 | X81: 114.9
A82: 2020-12-01 | B82: 109.8 | C82: 114.9 | D82: 109.5 | E82: 108.1 | F82: 111.2 | G82: 112.1 | H82: 112 | I82: 108.5 | J82: 107.4 | K82: 101.6 | L82: 107.4 | M82: 102.9 | N82: 110.6 | O82: 113.2 | P82: 109.9 | Q82: 105.6 | R82: 104.6 | S82: 112.2 | T82: 108.8 | U82: 114.6 | V82: 115.4 | W82: 111.1 | X82: 115.1
A83: 2021-01-01 | B83: 111.2 | C83: 116.3 | D83: 110.7 | E83: 107.7 | F83: 113.5 | G83: 113.6 | H83: 113.6 | I83: 109.4 | J83: 108 | K83: 106.1 | L83: 109 | M83: 105.5 | N83: 111.4 | O83: 114.2 | P83: 111.5 | Q83: 106.4 | R83: 105.4 | S83: 112.9 | T83: 108.9 | U83: 114.6 | V83: 115.6 | W83: 114.7 | X83: 115.4
A84: 2021-02-01 | B84: 112.1 | C84: 117.2 | D84: 111.2 | E84: 108.2 | F84: 114.6 | G84: 114.5 | H84: 114.4 | I84: 111.6 | J84: 108.8 | K84: 110.6 | L84: 110.2 | M84: 107.8 | N84: 111.8 | O84: 114.4 | P84: 113.3 | Q84: 107.3 | R84: 106.4 | S84: 113.2 | T84: 110.1 | U84: 114.8 | V84: 115.7 | W84: 117.5 | X84: 115.7
A85: 2021-03-01 | B85: 113.5 | C85: 118.3 | D85: 112.4 | E85: 109.4 | F85: 115.9 | G85: 115.4 | H85: 115.6 | I85: 114 | J85: 110.5 | K85: 114 | L85: 111.8 | M85: 110.9 | N85: 112.9 | O85: 115.7 | P85: 118.1 | Q85: 108.2 | R85: 106.7 | S85: 114 | T85: 110.4 | U85: 115.1 | V85: 116 | W85: 120.8 | X85: 116.4
A86: 2021-04-01 | B86: 113.8 | C86: 118.9 | D86: 112.3 | E86: 109.5 | F86: 116.3 | G86: 115.8 | H86: 115.8 | I86: 113.5 | J86: 110.2 | K86: 115.4 | L86: 112 | M86: 111.8 | N86: 113.3 | O86: 115.6 | P86: 122.2 | Q86: 108.5 | R86: 108 | S86: 114.3 | T86: 110.3 | U86: 114.8 | V86: 116 | W86: 118.8 | X86: 116.3
A87: 2021-05-01 | B87: 114 | C87: 119 | D87: 112.5 | E87: 109.6 | F87: 116.7 | G87: 115.7 | H87: 115.5 | I87: 113.3 | J87: 110.3 | K87: 118.1 | L87: 111.9 | M87: 111.2 | N87: 113.7 | O87: 115.6 | P87: 124.3 | Q87: 108.6 | R87: 108.3 | S87: 114.6 | T87: 111.3 | U87: 115.1 | V87: 116 | W87: 119.3 | X87: 116.3
A88: 2021-06-01 | B88: 114.8 | C88: 120.8 | D88: 113.1 | E88: 110.1 | F88: 118.5 | G88: 116.7 | H88: 116.2 | I88: 114.4 | J88: 110.9 | K88: 123.5 | L88: 112.6 | M88: 111.7 | N88: 114.9 | O88: 116.1 | P88: 123.2 | Q88: 109.2 | R88: 109.1 | S88: 115.4 | T88: 112.1 | U88: 115.3 | V88: 115.5 | W88: 118.5 | X88: 116.7
A89: 2021-07-01 | B89: 115.9 | C89: 122.7 | D89: 113.3 | E89: 110.5 | F89: 120.5 | G89: 118.3 | H89: 117.7 | I89: 115.8 | J89: 111.3 | K89: 129.3 | L89: 113.9 | M89: 113.9 | N89: 115.7 | O89: 116.2 | P89: 123.6 | Q89: 109.3 | R89: 109.7 | S89: 116.2 | T89: 112.5 | U89: 115.3 | V89: 115.5 | W89: 121.9 | X89: 117.1
A90: 2021-08-01 | B90: 116.1 | C90: 123.1 | D90: 113.4 | E90: 110.2 | F90: 120.9 | G90: 118.5 | H90: 117.9 | I90: 115.4 | J90: 111 | K90: 131.1 | L90: 114.1 | M90: 114.4 | N90: 116 | O90: 116.2 | P90: 122.6 | Q90: 109.4 | R90: 110 | S90: 116.4 | T90: 111.9 | U90: 114.7 | V90: 115.3 | W90: 129.4 | X90: 117.3
A91: 2021-09-01 | B91: 116.4 | C91: 123.7 | D91: 113.7 | E91: 110.4 | F91: 121.4 | G91: 118.6 | H91: 118 | I91: 116.1 | J91: 111.5 | K91: 138 | L91: 114.2 | M91: 114.3 | N91: 116.2 | O91: 116.3 | P91: 123.3 | Q91: 110.1 | R91: 111.4 | S91: 116.5 | T91: 113.2 | U91: 114.9 | V91: 115.4 | W91: 135.5 | X91: 117
A92: 2021-10-01 | B92: 117.5 | C92: 123.6 | D92: 114.6 | E92: 111.2 | F92: 121.5 | G92: 118.8 | H92: 118.3 | I92: 119.7 | J92: 113.1 | K92: 137.6 | L92: 115.8 | M92: 117.7 | N92: 116.5 | O92: 116.1 | P92: 124.6 | Q92: 110.2 | R92: 112.5 | S92: 116.9 | T92: 114.2 | U92: 115.3 | V92: 115.4 | W92: 139.6 | X92: 117.6
A93: 2021-11-01
A94: 2021-12-01

Sheet Gazole routier HTT (hidden)
B1: Fioul lourd | D1: Fioul lourd | E1: Gazole routier HTT
A2: 2017-10-01 | B2: 295.7 | C2: 100 | D2: Prix HTT et TTC depuis janvier 2020 (XLSX - 48.08 Ko)
A3: 2017-11-01 | B3: 322.8 | C3: =C2*(1+(B3/B2-1)) -> 109.1646939 | D3: PRIX DE VENTE H.T.V.A.
A4: 2017-12-01 | B4: 319.8 | C4: =C3*(1+(B4/B3-1)) -> 108.1501522 | D4: Fioul lourd (teneur en soufre <= 1%) en euro par tonne
A5: 2018-01-01 | B5: 324.9 | C5: 109.8748732 | D5: MOYENNES MENSUELLES
A6: 2018-02-01 | B6: 321 | C6: 108.5559689
A7: 2018-03-01 | B7: 306.2 | C7: 103.5508962
A8: 2018-04-01 | B8: 325 | C8: 109.9086912
A9: 2018-05-01 | B9: 337.8 | C9: 114.2374028
A10: 2018-06-01 | B10: 383 | C10: 129.5231654
A11: 2018-07-01 | B11: 391.9 | C11: 132.5329726
A12: 2018-08-01 | B12: 387.4 | C12: 131.01116
A13: 2018-09-01 | B13: 392.7 | C13: 132.8035171
A14: 2018-10-01 | B14: 430.2 | C14: 145.4852891
A15: 2018-11-01 | B15: 381 | C15: 128.8468042
A16: 2018-12-01 | B16: 325.4 | C16: 110.0439635
A17: 2019-01-01 | B17: 330.7 | C17: 111.8363206
A18: 2019-02-01 | B18: 372.1 | C18: 125.836997
A19: 2019-03-01 | B19: 380.8 | C19: 128.7791681
A20: 2019-04-01 | B20: 392.7 | C20: 132.8035171
A21: 2019-05-01 | B21: 382.1 | C21: 129.2188028
A22: 2019-06-01 | B22: 347.9 | C22: 117.6530267
A23: 2019-07-01 | B23: 375.3 | C23: 126.9191748
A24: 2019-08-01 | B24: 304.8 | C24: 103.0774434
A25: 2019-09-01 | B25: 341.8 | C25: 115.5901251
A26: 2019-10-01 | B26: 291.7 | C26: 98.64727765
A27: 2019-11-01 | B27: 265.8 | C27: 89.88840041
A28: 2019-12-01 | B28: 256.1 | C28: 86.6080487
A29: 2020-01-01 | B29: 285.1 | C29: =C28*(1+(B29/B28-1)) -> 96.41528576 | D29: 631.9 | E29: 0.6162
A30: 2020-02-01 | B30: 277.6 | C30: 93.87893135 | D30: 559.73 | E30: 0.5564
A31: 2020-03-01 | B31: 199.8 | C31: 67.56848157 | D31: 414.19 | E31: 0.4656
A32: 2020-04-01 | B32: 150.7 | C32: 50.96381468 | D32: 359.81 | E32: 0.4036
A33: 2020-05-01 | B33: 163.8 | C33: 55.39398039 | D33: 380.71 | E33: 0.3654
A34: 2020-06-01 | B34: 221 | C34: 74.73791004 | D34: 434.36 | E34: 0.4006
A35: 2020-07-01 | C35: =C34*(1+(D35/D34-1)) -> 76.96270325 | D35: 447.29 | E35: 0.4238
A36: 2020-08-01 | C36: =C35*(1+(D36/D35-1)) -> 78.18608142 | D36: 454.4 | E36: 0.4195
A37: 2020-09-01 | C37: =C36*(1+(D37/D36-1)) -> 75.79782699 | D37: 440.52 | E37: 0.3947
A38: 2020-10-01 | C38: 77.96928022 | D38: 453.14 | E38: 0.3925
A39: 2020-11-01 | C39: 80.93739181 | D39: 470.39 | E39: 0.4045
A40: 2020-12-01 | C40: 84.00530077 | D40: 488.22 | E40: 0.4384
A41: 2021-01-01 | C41: 87.47584052 | D41: 508.39 | E41: 0.4738
A42: 2021-02-01 | C42: 96.42491203 | D42: 560.4 | E42: 0.5158
A43: 2021-03-01 | C43: 99.70790154 | D43: 579.48 | E43: 0.5445
A44: 2021-04-01 | C44: 97.25254198 | D44: 565.21 | E44: 0.5362
A45: 2021-05-01 | C45: 96.96347372 | D45: 563.53 | E45: 0.5499
A46: 2021-06-01 | C46: 100.2309774 | D46: 582.52 | E46: 0.5701
A47: 2021-07-01 | C47: =C46*(1+(D47/D46-1)) -> 104.6822845 | D47: 608.39 | E47: 0.5905
A48: 2021-08-01 | C48: =C47*(1+(E48/E47-1)) -> 103.5831648 | D48: 592.49 | E48: 0.5843
A49: 2021-09-01 | C49: =C48*(1+(E49/E48-1)) -> 105.8877706 | D49: 622.85 | E49: 0.5973
A50: 2021-10-01 | C50: =C49*(1+(E50/E49-1)) -> 119.5381277 | D50: 674.78 | E50: 0.6743
A51: 2021-11-01 | C51: =C50*(1+(E51/E50-1)) -> 121.6300007 | D51: 676.2 | E51: 0.6861
A52: 2021-12-01 | C52: 117.5880767 | D52: 650.6 | E52: 0.6633

Sheet Fioul lourd (hidden)
B1: Fioul lourd | D1: Fioul lourd | E1: Indice
A2: 2017-10-01 | B2: 295.7 | C2: 100 | D2: Prix HTT et TTC depuis janvier 2020 (XLSX - 48.08 Ko) | E2: 100
A3: 2017-11-01 | B3: 322.8 | C3: =C2*(1+(B3/B2-1)) -> 109.1646939 | D3: PRIX DE VENTE H.T.V.A.
A4: 2017-12-01 | B4: 319.8 | C4: =C3*(1+(B4/B3-1)) -> 108.1501522 | D4: Fioul lourd (teneur en soufre <= 1%) en euro par tonne
A5: 2018-01-01 | B5: 324.9 | C5: 109.8748732 | D5: MOYENNES MENSUELLES
A6: 2018-02-01 | B6: 321 | C6: 108.5559689
A7: 2018-03-01 | B7: 306.2 | C7: 103.5508962
A8: 2018-04-01 | B8: 325 | C8: 109.9086912
A9: 2018-05-01 | B9: 337.8 | C9: 114.2374028
A10: 2018-06-01 | B10: 383 | C10: 129.5231654
A11: 2018-07-01 | B11: 391.9 | C11: 132.5329726
A12: 2018-08-01 | B12: 387.4 | C12: 131.01116
A13: 2018-09-01 | B13: 392.7 | C13: 132.8035171
A14: 2018-10-01 | B14: 430.2 | C14: 145.4852891
A15: 2018-11-01 | B15: 381 | C15: 128.8468042
A16: 2018-12-01 | B16: 325.4 | C16: 110.0439635
A17: 2019-01-01 | B17: 330.7 | C17: 111.8363206
A18: 2019-02-01 | B18: 372.1 | C18: 125.836997
A19: 2019-03-01 | B19: 380.8 | C19: 128.7791681
A20: 2019-04-01 | B20: 392.7 | C20: 132.8035171
A21: 2019-05-01 | B21: 382.1 | C21: 129.2188028
A22: 2019-06-01 | B22: 347.9 | C22: 117.6530267
A23: 2019-07-01 | B23: 375.3 | C23: 126.9191748
A24: 2019-08-01 | B24: 304.8 | C24: 103.0774434
A25: 2019-09-01 | B25: 341.8 | C25: 115.5901251
A26: 2019-10-01 | B26: 291.7 | C26: 98.64727765
A27: 2019-11-01 | B27: 265.8 | C27: 89.88840041
A28: 2019-12-01 | B28: 256.1 | C28: 86.6080487
A29: 2020-01-01 | B29: 285.1 | C29: =C28*(1+(B29/B28-1)) -> 96.41528576 | D29: 631.9
A30: 2020-02-01 | B30: 277.6 | C30: 93.87893135 | D30: 559.73
A31: 2020-03-01 | B31: 199.8 | C31: 67.56848157 | D31: 414.19
A32: 2020-04-01 | B32: 150.7 | C32: 50.96381468 | D32: 359.81
A33: 2020-05-01 | B33: 163.8 | C33: 55.39398039 | D33: 380.71
A34: 2020-06-01 | B34: 221 | C34: 74.73791004 | D34: 434.36
A35: 2020-07-01 | C35: =C34*(1+(D35/D34-1)) -> 76.96270325 | D35: 447.29
A36: 2020-08-01 | C36: =C35*(1+(D36/D35-1)) -> 78.18608142 | D36: 454.4
A37: 2020-09-01 | C37: =C36*(1+(D37/D36-1)) -> 75.79782699 | D37: 440.52
A38: 2020-10-01 | C38: =C37*(1+(D38/D37-1)) -> 77.96928022 | D38: 453.14
A39: 2020-11-01 | C39: 80.93739181 | D39: 470.39
A40: 2020-12-01 | C40: 84.00530077 | D40: 488.22
A41: 2021-01-01 | C41: 87.47584052 | D41: 508.39
A42: 2021-02-01 | C42: 96.42491203 | D42: 560.4
A43: 2021-03-01 | C43: 99.70790154 | D43: 579.48
A44: 2021-04-01 | C44: 97.25254198 | D44: 565.21
A45: 2021-05-01 | C45: 96.96347372 | D45: 563.53
A46: 2021-06-01 | C46: 100.2309774 | D46: 582.52
A47: 2021-07-01 | C47: 104.6822845 | D47: 608.39
A48: 2021-08-01 | C48: 101.9464599 | D48: 592.49
A49: 2021-09-01 | C49: 107.1703363 | D49: 622.85
A50: 2021-10-01 | C50: 116.1056426 | D50: 674.78
A51: 2021-11-01 | C51: 116.3499741 | D51: 676.2
A52: 2021-12-01 | C52: 111.9451245 | D52: 650.6

Sheet Indice prix (hidden)
B1: base 2010 | C1: base 2008 | D1: base 2008 | E1: base 2015 | F1: base 2015 | G1: base 2010 | H1: base 2010 | I1: base 2015 | J1: base 2017 | K1: base 2017 | L1: base 2015 | M1: base 2015 | N1: base 2015 | O1: base 2015 | P1: base 2015 | Q1: base 2015 | R1: base 2015 | S1: base 2015 | T1: base 2015 | U1: base 2015 | V1: base 2015 | W1: base 2015 | X1: base 2015 | Y1: base 2015 | Z1: base 2015 | AA1: base 2015 | AB1: base 2015 | AC1: base 2015 | AD1: base 2015 | AE1: base 2015 | AF1: base 2015 | AG1: base 2015 | AH1: base 2015 | AI1: base 2015 | AJ1: base 2015 | AK1: base 2015 | AL1: base 2015 | AM1: base 2015 | AN1: base 2015 | AO1: base 2015 | AP1: base 2015
B2: 001711009 | C2: 5540998 | D2: 001565195 | E2: 010534596 | F2: 001764283 | G2: 001711011 | H2: 001711943 | I2: 010534769 | J2: Fioul lourd | K2: Gazole routier HTT | L2: 010534207 | M2: 010534575 | N2: 010534646 | O2: 010546545 | P2: 010536067 | Q2: 010534625 | R2: 010534642 | S2: 010534614 | T2: 010536462 | U2: 010534598 | V2: 010534252 | W2: 010534647 | X2: 010534662 | Y2: 010534638 | Z2: 010534253 | AA2: 010534559 | AB2: 010534606 | AC2: 010534654 | AD2: 010534645 | AE2: 010534330 | AF2: 010534696 | AG2: 010534698 | AH2: 010534702 | AI2: 010535345 | AJ2: 010534180 | AK2: 010534267 | AL2: 010536480 | AM2: 010534667 | AN2: 001763781 | AO2: 010534789 | AP2: 010534784
B3: =HLOOKUP(B2,'Composition index'!$D$3:$AR$3,1,FALSE) -> 001711009 | C3: =HLOOKUP(C2,'Composition index'!$D$3:$AR$3,1,FALSE) -> 5540998 | D3: =HLOOKUP(D2,'Composition index'!$D$3:$AR$3,1,FALSE) -> 001565195 | E3: =HLOOKUP(E2,'Composition index'!$D$3:$AR$3,1,FALSE) -> 010534596 | F3: =HLOOKUP(F2,'Composition index'!$D$3:$AR$3,1,FALSE) -> 001764283 | G3: =HLOOKUP(G2,'Composition index'!$D$3:$AR$3,1,FALSE) -> 001711011 | H3: =HLOOKUP(H2,'Composition index'!$D$3:$AR$3,1,FALSE) -> 001711943 | I3: =HLOOKUP(I2,'Composition index'!$D$3:$AR$3,1,FALSE) -> 010534769 | J3: =HLOOKUP(J2,'Composition index'!$D$3:$AR$3,1,FALSE) -> Fioul lourd | K3: =HLOOKUP(K2,'Composition index'!$D$3:$AR$3,1,FALSE) -> Gazole routier HTT | L3: =HLOOKUP(L2,'Composition index'!$D$3:$AR$3,1,FALSE) -> 010534207 | M3: =HLOOKUP(M2,'Composition index'!$D$3:$AR$3,1,FALSE) -> 010534575 | N3: =HLOOKUP(N2,'Composition index'!$D$3:$AR$3,1,FALSE) -> 010534646 | O3: =HLOOKUP(O2,'Composition index'!$D$3:$AR$3,1,FALSE) -> 010546545 | P3: =HLOOKUP(P2,'Composition index'!$D$3:$AR$3,1,FALSE) -> 010536067 | Q3: =HLOOKUP(Q2,'Composition index'!$D$3:$AR$3,1,FALSE) -> 010534625 | R3: =HLOOKUP(R2,'Composition index'!$D$3:$AR$3,1,FALSE) -> 010534642 | S3: =HLOOKUP(S2,'Composition index'!$D$3:$AR$3,1,FALSE) -> 010534614 | T3: =HLOOKUP(T2,'Composition index'!$D$3:$AR$3,1,FALSE) -> 010536462 | U3: =HLOOKUP(U2,'Composition index'!$D$3:$AR$3,1,FALSE) -> 010534598 | V3: =HLOOKUP(V2,'Composition index'!$D$3:$AR$3,1,FALSE) -> 010534252 | W3: =HLOOKUP(W2,'Composition index'!$D$3:$AR$3,1,FALSE) -> 010534647 | X3: =HLOOKUP(X2,'Composition index'!$D$3:$AR$3,1,FALSE) -> 010534662 | Y3: =HLOOKUP(Y2,'Composition index'!$D$3:$AR$3,1,FALSE) -> 010534638 | Z3: =HLOOKUP(Z2,'Composition index'!$D$3:$AR$3,1,FALSE) -> 010534253 | AA3: =HLOOKUP(AA2,'Composition index'!$D$3:$AR$3,1,FALSE) -> 010534559 | AB3: =HLOOKUP(AB2,'Composition index'!$D$3:$AR$3,1,FALSE) -> 010534606 | AC3: =HLOOKUP(AC2,'Composition index'!$D$3:$AR$3,1,FALSE) -> 010534654 | AD3: =HLOOKUP(AD2,'Composition index'!$D$3:$AR$3,1,FALSE) -> 010534645 | AE3: =HLOOKUP(AE2,'Composition index'!$D$3:$AR$3,1,FALSE) -> 010534330 | AF3: =HLOOKUP(AF2,'Composition index'!$D$3:$AR$3,1,FALSE) -> 010534696 | AG3: =HLOOKUP(AG2,'Composition index'!$D$3:$AR$3,1,FALSE) -> 010534698 | AH3: =HLOOKUP(AH2,'Composition index'!$D$3:$AR$3,1,FALSE) -> 010534702 | AI3: =HLOOKUP(AI2,'Composition index'!$D$3:$AR$3,1,FALSE) -> 010535345 | AJ3: =HLOOKUP(AJ2,'Composition index'!$D$3:$AR$3,1,FALSE) -> 010534180 | AK3: =HLOOKUP(AK2,'Composition index'!$D$3:$AR$3,1,FALSE) -> 010534267 | AL3: =HLOOKUP(AL2,'Composition index'!$D$3:$AR$3,1,FALSE) -> 010536480 | AM3: =HLOOKUP(AM2,'Composition index'!$D$3:$AR$3,1,FALSE) -> 010534667 | AN3: =HLOOKUP(AN2,'Composition index'!$D$3:$AR$3,1,FALSE) -> 001763781 | AO3: =HLOOKUP(AO2,'Composition index'!$D$3:$AR$3,1,FALSE) -> 010534789 | AP3: =HLOOKUP(AP2,'Composition index'!$D$3:$AR$3,1,FALSE) -> 010534784
B4: https://www.insee.fr/fr/statistiques/serie/001711009 | C4: https://www.insee.fr/fr/statistiques/6020697 | D4: https://www.insee.fr/fr/statistiques/serie/001565195 | E4: https://www.insee.fr/fr/statistiques/serie/010534596 | F4: https://www.insee.fr/fr/statistiques/serie/001764283 | G4: https://www.insee.fr/fr/statistiques/serie/001711011 | H4: https://www.insee.fr/fr/statistiques/serie/001711943 | I4: https://www.insee.fr/fr/statistiques/serie/010534769 | J4: https://www.fntp.fr/sites/default/files/content/indice_fioul_lourd.pdf | K4: https://www.fntp.fr/sites/default/files/content/indice_gazole_htt.pdf | L4: https://www.insee.fr/fr/statistiques/serie/010534207 | M4: https://www.insee.fr/fr/statistiques/serie/010534575 | N4: https://www.insee.fr/fr/statistiques/serie/010534646 | O4: https://www.insee.fr/fr/statistiques/serie/010546545 | P4: https://www.insee.fr/fr/statistiques/serie/010536067 | Q4: https://www.insee.fr/fr/statistiques/serie/010534625 | R4: https://www.insee.fr/fr/statistiques/serie/010534642 | S4: https://www.insee.fr/fr/statistiques/serie/010534614 | T4: https://www.insee.fr/fr/statistiques/serie/010536462 | U4: https://www.insee.fr/fr/statistiques/serie/010534598 | V4: https://www.insee.fr/fr/statistiques/serie/010534252 | W4: https://www.insee.fr/fr/statistiques/serie/010534647 | X4: https://www.insee.fr/fr/statistiques/serie/010534662 | Y4: https://www.insee.fr/fr/statistiques/serie/010534638 | Z4: https://www.insee.fr/fr/statistiques/serie/010534253 | AA4: https://www.insee.fr/fr/statistiques/serie/010534559 | AB4: https://www.insee.fr/fr/statistiques/serie/010534606 | AC4: https://www.insee.fr/fr/statistiques/serie/010534654 | AD4: https://www.insee.fr/fr/statistiques/serie/010534645 | AE4: https://www.insee.fr/fr/statistiques/serie/010534330 | AF4: https://www.insee.fr/fr/statistiques/serie/010534696 | AG4: https://www.insee.fr/fr/statistiques/serie/010534698 | AH4: https://www.insee.fr/fr/statistiques/serie/010534702 | AI4: https://www.insee.fr/fr/statistiques/serie/010535345 | AJ4: https://www.insee.fr/fr/statistiques/serie/010534180 | AK4: https://www.insee.fr/fr/statistiques/serie/010534267 | AL4: https://www.insee.fr/fr/statistiques/serie/010536480 | AM4: https://www.insee.fr/fr/statistiques/serie/010534667 | AN4: https://www.insee.fr/fr/statistiques/serie/001763781 | AO4: https://www.insee.fr/fr/statistiques/serie/010534789 | AP4: https://www.insee.fr/fr/statistiques/serie/010534784
B5: Matériel | C5: Travail | D5: Travail activités spécialisées | E5: GNR | F5: Gazole | G5: Frais divers | H5: Transports routiers | I5: Électricité vendue aux entreprises consommatrices finales | J5: Fioul lourd | K5: Gazole routier HTT | L5: Tubes, tuyaux en matière plastique | M5: Ensemble des produits du sciage | N5: Béton prêt à l'emploi | O5: Barres crénelées ou nervurées pour béton armé | P5: Sables et granulats | Q5: Plaques, feuilles, tubes et profilés en matières plastiques | R5: Ciment, chaux et plâtre | S5: Produits explosifs | T5: Acier pour la construction | U5: Bitume | V5: Produits de voierie en béton | W5: Mortiers et bétons secs | X5: Travaux de fonderie de fonte | Y5: Tuiles, briques et produits de construction en terre cuite | Z5: Tuyaux d'assainissement | AA5: Autres textiles n.c.a. | AB5: Matières plastiques sous formes primaires | AC5: Tubes, tuyaux, profilés creux et accessoires correspondants en acier | AD5: Éléments en béton pour la construction | AE5: Fils et câbles d'énergie | AF5: Moteurs, génératrices, transfo. électr., matér. distrib., cmde électr. | AG5: Matériel de distribution et de commande électrique | AH5: Appareils d'éclairage électrique | AI5: Câbles de fibres optiques | AJ5: Peintures Industries | AK5: Produits sidérurgiques en acier non allié | AL5: Tôles quarto et autres produits plats en aciers non alliés de qualité | AM5: Éléments en métal pour la construction | AN5: Restaurants et hôtels | AO5: Traitement et élimination des déchets non dangereux | AP5: Collecte, traitement et élimination des déchets ; récupération de matériaux
A6: 2017-10-01 | B6: 103.7 | C6: 116.9 | D6: 114.5 | E6: 105.6 | F6: 107.57 | G6: 101.4 | H6: 105 | I6: 96 | J6: ='Fioul lourd'!C2 -> 100 | K6: ='Gazole routier HTT'!C2 -> 100 | L6: 98.7 | M6: 104 | N6: 99.2 | P6: 98.8 | Q6: 100.6 | R6: 98.2 | S6: 101.6 | V6: 97.7 | W6: 97.3 | X6: 92.3 | Y6: 100.2 | Z6: 101.9 | AA6: 105.8 | AB6: 103.3 | AC6: 105 | AD6: 96.8 | AE6: 97.5 | AF6: 101.1 | AG6: 100.3 | AH6: 96.8 | AI6: 106.1 | AJ6: 104.3 | AK6: 113.3 | AM6: 101.8 | AN6: 102.92 | AO6: 105.9 | AP6: 103.5
A7: 2017-11-01 | B7: 103.5 | C7: 117.3 | D7: 114.7 | E7: 109.1 | F7: 110.15 | G7: 101.1 | H7: 105 | I7: 102.6 | J7: ='Fioul lourd'!C3 -> 109.1646939 | K7: ='Gazole routier HTT'!C3 -> 109.1646939 | L7: 99 | M7: 104.1 | N7: 99.1 | P7: 98.9 | Q7: 101.2 | R7: 98.2 | S7: 101.2 | V7: 97.2 | W7: 97.2 | X7: 91.9 | Y7: 99.7 | Z7: 101.7 | AA7: 105.7 | AB7: 102.6 | AC7: 103.7 | AD7: 96.2 | AE7: 97.7 | AF7: 101.1 | AG7: 100.3 | AH7: 96.6 | AI7: 106 | AJ7: 104 | AK7: 110 | AM7: 101.8 | AN7: 102.81 | AO7: 105.4 | AP7: 104.5
A8: 2017-12-01 | B8: 103.6 | C8: 117.8 | D8: 114.9 | E8: 109.5 | F8: 110.61 | G8: 101.9 | H8: 105.6 | I8: 107 | J8: ='Fioul lourd'!C4 -> 108.1501522 | K8: ='Gazole routier HTT'!C4 -> 108.1501522 | L8: 98.6 | M8: 104.2 | N8: 98.8 | P8: 98.7 | Q8: 101.1 | R8: 97.6 | S8: 100.9 | V8: 97 | W8: 96 | X8: 90.6 | Y8: 98.8 | Z8: 105 | AA8: 105.7 | AB8: 103.5 | AC8: 104.3 | AD8: 96.1 | AE8: 98.4 | AF8: 101.3 | AG8: 100.1 | AH8: 96.9 | AI8: 105.8 | AJ8: 103.9 | AK8: 112.3 | AM8: 102.3 | AN8: 103.04 | AO8: 104 | AP8: 103
A9: 2018-01-01 | B9: 104.1 | C9: 117.8 | D9: 115.1 | E9: 119.2 | F9: 120.07 | G9: 101.5 | H9: 105.6 | I9: 108.5 | J9: ='Fioul lourd'!C5 -> 109.8748732 | K9: ='Gazole routier HTT'!C5 -> 109.8748732 | L9: 98.8 | M9: 106.4 | N9: 99.6 | O9: 127.8 | P9: 99 | Q9: 101.2 | R9: 100.7 | S9: 104.5 | T9: 123.2 | U9: 123.3 | V9: 97.4 | W9: 97.3 | X9: 91.9 | Y9: 100.2 | Z9: 103.8 | AA9: 105.5 | AB9: 104.3 | AC9: 104.6 | AD9: 96.7 | AE9: 99.4 | AF9: 101.8 | AG9: 100.7 | AH9: 97.2 | AI9: 106 | AJ9: 104.7 | AK9: 115.9 | AL9: 103.9 | AM9: 102.7 | AN9: 103.76 | AO9: 105.9 | AP9: 104.1
A10: 2018-02-01 | B10: 103.8 | C10: 117.8 | D10: 115.3 | E10: 116.2 | F10: 119.28 | G10: 101.8 | H10: 105.6 | I10: 111.8 | J10: ='Fioul lourd'!C6 -> 108.5559689 | K10: ='Gazole routier HTT'!C6 -> 108.5559689 | L10: 99.6 | M10: 106.5 | N10: 99.4 | O10: 128.5 | P10: 99.4 | Q10: 101.2 | R10: 99.9 | S10: 102.7 | T10: 124.1 | U10: 124 | V10: 98.6 | W10: 97.7 | X10: 92 | Y10: 100.7 | Z10: 99.7 | AA10: 105.5 | AB10: 105.6 | AC10: 105.9 | AD10: 97.6 | AE10: 99.5 | AF10: 101.5 | AG10: 100.4 | AH10: 96.6 | AI10: 106 | AJ10: 105.4 | AK10: 116.2 | AL10: 103.6 | AM10: 102.4 | AN10: 103.35 | AO10: 105.6 | AP10: 104.2
A11: 2018-03-01 | B11: 104.1 | C11: 117.7 | D11: 115.4 | E11: 117.4 | F11: 118.6 | G11: 102.2 | H11: 107.6 | I11: 111.6 | J11: ='Fioul lourd'!C7 -> 103.5508962 | K11: ='Gazole routier HTT'!C7 -> 103.5508962 | L11: 100.2 | M11: 106.5 | N11: 100.2 | O11: 130.3 | P11: 99.4 | Q11: 101.5 | R11: 99.4 | S11: 104.2 | T11: 125.9 | U11: 119 | V11: 98.5 | W11: 98.4 | X11: 92.6 | Y11: 99.6 | Z11: 99.3 | AA11: 105.4 | AB11: 105.4 | AC11: 104.8 | AD11: 97.3 | AE11: 99.9 | AF11: 101.6 | AG11: 100.5 | AH11: 97.6 | AI11: 106.4 | AJ11: 106.1 | AK11: 117.2 | AL11: 103.4 | AM11: 102.9 | AN11: 105.4 | AO11: 106.4 | AP11: 105.5
A12: 2018-04-01 | B12: 104.3 | C12: 118 | D12: 115.8 | E12: 122.8 | F12: 121.2 | G12: 102.6 | H12: 107.6 | I12: 106.3 | J12: ='Fioul lourd'!C8 -> 109.9086912 | K12: ='Gazole routier HTT'!C8 -> 109.9086912 | L12: 100.2 | M12: 108.5 | N12: 101 | O12: 131.1 | P12: 100.3 | Q12: 101.3 | R12: 99 | S12: 102 | T12: 126.4 | U12: 121.1 | V12: 97.9 | W12: 99 | X12: 93.3 | Y12: 100.6 | Z12: 99.1 | AA12: 105.3 | AB12: 103.7 | AC12: 108.9 | AD12: 97.2 | AE12: 100.1 | AF12: 101.5 | AG12: 100.4 | AH12: 98 | AI12: 107 | AJ12: 106.8 | AK12: 115.7 | AL12: 104.2 | AM12: 103.3 | AN12: 103.76 | AO12: 106.6 | AP12: 105.6
A13: 2018-05-01 | B13: 104.5 | C13: 118.2 | D13: 116.1 | E13: 126.7 | F13: 125.69 | G13: 102.2 | H13: 107.6 | I13: 102.3 | J13: ='Fioul lourd'!C9 -> 114.2374028 | K13: ='Gazole routier HTT'!C9 -> 114.2374028 | L13: 101.1 | M13: 108.6 | N13: 101.8 | O13: 130.2 | P13: 100.9 | Q13: 102.5 | R13: 99.9 | S13: 103.6 | T13: 125.8 | U13: 130 | V13: 98.8 | W13: 99 | X13: 93.7 | Y13: 100.8 | Z13: 100.9 | AA13: 105.3 | AB13: 104.7 | AC13: 108.6 | AD13: 97.6 | AE13: 98.9 | AF13: 101.6 | AG13: 100.4 | AH13: 96.7 | AI13: 107.2 | AJ13: 104.8 | AK13: 117.5 | AL13: 104.6 | AM13: 103.3 | AN13: 104.42 | AO13: 107.7 | AP13: 106.2
A14: 2018-06-01 | B14: 104.6 | C14: 118.4 | D14: 116.5 | E14: 125.4 | F14: 126.87 | G14: 102.1 | H14: 108.1 | I14: 97 | J14: ='Fioul lourd'!C10 -> 129.5231654 | K14: ='Gazole routier HTT'!C10 -> 129.5231654 | L14: 99.8 | M14: 108.6 | N14: 101.7 | O14: 128 | P14: 100.1 | Q14: 101.8 | R14: 98.1 | S14: 103.9 | T14: 125.4 | U14: 148.9 | V14: 98.3 | W14: 98.9 | X14: 94.4 | Y14: 100.9 | Z14: 100.8 | AA14: 105.3 | AB14: 106.2 | AC14: 109.7 | AD14: 97.7 | AE14: 98.6 | AF14: 101.7 | AG14: 100.3 | AH14: 99.3 | AI14: 108.8 | AJ14: 103.8 | AK14: 116.9 | AL14: 104.1 | AM14: 102.9 | AN14: 105.67 | AO14: 107.1 | AP14: 106.6
A15: 2018-07-01 | B15: 104.6 | C15: 118.7 | D15: 116.8 | E15: 125.4 | F15: 125.44 | G15: 103.7 | H15: 108.1 | I15: 96.8 | J15: ='Fioul lourd'!C11 -> 132.5329726 | K15: ='Gazole routier HTT'!C11 -> 132.5329726 | L15: 99.4 | M15: 109 | N15: 101.9 | O15: 126.1 | P15: 100 | Q15: 101.9 | R15: 99.1 | S15: 103 | T15: 124.1 | U15: 151.2 | V15: 97.7 | W15: 98.2 | X15: 93.3 | Y15: 101 | Z15: 103.2 | AA15: 105.4 | AB15: 106.8 | AC15: 112.1 | AD15: 97.5 | AE15: 98.7 | AF15: 101.6 | AG15: 100.1 | AH15: 98 | AI15: 108.3 | AJ15: 103.8 | AK15: 116.2 | AL15: 104.7 | AM15: 103.3 | AN15: 108.39 | AO15: 107.4 | AP15: 106.5
A16: 2018-08-01 | B16: 104.6 | C16: 119.1 | D16: 117.1 | E16: 126.4 | F16: 125.67 | G16: 103.9 | H16: 108.1 | I16: 98.3 | J16: ='Fioul lourd'!C12 -> 131.01116 | K16: ='Gazole routier HTT'!C12 -> 131.01116 | L16: 99.9 | M16: 109 | N16: 102.7 | O16: 128 | P16: 100.4 | Q16: 101.6 | R16: 99.2 | S16: 103.2 | T16: 124.6 | U16: 154.6 | V16: 98.2 | W16: 98.6 | X16: 94.1 | Y16: 102.1 | Z16: 102.9 | AA16: 105.4 | AB16: 107.3 | AC16: 112 | AD16: 97.9 | AE16: 100 | AF16: 101.5 | AG16: 100 | AH16: 98.1 | AI16: 108.4 | AJ16: 103.7 | AK16: 116.6 | AL16: 104.9 | AM16: 103.1 | AN16: 110.86 | AO16: 106.8 | AP16: 104.9
A17: 2018-09-01 | B17: 104.6 | C17: 119.5 | D17: 117.4 | E17: 128.7 | F17: 127.96 | G17: 101.9 | H17: 108.2 | I17: 98.6 | J17: ='Fioul lourd'!C13 -> 132.8035171 | K17: ='Gazole routier HTT'!C13 -> 132.8035171 | L17: 100.8 | M17: 109.1 | N17: 101.8 | O17: 129.1 | P17: 100.1 | Q17: 102.9 | R17: 99.4 | S17: 103.4 | T17: 124.8 | U17: 155.2 | V17: 97.6 | W17: 99.2 | X17: 94.1 | Y17: 101.5 | Z17: 105.6 | AA17: 105.1 | AB17: 107.3 | AC17: 112.6 | AD17: 98.5 | AE17: 97.7 | AF17: 101.2 | AG17: 99.6 | AH17: 98.8 | AI17: 109 | AJ17: 104.5 | AK17: 117.1 | AL17: 105.7 | AM17: 102.9 | AN17: 106.03 | AO17: 108.4 | AP17: 105.5
A18: 2018-10-01 | B18: 104.3 | C18: 119.7 | D18: 117.8 | E18: 132.8 | F18: 131.95 | G18: 102.6 | H18: 108.2 | I18: 99.3 | J18: ='Fioul lourd'!C14 -> 145.4852891 | K18: ='Gazole routier HTT'!C14 -> 145.4852891 | L18: 101.6 | M18: 109.4 | N18: 102.2 | O18: 127.8 | P18: 100 | Q18: 102.8 | R18: 99.7 | S18: 103 | T18: 123.6 | U18: 159.4 | V18: 97.4 | W18: 98.6 | X18: 93.9 | Y18: 100.7 | Z18: 105.3 | AA18: 106.9 | AB18: 108 | AC18: 109.1 | AD18: 98.3 | AE18: 97.1 | AF18: 100.9 | AG18: 99.4 | AH18: 97.4 | AI18: 109.1 | AJ18: 106.5 | AK18: 117.2 | AL18: 105.2 | AM18: 103.4 | AN18: 105.44 | AO18: 107.1 | AP18: 104
A19: 2018-11-01 | B19: 104.3 | C19: 120 | D19: 118.2 | E19: 125.8 | F19: 128.44 | G19: 101.8 | H19: 108.2 | I19: 105.7 | J19: ='Fioul lourd'!C15 -> 128.8468042 | K19: ='Gazole routier HTT'!C15 -> 128.8468042 | L19: 101.1 | M19: 109.3 | N19: 102.4 | O19: 126.6 | P19: 100.1 | Q19: 102.2 | R19: 98.8 | S19: 103 | T19: 123.3 | U19: 170.6 | V19: 98.1 | W19: 97.3 | X19: 94.3 | Y19: 100 | Z19: 102.2 | AA19: 106.8 | AB19: 109 | AC19: 110.3 | AD19: 98.3 | AE19: 97.2 | AF19: 101.2 | AG19: 99.5 | AH19: 97.7 | AI19: 109.1 | AJ19: 105.6 | AK19: 116.6 | AL19: 104.9 | AM19: 103.4 | AN19: 105.09 | AO19: 106.4 | AP19: 103.6
A20: 2018-12-01 | B20: 104.1 | C20: 120.2 | D20: 118.6 | E20: 118.1 | F20: 123.19 | G20: 102.7 | H20: 108.2 | I20: 111.6 | J20: ='Fioul lourd'!C16 -> 110.0439635 | K20: ='Gazole routier HTT'!C16 -> 110.0439635 | L20: 101 | M20: 109.5 | N20: 102.2 | O20: 125.5 | P20: 99 | Q20: 102.1 | R20: 99.6 | S20: 103.5 | T20: 122.6 | U20: 154 | V20: 98 | W20: 95.3 | X20: 95.3 | Y20: 99.9 | Z20: 102.5 | AA20: 106.8 | AB20: 106.6 | AC20: 104 | AD20: 98 | AE20: 97 | AF20: 101.1 | AG20: 99.4 | AH20: 97.2 | AI20: 108.9 | AJ20: 104.2 | AK20: 116.1 | AL20: 104.4 | AM20: 103.5 | AN20: 104.99 | AO20: 107.1 | AP20: 104.1
A21: 2019-01-01 | B21: 104.7 | C21: 120.8 | D21: 118.8 | E21: 118.2 | F21: 121.15 | G21: 102.3 | H21: 108.2 | I21: 115.3 | J21: ='Fioul lourd'!C17 -> 111.8363206 | K21: ='Gazole routier HTT'!C17 -> 111.8363206 | L21: 101.1 | M21: 109.6 | N21: 103.8 | O21: 124.6 | P21: 101 | Q21: 101.6 | R21: 104 | S21: 103.3 | T21: 123.3 | U21: 135.8 | V21: 98.6 | W21: 99.1 | X21: 95 | Y21: 100.2 | Z21: 102.6 | AA21: 107 | AB21: 104 | AC21: 107 | AD21: 99.1 | AE21: 97.2 | AF21: 102.4 | AG21: 101.4 | AH21: 99 | AI21: 108.3 | AJ21: 107.8 | AK21: 115.8 | AL21: 102.7 | AM21: 104.1 | AN21: 105.77 | AO21: 107.7 | AP21: 103
A22: 2019-02-01 | B22: 104.7 | C22: 121.4 | D22: 118.9 | E22: 122.5 | F22: 124.46 | G22: 102.7 | H22: 108.2 | I22: 123.6 | J22: ='Fioul lourd'!C18 -> 125.836997 | K22: ='Gazole routier HTT'!C18 -> 125.836997 | L22: 100.8 | M22: 109.7 | N22: 104.2 | O22: 123.8 | P22: 101.1 | Q22: 101 | R22: 103.5 | S22: 103.5 | T22: 122 | U22: 140.5 | V22: 99.9 | W22: 99 | X22: 94 | Y22: 102 | Z22: 103.3 | AA22: 107.4 | AB22: 104.4 | AC22: 108 | AD22: 100.1 | AE22: 97.2 | AF22: 102.4 | AG22: 101.3 | AH22: 97.3 | AI22: 108.1 | AJ22: 107.4 | AK22: 114.9 | AL22: 102.9 | AM22: 105.9 | AN22: 105.16 | AO22: 108.1 | AP22: 102.8
A23: 2019-03-01 | B23: 105.7 | C23: 122 | D23: 119.1 | E23: 123.5 | F23: 126.59 | G23: 102.5 | H23: 109 | I23: 125.6 | J23: ='Fioul lourd'!C19 -> 128.7791681 | K23: ='Gazole routier HTT'!C19 -> 128.7791681 | L23: 100.4 | M23: 109.6 | N23: 104.3 | O23: 123.9 | P23: 101 | Q23: 100.8 | R23: 102.6 | S23: 103.4 | T23: 121.8 | U23: 153.3 | V23: 100.4 | W23: 97.9 | X23: 94.1 | Y23: 101.1 | Z23: 104.8 | AA23: 107.7 | AB23: 104.8 | AC23: 106.6 | AD23: 100 | AE23: 97.4 | AF23: 102.2 | AG23: 101.2 | AH23: 99.8 | AI23: 108.3 | AJ23: 107.3 | AK23: 115.4 | AL23: 102.7 | AM23: 105.9 | AN23: 105.83 | AO23: 108.7 | AP23: 103.8
A24: 2019-04-01 | B24: 105.3 | C24: 122.3 | D24: 119.2 | E24: 125.8 | F24: 127.27 | G24: 103.4 | H24: 109 | I24: 119.5 | J24: ='Fioul lourd'!C20 -> 132.8035171 | K24: ='Gazole routier HTT'!C20 -> 132.8035171 | L24: 98.8 | M24: 109.7 | N24: 104.1 | O24: 123.8 | P24: 101.8 | Q24: 99.9 | R24: 102.3 | S24: 103.3 | T24: 122.1 | U24: 157 | V24: 100.5 | W24: 99.2 | X24: 94 | Y24: 101.5 | Z24: 106 | AA24: 108 | AB24: 105.4 | AC24: 107.4 | AD24: 100.6 | AE24: 98.9 | AF24: 102.3 | AG24: 101.3 | AH24: 101.4 | AI24: 108.6 | AJ24: 106.8 | AK24: 115.2 | AL24: 101.5 | AM24: 106.2 | AN24: 105.72 | AO24: 108.5 | AP24: 103.2
A25: 2019-05-01 | B25: 105 | C25: 122.5 | D25: 119.3 | E25: 126.4 | F25: 128.48 | G25: 102.8 | H25: 109 | I25: 107.4 | J25: ='Fioul lourd'!C21 -> 129.2188028 | K25: ='Gazole routier HTT'!C21 -> 129.2188028 | L25: 99 | M25: 109.7 | N25: 104.9 | O25: 123 | P25: 101.9 | Q25: 101.1 | R25: 101.5 | S25: 103.3 | T25: 120.4 | U25: 161.8 | V25: 101.8 | W25: 100.1 | X25: 94.8 | Y25: 101.4 | Z25: 105.5 | AA25: 108 | AB25: 107.6 | AC25: 107 | AD25: 100.8 | AE25: 98.1 | AF25: 102.3 | AG25: 101 | AH25: 101.5 | AI25: 107.7 | AJ25: 106.4 | AK25: 114.4 | AL25: 102.5 | AM25: 106.2 | AN25: 106.04 | AO25: 108.7 | AP25: 102.9
A26: 2019-06-01 | B26: 104.9 | C26: 122.7 | D26: 119.4 | E26: 119.9 | F26: 123.57 | G26: 103.6 | H26: 110.1 | I26: 103.3 | J26: ='Fioul lourd'!C22 -> 117.6530267 | K26: ='Gazole routier HTT'!C22 -> 117.6530267 | L26: 99.5 | M26: 109.8 | N26: 105.3 | O26: 122 | P26: 101.4 | Q26: 100.6 | R26: 102 | S26: 103.3 | T26: 118.8 | U26: 158.4 | V26: 101.5 | W26: 100.1 | X26: 95.1 | Y26: 101.9 | Z26: 104.6 | AA26: 108 | AB26: 105.6 | AC26: 107.9 | AD26: 100.9 | AE26: 96.4 | AF26: 102.3 | AG26: 101 | AH26: 99.9 | AI26: 107.9 | AJ26: 108.2 | AK26: 115.2 | AL26: 101.4 | AM26: 106.2 | AN26: 107.32 | AO26: 108.7 | AP26: 102.4
A27: 2019-07-01 | B27: 105 | C27: 122.9 | D27: 119.6 | E27: 121.5 | F27: 123.15 | G27: 104.9 | H27: 110.1 | I27: 104.2 | J27: ='Fioul lourd'!C23 -> 126.9191748 | K27: ='Gazole routier HTT'!C23 -> 126.9191748 | L27: 101.2 | M27: 107.8 | N27: 105.4 | O27: 120.5 | P27: 101.5 | Q27: 100.5 | R27: 102 | S27: 103.2 | T27: 118.7 | U27: 151.7 | V27: 101.6 | W27: 100.3 | X27: 95.1 | Y27: 101.7 | Z27: 105 | AA27: 108.5 | AB27: 101.9 | AC27: 106.6 | AD27: 101 | AE27: 95.2 | AF27: 102.6 | AG27: 101.2 | AH27: 98.5 | AI27: 107.9 | AJ27: 106.8 | AK27: 113.1 | AL27: 99 | AM27: 106.7 | AN27: 110.03 | AO27: 109.1 | AP27: 101.2
A28: 2019-08-01 | B28: 105.1 | C28: 123.1 | D28: 119.8 | E28: 119.9 | F28: 122.39 | G28: 104.9 | H28: 110.1 | I28: 106.7 | J28: ='Fioul lourd'!C24 -> 103.0774434 | K28: ='Gazole routier HTT'!C24 -> 103.0774434 | L28: 100.7 | M28: 107.8 | N28: 106.7 | O28: 119.8 | P28: 101.4 | Q28: 99.9 | R28: 102.1 | S28: 102.7 | T28: 116.4 | U28: 154.2 | V28: 102.4 | W28: 100.5 | X28: 94.9 | Y28: 102.6 | Z28: 107.1 | AA28: 108.6 | AB28: 101 | AC28: 107 | AD28: 101.7 | AE28: 94.1 | AF28: 103 | AG28: 101.7 | AH28: 98 | AI28: 107.9 | AJ28: 110.7 | AK28: 112.6 | AL28: 100.2 | AM28: 106.6 | AN28: 111.71 | AO28: 109.1 | AP28: 100.7
A29: 2019-09-01 | B29: 105.7 | C29: 123.3 | D29: 119.9 | E29: 123.3 | F29: 124.29 | G29: 103.1 | H29: 110.1 | I29: 107 | J29: ='Fioul lourd'!C25 -> 115.5901251 | K29: ='Gazole routier HTT'!C25 -> 115.5901251 | L29: 98.9 | M29: 107.8 | N29: 105.2 | O29: 118.3 | P29: 101.4 | Q29: 99.5 | R29: 101.8 | S29: 102.1 | T29: 116.4 | U29: 140.9 | V29: 101.6 | W29: 100.9 | X29: 95.5 | Y29: 101.8 | Z29: 106.4 | AA29: 108.5 | AB29: 100.8 | AC29: 108.3 | AD29: 101.5 | AE29: 94.1 | AF29: 103.2 | AG29: 101.9 | AH29: 98.2 | AI29: 108 | AJ29: 108 | AK29: 111.1 | AL29: 99.3 | AM29: 107.1 | AN29: 107.75 | AO29: 108.7 | AP29: 100.7
A30: 2019-10-01 | B30: 105.6 | C30: 123.5 | D30: 120 | E30: 122.4 | F30: 124.77 | G30: 103.7 | H30: 110.1 | I30: 109 | J30: ='Fioul lourd'!C26 -> 98.64727765 | K30: ='Gazole routier HTT'!C26 -> 98.64727765 | L30: 99.7 | M30: 107.8 | N30: 104.7 | O30: 114.1 | P30: 101.2 | Q30: 99.2 | R30: 101.4 | S30: 104.1 | T30: 111.7 | U30: 147 | V30: 101.5 | W30: 99.8 | X30: 95.4 | Y30: 101.3 | Z30: 106.5 | AA30: 108 | AB30: 100.3 | AC30: 108.5 | AD30: 101.3 | AE30: 92.2 | AF30: 103.1 | AG30: 101.8 | AH30: 97 | AI30: 107.7 | AJ30: 109.9 | AK30: 109.9 | AL30: 96.9 | AM30: 107.6 | AN30: 106.93 | AO30: 109.2 | AP30: 97.8
A31: 2019-11-01 | B31: 105.1 | C31: 123.7 | D31: 120 | E31: 122.5 | F31: 124.82 | G31: 103.3 | H31: 110.1 | I31: 118.1 | J31: ='Fioul lourd'!C27 -> 89.88840041 | K31: ='Gazole routier HTT'!C27 -> 89.88840041 | L31: 99.9 | M31: 107.8 | N31: 104.5 | O31: 111.3 | P31: 101 | Q31: 98.8 | R31: 101.7 | S31: 104.2 | T31: 109.4 | U31: 131.7 | V31: 101.3 | W31: 98.4 | X31: 94.5 | Y31: 101.2 | Z31: 106.5 | AA31: 108.1 | AB31: 97.8 | AC31: 109.2 | AD31: 101.6 | AE31: 94.6 | AF31: 103.2 | AG31: 101.8 | AH31: 96.3 | AI31: 107.6 | AJ31: 109 | AK31: 108.5 | AL31: 93.9 | AM31: 107.4 | AN31: 106.27 | AO31: 109.2 | AP31: 98.1
A32: 2019-12-01 | B32: 104.6 | C32: 123.9 | D32: 120.1 | E32: 124.1 | F32: 126.67 | G32: 104 | H32: 110.5 | I32: 125 | J32: ='Fioul lourd'!C28 -> 86.6080487 | K32: ='Gazole routier HTT'!C28 -> 86.6080487 | L32: 101.2 | M32: 107.8 | N32: 104.8 | O32: 111.2 | P32: 100.7 | Q32: 98.4 | R32: 101.8 | S32: 104.4 | T32: 108.4 | U32: 126.8 | V32: 101.5 | W32: 98 | X32: 95.2 | Y32: 100.2 | Z32: 104.8 | AA32: 108 | AB32: 97.3 | AC32: 107.8 | AD32: 101.5 | AE32: 95.5 | AF32: 103.1 | AG32: 101.6 | AH32: 96.2 | AI32: 107.2 | AJ32: 108.1 | AK32: 107.1 | AL32: 92 | AM32: 108.5 | AN32: 106.62 | AO32: 108.9 | AP32: 98.4
A33: 2020-01-01 | B33: 104.7 | C33: 123.7 | D33: 120.1 | E33: 120.9 | F33: 127.51 | G33: 103.4 | H33: 110.5 | I33: 129.7 | J33: ='Fioul lourd'!C29 -> 96.41528576 | K33: ='Gazole routier HTT'!C29 -> 96.41528576 | L33: 100.4 | M33: 107.1 | N33: 105.2 | O33: 112.6 | P33: 101.7 | Q33: 97.7 | R33: 103.4 | S33: 103.3 | T33: 110 | U33: 141.9 | V33: 101.8 | W33: 100.7 | X33: 94.2 | Y33: 101.6 | Z33: 103.5 | AA33: 108.1 | AB33: 96 | AC33: 106 | AD33: 102.5 | AE33: 96 | AF33: 104.2 | AG33: 103 | AH33: 96.4 | AI33: 107 | AJ33: 110.4 | AK33: 107.8 | AL33: 93.5 | AM33: 108.6 | AN33: 107.52 | AO33: 112.1 | AP33: 100.4
A34: 2020-02-01 | B34: 105.5 | C34: 123.5 | D34: 120.2 | E34: 115.3 | F34: 121.26 | G34: 103.9 | H34: 110.5 | I34: 131.7 | J34: ='Fioul lourd'!C30 -> 93.87893135 | K34: ='Gazole routier HTT'!C30 -> 93.87893135 | L34: 100.2 | M34: 106.9 | N34: 103.7 | O34: 113.5 | P34: 102.5 | Q34: 97.1 | R34: 103 | S34: 103.6 | T34: 111 | U34: 151.3 | V34: 105.1 | W34: 100.8 | X34: 93.7 | Y34: 102.2 | Z34: 104.3 | AA34: 108.6 | AB34: 97.1 | AC34: 105.2 | AD34: 103.3 | AE34: 96.2 | AF34: 104.3 | AG34: 103.1 | AH34: 96.6 | AI34: 107.2 | AJ34: 108.9 | AK34: 105.6 | AL34: 92.4 | AM34: 108.6 | AN34: 107.05 | AO34: 112.1 | AP34: 99.5
A35: 2020-03-01 | B35: 105.3 | C35: 123.3 | D35: 120.3 | E35: 99.2 | F35: 112.7 | G35: 103.2 | H35: 111.4 | I35: 129.1 | J35: ='Fioul lourd'!C31 -> 67.56848157 | K35: ='Gazole routier HTT'!C31 -> 67.56848157 | L35: 100.8 | M35: 107 | N35: 103.5 | O35: 112.3 | P35: 102.4 | Q35: 97.3 | R35: 104.4 | S35: 103.6 | T35: 110.5 | U35: 146.2 | V35: 104.3 | W35: 98.4 | X35: 94.6 | Y35: 102.5 | Z35: 103.8 | AA35: 108.6 | AB35: 95.9 | AC35: 106 | AD35: 103.4 | AE35: 96.1 | AF35: 103.7 | AG35: 102.3 | AH35: 96.7 | AI35: 107 | AJ35: 109.9 | AK35: 106.1 | AL35: 91.3 | AM35: 108.8 | AN35: 107.38 | AO35: 112.9 | AP35: 100
A36: 2020-04-01 | B36: 105.5 | C36: 123.6 | D36: 120.8 | E36: 88.2 | F36: 105.41 | G36: 102.7 | H36: 111.4 | I36: 124.2 | J36: ='Fioul lourd'!C32 -> 50.96381468 | K36: ='Gazole routier HTT'!C32 -> 50.96381468 | L36: 100.7 | M36: 106.4 | N36: 102.7 | O36: 112.1 | P36: 103.8 | Q36: 98.1 | R36: 101.8 | S36: 104.5 | T36: 110.4 | U36: 113.5 | V36: 104.8 | W36: 102.2 | X36: 93.5 | Y36: 104.1 | Z36: 102.3 | AA36: 108.6 | AB36: 90.4 | AC36: 105.5 | AD36: 103.6 | AE36: 95.6 | AF36: 102.8 | AG36: 102.2 | AH36: 97.1 | AI36: 106.8 | AJ36: 111.3 | AK36: 106.2 | AL36: 91.4 | AM36: 109.2 | AN36: 106.44 | AO36: 113.3 | AP36: 99.6
A37: 2020-05-01 | B37: 104.9 | C37: 123.8 | D37: 121.4 | E37: 91.2 | F37: 101.14 | G37: 103.1 | H37: 111.4 | I37: 113.8 | J37: ='Fioul lourd'!C33 -> 55.39398039 | K37: ='Gazole routier HTT'!C33 -> 55.39398039 | L37: 100.3 | M37: 106.5 | N37: 104.4 | O37: 111.3 | P37: 104.3 | Q37: 96 | R37: 102 | S37: 104.5 | T37: 109.1 | U37: 109.9 | V37: 104.5 | W37: 102 | X37: 94.3 | Y37: 103.5 | Z37: 102.9 | AA37: 108.5 | AB37: 84.5 | AC37: 106 | AD37: 103.9 | AE37: 95 | AF37: 102.9 | AG37: 102.4 | AH37: 96.1 | AI37: 107.1 | AJ37: 110.1 | AK37: 107.9 | AL37: 95.1 | AM37: 109.1 | AN37: 107.23 | AO37: 112.6 | AP37: 100.4
A38: 2020-06-01 | B38: 103 | C38: 124 | D38: 121.9 | E38: 97.2 | F38: 104.55 | G38: 104 | H38: 107.5 | I38: 107.3 | J38: ='Fioul lourd'!C34 -> 74.73791004 | K38: ='Gazole routier HTT'!C34 -> 74.73791004 | L38: 99.7 | M38: 106.5 | N38: 105.4 | O38: 109.7 | P38: 103.3 | Q38: 94.2 | R38: 102.5 | S38: 104.4 | T38: 108 | U38: 120.6 | V38: 105.4 | W38: 100.9 | X38: 95.3 | Y38: 103.9 | Z38: 103 | AA38: 108.6 | AB38: 86.1 | AC38: 104.9 | AD38: 104 | AE38: 92.8 | AF38: 103.1 | AG38: 102.9 | AH38: 98.1 | AI38: 106.6 | AJ38: 109.4 | AK38: 106.3 | AL38: 92.9 | AM38: 109.1 | AN38: 108.12 | AO38: 112.5 | AP38: 99.5
A39: 2020-07-01 | B39: 102.6 | C39: 123.8 | D39: 122.1 | E39: 99.7 | F39: 107.19 | G39: 104.6 | H39: 107.5 | I39: 106.2 | J39: ='Fioul lourd'!C35 -> 76.96270325 | K39: ='Gazole routier HTT'!C35 -> 76.96270325 | L39: 99.7 | M39: 106.9 | N39: 105.6 | O39: 108 | P39: 103.2 | Q39: 94.1 | R39: 102 | S39: 104.3 | T39: 106.8 | U39: 147.8 | V39: 105.7 | W39: 100.8 | X39: 93.7 | Y39: 103.9 | Z39: 102.9 | AA39: 108.6 | AB39: 89.7 | AC39: 104.9 | AD39: 103.6 | AE39: 93.5 | AF39: 103.3 | AG39: 103.5 | AH39: 98.1 | AI39: 106.4 | AJ39: 111.5 | AK39: 104.6 | AL39: 91.6 | AM39: 109.5 | AN39: 110.6 | AO39: 112.7 | AP39: 98.3
A40: 2020-08-01 | B40: 102.8 | C40: 123.7 | D40: 122.4 | E40: 98.3 | F40: 106.73 | G40: 104.6 | H40: 107.5 | I40: 108.2 | J40: ='Fioul lourd'!C36 -> 78.18608142 | K40: ='Gazole routier HTT'!C36 -> 78.18608142 | L40: 100.8 | M40: 106.9 | N40: 105.4 | O40: 107.4 | P40: 103.1 | Q40: 95.9 | R40: 102.1 | S40: 104.7 | T40: 106.8 | U40: 146.2 | V40: 104.7 | W40: 100.6 | X40: 93.1 | Y40: 104.4 | Z40: 102.7 | AA40: 108.7 | AB40: 90.3 | AC40: 103.7 | AD40: 102.7 | AE40: 95.5 | AF40: 104.4 | AG40: 105.5 | AH40: 98.2 | AI40: 106 | AJ40: 111.6 | AK40: 104.4 | AL40: 88.5 | AM40: 109.4 | AN40: 113.33 | AO40: 110.5 | AP40: 97.7
A41: 2020-09-01 | B41: 104.4 | C41: 123.6 | D41: 122.6 | E41: 94.9 | F41: 104.23 | G41: 103 | H41: 108.8 | I41: 108.6 | J41: ='Fioul lourd'!C37 -> 75.79782699 | K41: ='Gazole routier HTT'!C37 -> 75.79782699 | L41: 97.3 | M41: 106.9 | N41: 106.5 | O41: 108.5 | P41: 103.1 | Q41: 95 | R41: 101.9 | S41: 104 | T41: 107 | U41: 142.6 | V41: 105 | W41: 100.4 | X41: 94.4 | Y41: 103.3 | Z41: 102.8 | AA41: 108.6 | AB41: 90.4 | AC41: 104.2 | AD41: 103.2 | AE41: 95.8 | AF41: 103.9 | AG41: 104.8 | AH41: 98.4 | AI41: 105.9 | AJ41: 113 | AK41: 104.3 | AL41: 90.7 | AM41: 109.7 | AN41: 108.06 | AO41: 111.1 | AP41: 101.1
A42: 2020-10-01 | B42: 104.1 | C42: 123.5 | D42: 122.9 | E42: 95 | F42: 103.91 | G42: 102.4 | H42: 108.8 | I42: 109.8 | J42: ='Fioul lourd'!C38 -> 77.96928022 | K42: ='Gazole routier HTT'!C38 -> 77.96928022 | L42: 97.3 | M42: 109 | N42: 105.9 | O42: 110.7 | P42: 103 | Q42: 95.4 | R42: 101.6 | S42: 103.9 | T42: 108.7 | U42: 130.5 | V42: 104.4 | W42: 100.4 | X42: 93.8 | Y42: 103.2 | Z42: 101.9 | AA42: 108.6 | AB42: 90.5 | AC42: 107 | AD42: 102.6 | AE42: 95.8 | AF42: 103.7 | AG42: 104.2 | AH42: 98.3 | AI42: 106 | AJ42: 113.3 | AK42: 105.3 | AL42: 93.6 | AM42: 109.4 | AN42: 107.21 | AO42: 110.9 | AP42: 99
A43: 2020-11-01 | B43: 104.4 | C43: 123.5 | D43: 123.2 | E43: 96.6 | F43: 104.72 | G43: 102.6 | H43: 108.8 | I43: 116.4 | J43: ='Fioul lourd'!C39 -> 80.93739181 | K43: ='Gazole routier HTT'!C39 -> 80.93739181 | L43: 98.4 | M43: 108.9 | N43: 105.4 | O43: 112.6 | P43: 102.8 | Q43: 94.9 | R43: 102.8 | S43: 104.3 | T43: 108.9 | U43: 126.3 | V43: 103.9 | W43: 99.6 | X43: 93.6 | Y43: 102.7 | Z43: 102.1 | AA43: 108.6 | AB43: 93.4 | AC43: 107.1 | AD43: 102.4 | AE43: 96.4 | AF43: 103.6 | AG43: 103.8 | AH43: 98.7 | AI43: 105.8 | AJ43: 113.1 | AK43: 106.4 | AL43: 95.3 | AM43: 109.4 | AN43: 106.81 | AO43: 110.5 | AP43: 99.5
A44: 2020-12-01 | B44: 104.4 | C44: 123.4 | D44: 123.4 | E44: 101.2 | F44: 108.63 | G44: 103.7 | H44: 108.8 | I44: 128 | J44: ='Fioul lourd'!C40 -> 84.00530077 | K44: ='Gazole routier HTT'!C40 -> 84.00530077 | L44: 98.9 | M44: 108.8 | N44: 104.7 | O44: 116.1 | P44: 101.8 | Q44: 95.8 | R44: 103.2 | S44: 104.5 | T44: 110.8 | U44: 128.5 | V44: 106.6 | W44: 96.4 | X44: 93.7 | Y44: 102.4 | Z44: 103 | AA44: 108.6 | AB44: 97.2 | AC44: 107.3 | AD44: 102.9 | AE44: 97.5 | AF44: 103.8 | AG44: 104 | AH44: 98.5 | AI44: 105.8 | AJ44: 108.9 | AK44: 106.9 | AL44: 96.3 | AM44: 110 | AN44: 106.73 | AO44: 110.6 | AP44: 103.5
A45: 2021-01-01 | B45: 104.5 | C45: 123.4 | D45: 123.6 | E45: 104.6 | F45: 111.52 | G45: 103.3 | H45: 108.8 | I45: 133.3 | J45: ='Fioul lourd'!C41 -> 87.47584052 | K45: ='Gazole routier HTT'!C41 -> 87.47584052 | L45: 98.9 | M45: 114.6 | N45: 105.8 | O45: 130.8 | P45: 104.3 | Q45: 96.9 | R45: 105.7 | S45: 102.7 | T45: 123 | U45: 135.7 | V45: 107.4 | W45: 101.6 | X45: 94.4 | Y45: 102 | Z45: 103.5 | AA45: 107.4 | AB45: 101.4 | AC45: 108.3 | AD45: 103.6 | AE45: 99.2 | AF45: 104.5 | AG45: 105.3 | AH45: 98.5 | AI45: 105.1 | AJ45: 111.4 | AK45: 114.6 | AL45: 106.2 | AM45: 110.7 | AN45: 107.3 | AO45: 117.1 | AP45: 111.7
A46: 2021-02-01 | B46: 104.5 | C46: 123.3 | D46: 123.7 | E46: 109.6 | F46: 115.5 | G46: 103.6 | H46: 108.8 | I46: 137.7 | J46: ='Fioul lourd'!C42 -> 96.42491203 | K46: ='Gazole routier HTT'!C42 -> 96.42491203 | L46: 100.5 | M46: 114.7 | N46: 105.9 | O46: 139.2 | P46: 104 | Q46: 98.4 | R46: 105.7 | S46: 102.6 | T46: 133.7 | U46: 142.8 | V46: 106.9 | W46: 101.2 | X46: 95.3 | Y46: 102.7 | Z46: 105.7 | AA46: 107.6 | AB46: 107.2 | AC46: 110.8 | AD46: 103.8 | AE46: 101 | AF46: 104.8 | AG46: 105.5 | AH46: 98.3 | AI46: 105.3 | AJ46: 108.6 | AK46: 123.1 | AL46: 113.7 | AM46: 111.3 | AN46: 107.01 | AO46: 117.5 | AP46: 111.9
A47: 2021-03-01 | B47: 107.6 | C47: 123.3 | D47: 123.9 | E47: 111.5 | F47: 118.85 | G47: 103.4 | H47: 109.5 | I47: 136.1 | J47: ='Fioul lourd'!C43 -> 99.70790154 | K47: ='Gazole routier HTT'!C43 -> 99.70790154 | L47: 101.2 | M47: 114.7 | N47: 106.2 | O47: 144.6 | P47: 104.8 | Q47: 101.6 | R47: 104.5 | S47: 103.5 | T47: 140.6 | U47: 152.1 | V47: 109 | W47: 101.2 | X47: 94.4 | Y47: 103.6 | Z47: 106.3 | AA47: 108 | AB47: 120.4 | AC47: 110.8 | AD47: 105.2 | AE47: 104.2 | AF47: 104.7 | AG47: 105.3 | AH47: 97.9 | AI47: 105.1 | AJ47: 108.6 | AK47: 123.6 | AL47: 116.9 | AM47: 110.6 | AN47: 107.86 | AO47: 117.6 | AP47: 117.1
A48: 2021-04-01 | B48: 107.8 | C48: 123 | D48: 123.6 | E48: 110.9 | F48: 117.92 | G48: 103.5 | H48: 109.5 | I48: 130.7 | J48: ='Fioul lourd'!C44 -> 97.25254198 | K48: ='Gazole routier HTT'!C44 -> 97.25254198 | L48: 104.9 | M48: 122.9 | N48: 106.4 | O48: 149.4 | P48: 104.2 | Q48: 108.1 | R48: 103.6 | S48: 103.9 | T48: 145.8 | U48: 157.8 | V48: 109.7 | W48: 101.6 | X48: 97.5 | Y48: 103.4 | Z48: 106.5 | AA48: 107.8 | AB48: 134.7 | AC48: 112.9 | AD48: 104.7 | AE48: 108.4 | AF48: 104.8 | AG48: 105.3 | AH48: 95.6 | AI48: 105.5 | AJ48: 109.3 | AK48: 126.1 | AL48: 133.3 | AM48: 112.6 | AN48: 107.33 | AO48: 117.8 | AP48: 117.6
A49: 2021-05-01 | B49: 107.2 | C49: 122.7 | D49: 123.3 | E49: 112.9 | F49: 119.24 | G49: 104.4 | H49: 109.5 | I49: 119.4 | J49: ='Fioul lourd'!C45 -> 96.96347372 | K49: ='Gazole routier HTT'!C45 -> 96.96347372 | L49: 107.6 | M49: 123.5 | N49: 106 | O49: 153.5 | P49: 104.1 | Q49: 111.7 | R49: 103.4 | S49: 104 | T49: 147.9 | U49: 156.1 | V49: 108.6 | W49: 101.3 | X49: 98.2 | Y49: 105.2 | Z49: 109.1 | AA49: 107.7 | AB49: 139.3 | AC49: 113.4 | AD49: 105.1 | AE49: 111.4 | AF49: 104.5 | AG49: 105.3 | AH49: 97.5 | AI49: 103.3 | AJ49: 111.3 | AK49: 127.8 | AL49: 137.6 | AM49: 113.4 | AN49: 107.21 | AO49: 117.9 | AP49: 119.1
A50: 2021-06-01 | B50: 107.8 | C50: 122.5 | D50: 123 | E50: 117.1 | F50: 121.32 | G50: 105 | H50: 110.6 | I50: 111 | J50: ='Fioul lourd'!C46 -> 100.2309774 | K50: ='Gazole routier HTT'!C46 -> 100.2309774 | L50: 115.2 | M50: 123.9 | N50: 105.6 | O50: 167.7 | P50: 104.1 | Q50: 116.7 | R50: 103.9 | S50: 104.3 | T50: 161.4 | U50: 156.6 | V50: 106.8 | W50: 101.1 | X50: 99.3 | Y50: 104.4 | Z50: 110.1 | AA50: 107.9 | AB50: 137.2 | AC50: 114.2 | AD50: 104.8 | AE50: 116.4 | AF50: 104.7 | AG50: 105.5 | AH50: 96.8 | AI50: 102.4 | AJ50: 113.3 | AK50: 136.9 | AL50: 144.6 | AM50: 115.2 | AN50: 108.37 | AO50: 118.1 | AP50: 122.4
A51: 2021-07-01 | B51: 108.3 | C51: =C50 -> 122.5 | D51: 123.1 | E51: 120.9 | F51: 123.71 | G51: 106.6 | H51: 110.6 | I51: 111.9 | J51: ='Fioul lourd'!C47 -> 104.6822845 | K51: ='Gazole routier HTT'!C47 -> 104.6822845 | L51: 120.6 | M51: 136.6 | N51: 106.7 | O51: 185.7 | P51: 104.1 | Q51: 118.8 | R51: 104.1 | S51: 104.8 | T51: 179.7 | U51: 165.2 | V51: 109 | W51: 101.8 | X51: 100.8 | Y51: 104.4 | Z51: 111.4 | AA51: 108.3 | AB51: 137.8 | AC51: 115.3 | AD51: 104.9 | AE51: 120.2 | AF51: 105.6 | AG51: 106.3 | AH51: 97.2 | AI51: 101.9 | AJ51: 114.1 | AK51: 143.6 | AL51: 168.9 | AM51: 117.8 | AN51: 110.94 | AO51: 118.1 | AP51: 123.2
A52: 2021-08-01 | B52: 108.2 | C52: 122.6 | D52: 123.1 | E52: 122.5 | F52: 122.96 | G52: 106.7 | H52: 110.6 | I52: 111.4 | J52: ='Fioul lourd'!C48 -> 101.9464599 | K52: ='Gazole routier HTT'!C48 -> 103.5831648 | L52: 122.3 | M52: 136.8 | N52: 108.3 | O52: 191.7 | P52: 104.9 | Q52: 121.1 | R52: 105.1 | S52: 104.6 | T52: 185.8 | U52: 167.9 | V52: 109.5 | W52: 101 | X52: 101.4 | Y52: 105.5 | Z52: 110.8 | AA52: 108.5 | AB52: 136.4 | AC52: 114.2 | AD52: 105.1 | AE52: 122.4 | AF52: 106.1 | AG52: 107 | AH52: 95.2 | AI52: 103.2 | AJ52: 120.7 | AK52: 146.9 | AL52: 171.2 | AM52: 120.1 | AN52: 113.93 | AO52: 118.3 | AP52: 124.3
A53: 2021-09-01 | B53: 108.6 | C53: 122.7 | D53: 123.1 | E53: 123.3 | F53: 124.37 | G53: 105.4 | H53: 110.5 | I53: 111.5 | J53: ='Fioul lourd'!C49 -> 107.1703363 | K53: ='Gazole routier HTT'!C49 -> 105.8877706 | L53: 123.4 | M53: 137.3 | N53: 105.5 | O53: 196.7 | P53: 104.6 | Q53: 120.7 | R53: 106 | S53: 104.5 | T53: 195.4 | U53: 173.6 | V53: 110 | W53: 103.2 | X53: 103.6 | Y53: 105.3 | Z53: 112.3 | AA53: 108.6 | AB53: 136.8 | AC53: 117.8 | AD53: 105.9 | AE53: 124 | AF53: 106.3 | AG53: 106.8 | AH53: 96.5 | AI53: 102.4 | AJ53: 118.7 | AK53: 150 | AL53: 179.6 | AM53: 121.4 | AN53: 110.01 | AO53: 118.2 | AP53: 123.4
A54: 2021-10-01 | B54: 109 | C54: =C53 -> 122.7 | D54: =D53 -> 123.1 | E54: 133 | F54: 132.38 | G54: 105.8 | H54: 110.5 | I54: 112.2 | J54: ='Fioul lourd'!C50 -> 116.1056426 | K54: ='Gazole routier HTT'!C50 -> 119.5381277 | L54: 124.6 | M54: 137.4 | N54: 106.4 | O54: 193 | P54: 103.4 | Q54: 121.3 | R54: 106.6 | S54: 104.2 | T54: 191.5 | U54: 183.7 | V54: 111.4 | W54: 103.2 | X54: 105.6 | Y54: 105.6 | Z54: 112.3 | AA54: 109 | AB54: 140.4 | AC54: 120.6 | AD54: 106.2 | AE54: 124 | AF54: 106.9 | AG54: 107.3 | AH54: 97 | AI54: 101.7 | AJ54: 121 | AK54: 150.7 | AL54: 186.8 | AM54: 121.8 | AN54: 109.17 | AO54: 118.3 | AP54: 114.9
A55: 2021-11-01 | E55: 131.9 | F55: 133.7 | I55: 120.7 | L55: 125.8 | M55: 137.4 | N55: 106.8 | O55: 193.5 | P55: 103.6 | Q55: 124.3 | R55: 107 | S55: 106 | T55: 192.3 | U55: 198.8 | V55: 112.5 | X55: 107.4 | Y55: 105.6 | AA55: 109.8 | AB55: 146 | AC55: 119.5 | AD55: 107 | AF55: 107.1 | AG55: 107.7 | AH55: 97 | AI55: 101.6 | AJ55: 125.6 | AK55: 150.5 | AL55: 183.9 | AM55: 122.7 | AN55: 109.06 | AO55: 118.6 | AP55: 116.3
A56: 2021-12-01 | E56: 127.4 | F56: 131.08 | I56: 136.7 | L56: 124.7 | M56: 137.3 | N56: 107.1 | O56: 193.4 | P56: 102.9 | Q56: 123.4 | R56: 108.5 | S56: 105.8 | T56: 192.5 | U56: 187 | X56: 104.7 | Y56: 105 | AA56: 110 | AB56: 146.1 | AC56: 121.6 | AD56: 107.2 | AF56: 107.5 | AG56: 107.7 | AH56: 97 | AI56: 101.7 | AJ56: 120.4 | AK56: 1505 | AL56: 182.1 | AM56: 123.9 | AN56: 109.24 | AP56: 118.4
A57: equiv mois à mois | C57: 1 | D57: 1 | Z57: 1 | AE57: 1
A59: equiv mois à mois | B59: Travail | C59: Travail activités spécialisées | D59: Fils et câbles d'énergie | E59: Tuyaux d'assainissement | F59: Matériel de distribution et de commande électrique | J59: Travail activités spécialisées | K59: =MAX(C61:C66) -> 1
B60: =HLOOKUP(B59,'Composition index'!$A$2:$AR$3,2,FALSE) -> 5540998 | C60: =HLOOKUP(C59,'Composition index'!$A$2:$AR$3,2,FALSE) -> 001565195 | D60: =HLOOKUP(D59,'Composition index'!$A$2:$AR$3,2,FALSE) -> 010534330 | E60: =HLOOKUP(E59,'Composition index'!$A$2:$AR$3,2,FALSE) -> 010534253 | F60: =HLOOKUP(F59,'Composition index'!$A$2:$AR$3,2,FALSE) -> 010534698 | G60: =TEXT(date,"mmmm") -> octobre | H60: =IF(OR(G60="août",G60="octobre"),"d'"&G60,"de "&G60) -> d'octobre | J60: Fils et câbles d'énergie | K60: =MAX(D61:D66) -> 1
A61: TP03a | B61: =SUM(IF((INDEX(base_indices,1,)=B$60)*(INDEX(base_indices,,1)=$A$59),INDEX(base_indices,,),0)) -> 1 | C61: =SUM(IF((INDEX(base_indices,1,)=C$60)*(INDEX(base_indices,,1)=$A$59),INDEX(base_indices,,),0)) -> 1 | G61: =TEXT(EDATE(date,-1),"mmmm") -> septembre | H61: =IF(G61="août","d'"&G61,"de "&G61) -> de septembre | J61: Tuyaux d'assainissement | K61: =MAX(E61:E66) -> 1
A62: TP03b | C62: =SUM(IF((INDEX(base_indices,1,)=C$60)*(INDEX(base_indices,,1)=$A$59),INDEX(base_indices,,),0)) -> 1 | G62: =TEXT(EDATE(date,-2),"mmmm") -> août | H62: =IF(G62="août","d'"&G62,"de "&G62) -> d'août | J62: Travail | K62: =MAX(B61:B66) -> 1
A63: TP12d | C63: =SUM(IF((INDEX(base_indices,1,)=C$60)*(INDEX(base_indices,,1)=$A$59),INDEX(base_indices,,),0)) -> 1 | F63: =SUM(IF((INDEX(base_indices,1,)=F$60)*(INDEX(base_indices,,1)=$A$59),INDEX(base_indices,,),0)) -> 0 | J63: Matériel de distribution et de commande électrique | K63: =MAX(F61:F66) -> 0
A64: TP12a | D64: =SUM(IF((INDEX(base_indices,1,)=D$60)*(INDEX(base_indices,,1)=$A$59),INDEX(base_indices,,),0)) -> 1
A65: TP12b | D65: =SUM(IF((INDEX(base_indices,1,)=D$60)*(INDEX(base_indices,,1)=$A$59),INDEX(base_indices,,),0)) -> 1
A66: TP10a | E66: =SUM(IF((INDEX(base_indices,1,)=E$60)*(INDEX(base_indices,,1)=$A$59),INDEX(base_indices,,),0)) -> 1
A69: TP03a | B69: =IF(C61="","",IF(C61=0,"",IF(C61=1,"Pour l'indice "&C$59&", la valeur "&$H$60&" est considérée comme équivalente à celle "&$H$61&" 2021",IF(C61=2,"Pour l'indice "&C$59&", les valeurs "&$H$61&" et"&$H$60&" sont considérées comme équivalentes à celle "&$H$62)))) -> Pour l'indice Travail activités spécialisées, la valeur d'octobre est considérée comme équivalente à celle de septembre 2021
A70: TP03b | B70: =IF(C62="","",IF(C62=0,"",IF(C62=1,"Pour l'indice "&C$59&", la valeur "&$H$60&" est considérée comme équivalente à celle "&$H$61&" 2021",IF(C62=2,"Pour l'indice "&C$59&", les valeurs "&$H$61&" et"&$H$60&" sont considérées comme équivalentes à celle "&$H$62)))) -> Pour l'indice Travail activités spécialisées, la valeur d'octobre est considérée comme équivalente à celle de septembre 2021
A71: TP12d | B71: =IF(C63="","",IF(C63=0,"",IF(C63=1,"Pour l'indice "&C$59&", la valeur "&$H$60&" est considérée comme équivalente à celle "&$H$61&" 2021",IF(C63=2,"Pour l'indice "&C$59&", les valeurs "&$H$61&" et"&$H$60&" sont considérées comme équivalentes à celle "&$H$62)))) -> Pour l'indice Travail activités spécialisées, la valeur d'octobre est considérée comme équivalente à celle de septembre 2021
A72: TP12a | B72: =IF(D64="","",IF(D64=0,"",IF(D64=1,"Pour l'indice "&D$59&", la valeur "&$H$60&" est considérée comme équivalente à celle "&$H$61&" 2021",IF(D64=2,"Pour l'indice "&D$59&", les valeurs "&$H$61&" et "&$H$60&" sont considérées comme équivalentes à celles "&$H$62)))) -> Pour l'indice Fils et câbles d'énergie, la valeur d'octobre est considérée comme équivalente à celle de septembre 2021
A73: TP12b | B73: =IF(D65="","",IF(D65=0,"",IF(D65=1,"Pour l'indice "&D$59&", la valeur "&$H$60&" est considérée comme équivalente à celle "&$H$61&" 2021",IF(D65=2,"Pour l'indice "&D$59&", les valeurs "&$H$61&" et "&$H$60&" sont considérées comme équivalentes à celles "&$H$62)))) -> Pour l'indice Fils et câbles d'énergie, la valeur d'octobre est considérée comme équivalente à celle de septembre 2021
A74: TP10a | B74: =IF(E66="","",IF(E66=0,"",IF(E66=1,"Pour l'indice "&E$59&", la valeur "&$H$60&" est considérée comme équivalente à celle "&$H$61&" 2021",IF(E66=2,"Pour l'indice "&E$59&", les valeurs "&$H$61&" et "&$H$60&" sont considérées comme équivalentes à celles "&$H$62)))) -> Pour l'indice Tuyaux d'assainissement, la valeur d'octobre est considérée comme équivalente à celle de septembre 2021
A75: Tous les index | B75: =IF(B61="","",IF(B61=0,"",IF(B61=1,$G$60&" 2021 = "&$G$61&" 2021",IF(B61=2,$G$60&" et "&$G$61&" 2021 = "&$G$62&" 2021")))) -> octobre 2021 = septembre 2021
B77: ="Pour les indices suivants, les valeurs "&$H$60&" 2021 sont considérées comme équivalentes à celles "&$H$61&" 2021 :" -> Pour les indices suivants, les valeurs d'octobre 2021 sont considérées comme équivalentes à celles de septembre 2021 :
B78: =B59&", "&C59&", "&D59&", "&E59 -> Travail, Travail activités spécialisées, Fils et câbles d'énergie, Tuyaux d'assainissement
B79: ="Pour les indices suivants, les valeurs "&$H$60&" 2021 sont considérées comme équivalentes à celles "&$H$61&" 2021 :" -> Pour les indices suivants, les valeurs d'octobre 2021 sont considérées comme équivalentes à celles de septembre 2021 :
B80: =B59&", "&C59&", "&E59 -> Travail, Travail activités spécialisées, Tuyaux d'assainissement

Sheet Indices 3-6 mois glissants (hidden)
D1: =EDATE(date,-5) -> 2021-05-01 | E1: =DATE(2021,MONTH(date),1) -> 2021-10-01 | F1: =EDATE(date,-11) -> 2020-11-01 | G1: =EDATE(date,-6) -> 2021-04-01
D2: =EDATE(date,-2) -> 2021-08-01 | E2: =DATE(2021,MONTH(date),1) -> 2021-10-01 | F2: =EDATE(date,-5) -> 2021-05-01 | G2: =EDATE(date,-3) -> 2021-07-01
D4: 3 mois | E4: 6 mois
A5: =OFFSET('Indice prix'!$B$2,0,$G5) -> 001711009 | B5: =OFFSET('Indice prix'!$B$5,0,$G5) -> Matériel | C5: =OFFSET('Indice prix'!$B$4,0,$G5) -> https://www.insee.fr/fr/statistiques/serie/001711009 | D5: =SUM(IF((INDEX(base_indices,1,)=$A5)*(INDEX(base_indices,,1)>=$D$2)*(INDEX(base_indices,,1)<=$E$2),INDEX(base_indices,,),0))/SUM(IF((INDEX(base_indices,1,)=$A5)*(INDEX(base_indices,,1)>=$F$2)*(INDEX(base_indices,,1)<=$G$2),INDEX(base_indices,,),0))-1 -> 0.007732755954 | E5: =SUM(IF((INDEX(base_indices,1,)=$A5)*(INDEX(base_indices,,1)>=$D$1)*(INDEX(base_indices,,1)<=$E$1),INDEX(base_indices,,),0))/SUM(IF((INDEX(base_indices,1,)=$A5)*(INDEX(base_indices,,1)>=$F$1)*(INDEX(base_indices,,1)<=$G$1),INDEX(base_indices,,),0))-1 -> 0.02511054959 | G5: 0 | I5: =_xlfn._xlws.SORT('Indices 3-6 mois glissants'!$A$5:$E$45,4,-1) -> 010536480 | J5: Tôles quarto et autres produits plats en aciers non alliés de qualité | K5: https://www.insee.fr/fr/statistiques/serie/010536480 | L5: 0.1917534915 | M5: 0.4941816533 | N5: =IF(SUM(IF((INDEX(compo,3,)=I5)*(INDEX(compo,,1)='Evol indices 3-6 mois glissants'!$D$7),INDEX(compo,,),0))>0,"x","") -> 
A6: =OFFSET('Indice prix'!$B$2,0,$G6) -> 5540998 | B6: =OFFSET('Indice prix'!$B$5,0,$G6) -> Travail | C6: =OFFSET('Indice prix'!$B$4,0,$G6) -> https://www.insee.fr/fr/statistiques/6020697 | D6: =SUM(IF((INDEX(base_indices,1,)=$A6)*(INDEX(base_indices,,1)>=$D$2)*(INDEX(base_indices,,1)<=$E$2),INDEX(base_indices,,),0))/SUM(IF((INDEX(base_indices,1,)=$A6)*(INDEX(base_indices,,1)>=$F$2)*(INDEX(base_indices,,1)<=$G$2),INDEX(base_indices,,),0))-1 -> 0.0008158825129 | E6: =SUM(IF((INDEX(base_indices,1,)=$A6)*(INDEX(base_indices,,1)>=$D$1)*(INDEX(base_indices,,1)<=$E$1),INDEX(base_indices,,),0))/SUM(IF((INDEX(base_indices,1,)=$A6)*(INDEX(base_indices,,1)>=$F$1)*(INDEX(base_indices,,1)<=$G$1),INDEX(base_indices,,),0))-1 -> -0.005676442763 | G6: 1 | I6: 010536462 | J6: Acier pour la construction | K6: https://www.insee.fr/fr/statistiques/serie/010536462 | L6: 0.1711656442 | M6: 0.3918458311 | N6: =IF(SUM(IF((INDEX(compo,3,)=I6)*(INDEX(compo,,1)='Evol indices 3-6 mois glissants'!$D$7),INDEX(compo,,),0))>0,"x","") -> 
A7: =OFFSET('Indice prix'!$B$2,0,$G7) -> 001565195 | B7: =OFFSET('Indice prix'!$B$5,0,$G7) -> Travail activités spécialisées | C7: =OFFSET('Indice prix'!$B$4,0,$G7) -> https://www.insee.fr/fr/statistiques/serie/001565195 | D7: =SUM(IF((INDEX(base_indices,1,)=$A7)*(INDEX(base_indices,,1)>=$D$2)*(INDEX(base_indices,,1)<=$E$2),INDEX(base_indices,,),0))/SUM(IF((INDEX(base_indices,1,)=$A7)*(INDEX(base_indices,,1)>=$F$2)*(INDEX(base_indices,,1)<=$G$2),INDEX(base_indices,,),0))-1 -> -0.0002707092583 | E7: =SUM(IF((INDEX(base_indices,1,)=$A7)*(INDEX(base_indices,,1)>=$D$1)*(INDEX(base_indices,,1)<=$E$1),INDEX(base_indices,,),0))/SUM(IF((INDEX(base_indices,1,)=$A7)*(INDEX(base_indices,,1)>=$F$1)*(INDEX(base_indices,,1)<=$G$1),INDEX(base_indices,,),0))-1 -> -0.003641758835 | G7: 2 | I7: 010546545 | J7: Barres crénelées ou nervurées pour béton armé | K7: https://www.insee.fr/fr/statistiques/serie/010546545 | L7: 0.1469717893 | M7: 0.3729027375 | N7: =IF(SUM(IF((INDEX(compo,3,)=I7)*(INDEX(compo,,1)='Evol indices 3-6 mois glissants'!$D$7),INDEX(compo,,),0))>0,"x","") -> x
A8: =OFFSET('Indice prix'!$B$2,0,$G8) -> 010534596 | B8: =OFFSET('Indice prix'!$B$5,0,$G8) -> GNR | C8: =OFFSET('Indice prix'!$B$4,0,$G8) -> https://www.insee.fr/fr/statistiques/serie/010534596 | D8: =SUM(IF((INDEX(base_indices,1,)=$A8)*(INDEX(base_indices,,1)>=$D$2)*(INDEX(base_indices,,1)<=$E$2),INDEX(base_indices,,),0))/SUM(IF((INDEX(base_indices,1,)=$A8)*(INDEX(base_indices,,1)>=$F$2)*(INDEX(base_indices,,1)<=$G$2),INDEX(base_indices,,),0))-1 -> 0.07950983186 | E8: =SUM(IF((INDEX(base_indices,1,)=$A8)*(INDEX(base_indices,,1)>=$D$1)*(INDEX(base_indices,,1)<=$E$1),INDEX(base_indices,,),0))/SUM(IF((INDEX(base_indices,1,)=$A8)*(INDEX(base_indices,,1)>=$F$1)*(INDEX(base_indices,,1)<=$G$1),INDEX(base_indices,,),0))-1 -> 0.150220681 | G8: 3 | I8: 010534598 | J8: Bitume | K8: https://www.insee.fr/fr/statistiques/serie/010534598 | L8: 0.0989746809 | M8: 0.1896347249 | N8: =IF(SUM(IF((INDEX(compo,3,)=I8)*(INDEX(compo,,1)='Evol indices 3-6 mois glissants'!$D$7),INDEX(compo,,),0))>0,"x","") -> 
A9: =OFFSET('Indice prix'!$B$2,0,$G9) -> 001764283 | B9: =OFFSET('Indice prix'!$B$5,0,$G9) -> Gazole | C9: =OFFSET('Indice prix'!$B$4,0,$G9) -> https://www.insee.fr/fr/statistiques/serie/001764283 | D9: =SUM(IF((INDEX(base_indices,1,)=$A9)*(INDEX(base_indices,,1)>=$D$2)*(INDEX(base_indices,,1)<=$E$2),INDEX(base_indices,,),0))/SUM(IF((INDEX(base_indices,1,)=$A9)*(INDEX(base_indices,,1)>=$F$2)*(INDEX(base_indices,,1)<=$G$2),INDEX(base_indices,,),0))-1 -> 0.04238614215 | E9: =SUM(IF((INDEX(base_indices,1,)=$A9)*(INDEX(base_indices,,1)>=$D$1)*(INDEX(base_indices,,1)<=$E$1),INDEX(base_indices,,),0))/SUM(IF((INDEX(base_indices,1,)=$A9)*(INDEX(base_indices,,1)>=$F$1)*(INDEX(base_indices,,1)<=$G$1),INDEX(base_indices,,),0))-1 -> 0.09870927725 | G9: 4 | I9: 010534267 | J9: Produits sidérurgiques en acier non allié | K9: https://www.insee.fr/fr/statistiques/serie/010534267 | L9: 0.09625275533 | M9: 0.2214927929 | N9: =IF(SUM(IF((INDEX(compo,3,)=I9)*(INDEX(compo,,1)='Evol indices 3-6 mois glissants'!$D$7),INDEX(compo,,),0))>0,"x","") -> 
A10: =OFFSET('Indice prix'!$B$2,0,$G10) -> 001711011 | B10: =OFFSET('Indice prix'!$B$5,0,$G10) -> Frais divers | C10: =OFFSET('Indice prix'!$B$4,0,$G10) -> https://www.insee.fr/fr/statistiques/serie/001711011 | D10: =SUM(IF((INDEX(base_indices,1,)=$A10)*(INDEX(base_indices,,1)>=$D$2)*(INDEX(base_indices,,1)<=$E$2),INDEX(base_indices,,),0))/SUM(IF((INDEX(base_indices,1,)=$A10)*(INDEX(base_indices,,1)>=$F$2)*(INDEX(base_indices,,1)<=$G$2),INDEX(base_indices,,),0))-1 -> 0.006012658228 | E10: =SUM(IF((INDEX(base_indices,1,)=$A10)*(INDEX(base_indices,,1)>=$D$1)*(INDEX(base_indices,,1)<=$E$1),INDEX(base_indices,,),0))/SUM(IF((INDEX(base_indices,1,)=$A10)*(INDEX(base_indices,,1)>=$F$1)*(INDEX(base_indices,,1)<=$G$1),INDEX(base_indices,,),0))-1 -> 0.02225447508 | G10: 5 | I10: Gazole routier HTT | J10: Gazole routier HTT | K10: https://www.fntp.fr/sites/default/files/content/indice_gazole_htt.pdf | L10: 0.08987882897 | M10: 0.1558836643 | N10: =IF(SUM(IF((INDEX(compo,3,)=I10)*(INDEX(compo,,1)='Evol indices 3-6 mois glissants'!$D$7),INDEX(compo,,),0))>0,"x","") -> 
A11: =OFFSET('Indice prix'!$B$2,0,$G11) -> 001711943 | B11: =OFFSET('Indice prix'!$B$5,0,$G11) -> Transports routiers | C11: =OFFSET('Indice prix'!$B$4,0,$G11) -> https://www.insee.fr/fr/statistiques/serie/001711943 | D11: =SUM(IF((INDEX(base_indices,1,)=$A11)*(INDEX(base_indices,,1)>=$D$2)*(INDEX(base_indices,,1)<=$E$2),INDEX(base_indices,,),0))/SUM(IF((INDEX(base_indices,1,)=$A11)*(INDEX(base_indices,,1)>=$F$2)*(INDEX(base_indices,,1)<=$G$2),INDEX(base_indices,,),0))-1 -> 0.002721499849 | E11: =SUM(IF((INDEX(base_indices,1,)=$A11)*(INDEX(base_indices,,1)>=$D$1)*(INDEX(base_indices,,1)<=$E$1),INDEX(base_indices,,),0))/SUM(IF((INDEX(base_indices,1,)=$A11)*(INDEX(base_indices,,1)>=$F$1)*(INDEX(base_indices,,1)<=$G$1),INDEX(base_indices,,),0))-1 -> 0.0123815347 | G11: 6 | I11: 010534596 | J11: GNR | K11: https://www.insee.fr/fr/statistiques/serie/010534596 | L11: 0.07950983186 | M11: 0.150220681 | N11: =IF(SUM(IF((INDEX(compo,3,)=I11)*(INDEX(compo,,1)='Evol indices 3-6 mois glissants'!$D$7),INDEX(compo,,),0))>0,"x","") -> 
A12: =OFFSET('Indice prix'!$B$2,0,$G12) -> 010534769 | B12: =OFFSET('Indice prix'!$B$5,0,$G12) -> Électricité vendue aux entreprises consommatrices finales | C12: =OFFSET('Indice prix'!$B$4,0,$G12) -> https://www.insee.fr/fr/statistiques/serie/010534769 | D12: =SUM(IF((INDEX(base_indices,1,)=$A12)*(INDEX(base_indices,,1)>=$D$2)*(INDEX(base_indices,,1)<=$E$2),INDEX(base_indices,,),0))/SUM(IF((INDEX(base_indices,1,)=$A12)*(INDEX(base_indices,,1)>=$F$2)*(INDEX(base_indices,,1)<=$G$2),INDEX(base_indices,,),0))-1 -> -0.02103418054 | E12: =SUM(IF((INDEX(base_indices,1,)=$A12)*(INDEX(base_indices,,1)>=$D$1)*(INDEX(base_indices,,1)<=$E$1),INDEX(base_indices,,),0))/SUM(IF((INDEX(base_indices,1,)=$A12)*(INDEX(base_indices,,1)>=$F$1)*(INDEX(base_indices,,1)<=$G$1),INDEX(base_indices,,),0))-1 -> -0.133981079 | G12: 7 | I12: 010534207 | J12: Tubes, tuyaux en matière plastique | K12: https://www.insee.fr/fr/statistiques/serie/010534207 | L12: 0.07833430402 | M12: 0.1839747843 | N12: =IF(SUM(IF((INDEX(compo,3,)=I12)*(INDEX(compo,,1)='Evol indices 3-6 mois glissants'!$D$7),INDEX(compo,,),0))>0,"x","") -> x
A13: =OFFSET('Indice prix'!$B$2,0,$G13) -> Fioul lourd | B13: =OFFSET('Indice prix'!$B$5,0,$G13) -> Fioul lourd | C13: =OFFSET('Indice prix'!$B$4,0,$G13) -> https://www.fntp.fr/sites/default/files/content/indice_fioul_lourd.pdf | D13: =SUM(IF((INDEX(base_indices,1,)=$A13)*(INDEX(base_indices,,1)>=$D$2)*(INDEX(base_indices,,1)<=$E$2),INDEX(base_indices,,),0))/SUM(IF((INDEX(base_indices,1,)=$A13)*(INDEX(base_indices,,1)>=$F$2)*(INDEX(base_indices,,1)<=$G$2),INDEX(base_indices,,),0))-1 -> 0.07733521808 | E13: =SUM(IF((INDEX(base_indices,1,)=$A13)*(INDEX(base_indices,,1)>=$D$1)*(INDEX(base_indices,,1)<=$E$1),INDEX(base_indices,,),0))/SUM(IF((INDEX(base_indices,1,)=$A13)*(INDEX(base_indices,,1)>=$F$1)*(INDEX(base_indices,,1)<=$G$1),INDEX(base_indices,,),0))-1 -> 0.1489459631 | G13: 8 | I13: Fioul lourd | J13: Fioul lourd | K13: https://www.fntp.fr/sites/default/files/content/indice_fioul_lourd.pdf | L13: 0.07733521808 | M13: 0.1489459631 | N13: =IF(SUM(IF((INDEX(compo,3,)=I13)*(INDEX(compo,,1)='Evol indices 3-6 mois glissants'!$D$7),INDEX(compo,,),0))>0,"x","") -> 
A14: =OFFSET('Indice prix'!$B$2,0,$G14) -> Gazole routier HTT | B14: =OFFSET('Indice prix'!$B$5,0,$G14) -> Gazole routier HTT | C14: =OFFSET('Indice prix'!$B$4,0,$G14) -> https://www.fntp.fr/sites/default/files/content/indice_gazole_htt.pdf | D14: =SUM(IF((INDEX(base_indices,1,)=$A14)*(INDEX(base_indices,,1)>=$D$2)*(INDEX(base_indices,,1)<=$E$2),INDEX(base_indices,,),0))/SUM(IF((INDEX(base_indices,1,)=$A14)*(INDEX(base_indices,,1)>=$F$2)*(INDEX(base_indices,,1)<=$G$2),INDEX(base_indices,,),0))-1 -> 0.08987882897 | E14: =SUM(IF((INDEX(base_indices,1,)=$A14)*(INDEX(base_indices,,1)>=$D$1)*(INDEX(base_indices,,1)<=$E$1),INDEX(base_indices,,),0))/SUM(IF((INDEX(base_indices,1,)=$A14)*(INDEX(base_indices,,1)>=$F$1)*(INDEX(base_indices,,1)<=$G$1),INDEX(base_indices,,),0))-1 -> 0.1558836643 | G14: 9 | I14: 010534575 | J14: Ensemble des produits du sciage | K14: https://www.insee.fr/fr/statistiques/serie/010534575 | L14: 0.07161458333 | M14: 0.1619924043 | N14: =IF(SUM(IF((INDEX(compo,3,)=I14)*(INDEX(compo,,1)='Evol indices 3-6 mois glissants'!$D$7),INDEX(compo,,),0))>0,"x","") -> x
A15: =OFFSET('Indice prix'!$B$2,0,$G15) -> 010534207 | B15: =OFFSET('Indice prix'!$B$5,0,$G15) -> Tubes, tuyaux en matière plastique | C15: =OFFSET('Indice prix'!$B$4,0,$G15) -> https://www.insee.fr/fr/statistiques/serie/010534207 | D15: =SUM(IF((INDEX(base_indices,1,)=$A15)*(INDEX(base_indices,,1)>=$D$2)*(INDEX(base_indices,,1)<=$E$2),INDEX(base_indices,,),0))/SUM(IF((INDEX(base_indices,1,)=$A15)*(INDEX(base_indices,,1)>=$F$2)*(INDEX(base_indices,,1)<=$G$2),INDEX(base_indices,,),0))-1 -> 0.07833430402 | E15: =SUM(IF((INDEX(base_indices,1,)=$A15)*(INDEX(base_indices,,1)>=$D$1)*(INDEX(base_indices,,1)<=$E$1),INDEX(base_indices,,),0))/SUM(IF((INDEX(base_indices,1,)=$A15)*(INDEX(base_indices,,1)>=$F$1)*(INDEX(base_indices,,1)<=$G$1),INDEX(base_indices,,),0))-1 -> 0.1839747843 | G15: 10 | I15: 010534330 | J15: Fils et câbles d'énergie | K15: https://www.insee.fr/fr/statistiques/serie/010534330 | L15: 0.06436781609 | M15: 0.1841107631 | N15: =IF(SUM(IF((INDEX(compo,3,)=I15)*(INDEX(compo,,1)='Evol indices 3-6 mois glissants'!$D$7),INDEX(compo,,),0))>0,"x","") -> 
A16: =OFFSET('Indice prix'!$B$2,0,$G16) -> 010534575 | B16: =OFFSET('Indice prix'!$B$5,0,$G16) -> Ensemble des produits du sciage | C16: =OFFSET('Indice prix'!$B$4,0,$G16) -> https://www.insee.fr/fr/statistiques/serie/010534575 | D16: =SUM(IF((INDEX(base_indices,1,)=$A16)*(INDEX(base_indices,,1)>=$D$2)*(INDEX(base_indices,,1)<=$E$2),INDEX(base_indices,,),0))/SUM(IF((INDEX(base_indices,1,)=$A16)*(INDEX(base_indices,,1)>=$F$2)*(INDEX(base_indices,,1)<=$G$2),INDEX(base_indices,,),0))-1 -> 0.07161458333 | E16: =SUM(IF((INDEX(base_indices,1,)=$A16)*(INDEX(base_indices,,1)>=$D$1)*(INDEX(base_indices,,1)<=$E$1),INDEX(base_indices,,),0))/SUM(IF((INDEX(base_indices,1,)=$A16)*(INDEX(base_indices,,1)>=$F$1)*(INDEX(base_indices,,1)<=$G$1),INDEX(base_indices,,),0))-1 -> 0.1619924043 | G16: 11 | I16: 010534180 | J16: Peintures Industries | K16: https://www.insee.fr/fr/statistiques/serie/010534180 | L16: 0.0640684972 | M16: 0.05940293984 | N16: =IF(SUM(IF((INDEX(compo,3,)=I16)*(INDEX(compo,,1)='Evol indices 3-6 mois glissants'!$D$7),INDEX(compo,,),0))>0,"x","") -> 
A17: =OFFSET('Indice prix'!$B$2,0,$G17) -> 010534646 | B17: =OFFSET('Indice prix'!$B$5,0,$G17) -> Béton prêt à l'emploi | C17: =OFFSET('Indice prix'!$B$4,0,$G17) -> https://www.insee.fr/fr/statistiques/serie/010534646 | D17: =SUM(IF((INDEX(base_indices,1,)=$A17)*(INDEX(base_indices,,1)>=$D$2)*(INDEX(base_indices,,1)<=$E$2),INDEX(base_indices,,),0))/SUM(IF((INDEX(base_indices,1,)=$A17)*(INDEX(base_indices,,1)>=$F$2)*(INDEX(base_indices,,1)<=$G$2),INDEX(base_indices,,),0))-1 -> 0.005969211436 | E17: =SUM(IF((INDEX(base_indices,1,)=$A17)*(INDEX(base_indices,,1)>=$D$1)*(INDEX(base_indices,,1)<=$E$1),INDEX(base_indices,,),0))/SUM(IF((INDEX(base_indices,1,)=$A17)*(INDEX(base_indices,,1)>=$F$1)*(INDEX(base_indices,,1)<=$G$1),INDEX(base_indices,,),0))-1 -> 0.006462799496 | G17: 12 | I17: 010534667 | J17: Éléments en métal pour la construction | K17: https://www.insee.fr/fr/statistiques/serie/010534667 | L17: 0.04878752887 | M17: 0.06786036714 | N17: =IF(SUM(IF((INDEX(compo,3,)=I17)*(INDEX(compo,,1)='Evol indices 3-6 mois glissants'!$D$7),INDEX(compo,,),0))>0,"x","") -> 
A18: =OFFSET('Indice prix'!$B$2,0,$G18) -> 010546545 | B18: =OFFSET('Indice prix'!$B$5,0,$G18) -> Barres crénelées ou nervurées pour béton armé | C18: =OFFSET('Indice prix'!$B$4,0,$G18) -> https://www.insee.fr/fr/statistiques/serie/010546545 | D18: =SUM(IF((INDEX(base_indices,1,)=$A18)*(INDEX(base_indices,,1)>=$D$2)*(INDEX(base_indices,,1)<=$E$2),INDEX(base_indices,,),0))/SUM(IF((INDEX(base_indices,1,)=$A18)*(INDEX(base_indices,,1)>=$F$2)*(INDEX(base_indices,,1)<=$G$2),INDEX(base_indices,,),0))-1 -> 0.1469717893 | E18: =SUM(IF((INDEX(base_indices,1,)=$A18)*(INDEX(base_indices,,1)>=$D$1)*(INDEX(base_indices,,1)<=$E$1),INDEX(base_indices,,),0))/SUM(IF((INDEX(base_indices,1,)=$A18)*(INDEX(base_indices,,1)>=$F$1)*(INDEX(base_indices,,1)<=$G$1),INDEX(base_indices,,),0))-1 -> 0.3729027375 | G18: 13 | I18: 010534625 | J18: Plaques, feuilles, tubes et profilés en matières plastiques | K18: https://www.insee.fr/fr/statistiques/serie/010534625 | L18: 0.04579493088 | M18: 0.1923787141 | N18: =IF(SUM(IF((INDEX(compo,3,)=I18)*(INDEX(compo,,1)='Evol indices 3-6 mois glissants'!$D$7),INDEX(compo,,),0))>0,"x","") -> 
A19: =OFFSET('Indice prix'!$B$2,0,$G19) -> 010536067 | B19: =OFFSET('Indice prix'!$B$5,0,$G19) -> Sables et granulats | C19: =OFFSET('Indice prix'!$B$4,0,$G19) -> https://www.insee.fr/fr/statistiques/serie/010536067 | D19: =SUM(IF((INDEX(base_indices,1,)=$A19)*(INDEX(base_indices,,1)>=$D$2)*(INDEX(base_indices,,1)<=$E$2),INDEX(base_indices,,),0))/SUM(IF((INDEX(base_indices,1,)=$A19)*(INDEX(base_indices,,1)>=$F$2)*(INDEX(base_indices,,1)<=$G$2),INDEX(base_indices,,),0))-1 -> 0.001921229587 | E19: =SUM(IF((INDEX(base_indices,1,)=$A19)*(INDEX(base_indices,,1)>=$D$1)*(INDEX(base_indices,,1)<=$E$1),INDEX(base_indices,,),0))/SUM(IF((INDEX(base_indices,1,)=$A19)*(INDEX(base_indices,,1)>=$F$1)*(INDEX(base_indices,,1)<=$G$1),INDEX(base_indices,,),0))-1 -> 0.005306319344 | G19: 14 | I19: 001764283 | J19: Gazole | K19: https://www.insee.fr/fr/statistiques/serie/001764283 | L19: 0.04238614215 | M19: 0.09870927725 | N19: =IF(SUM(IF((INDEX(compo,3,)=I19)*(INDEX(compo,,1)='Evol indices 3-6 mois glissants'!$D$7),INDEX(compo,,),0))>0,"x","") -> 
A20: =OFFSET('Indice prix'!$B$2,0,$G20) -> 010534625 | B20: =OFFSET('Indice prix'!$B$5,0,$G20) -> Plaques, feuilles, tubes et profilés en matières plastiques | C20: =OFFSET('Indice prix'!$B$4,0,$G20) -> https://www.insee.fr/fr/statistiques/serie/010534625 | D20: =SUM(IF((INDEX(base_indices,1,)=$A20)*(INDEX(base_indices,,1)>=$D$2)*(INDEX(base_indices,,1)<=$E$2),INDEX(base_indices,,),0))/SUM(IF((INDEX(base_indices,1,)=$A20)*(INDEX(base_indices,,1)>=$F$2)*(INDEX(base_indices,,1)<=$G$2),INDEX(base_indices,,),0))-1 -> 0.04579493088 | E20: =SUM(IF((INDEX(base_indices,1,)=$A20)*(INDEX(base_indices,,1)>=$D$1)*(INDEX(base_indices,,1)<=$E$1),INDEX(base_indices,,),0))/SUM(IF((INDEX(base_indices,1,)=$A20)*(INDEX(base_indices,,1)>=$F$1)*(INDEX(base_indices,,1)<=$G$1),INDEX(base_indices,,),0))-1 -> 0.1923787141 | G20: 15 | I20: 010534662 | J20: Travaux de fonderie de fonte | K20: https://www.insee.fr/fr/statistiques/serie/010534662 | L20: 0.04123365739 | M20: 0.07031112674 | N20: =IF(SUM(IF((INDEX(compo,3,)=I20)*(INDEX(compo,,1)='Evol indices 3-6 mois glissants'!$D$7),INDEX(compo,,),0))>0,"x","") -> 
A21: =OFFSET('Indice prix'!$B$2,0,$G21) -> 010534642 | B21: =OFFSET('Indice prix'!$B$5,0,$G21) -> Ciment, chaux et plâtre | C21: =OFFSET('Indice prix'!$B$4,0,$G21) -> https://www.insee.fr/fr/statistiques/serie/010534642 | D21: =SUM(IF((INDEX(base_indices,1,)=$A21)*(INDEX(base_indices,,1)>=$D$2)*(INDEX(base_indices,,1)<=$E$2),INDEX(base_indices,,),0))/SUM(IF((INDEX(base_indices,1,)=$A21)*(INDEX(base_indices,,1)>=$F$2)*(INDEX(base_indices,,1)<=$G$2),INDEX(base_indices,,),0))-1 -> 0.02023121387 | E21: =SUM(IF((INDEX(base_indices,1,)=$A21)*(INDEX(base_indices,,1)>=$D$1)*(INDEX(base_indices,,1)<=$E$1),INDEX(base_indices,,),0))/SUM(IF((INDEX(base_indices,1,)=$A21)*(INDEX(base_indices,,1)>=$F$1)*(INDEX(base_indices,,1)<=$G$1),INDEX(base_indices,,),0))-1 -> 0.005755395683 | G21: 16 | I21: 010534654 | J21: Tubes, tuyaux, profilés creux et accessoires correspondants en acier | K21: https://www.insee.fr/fr/statistiques/serie/010534654 | L21: 0.02828813065 | M21: 0.05827754108 | N21: =IF(SUM(IF((INDEX(compo,3,)=I21)*(INDEX(compo,,1)='Evol indices 3-6 mois glissants'!$D$7),INDEX(compo,,),0))>0,"x","") -> 
A22: =OFFSET('Indice prix'!$B$2,0,$G22) -> 010534614 | B22: =OFFSET('Indice prix'!$B$5,0,$G22) -> Produits explosifs | C22: =OFFSET('Indice prix'!$B$4,0,$G22) -> https://www.insee.fr/fr/statistiques/serie/010534614 | D22: =SUM(IF((INDEX(base_indices,1,)=$A22)*(INDEX(base_indices,,1)>=$D$2)*(INDEX(base_indices,,1)<=$E$2),INDEX(base_indices,,),0))/SUM(IF((INDEX(base_indices,1,)=$A22)*(INDEX(base_indices,,1)>=$F$2)*(INDEX(base_indices,,1)<=$G$2),INDEX(base_indices,,),0))-1 -> 0.0006387735548 | E22: =SUM(IF((INDEX(base_indices,1,)=$A22)*(INDEX(base_indices,,1)>=$D$1)*(INDEX(base_indices,,1)<=$E$1),INDEX(base_indices,,),0))/SUM(IF((INDEX(base_indices,1,)=$A22)*(INDEX(base_indices,,1)>=$F$1)*(INDEX(base_indices,,1)<=$G$1),INDEX(base_indices,,),0))-1 -> 0.007884151247 | G22: 17 | I22: 010534642 | J22: Ciment, chaux et plâtre | K22: https://www.insee.fr/fr/statistiques/serie/010534642 | L22: 0.02023121387 | M22: 0.005755395683 | N22: =IF(SUM(IF((INDEX(compo,3,)=I22)*(INDEX(compo,,1)='Evol indices 3-6 mois glissants'!$D$7),INDEX(compo,,),0))>0,"x","") -> 
A23: =OFFSET('Indice prix'!$B$2,0,$G23) -> 010536462 | B23: =OFFSET('Indice prix'!$B$5,0,$G23) -> Acier pour la construction | C23: =OFFSET('Indice prix'!$B$4,0,$G23) -> https://www.insee.fr/fr/statistiques/serie/010536462 | D23: =SUM(IF((INDEX(base_indices,1,)=$A23)*(INDEX(base_indices,,1)>=$D$2)*(INDEX(base_indices,,1)<=$E$2),INDEX(base_indices,,),0))/SUM(IF((INDEX(base_indices,1,)=$A23)*(INDEX(base_indices,,1)>=$F$2)*(INDEX(base_indices,,1)<=$G$2),INDEX(base_indices,,),0))-1 -> 0.1711656442 | E23: =SUM(IF((INDEX(base_indices,1,)=$A23)*(INDEX(base_indices,,1)>=$D$1)*(INDEX(base_indices,,1)<=$E$1),INDEX(base_indices,,),0))/SUM(IF((INDEX(base_indices,1,)=$A23)*(INDEX(base_indices,,1)>=$F$1)*(INDEX(base_indices,,1)<=$G$1),INDEX(base_indices,,),0))-1 -> 0.3918458311 | G23: 18 | I23: 001763781 | J23: Restaurants et hôtels | K23: https://www.insee.fr/fr/statistiques/serie/001763781 | L23: 0.02018253093 | M23: 0.02579932819 | N23: =IF(SUM(IF((INDEX(compo,3,)=I23)*(INDEX(compo,,1)='Evol indices 3-6 mois glissants'!$D$7),INDEX(compo,,),0))>0,"x","") -> 
A24: =OFFSET('Indice prix'!$B$2,0,$G24) -> 010534598 | B24: =OFFSET('Indice prix'!$B$5,0,$G24) -> Bitume | C24: =OFFSET('Indice prix'!$B$4,0,$G24) -> https://www.insee.fr/fr/statistiques/serie/010534598 | D24: =SUM(IF((INDEX(base_indices,1,)=$A24)*(INDEX(base_indices,,1)>=$D$2)*(INDEX(base_indices,,1)<=$E$2),INDEX(base_indices,,),0))/SUM(IF((INDEX(base_indices,1,)=$A24)*(INDEX(base_indices,,1)>=$F$2)*(INDEX(base_indices,,1)<=$G$2),INDEX(base_indices,,),0))-1 -> 0.0989746809 | E24: =SUM(IF((INDEX(base_indices,1,)=$A24)*(INDEX(base_indices,,1)>=$D$1)*(INDEX(base_indices,,1)<=$E$1),INDEX(base_indices,,),0))/SUM(IF((INDEX(base_indices,1,)=$A24)*(INDEX(base_indices,,1)>=$F$1)*(INDEX(base_indices,,1)<=$G$1),INDEX(base_indices,,),0))-1 -> 0.1896347249 | G24: 19 | I24: 010534252 | J24: Produits de voierie en béton | K24: https://www.insee.fr/fr/statistiques/serie/010534252 | L24: 0.02003699137 | M24: 0.01833721834 | N24: =IF(SUM(IF((INDEX(compo,3,)=I24)*(INDEX(compo,,1)='Evol indices 3-6 mois glissants'!$D$7),INDEX(compo,,),0))>0,"x","") -> 
A25: =OFFSET('Indice prix'!$B$2,0,$G25) -> 010534252 | B25: =OFFSET('Indice prix'!$B$5,0,$G25) -> Produits de voierie en béton | C25: =OFFSET('Indice prix'!$B$4,0,$G25) -> https://www.insee.fr/fr/statistiques/serie/010534252 | D25: =SUM(IF((INDEX(base_indices,1,)=$A25)*(INDEX(base_indices,,1)>=$D$2)*(INDEX(base_indices,,1)<=$E$2),INDEX(base_indices,,),0))/SUM(IF((INDEX(base_indices,1,)=$A25)*(INDEX(base_indices,,1)>=$F$2)*(INDEX(base_indices,,1)<=$G$2),INDEX(base_indices,,),0))-1 -> 0.02003699137 | E25: =SUM(IF((INDEX(base_indices,1,)=$A25)*(INDEX(base_indices,,1)>=$D$1)*(INDEX(base_indices,,1)<=$E$1),INDEX(base_indices,,),0))/SUM(IF((INDEX(base_indices,1,)=$A25)*(INDEX(base_indices,,1)>=$F$1)*(INDEX(base_indices,,1)<=$G$1),INDEX(base_indices,,),0))-1 -> 0.01833721834 | G25: 20 | I25: 010534253 | J25: Tuyaux d'assainissement | K25: https://www.insee.fr/fr/statistiques/serie/010534253 | L25: 0.01451905626 | M25: 0.06203157391 | N25: =IF(SUM(IF((INDEX(compo,3,)=I25)*(INDEX(compo,,1)='Evol indices 3-6 mois glissants'!$D$7),INDEX(compo,,),0))>0,"x","") -> 
A26: =OFFSET('Indice prix'!$B$2,0,$G26) -> 010534647 | B26: =OFFSET('Indice prix'!$B$5,0,$G26) -> Mortiers et bétons secs | C26: =OFFSET('Indice prix'!$B$4,0,$G26) -> https://www.insee.fr/fr/statistiques/serie/010534647 | D26: =SUM(IF((INDEX(base_indices,1,)=$A26)*(INDEX(base_indices,,1)>=$D$2)*(INDEX(base_indices,,1)<=$E$2),INDEX(base_indices,,),0))/SUM(IF((INDEX(base_indices,1,)=$A26)*(INDEX(base_indices,,1)>=$F$2)*(INDEX(base_indices,,1)<=$G$2),INDEX(base_indices,,),0))-1 -> 0.01051939513 | E26: =SUM(IF((INDEX(base_indices,1,)=$A26)*(INDEX(base_indices,,1)>=$D$1)*(INDEX(base_indices,,1)<=$E$1),INDEX(base_indices,,),0))/SUM(IF((INDEX(base_indices,1,)=$A26)*(INDEX(base_indices,,1)>=$F$1)*(INDEX(base_indices,,1)<=$G$1),INDEX(base_indices,,),0))-1 -> 0.01662234043 | G26: 21 | I26: 010534696 | J26: Moteurs, génératrices, transfo. électr., matér. distrib., cmde électr. | K26: https://www.insee.fr/fr/statistiques/serie/010534696 | L26: 0.01429479034 | M26: 0.01261577771 | N26: =IF(SUM(IF((INDEX(compo,3,)=I26)*(INDEX(compo,,1)='Evol indices 3-6 mois glissants'!$D$7),INDEX(compo,,),0))>0,"x","") -> 
A27: =OFFSET('Indice prix'!$B$2,0,$G27) -> 010534662 | B27: =OFFSET('Indice prix'!$B$5,0,$G27) -> Travaux de fonderie de fonte | C27: =OFFSET('Indice prix'!$B$4,0,$G27) -> https://www.insee.fr/fr/statistiques/serie/010534662 | D27: =SUM(IF((INDEX(base_indices,1,)=$A27)*(INDEX(base_indices,,1)>=$D$2)*(INDEX(base_indices,,1)<=$E$2),INDEX(base_indices,,),0))/SUM(IF((INDEX(base_indices,1,)=$A27)*(INDEX(base_indices,,1)>=$F$2)*(INDEX(base_indices,,1)<=$G$2),INDEX(base_indices,,),0))-1 -> 0.04123365739 | E27: =SUM(IF((INDEX(base_indices,1,)=$A27)*(INDEX(base_indices,,1)>=$D$1)*(INDEX(base_indices,,1)<=$E$1),INDEX(base_indices,,),0))/SUM(IF((INDEX(base_indices,1,)=$A27)*(INDEX(base_indices,,1)>=$F$1)*(INDEX(base_indices,,1)<=$G$1),INDEX(base_indices,,),0))-1 -> 0.07031112674 | G27: 22 | I27: 010534698 | J27: Matériel de distribution et de commande électrique | K27: https://www.insee.fr/fr/statistiques/serie/010534698 | L27: 0.01261431725 | M27: 0.01430387794 | N27: =IF(SUM(IF((INDEX(compo,3,)=I27)*(INDEX(compo,,1)='Evol indices 3-6 mois glissants'!$D$7),INDEX(compo,,),0))>0,"x","") -> 
A28: =OFFSET('Indice prix'!$B$2,0,$G28) -> 010534638 | B28: =OFFSET('Indice prix'!$B$5,0,$G28) -> Tuiles, briques et produits de construction en terre cuite | C28: =OFFSET('Indice prix'!$B$4,0,$G28) -> https://www.insee.fr/fr/statistiques/serie/010534638 | D28: =SUM(IF((INDEX(base_indices,1,)=$A28)*(INDEX(base_indices,,1)>=$D$2)*(INDEX(base_indices,,1)<=$E$2),INDEX(base_indices,,),0))/SUM(IF((INDEX(base_indices,1,)=$A28)*(INDEX(base_indices,,1)>=$F$2)*(INDEX(base_indices,,1)<=$G$2),INDEX(base_indices,,),0))-1 -> 0.007643312102 | E28: =SUM(IF((INDEX(base_indices,1,)=$A28)*(INDEX(base_indices,,1)>=$D$1)*(INDEX(base_indices,,1)<=$E$1),INDEX(base_indices,,),0))/SUM(IF((INDEX(base_indices,1,)=$A28)*(INDEX(base_indices,,1)>=$F$1)*(INDEX(base_indices,,1)<=$G$1),INDEX(base_indices,,),0))-1 -> 0.02204928664 | G28: 23 | I28: 010534647 | J28: Mortiers et bétons secs | K28: https://www.insee.fr/fr/statistiques/serie/010534647 | L28: 0.01051939513 | M28: 0.01662234043 | N28: =IF(SUM(IF((INDEX(compo,3,)=I28)*(INDEX(compo,,1)='Evol indices 3-6 mois glissants'!$D$7),INDEX(compo,,),0))>0,"x","") -> 
A29: =OFFSET('Indice prix'!$B$2,0,$G29) -> 010534253 | B29: =OFFSET('Indice prix'!$B$5,0,$G29) -> Tuyaux d'assainissement | C29: =OFFSET('Indice prix'!$B$4,0,$G29) -> https://www.insee.fr/fr/statistiques/serie/010534253 | D29: =SUM(IF((INDEX(base_indices,1,)=$A29)*(INDEX(base_indices,,1)>=$D$2)*(INDEX(base_indices,,1)<=$E$2),INDEX(base_indices,,),0))/SUM(IF((INDEX(base_indices,1,)=$A29)*(INDEX(base_indices,,1)>=$F$2)*(INDEX(base_indices,,1)<=$G$2),INDEX(base_indices,,),0))-1 -> 0.01451905626 | E29: =SUM(IF((INDEX(base_indices,1,)=$A29)*(INDEX(base_indices,,1)>=$D$1)*(INDEX(base_indices,,1)<=$E$1),INDEX(base_indices,,),0))/SUM(IF((INDEX(base_indices,1,)=$A29)*(INDEX(base_indices,,1)>=$F$1)*(INDEX(base_indices,,1)<=$G$1),INDEX(base_indices,,),0))-1 -> 0.06203157391 | G29: 24 | I29: 001711009 | J29: Matériel | K29: https://www.insee.fr/fr/statistiques/serie/001711009 | L29: 0.007732755954 | M29: 0.02511054959 | N29: =IF(SUM(IF((INDEX(compo,3,)=I29)*(INDEX(compo,,1)='Evol indices 3-6 mois glissants'!$D$7),INDEX(compo,,),0))>0,"x","") -> x
A30: =OFFSET('Indice prix'!$B$2,0,$G30) -> 010534559 | B30: =OFFSET('Indice prix'!$B$5,0,$G30) -> Autres textiles n.c.a. | C30: =OFFSET('Indice prix'!$B$4,0,$G30) -> https://www.insee.fr/fr/statistiques/serie/010534559 | D30: =SUM(IF((INDEX(base_indices,1,)=$A30)*(INDEX(base_indices,,1)>=$D$2)*(INDEX(base_indices,,1)<=$E$2),INDEX(base_indices,,),0))/SUM(IF((INDEX(base_indices,1,)=$A30)*(INDEX(base_indices,,1)>=$F$2)*(INDEX(base_indices,,1)<=$G$2),INDEX(base_indices,,),0))-1 -> 0.006792219821 | E30: =SUM(IF((INDEX(base_indices,1,)=$A30)*(INDEX(base_indices,,1)>=$D$1)*(INDEX(base_indices,,1)<=$E$1),INDEX(base_indices,,),0))/SUM(IF((INDEX(base_indices,1,)=$A30)*(INDEX(base_indices,,1)>=$F$1)*(INDEX(base_indices,,1)<=$G$1),INDEX(base_indices,,),0))-1 -> 0.003086419753 | G30: 25 | I30: 010534638 | J30: Tuiles, briques et produits de construction en terre cuite | K30: https://www.insee.fr/fr/statistiques/serie/010534638 | L30: 0.007643312102 | M30: 0.02204928664 | N30: =IF(SUM(IF((INDEX(compo,3,)=I30)*(INDEX(compo,,1)='Evol indices 3-6 mois glissants'!$D$7),INDEX(compo,,),0))>0,"x","") -> 
A31: =OFFSET('Indice prix'!$B$2,0,$G31) -> 010534606 | B31: =OFFSET('Indice prix'!$B$5,0,$G31) -> Matières plastiques sous formes primaires | C31: =OFFSET('Indice prix'!$B$4,0,$G31) -> https://www.insee.fr/fr/statistiques/serie/010534606 | D31: =SUM(IF((INDEX(base_indices,1,)=$A31)*(INDEX(base_indices,,1)>=$D$2)*(INDEX(base_indices,,1)<=$E$2),INDEX(base_indices,,),0))/SUM(IF((INDEX(base_indices,1,)=$A31)*(INDEX(base_indices,,1)>=$F$2)*(INDEX(base_indices,,1)<=$G$2),INDEX(base_indices,,),0))-1 -> -0.00168959691 | E31: =SUM(IF((INDEX(base_indices,1,)=$A31)*(INDEX(base_indices,,1)>=$D$1)*(INDEX(base_indices,,1)<=$E$1),INDEX(base_indices,,),0))/SUM(IF((INDEX(base_indices,1,)=$A31)*(INDEX(base_indices,,1)>=$F$1)*(INDEX(base_indices,,1)<=$G$1),INDEX(base_indices,,),0))-1 -> 0.2653217179 | G31: 26 | I31: 010534645 | J31: Éléments en béton pour la construction | K31: https://www.insee.fr/fr/statistiques/serie/010534645 | L31: 0.007623888183 | M31: 0.01509797623 | N31: =IF(SUM(IF((INDEX(compo,3,)=I31)*(INDEX(compo,,1)='Evol indices 3-6 mois glissants'!$D$7),INDEX(compo,,),0))>0,"x","") -> 
A32: =OFFSET('Indice prix'!$B$2,0,$G32) -> 010534654 | B32: =OFFSET('Indice prix'!$B$5,0,$G32) -> Tubes, tuyaux, profilés creux et accessoires correspondants en acier | C32: =OFFSET('Indice prix'!$B$4,0,$G32) -> https://www.insee.fr/fr/statistiques/serie/010534654 | D32: =SUM(IF((INDEX(base_indices,1,)=$A32)*(INDEX(base_indices,,1)>=$D$2)*(INDEX(base_indices,,1)<=$E$2),INDEX(base_indices,,),0))/SUM(IF((INDEX(base_indices,1,)=$A32)*(INDEX(base_indices,,1)>=$F$2)*(INDEX(base_indices,,1)<=$G$2),INDEX(base_indices,,),0))-1 -> 0.02828813065 | E32: =SUM(IF((INDEX(base_indices,1,)=$A32)*(INDEX(base_indices,,1)>=$D$1)*(INDEX(base_indices,,1)<=$E$1),INDEX(base_indices,,),0))/SUM(IF((INDEX(base_indices,1,)=$A32)*(INDEX(base_indices,,1)>=$F$1)*(INDEX(base_indices,,1)<=$G$1),INDEX(base_indices,,),0))-1 -> 0.05827754108 | G32: 27 | I32: 010534559 | J32: Autres textiles n.c.a. | K32: https://www.insee.fr/fr/statistiques/serie/010534559 | L32: 0.006792219821 | M32: 0.003086419753 | N32: =IF(SUM(IF((INDEX(compo,3,)=I32)*(INDEX(compo,,1)='Evol indices 3-6 mois glissants'!$D$7),INDEX(compo,,),0))>0,"x","") -> 
A33: =OFFSET('Indice prix'!$B$2,0,$G33) -> 010534645 | B33: =OFFSET('Indice prix'!$B$5,0,$G33) -> Éléments en béton pour la construction | C33: =OFFSET('Indice prix'!$B$4,0,$G33) -> https://www.insee.fr/fr/statistiques/serie/010534645 | D33: =SUM(IF((INDEX(base_indices,1,)=$A33)*(INDEX(base_indices,,1)>=$D$2)*(INDEX(base_indices,,1)<=$E$2),INDEX(base_indices,,),0))/SUM(IF((INDEX(base_indices,1,)=$A33)*(INDEX(base_indices,,1)>=$F$2)*(INDEX(base_indices,,1)<=$G$2),INDEX(base_indices,,),0))-1 -> 0.007623888183 | E33: =SUM(IF((INDEX(base_indices,1,)=$A33)*(INDEX(base_indices,,1)>=$D$1)*(INDEX(base_indices,,1)<=$E$1),INDEX(base_indices,,),0))/SUM(IF((INDEX(base_indices,1,)=$A33)*(INDEX(base_indices,,1)>=$F$1)*(INDEX(base_indices,,1)<=$G$1),INDEX(base_indices,,),0))-1 -> 0.01509797623 | G33: 28 | I33: 001711011 | J33: Frais divers | K33: https://www.insee.fr/fr/statistiques/serie/001711011 | L33: 0.006012658228 | M33: 0.02225447508 | N33: =IF(SUM(IF((INDEX(compo,3,)=I33)*(INDEX(compo,,1)='Evol indices 3-6 mois glissants'!$D$7),INDEX(compo,,),0))>0,"x","") -> x
A34: =OFFSET('Indice prix'!$B$2,0,$G34) -> 010534330 | B34: =OFFSET('Indice prix'!$B$5,0,$G34) -> Fils et câbles d'énergie | C34: =OFFSET('Indice prix'!$B$4,0,$G34) -> https://www.insee.fr/fr/statistiques/serie/010534330 | D34: =SUM(IF((INDEX(base_indices,1,)=$A34)*(INDEX(base_indices,,1)>=$D$2)*(INDEX(base_indices,,1)<=$E$2),INDEX(base_indices,,),0))/SUM(IF((INDEX(base_indices,1,)=$A34)*(INDEX(base_indices,,1)>=$F$2)*(INDEX(base_indices,,1)<=$G$2),INDEX(base_indices,,),0))-1 -> 0.06436781609 | E34: =SUM(IF((INDEX(base_indices,1,)=$A34)*(INDEX(base_indices,,1)>=$D$1)*(INDEX(base_indices,,1)<=$E$1),INDEX(base_indices,,),0))/SUM(IF((INDEX(base_indices,1,)=$A34)*(INDEX(base_indices,,1)>=$F$1)*(INDEX(base_indices,,1)<=$G$1),INDEX(base_indices,,),0))-1 -> 0.1841107631 | G34: 29 | I34: 010534646 | J34: Béton prêt à l'emploi | K34: https://www.insee.fr/fr/statistiques/serie/010534646 | L34: 0.005969211436 | M34: 0.006462799496 | N34: =IF(SUM(IF((INDEX(compo,3,)=I34)*(INDEX(compo,,1)='Evol indices 3-6 mois glissants'!$D$7),INDEX(compo,,),0))>0,"x","") -> x
A35: =OFFSET('Indice prix'!$B$2,0,$G35) -> 010534696 | B35: =OFFSET('Indice prix'!$B$5,0,$G35) -> Moteurs, génératrices, transfo. électr., matér. distrib., cmde électr. | C35: =OFFSET('Indice prix'!$B$4,0,$G35) -> https://www.insee.fr/fr/statistiques/serie/010534696 | D35: =SUM(IF((INDEX(base_indices,1,)=$A35)*(INDEX(base_indices,,1)>=$D$2)*(INDEX(base_indices,,1)<=$E$2),INDEX(base_indices,,),0))/SUM(IF((INDEX(base_indices,1,)=$A35)*(INDEX(base_indices,,1)>=$F$2)*(INDEX(base_indices,,1)<=$G$2),INDEX(base_indices,,),0))-1 -> 0.01429479034 | E35: =SUM(IF((INDEX(base_indices,1,)=$A35)*(INDEX(base_indices,,1)>=$D$1)*(INDEX(base_indices,,1)<=$E$1),INDEX(base_indices,,),0))/SUM(IF((INDEX(base_indices,1,)=$A35)*(INDEX(base_indices,,1)>=$F$1)*(INDEX(base_indices,,1)<=$G$1),INDEX(base_indices,,),0))-1 -> 0.01261577771 | G35: 30 | I35: 001711943 | J35: Transports routiers | K35: https://www.insee.fr/fr/statistiques/serie/001711943 | L35: 0.002721499849 | M35: 0.0123815347 | N35: =IF(SUM(IF((INDEX(compo,3,)=I35)*(INDEX(compo,,1)='Evol indices 3-6 mois glissants'!$D$7),INDEX(compo,,),0))>0,"x","") -> x
A36: =OFFSET('Indice prix'!$B$2,0,$G36) -> 010534698 | B36: =OFFSET('Indice prix'!$B$5,0,$G36) -> Matériel de distribution et de commande électrique | C36: =OFFSET('Indice prix'!$B$4,0,$G36) -> https://www.insee.fr/fr/statistiques/serie/010534698 | D36: =SUM(IF((INDEX(base_indices,1,)=$A36)*(INDEX(base_indices,,1)>=$D$2)*(INDEX(base_indices,,1)<=$E$2),INDEX(base_indices,,),0))/SUM(IF((INDEX(base_indices,1,)=$A36)*(INDEX(base_indices,,1)>=$F$2)*(INDEX(base_indices,,1)<=$G$2),INDEX(base_indices,,),0))-1 -> 0.01261431725 | E36: =SUM(IF((INDEX(base_indices,1,)=$A36)*(INDEX(base_indices,,1)>=$D$1)*(INDEX(base_indices,,1)<=$E$1),INDEX(base_indices,,),0))/SUM(IF((INDEX(base_indices,1,)=$A36)*(INDEX(base_indices,,1)>=$F$1)*(INDEX(base_indices,,1)<=$G$1),INDEX(base_indices,,),0))-1 -> 0.01430387794 | G36: 31 | I36: 010534789 | J36: Traitement et élimination des déchets non dangereux | K36: https://www.insee.fr/fr/statistiques/serie/010534789 | L36: 0.0019768427 | M36: 0.02575604109 | N36: =IF(SUM(IF((INDEX(compo,3,)=I36)*(INDEX(compo,,1)='Evol indices 3-6 mois glissants'!$D$7),INDEX(compo,,),0))>0,"x","") -> 
A37: =OFFSET('Indice prix'!$B$2,0,$G37) -> 010534702 | B37: =OFFSET('Indice prix'!$B$5,0,$G37) -> Appareils d'éclairage électrique | C37: =OFFSET('Indice prix'!$B$4,0,$G37) -> https://www.insee.fr/fr/statistiques/serie/010534702 | D37: =SUM(IF((INDEX(base_indices,1,)=$A37)*(INDEX(base_indices,,1)>=$D$2)*(INDEX(base_indices,,1)<=$E$2),INDEX(base_indices,,),0))/SUM(IF((INDEX(base_indices,1,)=$A37)*(INDEX(base_indices,,1)>=$F$2)*(INDEX(base_indices,,1)<=$G$2),INDEX(base_indices,,),0))-1 -> -0.009605488851 | E37: =SUM(IF((INDEX(base_indices,1,)=$A37)*(INDEX(base_indices,,1)>=$D$1)*(INDEX(base_indices,,1)<=$E$1),INDEX(base_indices,,),0))/SUM(IF((INDEX(base_indices,1,)=$A37)*(INDEX(base_indices,,1)>=$F$1)*(INDEX(base_indices,,1)<=$G$1),INDEX(base_indices,,),0))-1 -> -0.01242553191 | G37: 32 | I37: 010536067 | J37: Sables et granulats | K37: https://www.insee.fr/fr/statistiques/serie/010536067 | L37: 0.001921229587 | M37: 0.005306319344 | N37: =IF(SUM(IF((INDEX(compo,3,)=I37)*(INDEX(compo,,1)='Evol indices 3-6 mois glissants'!$D$7),INDEX(compo,,),0))>0,"x","") -> 
A38: =OFFSET('Indice prix'!$B$2,0,$G38) -> 010535345 | B38: =OFFSET('Indice prix'!$B$5,0,$G38) -> Câbles de fibres optiques | C38: =OFFSET('Indice prix'!$B$4,0,$G38) -> https://www.insee.fr/fr/statistiques/serie/010535345 | D38: =SUM(IF((INDEX(base_indices,1,)=$A38)*(INDEX(base_indices,,1)>=$D$2)*(INDEX(base_indices,,1)<=$E$2),INDEX(base_indices,,),0))/SUM(IF((INDEX(base_indices,1,)=$A38)*(INDEX(base_indices,,1)>=$F$2)*(INDEX(base_indices,,1)<=$G$2),INDEX(base_indices,,),0))-1 -> -0.0009752925878 | E38: =SUM(IF((INDEX(base_indices,1,)=$A38)*(INDEX(base_indices,,1)>=$D$1)*(INDEX(base_indices,,1)<=$E$1),INDEX(base_indices,,),0))/SUM(IF((INDEX(base_indices,1,)=$A38)*(INDEX(base_indices,,1)>=$F$1)*(INDEX(base_indices,,1)<=$G$1),INDEX(base_indices,,),0))-1 -> -0.02797976604 | G38: 33 | I38: 5540998 | J38: Travail | K38: https://www.insee.fr/fr/statistiques/6020697 | L38: 0.0008158825129 | M38: -0.005676442763 | N38: =IF(SUM(IF((INDEX(compo,3,)=I38)*(INDEX(compo,,1)='Evol indices 3-6 mois glissants'!$D$7),INDEX(compo,,),0))>0,"x","") -> x
A39: =OFFSET('Indice prix'!$B$2,0,$G39) -> 010534180 | B39: =OFFSET('Indice prix'!$B$5,0,$G39) -> Peintures Industries | C39: =OFFSET('Indice prix'!$B$4,0,$G39) -> https://www.insee.fr/fr/statistiques/serie/010534180 | D39: =SUM(IF((INDEX(base_indices,1,)=$A39)*(INDEX(base_indices,,1)>=$D$2)*(INDEX(base_indices,,1)<=$E$2),INDEX(base_indices,,),0))/SUM(IF((INDEX(base_indices,1,)=$A39)*(INDEX(base_indices,,1)>=$F$2)*(INDEX(base_indices,,1)<=$G$2),INDEX(base_indices,,),0))-1 -> 0.0640684972 | E39: =SUM(IF((INDEX(base_indices,1,)=$A39)*(INDEX(base_indices,,1)>=$D$1)*(INDEX(base_indices,,1)<=$E$1),INDEX(base_indices,,),0))/SUM(IF((INDEX(base_indices,1,)=$A39)*(INDEX(base_indices,,1)>=$F$1)*(INDEX(base_indices,,1)<=$G$1),INDEX(base_indices,,),0))-1 -> 0.05940293984 | G39: 34 | I39: 010534614 | J39: Produits explosifs | K39: https://www.insee.fr/fr/statistiques/serie/010534614 | L39: 0.0006387735548 | M39: 0.007884151247 | N39: =IF(SUM(IF((INDEX(compo,3,)=I39)*(INDEX(compo,,1)='Evol indices 3-6 mois glissants'!$D$7),INDEX(compo,,),0))>0,"x","") -> 
A40: =OFFSET('Indice prix'!$B$2,0,$G40) -> 010534267 | B40: =OFFSET('Indice prix'!$B$5,0,$G40) -> Produits sidérurgiques en acier non allié | C40: =OFFSET('Indice prix'!$B$4,0,$G40) -> https://www.insee.fr/fr/statistiques/serie/010534267 | D40: =SUM(IF((INDEX(base_indices,1,)=$A40)*(INDEX(base_indices,,1)>=$D$2)*(INDEX(base_indices,,1)<=$E$2),INDEX(base_indices,,),0))/SUM(IF((INDEX(base_indices,1,)=$A40)*(INDEX(base_indices,,1)>=$F$2)*(INDEX(base_indices,,1)<=$G$2),INDEX(base_indices,,),0))-1 -> 0.09625275533 | E40: =SUM(IF((INDEX(base_indices,1,)=$A40)*(INDEX(base_indices,,1)>=$D$1)*(INDEX(base_indices,,1)<=$E$1),INDEX(base_indices,,),0))/SUM(IF((INDEX(base_indices,1,)=$A40)*(INDEX(base_indices,,1)>=$F$1)*(INDEX(base_indices,,1)<=$G$1),INDEX(base_indices,,),0))-1 -> 0.2214927929 | G40: 35 | I40: 001565195 | J40: Travail activités spécialisées | K40: https://www.insee.fr/fr/statistiques/serie/001565195 | L40: -0.0002707092583 | M40: -0.003641758835 | N40: =IF(SUM(IF((INDEX(compo,3,)=I40)*(INDEX(compo,,1)='Evol indices 3-6 mois glissants'!$D$7),INDEX(compo,,),0))>0,"x","") -> 
A41: =OFFSET('Indice prix'!$B$2,0,$G41) -> 010536480 | B41: =OFFSET('Indice prix'!$B$5,0,$G41) -> Tôles quarto et autres produits plats en aciers non alliés de qualité | C41: =OFFSET('Indice prix'!$B$4,0,$G41) -> https://www.insee.fr/fr/statistiques/serie/010536480 | D41: =SUM(IF((INDEX(base_indices,1,)=$A41)*(INDEX(base_indices,,1)>=$D$2)*(INDEX(base_indices,,1)<=$E$2),INDEX(base_indices,,),0))/SUM(IF((INDEX(base_indices,1,)=$A41)*(INDEX(base_indices,,1)>=$F$2)*(INDEX(base_indices,,1)<=$G$2),INDEX(base_indices,,),0))-1 -> 0.1917534915 | E41: =SUM(IF((INDEX(base_indices,1,)=$A41)*(INDEX(base_indices,,1)>=$D$1)*(INDEX(base_indices,,1)<=$E$1),INDEX(base_indices,,),0))/SUM(IF((INDEX(base_indices,1,)=$A41)*(INDEX(base_indices,,1)>=$F$1)*(INDEX(base_indices,,1)<=$G$1),INDEX(base_indices,,),0))-1 -> 0.4941816533 | G41: 36 | I41: 010535345 | J41: Câbles de fibres optiques | K41: https://www.insee.fr/fr/statistiques/serie/010535345 | L41: -0.0009752925878 | M41: -0.02797976604 | N41: =IF(SUM(IF((INDEX(compo,3,)=I41)*(INDEX(compo,,1)='Evol indices 3-6 mois glissants'!$D$7),INDEX(compo,,),0))>0,"x","") -> 
A42: =OFFSET('Indice prix'!$B$2,0,$G42) -> 010534667 | B42: =OFFSET('Indice prix'!$B$5,0,$G42) -> Éléments en métal pour la construction | C42: =OFFSET('Indice prix'!$B$4,0,$G42) -> https://www.insee.fr/fr/statistiques/serie/010534667 | D42: =SUM(IF((INDEX(base_indices,1,)=$A42)*(INDEX(base_indices,,1)>=$D$2)*(INDEX(base_indices,,1)<=$E$2),INDEX(base_indices,,),0))/SUM(IF((INDEX(base_indices,1,)=$A42)*(INDEX(base_indices,,1)>=$F$2)*(INDEX(base_indices,,1)<=$G$2),INDEX(base_indices,,),0))-1 -> 0.04878752887 | E42: =SUM(IF((INDEX(base_indices,1,)=$A42)*(INDEX(base_indices,,1)>=$D$1)*(INDEX(base_indices,,1)<=$E$1),INDEX(base_indices,,),0))/SUM(IF((INDEX(base_indices,1,)=$A42)*(INDEX(base_indices,,1)>=$F$1)*(INDEX(base_indices,,1)<=$G$1),INDEX(base_indices,,),0))-1 -> 0.06786036714 | G42: 37 | I42: 010534606 | J42: Matières plastiques sous formes primaires | K42: https://www.insee.fr/fr/statistiques/serie/010534606 | L42: -0.00168959691 | M42: 0.2653217179 | N42: =IF(SUM(IF((INDEX(compo,3,)=I42)*(INDEX(compo,,1)='Evol indices 3-6 mois glissants'!$D$7),INDEX(compo,,),0))>0,"x","") -> 
A43: =OFFSET('Indice prix'!$B$2,0,$G43) -> 001763781 | B43: =OFFSET('Indice prix'!$B$5,0,$G43) -> Restaurants et hôtels | C43: =OFFSET('Indice prix'!$B$4,0,$G43) -> https://www.insee.fr/fr/statistiques/serie/001763781 | D43: =SUM(IF((INDEX(base_indices,1,)=$A43)*(INDEX(base_indices,,1)>=$D$2)*(INDEX(base_indices,,1)<=$E$2),INDEX(base_indices,,),0))/SUM(IF((INDEX(base_indices,1,)=$A43)*(INDEX(base_indices,,1)>=$F$2)*(INDEX(base_indices,,1)<=$G$2),INDEX(base_indices,,),0))-1 -> 0.02018253093 | E43: =SUM(IF((INDEX(base_indices,1,)=$A43)*(INDEX(base_indices,,1)>=$D$1)*(INDEX(base_indices,,1)<=$E$1),INDEX(base_indices,,),0))/SUM(IF((INDEX(base_indices,1,)=$A43)*(INDEX(base_indices,,1)>=$F$1)*(INDEX(base_indices,,1)<=$G$1),INDEX(base_indices,,),0))-1 -> 0.02579932819 | G43: 38 | I43: 010534784 | J43: Collecte, traitement et élimination des déchets ; récupération de matériaux | K43: https://www.insee.fr/fr/statistiques/serie/010534784 | L43: -0.00575815739 | M43: 0.09980341751 | N43: =IF(SUM(IF((INDEX(compo,3,)=I43)*(INDEX(compo,,1)='Evol indices 3-6 mois glissants'!$D$7),INDEX(compo,,),0))>0,"x","") -> 
A44: =OFFSET('Indice prix'!$B$2,0,$G44) -> 010534789 | B44: =OFFSET('Indice prix'!$B$5,0,$G44) -> Traitement et élimination des déchets non dangereux | C44: =OFFSET('Indice prix'!$B$4,0,$G44) -> https://www.insee.fr/fr/statistiques/serie/010534789 | D44: =SUM(IF((INDEX(base_indices,1,)=$A44)*(INDEX(base_indices,,1)>=$D$2)*(INDEX(base_indices,,1)<=$E$2),INDEX(base_indices,,),0))/SUM(IF((INDEX(base_indices,1,)=$A44)*(INDEX(base_indices,,1)>=$F$2)*(INDEX(base_indices,,1)<=$G$2),INDEX(base_indices,,),0))-1 -> 0.0019768427 | E44: =SUM(IF((INDEX(base_indices,1,)=$A44)*(INDEX(base_indices,,1)>=$D$1)*(INDEX(base_indices,,1)<=$E$1),INDEX(base_indices,,),0))/SUM(IF((INDEX(base_indices,1,)=$A44)*(INDEX(base_indices,,1)>=$F$1)*(INDEX(base_indices,,1)<=$G$1),INDEX(base_indices,,),0))-1 -> 0.02575604109 | G44: 39 | I44: 010534702 | J44: Appareils d'éclairage électrique | K44: https://www.insee.fr/fr/statistiques/serie/010534702 | L44: -0.009605488851 | M44: -0.01242553191 | N44: =IF(SUM(IF((INDEX(compo,3,)=I44)*(INDEX(compo,,1)='Evol indices 3-6 mois glissants'!$D$7),INDEX(compo,,),0))>0,"x","") -> 
A45: =OFFSET('Indice prix'!$B$2,0,$G45) -> 010534784 | B45: =OFFSET('Indice prix'!$B$5,0,$G45) -> Collecte, traitement et élimination des déchets ; récupération de matériaux | C45: =OFFSET('Indice prix'!$B$4,0,$G45) -> https://www.insee.fr/fr/statistiques/serie/010534784 | D45: =SUM(IF((INDEX(base_indices,1,)=$A45)*(INDEX(base_indices,,1)>=$D$2)*(INDEX(base_indices,,1)<=$E$2),INDEX(base_indices,,),0))/SUM(IF((INDEX(base_indices,1,)=$A45)*(INDEX(base_indices,,1)>=$F$2)*(INDEX(base_indices,,1)<=$G$2),INDEX(base_indices,,),0))-1 -> -0.00575815739 | E45: =SUM(IF((INDEX(base_indices,1,)=$A45)*(INDEX(base_indices,,1)>=$D$1)*(INDEX(base_indices,,1)<=$E$1),INDEX(base_indices,,),0))/SUM(IF((INDEX(base_indices,1,)=$A45)*(INDEX(base_indices,,1)>=$F$1)*(INDEX(base_indices,,1)<=$G$1),INDEX(base_indices,,),0))-1 -> 0.09980341751 | G45: 40 | I45: 010534769 | J45: Électricité vendue aux entreprises consommatrices finales | K45: https://www.insee.fr/fr/statistiques/serie/010534769 | L45: -0.02103418054 | M45: -0.133981079 | N45: =IF(SUM(IF((INDEX(compo,3,)=I45)*(INDEX(compo,,1)='Evol indices 3-6 mois glissants'!$D$7),INDEX(compo,,),0))>0,"x","") -> x

Sheet Index depuis janvier (hidden)
C1: 2021-01-01 | D1: =DATE(2021,MONTH(date),1) -> 2021-10-01 | E1: 2019-01-01 | F1: =DATE(2019,MONTH(date),1) -> 2019-10-01
C2: 2021-01-01 | D2: =DATE(2021,MONTH(date),1) -> 2021-10-01 | E2: 2020-01-01 | F2: =DATE(2020,MONTH(date),1) -> 2020-10-01
C4: / 2020 | D4: / 2019
A5: TP01 | B5: =VLOOKUP(A5,'Noms index'!$A$1:$B$23,2,FALSE) -> Index général tous travaux | C5: =SUM(IF((INDEX(base_index,1,)=$A5)*(INDEX(base_index,,1)>='Index depuis janvier'!$C$2)*(INDEX(base_index,,1)<='Index depuis janvier'!$D$2),INDEX(base_index,,),0))/SUM(IF((INDEX(base_index,1,)=$A5)*(INDEX(base_index,,1)>='Index depuis janvier'!$E$2)*(INDEX(base_index,,1)<='Index depuis janvier'!$F$2),INDEX(base_index,,),0))-1 -> 0.04137115839 | D5: =SUM(IF((INDEX(base_index,1,)=$A5)*(INDEX(base_index,,1)>='Index depuis janvier'!$C$1)*(INDEX(base_index,,1)<='Index depuis janvier'!$D$1),INDEX(base_index,,),0))/SUM(IF((INDEX(base_index,1,)=$A5)*(INDEX(base_index,,1)>='Index depuis janvier'!$E$1)*(INDEX(base_index,,1)<='Index depuis janvier'!$F$1),INDEX(base_index,,),0))-1 -> 0.03031666067 | E5: https://www.insee.fr/fr/statistiques/serie/001711007
A6: TP02 | B6: =VLOOKUP(A6,'Noms index'!$A$1:$B$23,2,FALSE) -> Travaux de génie civil et d’ouvrages d’art neufs ou rénovation | C6: =SUM(IF((INDEX(base_index,1,)=$A6)*(INDEX(base_index,,1)>='Index depuis janvier'!$C$2)*(INDEX(base_index,,1)<='Index depuis janvier'!$D$2),INDEX(base_index,,),0))/SUM(IF((INDEX(base_index,1,)=$A6)*(INDEX(base_index,,1)>='Index depuis janvier'!$E$2)*(INDEX(base_index,,1)<='Index depuis janvier'!$F$2),INDEX(base_index,,),0))-1 -> 0.05320266013 | D6: =SUM(IF((INDEX(base_index,1,)=$A6)*(INDEX(base_index,,1)>='Index depuis janvier'!$C$1)*(INDEX(base_index,,1)<='Index depuis janvier'!$D$1),INDEX(base_index,,),0))/SUM(IF((INDEX(base_index,1,)=$A6)*(INDEX(base_index,,1)>='Index depuis janvier'!$E$1)*(INDEX(base_index,,1)<='Index depuis janvier'!$F$1),INDEX(base_index,,),0))-1 -> 0.05421739511 | E6: https://www.insee.fr/fr/statistiques/serie/001710987
A7: TP03a | B7: =VLOOKUP(A7,'Noms index'!$A$1:$B$23,2,FALSE) -> Grands terrassements | C7: =SUM(IF((INDEX(base_index,1,)=$A7)*(INDEX(base_index,,1)>='Index depuis janvier'!$C$2)*(INDEX(base_index,,1)<='Index depuis janvier'!$D$2),INDEX(base_index,,),0))/SUM(IF((INDEX(base_index,1,)=$A7)*(INDEX(base_index,,1)>='Index depuis janvier'!$E$2)*(INDEX(base_index,,1)<='Index depuis janvier'!$F$2),INDEX(base_index,,),0))-1 -> 0.02790443188 | D7: =SUM(IF((INDEX(base_index,1,)=$A7)*(INDEX(base_index,,1)>='Index depuis janvier'!$C$1)*(INDEX(base_index,,1)<='Index depuis janvier'!$D$1),INDEX(base_index,,),0))/SUM(IF((INDEX(base_index,1,)=$A7)*(INDEX(base_index,,1)>='Index depuis janvier'!$E$1)*(INDEX(base_index,,1)<='Index depuis janvier'!$F$1),INDEX(base_index,,),0))-1 -> 0.01999819021 | E7: https://www.insee.fr/fr/statistiques/serie/001710988
A8: TP03b | B8: =VLOOKUP(A8,'Noms index'!$A$1:$B$23,2,FALSE) -> Travaux à l’explosif | C8: =SUM(IF((INDEX(base_index,1,)=$A8)*(INDEX(base_index,,1)>='Index depuis janvier'!$C$2)*(INDEX(base_index,,1)<='Index depuis janvier'!$D$2),INDEX(base_index,,),0))/SUM(IF((INDEX(base_index,1,)=$A8)*(INDEX(base_index,,1)>='Index depuis janvier'!$E$2)*(INDEX(base_index,,1)<='Index depuis janvier'!$F$2),INDEX(base_index,,),0))-1 -> 0.01838440111 | D8: =SUM(IF((INDEX(base_index,1,)=$A8)*(INDEX(base_index,,1)>='Index depuis janvier'!$C$1)*(INDEX(base_index,,1)<='Index depuis janvier'!$D$1),INDEX(base_index,,),0))/SUM(IF((INDEX(base_index,1,)=$A8)*(INDEX(base_index,,1)>='Index depuis janvier'!$E$1)*(INDEX(base_index,,1)<='Index depuis janvier'!$F$1),INDEX(base_index,,),0))-1 -> 0.01236846963 | E8: https://www.insee.fr/fr/statistiques/serie/001710988 | G8: =_xlfn._xlws.SORT('Index depuis janvier'!$A$5:$E$27,3,-1) -> TP07b | H8: Travaux de génie civil, béton et acier pour ouvrages maritimes | I8: 0.2205266308 | J8: 0.1590263307 | K8: https://www.insee.fr/fr/statistiques/serie/001710995
A9: TP04 | B9: =VLOOKUP(A9,'Noms index'!$A$1:$B$23,2,FALSE) -> Fondations et travaux géotechniques | C9: =SUM(IF((INDEX(base_index,1,)=$A9)*(INDEX(base_index,,1)>='Index depuis janvier'!$C$2)*(INDEX(base_index,,1)<='Index depuis janvier'!$D$2),INDEX(base_index,,),0))/SUM(IF((INDEX(base_index,1,)=$A9)*(INDEX(base_index,,1)>='Index depuis janvier'!$E$2)*(INDEX(base_index,,1)<='Index depuis janvier'!$F$2),INDEX(base_index,,),0))-1 -> 0.06691987701 | D9: =SUM(IF((INDEX(base_index,1,)=$A9)*(INDEX(base_index,,1)>='Index depuis janvier'!$C$1)*(INDEX(base_index,,1)<='Index depuis janvier'!$D$1),INDEX(base_index,,),0))/SUM(IF((INDEX(base_index,1,)=$A9)*(INDEX(base_index,,1)>='Index depuis janvier'!$E$1)*(INDEX(base_index,,1)<='Index depuis janvier'!$F$1),INDEX(base_index,,),0))-1 -> 0.05480554314 | E9: https://www.insee.fr/fr/statistiques/serie/001710990 | G9: TP13 | H9: Charpentes et ouvrages d’art métalliques | I9: 0.1175406872 | J9: 0.1018989035 | K9: https://www.insee.fr/fr/statistiques/serie/001711005
A10: TP05a | B10: =VLOOKUP(A10,'Noms index'!$A$1:$B$23,2,FALSE) -> Travaux en souterrains traditionnels | C10: =SUM(IF((INDEX(base_index,1,)=$A10)*(INDEX(base_index,,1)>='Index depuis janvier'!$C$2)*(INDEX(base_index,,1)<='Index depuis janvier'!$D$2),INDEX(base_index,,),0))/SUM(IF((INDEX(base_index,1,)=$A10)*(INDEX(base_index,,1)>='Index depuis janvier'!$E$2)*(INDEX(base_index,,1)<='Index depuis janvier'!$F$2),INDEX(base_index,,),0))-1 -> 0.04461965774 | D10: =SUM(IF((INDEX(base_index,1,)=$A10)*(INDEX(base_index,,1)>='Index depuis janvier'!$C$1)*(INDEX(base_index,,1)<='Index depuis janvier'!$D$1),INDEX(base_index,,),0))/SUM(IF((INDEX(base_index,1,)=$A10)*(INDEX(base_index,,1)>='Index depuis janvier'!$E$1)*(INDEX(base_index,,1)<='Index depuis janvier'!$F$1),INDEX(base_index,,),0))-1 -> 0.04387142985 | E10: https://www.insee.fr/fr/statistiques/serie/001710991 | G10: TP10c | H10: Réhabilitation de canalisations non visitables | I10: 0.1155588426 | J10: 0.07846992582 | K10: https://www.insee.fr/fr/statistiques/serie/001711000
A11: TP05b | B11: =VLOOKUP(A11,'Noms index'!$A$1:$B$23,2,FALSE) -> Travaux en souterrains avec tunnelier | C11: =SUM(IF((INDEX(base_index,1,)=$A11)*(INDEX(base_index,,1)>='Index depuis janvier'!$C$2)*(INDEX(base_index,,1)<='Index depuis janvier'!$D$2),INDEX(base_index,,),0))/SUM(IF((INDEX(base_index,1,)=$A11)*(INDEX(base_index,,1)>='Index depuis janvier'!$E$2)*(INDEX(base_index,,1)<='Index depuis janvier'!$F$2),INDEX(base_index,,),0))-1 -> 0.04398563734 | D11: =SUM(IF((INDEX(base_index,1,)=$A11)*(INDEX(base_index,,1)>='Index depuis janvier'!$C$1)*(INDEX(base_index,,1)<='Index depuis janvier'!$D$1),INDEX(base_index,,),0))/SUM(IF((INDEX(base_index,1,)=$A11)*(INDEX(base_index,,1)>='Index depuis janvier'!$E$1)*(INDEX(base_index,,1)<='Index depuis janvier'!$F$1),INDEX(base_index,,),0))-1 -> 0.04342364974 | E11: https://www.insee.fr/fr/statistiques/serie/001710992 | G11: TP09 | H11: Fabrication et mise en œuvre d’enrobés | I11: 0.07347017073 | J11: 0.02397072278 | K11: https://www.insee.fr/fr/statistiques/serie/001710997
A12: TP06a | B12: =VLOOKUP(A12,'Noms index'!$A$1:$B$23,2,FALSE) -> Grands dragages maritimes | C12: =SUM(IF((INDEX(base_index,1,)=$A12)*(INDEX(base_index,,1)>='Index depuis janvier'!$C$2)*(INDEX(base_index,,1)<='Index depuis janvier'!$D$2),INDEX(base_index,,),0))/SUM(IF((INDEX(base_index,1,)=$A12)*(INDEX(base_index,,1)>='Index depuis janvier'!$E$2)*(INDEX(base_index,,1)<='Index depuis janvier'!$F$2),INDEX(base_index,,),0))-1 -> 0.07292351009 | D12: =SUM(IF((INDEX(base_index,1,)=$A12)*(INDEX(base_index,,1)>='Index depuis janvier'!$C$1)*(INDEX(base_index,,1)<='Index depuis janvier'!$D$1),INDEX(base_index,,),0))/SUM(IF((INDEX(base_index,1,)=$A12)*(INDEX(base_index,,1)>='Index depuis janvier'!$E$1)*(INDEX(base_index,,1)<='Index depuis janvier'!$F$1),INDEX(base_index,,),0))-1 -> 0.01203966006 | E12: https://www.insee.fr/fr/statistiques/serie/001710993 | G12: TP06a | H12: Grands dragages maritimes | I12: 0.07292351009 | J12: 0.01203966006 | K12: https://www.insee.fr/fr/statistiques/serie/001710993
A13: TP06b | B13: =VLOOKUP(A13,'Noms index'!$A$1:$B$23,2,FALSE) -> Dragages fluviaux et petits dragages maritimes | C13: =SUM(IF((INDEX(base_index,1,)=$A13)*(INDEX(base_index,,1)>='Index depuis janvier'!$C$2)*(INDEX(base_index,,1)<='Index depuis janvier'!$D$2),INDEX(base_index,,),0))/SUM(IF((INDEX(base_index,1,)=$A13)*(INDEX(base_index,,1)>='Index depuis janvier'!$E$2)*(INDEX(base_index,,1)<='Index depuis janvier'!$F$2),INDEX(base_index,,),0))-1 -> 0.03047814335 | D13: =SUM(IF((INDEX(base_index,1,)=$A13)*(INDEX(base_index,,1)>='Index depuis janvier'!$C$1)*(INDEX(base_index,,1)<='Index depuis janvier'!$D$1),INDEX(base_index,,),0))/SUM(IF((INDEX(base_index,1,)=$A13)*(INDEX(base_index,,1)>='Index depuis janvier'!$E$1)*(INDEX(base_index,,1)<='Index depuis janvier'!$F$1),INDEX(base_index,,),0))-1 -> 0.01217614209 | E13: https://www.insee.fr/fr/statistiques/serie/001710994 | G13: TP04 | H13: Fondations et travaux géotechniques | I13: 0.06691987701 | J13: 0.05480554314 | K13: https://www.insee.fr/fr/statistiques/serie/001710990
A14: TP07b | B14: =VLOOKUP(A14,'Noms index'!$A$1:$B$23,2,FALSE) -> Travaux de génie civil, béton et acier pour ouvrages maritimes | C14: =SUM(IF((INDEX(base_index,1,)=$A14)*(INDEX(base_index,,1)>='Index depuis janvier'!$C$2)*(INDEX(base_index,,1)<='Index depuis janvier'!$D$2),INDEX(base_index,,),0))/SUM(IF((INDEX(base_index,1,)=$A14)*(INDEX(base_index,,1)>='Index depuis janvier'!$E$2)*(INDEX(base_index,,1)<='Index depuis janvier'!$F$2),INDEX(base_index,,),0))-1 -> 0.2205266308 | D14: =SUM(IF((INDEX(base_index,1,)=$A14)*(INDEX(base_index,,1)>='Index depuis janvier'!$C$1)*(INDEX(base_index,,1)<='Index depuis janvier'!$D$1),INDEX(base_index,,),0))/SUM(IF((INDEX(base_index,1,)=$A14)*(INDEX(base_index,,1)>='Index depuis janvier'!$E$1)*(INDEX(base_index,,1)<='Index depuis janvier'!$F$1),INDEX(base_index,,),0))-1 -> 0.1590263307 | E14: https://www.insee.fr/fr/statistiques/serie/001710995 | G14: TP02 | H14: Travaux de génie civil et d’ouvrages d’art neufs ou rénovation | I14: 0.05320266013 | J14: 0.05421739511 | K14: https://www.insee.fr/fr/statistiques/serie/001710987
A15: TP08 | B15: =VLOOKUP(A15,'Noms index'!$A$1:$B$23,2,FALSE) -> Travaux d’aménagement et entretien de voirie | C15: =SUM(IF((INDEX(base_index,1,)=$A15)*(INDEX(base_index,,1)>='Index depuis janvier'!$C$2)*(INDEX(base_index,,1)<='Index depuis janvier'!$D$2),INDEX(base_index,,),0))/SUM(IF((INDEX(base_index,1,)=$A15)*(INDEX(base_index,,1)>='Index depuis janvier'!$E$2)*(INDEX(base_index,,1)<='Index depuis janvier'!$F$2),INDEX(base_index,,),0))-1 -> 0.04184022957 | D15: =SUM(IF((INDEX(base_index,1,)=$A15)*(INDEX(base_index,,1)>='Index depuis janvier'!$C$1)*(INDEX(base_index,,1)<='Index depuis janvier'!$D$1),INDEX(base_index,,),0))/SUM(IF((INDEX(base_index,1,)=$A15)*(INDEX(base_index,,1)>='Index depuis janvier'!$E$1)*(INDEX(base_index,,1)<='Index depuis janvier'!$F$1),INDEX(base_index,,),0))-1 -> 0.02346094389 | E15: https://www.insee.fr/fr/statistiques/serie/001710996 | G15: TP05a | H15: Travaux en souterrains traditionnels | I15: 0.04461965774 | J15: 0.04387142985 | K15: https://www.insee.fr/fr/statistiques/serie/001710991
A16: TP09 | B16: =VLOOKUP(A16,'Noms index'!$A$1:$B$23,2,FALSE) -> Fabrication et mise en œuvre d’enrobés | C16: =SUM(IF((INDEX(base_index,1,)=$A16)*(INDEX(base_index,,1)>='Index depuis janvier'!$C$2)*(INDEX(base_index,,1)<='Index depuis janvier'!$D$2),INDEX(base_index,,),0))/SUM(IF((INDEX(base_index,1,)=$A16)*(INDEX(base_index,,1)>='Index depuis janvier'!$E$2)*(INDEX(base_index,,1)<='Index depuis janvier'!$F$2),INDEX(base_index,,),0))-1 -> 0.07347017073 | D16: =SUM(IF((INDEX(base_index,1,)=$A16)*(INDEX(base_index,,1)>='Index depuis janvier'!$C$1)*(INDEX(base_index,,1)<='Index depuis janvier'!$D$1),INDEX(base_index,,),0))/SUM(IF((INDEX(base_index,1,)=$A16)*(INDEX(base_index,,1)>='Index depuis janvier'!$E$1)*(INDEX(base_index,,1)<='Index depuis janvier'!$F$1),INDEX(base_index,,),0))-1 -> 0.02397072278 | E16: https://www.insee.fr/fr/statistiques/serie/001710997 | G16: TP05b | H16: Travaux en souterrains avec tunnelier | I16: 0.04398563734 | J16: 0.04342364974 | K16: https://www.insee.fr/fr/statistiques/serie/001710992
A17: TP10a | B17: =VLOOKUP(A17,'Noms index'!$A$1:$B$23,2,FALSE) -> Canalisations, assainissement et adduction d’eau avec fourniture de tuyaux | C17: =SUM(IF((INDEX(base_index,1,)=$A17)*(INDEX(base_index,,1)>='Index depuis janvier'!$C$2)*(INDEX(base_index,,1)<='Index depuis janvier'!$D$2),INDEX(base_index,,),0))/SUM(IF((INDEX(base_index,1,)=$A17)*(INDEX(base_index,,1)>='Index depuis janvier'!$E$2)*(INDEX(base_index,,1)<='Index depuis janvier'!$F$2),INDEX(base_index,,),0))-1 -> 0.03048890493 | D17: =SUM(IF((INDEX(base_index,1,)=$A17)*(INDEX(base_index,,1)>='Index depuis janvier'!$C$1)*(INDEX(base_index,,1)<='Index depuis janvier'!$D$1),INDEX(base_index,,),0))/SUM(IF((INDEX(base_index,1,)=$A17)*(INDEX(base_index,,1)>='Index depuis janvier'!$E$1)*(INDEX(base_index,,1)<='Index depuis janvier'!$F$1),INDEX(base_index,,),0))-1 -> 0.03076784264 | E17: https://www.insee.fr/fr/statistiques/serie/001710998 | G17: TP08 | H17: Travaux d’aménagement et entretien de voirie | I17: 0.04184022957 | J17: 0.02346094389 | K17: https://www.insee.fr/fr/statistiques/serie/001710996
A18: TP10b | B18: =VLOOKUP(A18,'Noms index'!$A$1:$B$23,2,FALSE) -> Canalisations sans fourniture de tuyaux | C18: =SUM(IF((INDEX(base_index,1,)=$A18)*(INDEX(base_index,,1)>='Index depuis janvier'!$C$2)*(INDEX(base_index,,1)<='Index depuis janvier'!$D$2),INDEX(base_index,,),0))/SUM(IF((INDEX(base_index,1,)=$A18)*(INDEX(base_index,,1)>='Index depuis janvier'!$E$2)*(INDEX(base_index,,1)<='Index depuis janvier'!$F$2),INDEX(base_index,,),0))-1 -> 0.02137431549 | D18: =SUM(IF((INDEX(base_index,1,)=$A18)*(INDEX(base_index,,1)>='Index depuis janvier'!$C$1)*(INDEX(base_index,,1)<='Index depuis janvier'!$D$1),INDEX(base_index,,),0))/SUM(IF((INDEX(base_index,1,)=$A18)*(INDEX(base_index,,1)>='Index depuis janvier'!$E$1)*(INDEX(base_index,,1)<='Index depuis janvier'!$F$1),INDEX(base_index,,),0))-1 -> 0.02218686467 | E18: https://www.insee.fr/fr/statistiques/serie/001710999 | G18: TP01 | H18: Index général tous travaux | I18: 0.04137115839 | J18: 0.03031666067 | K18: https://www.insee.fr/fr/statistiques/serie/001711007
A19: TP10c | B19: =VLOOKUP(A19,'Noms index'!$A$1:$B$23,2,FALSE) -> Réhabilitation de canalisations non visitables | C19: =SUM(IF((INDEX(base_index,1,)=$A19)*(INDEX(base_index,,1)>='Index depuis janvier'!$C$2)*(INDEX(base_index,,1)<='Index depuis janvier'!$D$2),INDEX(base_index,,),0))/SUM(IF((INDEX(base_index,1,)=$A19)*(INDEX(base_index,,1)>='Index depuis janvier'!$E$2)*(INDEX(base_index,,1)<='Index depuis janvier'!$F$2),INDEX(base_index,,),0))-1 -> 0.1155588426 | D19: =SUM(IF((INDEX(base_index,1,)=$A19)*(INDEX(base_index,,1)>='Index depuis janvier'!$C$1)*(INDEX(base_index,,1)<='Index depuis janvier'!$D$1),INDEX(base_index,,),0))/SUM(IF((INDEX(base_index,1,)=$A19)*(INDEX(base_index,,1)>='Index depuis janvier'!$E$1)*(INDEX(base_index,,1)<='Index depuis janvier'!$F$1),INDEX(base_index,,),0))-1 -> 0.07846992582 | E19: https://www.insee.fr/fr/statistiques/serie/001711000 | G19: TP11 | H19: Canalisations grandes distances de transport / transfert avec fourniture de tuyaux | I19: 0.04027166635 | J19: 0.0325674136 | K19: https://www.insee.fr/fr/statistiques/serie/001711001
A20: TP10d | B20: =VLOOKUP(A20,'Noms index'!$A$1:$B$23,2,FALSE) -> Réseaux de chauffage et de froid avec fourniture de tuyaux | C20: =SUM(IF((INDEX(base_index,1,)=$A20)*(INDEX(base_index,,1)>='Index depuis janvier'!$C$2)*(INDEX(base_index,,1)<='Index depuis janvier'!$D$2),INDEX(base_index,,),0))/SUM(IF((INDEX(base_index,1,)=$A20)*(INDEX(base_index,,1)>='Index depuis janvier'!$E$2)*(INDEX(base_index,,1)<='Index depuis janvier'!$F$2),INDEX(base_index,,),0))-1 -> 0.03336184773 | D20: - | E20: https://www.insee.fr/fr/statistiques/serie/010605983 | G20: TP10d | H20: Réseaux de chauffage et de froid avec fourniture de tuyaux | I20: 0.03336184773 | J20: - | K20: https://www.insee.fr/fr/statistiques/serie/010605983
A21: TP11 | B21: =VLOOKUP(A21,'Noms index'!$A$1:$B$23,2,FALSE) -> Canalisations grandes distances de transport / transfert avec fourniture de tuyaux | C21: =SUM(IF((INDEX(base_index,1,)=$A21)*(INDEX(base_index,,1)>='Index depuis janvier'!$C$2)*(INDEX(base_index,,1)<='Index depuis janvier'!$D$2),INDEX(base_index,,),0))/SUM(IF((INDEX(base_index,1,)=$A21)*(INDEX(base_index,,1)>='Index depuis janvier'!$E$2)*(INDEX(base_index,,1)<='Index depuis janvier'!$F$2),INDEX(base_index,,),0))-1 -> 0.04027166635 | D21: =SUM(IF((INDEX(base_index,1,)=$A21)*(INDEX(base_index,,1)>='Index depuis janvier'!$C$1)*(INDEX(base_index,,1)<='Index depuis janvier'!$D$1),INDEX(base_index,,),0))/SUM(IF((INDEX(base_index,1,)=$A21)*(INDEX(base_index,,1)>='Index depuis janvier'!$E$1)*(INDEX(base_index,,1)<='Index depuis janvier'!$F$1),INDEX(base_index,,),0))-1 -> 0.0325674136 | E21: https://www.insee.fr/fr/statistiques/serie/001711001 | G21: TP12b | H21: Éclairage public -Travaux d'installation | I21: 0.0321236808 | J21: 0.02303174894 | K21: https://www.insee.fr/fr/statistiques/serie/001711003
A22: TP12a | B22: =VLOOKUP(A22,'Noms index'!$A$1:$B$23,2,FALSE) -> Réseaux d'énergie et de communication | C22: =SUM(IF((INDEX(base_index,1,)=$A22)*(INDEX(base_index,,1)>='Index depuis janvier'!$C$2)*(INDEX(base_index,,1)<='Index depuis janvier'!$D$2),INDEX(base_index,,),0))/SUM(IF((INDEX(base_index,1,)=$A22)*(INDEX(base_index,,1)>='Index depuis janvier'!$E$2)*(INDEX(base_index,,1)<='Index depuis janvier'!$F$2),INDEX(base_index,,),0))-1 -> 0.02531194296 | D22: =SUM(IF((INDEX(base_index,1,)=$A22)*(INDEX(base_index,,1)>='Index depuis janvier'!$C$1)*(INDEX(base_index,,1)<='Index depuis janvier'!$D$1),INDEX(base_index,,),0))/SUM(IF((INDEX(base_index,1,)=$A22)*(INDEX(base_index,,1)>='Index depuis janvier'!$E$1)*(INDEX(base_index,,1)<='Index depuis janvier'!$F$1),INDEX(base_index,,),0))-1 -> 0.02980932772 | E22: https://www.insee.fr/fr/statistiques/serie/001711002 | G22: TP10a | H22: Canalisations, assainissement et adduction d’eau avec fourniture de tuyaux | I22: 0.03048890493 | J22: 0.03076784264 | K22: https://www.insee.fr/fr/statistiques/serie/001710998
A23: TP12b | B23: =VLOOKUP(A23,'Noms index'!$A$1:$B$23,2,FALSE) -> Éclairage public -Travaux d'installation | C23: =SUM(IF((INDEX(base_index,1,)=$A23)*(INDEX(base_index,,1)>='Index depuis janvier'!$C$2)*(INDEX(base_index,,1)<='Index depuis janvier'!$D$2),INDEX(base_index,,),0))/SUM(IF((INDEX(base_index,1,)=$A23)*(INDEX(base_index,,1)>='Index depuis janvier'!$E$2)*(INDEX(base_index,,1)<='Index depuis janvier'!$F$2),INDEX(base_index,,),0))-1 -> 0.0321236808 | D23: =SUM(IF((INDEX(base_index,1,)=$A23)*(INDEX(base_index,,1)>='Index depuis janvier'!$C$1)*(INDEX(base_index,,1)<='Index depuis janvier'!$D$1),INDEX(base_index,,),0))/SUM(IF((INDEX(base_index,1,)=$A23)*(INDEX(base_index,,1)>='Index depuis janvier'!$E$1)*(INDEX(base_index,,1)<='Index depuis janvier'!$F$1),INDEX(base_index,,),0))-1 -> 0.02303174894 | E23: https://www.insee.fr/fr/statistiques/serie/001711003 | G23: TP06b | H23: Dragages fluviaux et petits dragages maritimes | I23: 0.03047814335 | J23: 0.01217614209 | K23: https://www.insee.fr/fr/statistiques/serie/001710994
A24: TP12c | B24: =VLOOKUP(A24,'Noms index'!$A$1:$B$23,2,FALSE) -> Éclairage public - Travaux de maintenance | C24: =SUM(IF((INDEX(base_index,1,)=$A24)*(INDEX(base_index,,1)>='Index depuis janvier'!$C$2)*(INDEX(base_index,,1)<='Index depuis janvier'!$D$2),INDEX(base_index,,),0))/SUM(IF((INDEX(base_index,1,)=$A24)*(INDEX(base_index,,1)>='Index depuis janvier'!$E$2)*(INDEX(base_index,,1)<='Index depuis janvier'!$F$2),INDEX(base_index,,),0))-1 -> 0.004718217562 | D24: =SUM(IF((INDEX(base_index,1,)=$A24)*(INDEX(base_index,,1)>='Index depuis janvier'!$C$1)*(INDEX(base_index,,1)<='Index depuis janvier'!$D$1),INDEX(base_index,,),0))/SUM(IF((INDEX(base_index,1,)=$A24)*(INDEX(base_index,,1)>='Index depuis janvier'!$E$1)*(INDEX(base_index,,1)<='Index depuis janvier'!$F$1),INDEX(base_index,,),0))-1 -> 0.00877269936 | E24: https://www.insee.fr/fr/statistiques/serie/001711004 | G24: TP03a | H24: Grands terrassements | I24: 0.02790443188 | J24: 0.01999819021 | K24: https://www.insee.fr/fr/statistiques/serie/001710988
A25: TP12d | B25: =VLOOKUP(A25,'Noms index'!$A$1:$B$23,2,FALSE) -> Réseaux de communication en fibre optique | C25: =SUM(IF((INDEX(base_index,1,)=$A25)*(INDEX(base_index,,1)>='Index depuis janvier'!$C$2)*(INDEX(base_index,,1)<='Index depuis janvier'!$D$2),INDEX(base_index,,),0))/SUM(IF((INDEX(base_index,1,)=$A25)*(INDEX(base_index,,1)>='Index depuis janvier'!$E$2)*(INDEX(base_index,,1)<='Index depuis janvier'!$F$2),INDEX(base_index,,),0))-1 -> 0.003471017008 | D25: =SUM(IF((INDEX(base_index,1,)=$A25)*(INDEX(base_index,,1)>='Index depuis janvier'!$C$1)*(INDEX(base_index,,1)<='Index depuis janvier'!$D$1),INDEX(base_index,,),0))/SUM(IF((INDEX(base_index,1,)=$A25)*(INDEX(base_index,,1)>='Index depuis janvier'!$E$1)*(INDEX(base_index,,1)<='Index depuis janvier'!$F$1),INDEX(base_index,,),0))-1 -> 0.009691783812 | E25: https://www.insee.fr/fr/statistiques/serie/001796841 | G25: TP12a | H25: Réseaux d'énergie et de communication | I25: 0.02531194296 | J25: 0.02980932772 | K25: https://www.insee.fr/fr/statistiques/serie/001711002
A26: TP13 | B26: =VLOOKUP(A26,'Noms index'!$A$1:$B$23,2,FALSE) -> Charpentes et ouvrages d’art métalliques | C26: =SUM(IF((INDEX(base_index,1,)=$A26)*(INDEX(base_index,,1)>='Index depuis janvier'!$C$2)*(INDEX(base_index,,1)<='Index depuis janvier'!$D$2),INDEX(base_index,,),0))/SUM(IF((INDEX(base_index,1,)=$A26)*(INDEX(base_index,,1)>='Index depuis janvier'!$E$2)*(INDEX(base_index,,1)<='Index depuis janvier'!$F$2),INDEX(base_index,,),0))-1 -> 0.1175406872 | D26: =SUM(IF((INDEX(base_index,1,)=$A26)*(INDEX(base_index,,1)>='Index depuis janvier'!$C$1)*(INDEX(base_index,,1)<='Index depuis janvier'!$D$1),INDEX(base_index,,),0))/SUM(IF((INDEX(base_index,1,)=$A26)*(INDEX(base_index,,1)>='Index depuis janvier'!$E$1)*(INDEX(base_index,,1)<='Index depuis janvier'!$F$1),INDEX(base_index,,),0))-1 -> 0.1018989035 | E26: https://www.insee.fr/fr/statistiques/serie/001711005 | G26: TP10b | H26: Canalisations sans fourniture de tuyaux | I26: 0.02137431549 | J26: 0.02218686467 | K26: https://www.insee.fr/fr/statistiques/serie/001710999
A27: TP14 | B27: =VLOOKUP(A27,'Noms index'!$A$1:$B$23,2,FALSE) -> Travaux immergés par scaphandriers | C27: =SUM(IF((INDEX(base_index,1,)=$A27)*(INDEX(base_index,,1)>='Index depuis janvier'!$C$2)*(INDEX(base_index,,1)<='Index depuis janvier'!$D$2),INDEX(base_index,,),0))/SUM(IF((INDEX(base_index,1,)=$A27)*(INDEX(base_index,,1)>='Index depuis janvier'!$E$2)*(INDEX(base_index,,1)<='Index depuis janvier'!$F$2),INDEX(base_index,,),0))-1 -> 0.01092611863 | D27: =SUM(IF((INDEX(base_index,1,)=$A27)*(INDEX(base_index,,1)>='Index depuis janvier'!$C$1)*(INDEX(base_index,,1)<='Index depuis janvier'!$D$1),INDEX(base_index,,),0))/SUM(IF((INDEX(base_index,1,)=$A27)*(INDEX(base_index,,1)>='Index depuis janvier'!$E$1)*(INDEX(base_index,,1)<='Index depuis janvier'!$F$1),INDEX(base_index,,),0))-1 -> 0.01400365313 | E27: https://www.insee.fr/fr/statistiques/serie/001711006 | G27: TP03b | H27: Travaux à l’explosif | I27: 0.01838440111 | J27: 0.01236846963 | K27: https://www.insee.fr/fr/statistiques/serie/001710988
G28: TP14 | H28: Travaux immergés par scaphandriers | I28: 0.01092611863 | J28: 0.01400365313 | K28: https://www.insee.fr/fr/statistiques/serie/001711006
G29: TP12c | H29: Éclairage public - Travaux de maintenance | I29: 0.004718217562 | J29: 0.00877269936 | K29: https://www.insee.fr/fr/statistiques/serie/001711004
G30: TP12d | H30: Réseaux de communication en fibre optique | I30: 0.003471017008 | J30: 0.009691783812 | K30: https://www.insee.fr/fr/statistiques/serie/001796841

Sheet Données cumul depuis janvier (hidden)
B1: 2021-01-01 | C1: =DATE(2021,MONTH(date),1) -> 2021-10-01 | D1: 2019-01-01 | E1: =DATE(2019,MONTH(date),1) -> 2019-10-01
A3: =SUM(IF((INDEX(compo,2,)="TP01")*(INDEX(compo,,1)=$C$13),INDEX(compo,,),0)) -> 0.1 | B3: 2021-01-01 | C3: =DATE(2021,MONTH(date),1) -> 2021-10-01 | D3: 2020-01-01 | E3: =DATE(2020,MONTH(date),1) -> 2020-10-01
A5: K | B5: Matériel | C5: =SUM(IF((INDEX(compo,1,)='Données cumul depuis janvier'!A5)*(INDEX(compo,,1)=$A$52),INDEX(compo,,),0)) -> 0.15 | G5: 001711009 | H5: Matériel
A6: L | B6: Travail | C6: =SUM(IF((INDEX(compo,1,)='Données cumul depuis janvier'!A6)*(INDEX(compo,,1)=$A$52),INDEX(compo,,),0)) -> 0.55 | G6: 5540998 | H6: Travail
A7: E | B7: Energie | C7: =SUM(IF((INDEX(compo,1,)='Données cumul depuis janvier'!A7)*(INDEX(compo,,1)=$A$52),INDEX(compo,,),0)) -> 0.01 | G7: 010534596 | H7: GNR
A8: M | B8: Matériaux | C8: =SUM(IF((INDEX(compo,1,)='Données cumul depuis janvier'!A8)*(INDEX(compo,,1)=$A$52),INDEX(compo,,),0)) -> 0.27 | G8: 001764283 | H8: Gazole
A9: S | B9: Frais divers | C9: =SUM(IF((INDEX(compo,1,)='Données cumul depuis janvier'!A9)*(INDEX(compo,,1)=$A$52),INDEX(compo,,),0)) -> 0.01 | G9: 001711011 | H9: Frais divers
A10: T | B10: Transport | C10: =SUM(IF((INDEX(compo,1,)='Données cumul depuis janvier'!A10)*(INDEX(compo,,1)=$A$52),INDEX(compo,,),0)) -> 0.01 | G10: 001711943 | H10: Transports routiers
A11: D | B11: Déchets | C11: =SUM(IF((INDEX(compo,1,)='Données cumul depuis janvier'!A11)*(INDEX(compo,,1)=$A$52),INDEX(compo,,),0)) -> 0
D12: Matériel | E12: Travail | F12: GNR | G12: =HLOOKUP(G13,'Indice prix'!$B$2:$AP$5,4,FALSE) -> Béton prêt à l'emploi | H12: =HLOOKUP(H13,'Indice prix'!$B$2:$AP$5,4,FALSE) -> Barres crénelées ou nervurées pour béton armé
B13: TP01 | C13: ='Résultats depuis janvier'!B4 -> TP02 | D13: =HLOOKUP(D12,'Composition index'!$A$2:$AR$3,2,FALSE) -> 001711009 | E13: =HLOOKUP(E12,'Composition index'!$A$2:$AR$3,2,FALSE) -> 5540998 | F13: =HLOOKUP(F12,'Composition index'!$A$2:$AR$3,2,FALSE) -> 010534596 | G13: =IF(D54>0,E54,"") -> 010534646 | H13: =IF(D55>0,E55,"") -> 010546545
A14: =DATE(2018,MONTH(date),1) -> 2018-10-01 | B14: =IF(A14>date,"",SUM(IF((INDEX(base_index,1,)=B$13)*(INDEX(base_index,,1)=$A14),INDEX(base_index,,),0))) -> 110.9 | C14: =IF(A14>date,"",IF((SUM(IF((INDEX(base_index,1,)=C$13)*(INDEX(base_index,,1)=$A14),INDEX(base_index,,),0)))=0,#N/A,SUM(IF((INDEX(base_index,1,)=C$13)*(INDEX(base_index,,1)=$A14),INDEX(base_index,,),0)))) -> 113 | D14: =IF(A14>date,"",SUM(IF((INDEX(base_indices,1,)=D$13)*(INDEX(base_indices,,1)=$A14),INDEX(base_indices,,),0))) -> 104.3 | E14: =IF(A14>date,"",SUM(IF((INDEX(base_indices,1,)=E$13)*(INDEX(base_indices,,1)=$A14),INDEX(base_indices,,),0))) -> 119.7 | F14: =IF(A14>date,"",SUM(IF((INDEX(base_indices,1,)=F$13)*(INDEX(base_indices,,1)=$A14),INDEX(base_indices,,),0))) -> 132.8 | G14: =IF(A14>date,"",IF(OR(G$13="",G$13="Fioul lourd"),#N/A,SUM(IF((INDEX(base_indices,1,)=G$13)*(INDEX(base_indices,,1)=$A14),INDEX(base_indices,,),0)))) -> 102.2 | H14: =IF(A14>date,"",IF(OR(H$13="",H$13="Fioul lourd"),#N/A,SUM(IF((INDEX(base_indices,1,)=H$13)*(INDEX(base_indices,,1)=$A14),INDEX(base_indices,,),0)))) -> 127.8
A15: =EDATE(A14,1) -> 2018-11-01 | B15: =IF(A15>date,"",SUM(IF((INDEX(base_index,1,)=B$13)*(INDEX(base_index,,1)=$A15),INDEX(base_index,,),0))) -> 111.1 | C15: =IF(A15>date,"",IF((SUM(IF((INDEX(base_index,1,)=C$13)*(INDEX(base_index,,1)=$A15),INDEX(base_index,,),0)))=0,#N/A,SUM(IF((INDEX(base_index,1,)=C$13)*(INDEX(base_index,,1)=$A15),INDEX(base_index,,),0)))) -> 113.1 | D15: =IF(A15>date,"",SUM(IF((INDEX(base_indices,1,)=D$13)*(INDEX(base_indices,,1)=$A15),INDEX(base_indices,,),0))) -> 104.3 | E15: =IF(A15>date,"",SUM(IF((INDEX(base_indices,1,)=E$13)*(INDEX(base_indices,,1)=$A15),INDEX(base_indices,,),0))) -> 120 | F15: =IF(A15>date,"",SUM(IF((INDEX(base_indices,1,)=F$13)*(INDEX(base_indices,,1)=$A15),INDEX(base_indices,,),0))) -> 125.8 | G15: =IF(A15>date,"",IF(OR(G$13="",G$13="Fioul lourd"),#N/A,SUM(IF((INDEX(base_indices,1,)=G$13)*(INDEX(base_indices,,1)=$A15),INDEX(base_indices,,),0)))) -> 102.4 | H15: =IF(A15>date,"",IF(OR(H$13="",H$13="Fioul lourd"),#N/A,SUM(IF((INDEX(base_indices,1,)=H$13)*(INDEX(base_indices,,1)=$A15),INDEX(base_indices,,),0)))) -> 126.6
A16: =EDATE(A15,1) -> 2018-12-01 | B16: =IF(A16>date,"",SUM(IF((INDEX(base_index,1,)=B$13)*(INDEX(base_index,,1)=$A16),INDEX(base_index,,),0))) -> 110 | C16: =IF(A16>date,"",IF((SUM(IF((INDEX(base_index,1,)=C$13)*(INDEX(base_index,,1)=$A16),INDEX(base_index,,),0)))=0,#N/A,SUM(IF((INDEX(base_index,1,)=C$13)*(INDEX(base_index,,1)=$A16),INDEX(base_index,,),0)))) -> 113.2 | D16: =IF(A16>date,"",SUM(IF((INDEX(base_indices,1,)=D$13)*(INDEX(base_indices,,1)=$A16),INDEX(base_indices,,),0))) -> 104.1 | E16: =IF(A16>date,"",SUM(IF((INDEX(base_indices,1,)=E$13)*(INDEX(base_indices,,1)=$A16),INDEX(base_indices,,),0))) -> 120.2 | F16: =IF(A16>date,"",SUM(IF((INDEX(base_indices,1,)=F$13)*(INDEX(base_indices,,1)=$A16),INDEX(base_indices,,),0))) -> 118.1 | G16: =IF(A16>date,"",IF(OR(G$13="",G$13="Fioul lourd"),#N/A,SUM(IF((INDEX(base_indices,1,)=G$13)*(INDEX(base_indices,,1)=$A16),INDEX(base_indices,,),0)))) -> 102.2 | H16: =IF(A16>date,"",IF(OR(H$13="",H$13="Fioul lourd"),#N/A,SUM(IF((INDEX(base_indices,1,)=H$13)*(INDEX(base_indices,,1)=$A16),INDEX(base_indices,,),0)))) -> 125.5
A17: 2019-01-01 | B17: =IF(A17>date,"",SUM(IF((INDEX(base_index,1,)=B$13)*(INDEX(base_index,,1)=$A17),INDEX(base_index,,),0))) -> 109.7 | C17: =IF(A17>date,"",IF((SUM(IF((INDEX(base_index,1,)=C$13)*(INDEX(base_index,,1)=$A17),INDEX(base_index,,),0)))=0,#N/A,SUM(IF((INDEX(base_index,1,)=C$13)*(INDEX(base_index,,1)=$A17),INDEX(base_index,,),0)))) -> 113.5 | D17: =IF(A17>date,"",SUM(IF((INDEX(base_indices,1,)=D$13)*(INDEX(base_indices,,1)=$A17),INDEX(base_indices,,),0))) -> 104.7 | E17: =IF(A17>date,"",SUM(IF((INDEX(base_indices,1,)=E$13)*(INDEX(base_indices,,1)=$A17),INDEX(base_indices,,),0))) -> 120.8 | F17: =IF(A17>date,"",SUM(IF((INDEX(base_indices,1,)=F$13)*(INDEX(base_indices,,1)=$A17),INDEX(base_indices,,),0))) -> 118.2 | G17: =IF(A17>date,"",IF(OR(G$13="",G$13="Fioul lourd"),#N/A,SUM(IF((INDEX(base_indices,1,)=G$13)*(INDEX(base_indices,,1)=$A17),INDEX(base_indices,,),0)))) -> 103.8 | H17: =IF(A17>date,"",IF(OR(H$13="",H$13="Fioul lourd"),#N/A,SUM(IF((INDEX(base_indices,1,)=H$13)*(INDEX(base_indices,,1)=$A17),INDEX(base_indices,,),0)))) -> 124.6
A18: 2019-02-01 | B18: =IF(A18>date,"",SUM(IF((INDEX(base_index,1,)=B$13)*(INDEX(base_index,,1)=$A18),INDEX(base_index,,),0))) -> 110.3 | C18: =IF(A18>date,"",IF((SUM(IF((INDEX(base_index,1,)=C$13)*(INDEX(base_index,,1)=$A18),INDEX(base_index,,),0)))=0,#N/A,SUM(IF((INDEX(base_index,1,)=C$13)*(INDEX(base_index,,1)=$A18),INDEX(base_index,,),0)))) -> 113.6 | D18: =IF(A18>date,"",SUM(IF((INDEX(base_indices,1,)=D$13)*(INDEX(base_indices,,1)=$A18),INDEX(base_indices,,),0))) -> 104.7 | E18: =IF(A18>date,"",SUM(IF((INDEX(base_indices,1,)=E$13)*(INDEX(base_indices,,1)=$A18),INDEX(base_indices,,),0))) -> 121.4 | F18: =IF(A18>date,"",SUM(IF((INDEX(base_indices,1,)=F$13)*(INDEX(base_indices,,1)=$A18),INDEX(base_indices,,),0))) -> 122.5 | G18: =IF(A18>date,"",IF(OR(G$13="",G$13="Fioul lourd"),#N/A,SUM(IF((INDEX(base_indices,1,)=G$13)*(INDEX(base_indices,,1)=$A18),INDEX(base_indices,,),0)))) -> 104.2 | H18: =IF(A18>date,"",IF(OR(H$13="",H$13="Fioul lourd"),#N/A,SUM(IF((INDEX(base_indices,1,)=H$13)*(INDEX(base_indices,,1)=$A18),INDEX(base_indices,,),0)))) -> 123.8
A19: 2019-03-01 | B19: =IF(A19>date,"",SUM(IF((INDEX(base_index,1,)=B$13)*(INDEX(base_index,,1)=$A19),INDEX(base_index,,),0))) -> 111.3 | C19: =IF(A19>date,"",IF((SUM(IF((INDEX(base_index,1,)=C$13)*(INDEX(base_index,,1)=$A19),INDEX(base_index,,),0)))=0,#N/A,SUM(IF((INDEX(base_index,1,)=C$13)*(INDEX(base_index,,1)=$A19),INDEX(base_index,,),0)))) -> 114.1 | D19: =IF(A19>date,"",SUM(IF((INDEX(base_indices,1,)=D$13)*(INDEX(base_indices,,1)=$A19),INDEX(base_indices,,),0))) -> 105.7 | E19: =IF(A19>date,"",SUM(IF((INDEX(base_indices,1,)=E$13)*(INDEX(base_indices,,1)=$A19),INDEX(base_indices,,),0))) -> 122 | F19: =IF(A19>date,"",SUM(IF((INDEX(base_indices,1,)=F$13)*(INDEX(base_indices,,1)=$A19),INDEX(base_indices,,),0))) -> 123.5 | G19: =IF(A19>date,"",IF(OR(G$13="",G$13="Fioul lourd"),#N/A,SUM(IF((INDEX(base_indices,1,)=G$13)*(INDEX(base_indices,,1)=$A19),INDEX(base_indices,,),0)))) -> 104.3 | H19: =IF(A19>date,"",IF(OR(H$13="",H$13="Fioul lourd"),#N/A,SUM(IF((INDEX(base_indices,1,)=H$13)*(INDEX(base_indices,,1)=$A19),INDEX(base_indices,,),0)))) -> 123.9
A20: 2019-04-01 | B20: =IF(A20>date,"",SUM(IF((INDEX(base_index,1,)=B$13)*(INDEX(base_index,,1)=$A20),INDEX(base_index,,),0))) -> 111.6 | C20: =IF(A20>date,"",IF((SUM(IF((INDEX(base_index,1,)=C$13)*(INDEX(base_index,,1)=$A20),INDEX(base_index,,),0)))=0,#N/A,SUM(IF((INDEX(base_index,1,)=C$13)*(INDEX(base_index,,1)=$A20),INDEX(base_index,,),0)))) -> 114.1 | D20: =IF(A20>date,"",SUM(IF((INDEX(base_indices,1,)=D$13)*(INDEX(base_indices,,1)=$A20),INDEX(base_indices,,),0))) -> 105.3 | E20: =IF(A20>date,"",SUM(IF((INDEX(base_indices,1,)=E$13)*(INDEX(base_indices,,1)=$A20),INDEX(base_indices,,),0))) -> 122.3 | F20: =IF(A20>date,"",SUM(IF((INDEX(base_indices,1,)=F$13)*(INDEX(base_indices,,1)=$A20),INDEX(base_indices,,),0))) -> 125.8 | G20: =IF(A20>date,"",IF(OR(G$13="",G$13="Fioul lourd"),#N/A,SUM(IF((INDEX(base_indices,1,)=G$13)*(INDEX(base_indices,,1)=$A20),INDEX(base_indices,,),0)))) -> 104.1 | H20: =IF(A20>date,"",IF(OR(H$13="",H$13="Fioul lourd"),#N/A,SUM(IF((INDEX(base_indices,1,)=H$13)*(INDEX(base_indices,,1)=$A20),INDEX(base_indices,,),0)))) -> 123.8
A21: 2019-05-01 | B21: =IF(A21>date,"",SUM(IF((INDEX(base_index,1,)=B$13)*(INDEX(base_index,,1)=$A21),INDEX(base_index,,),0))) -> 111.8 | C21: =IF(A21>date,"",IF((SUM(IF((INDEX(base_index,1,)=C$13)*(INDEX(base_index,,1)=$A21),INDEX(base_index,,),0)))=0,#N/A,SUM(IF((INDEX(base_index,1,)=C$13)*(INDEX(base_index,,1)=$A21),INDEX(base_index,,),0)))) -> 114.1 | D21: =IF(A21>date,"",SUM(IF((INDEX(base_indices,1,)=D$13)*(INDEX(base_indices,,1)=$A21),INDEX(base_indices,,),0))) -> 105 | E21: =IF(A21>date,"",SUM(IF((INDEX(base_indices,1,)=E$13)*(INDEX(base_indices,,1)=$A21),INDEX(base_indices,,),0))) -> 122.5 | F21: =IF(A21>date,"",SUM(IF((INDEX(base_indices,1,)=F$13)*(INDEX(base_indices,,1)=$A21),INDEX(base_indices,,),0))) -> 126.4 | G21: =IF(A21>date,"",IF(OR(G$13="",G$13="Fioul lourd"),#N/A,SUM(IF((INDEX(base_indices,1,)=G$13)*(INDEX(base_indices,,1)=$A21),INDEX(base_indices,,),0)))) -> 104.9 | H21: =IF(A21>date,"",IF(OR(H$13="",H$13="Fioul lourd"),#N/A,SUM(IF((INDEX(base_indices,1,)=H$13)*(INDEX(base_indices,,1)=$A21),INDEX(base_indices,,),0)))) -> 123
A22: 2019-06-01 | B22: =IF(A22>date,"",SUM(IF((INDEX(base_index,1,)=B$13)*(INDEX(base_index,,1)=$A22),INDEX(base_index,,),0))) -> 111.5 | C22: =IF(A22>date,"",IF((SUM(IF((INDEX(base_index,1,)=C$13)*(INDEX(base_index,,1)=$A22),INDEX(base_index,,),0)))=0,#N/A,SUM(IF((INDEX(base_index,1,)=C$13)*(INDEX(base_index,,1)=$A22),INDEX(base_index,,),0)))) -> 114.3 | D22: =IF(A22>date,"",SUM(IF((INDEX(base_indices,1,)=D$13)*(INDEX(base_indices,,1)=$A22),INDEX(base_indices,,),0))) -> 104.9 | E22: =IF(A22>date,"",SUM(IF((INDEX(base_indices,1,)=E$13)*(INDEX(base_indices,,1)=$A22),INDEX(base_indices,,),0))) -> 122.7 | F22: =IF(A22>date,"",SUM(IF((INDEX(base_indices,1,)=F$13)*(INDEX(base_indices,,1)=$A22),INDEX(base_indices,,),0))) -> 119.9 | G22: =IF(A22>date,"",IF(OR(G$13="",G$13="Fioul lourd"),#N/A,SUM(IF((INDEX(base_indices,1,)=G$13)*(INDEX(base_indices,,1)=$A22),INDEX(base_indices,,),0)))) -> 105.3 | H22: =IF(A22>date,"",IF(OR(H$13="",H$13="Fioul lourd"),#N/A,SUM(IF((INDEX(base_indices,1,)=H$13)*(INDEX(base_indices,,1)=$A22),INDEX(base_indices,,),0)))) -> 122
A23: 2019-07-01 | B23: =IF(A23>date,"",SUM(IF((INDEX(base_index,1,)=B$13)*(INDEX(base_index,,1)=$A23),INDEX(base_index,,),0))) -> 111.5 | C23: =IF(A23>date,"",IF((SUM(IF((INDEX(base_index,1,)=C$13)*(INDEX(base_index,,1)=$A23),INDEX(base_index,,),0)))=0,#N/A,SUM(IF((INDEX(base_index,1,)=C$13)*(INDEX(base_index,,1)=$A23),INDEX(base_index,,),0)))) -> 114.5 | D23: =IF(A23>date,"",SUM(IF((INDEX(base_indices,1,)=D$13)*(INDEX(base_indices,,1)=$A23),INDEX(base_indices,,),0))) -> 105 | E23: =IF(A23>date,"",SUM(IF((INDEX(base_indices,1,)=E$13)*(INDEX(base_indices,,1)=$A23),INDEX(base_indices,,),0))) -> 122.9 | F23: =IF(A23>date,"",SUM(IF((INDEX(base_indices,1,)=F$13)*(INDEX(base_indices,,1)=$A23),INDEX(base_indices,,),0))) -> 121.5 | G23: =IF(A23>date,"",IF(OR(G$13="",G$13="Fioul lourd"),#N/A,SUM(IF((INDEX(base_indices,1,)=G$13)*(INDEX(base_indices,,1)=$A23),INDEX(base_indices,,),0)))) -> 105.4 | H23: =IF(A23>date,"",IF(OR(H$13="",H$13="Fioul lourd"),#N/A,SUM(IF((INDEX(base_indices,1,)=H$13)*(INDEX(base_indices,,1)=$A23),INDEX(base_indices,,),0)))) -> 120.5
A24: 2019-08-01 | B24: =IF(A24>date,"",SUM(IF((INDEX(base_index,1,)=B$13)*(INDEX(base_index,,1)=$A24),INDEX(base_index,,),0))) -> 111.5 | C24: =IF(A24>date,"",IF((SUM(IF((INDEX(base_index,1,)=C$13)*(INDEX(base_index,,1)=$A24),INDEX(base_index,,),0)))=0,#N/A,SUM(IF((INDEX(base_index,1,)=C$13)*(INDEX(base_index,,1)=$A24),INDEX(base_index,,),0)))) -> 114.7 | D24: =IF(A24>date,"",SUM(IF((INDEX(base_indices,1,)=D$13)*(INDEX(base_indices,,1)=$A24),INDEX(base_indices,,),0))) -> 105.1 | E24: =IF(A24>date,"",SUM(IF((INDEX(base_indices,1,)=E$13)*(INDEX(base_indices,,1)=$A24),INDEX(base_indices,,),0))) -> 123.1 | F24: =IF(A24>date,"",SUM(IF((INDEX(base_indices,1,)=F$13)*(INDEX(base_indices,,1)=$A24),INDEX(base_indices,,),0))) -> 119.9 | G24: =IF(A24>date,"",IF(OR(G$13="",G$13="Fioul lourd"),#N/A,SUM(IF((INDEX(base_indices,1,)=G$13)*(INDEX(base_indices,,1)=$A24),INDEX(base_indices,,),0)))) -> 106.7 | H24: =IF(A24>date,"",IF(OR(H$13="",H$13="Fioul lourd"),#N/A,SUM(IF((INDEX(base_indices,1,)=H$13)*(INDEX(base_indices,,1)=$A24),INDEX(base_indices,,),0)))) -> 119.8
A25: 2019-09-01 | B25: =IF(A25>date,"",SUM(IF((INDEX(base_index,1,)=B$13)*(INDEX(base_index,,1)=$A25),INDEX(base_index,,),0))) -> 111.2 | C25: =IF(A25>date,"",IF((SUM(IF((INDEX(base_index,1,)=C$13)*(INDEX(base_index,,1)=$A25),INDEX(base_index,,),0)))=0,#N/A,SUM(IF((INDEX(base_index,1,)=C$13)*(INDEX(base_index,,1)=$A25),INDEX(base_index,,),0)))) -> 114.6 | D25: =IF(A25>date,"",SUM(IF((INDEX(base_indices,1,)=D$13)*(INDEX(base_indices,,1)=$A25),INDEX(base_indices,,),0))) -> 105.7 | E25: =IF(A25>date,"",SUM(IF((INDEX(base_indices,1,)=E$13)*(INDEX(base_indices,,1)=$A25),INDEX(base_indices,,),0))) -> 123.3 | F25: =IF(A25>date,"",SUM(IF((INDEX(base_indices,1,)=F$13)*(INDEX(base_indices,,1)=$A25),INDEX(base_indices,,),0))) -> 123.3 | G25: =IF(A25>date,"",IF(OR(G$13="",G$13="Fioul lourd"),#N/A,SUM(IF((INDEX(base_indices,1,)=G$13)*(INDEX(base_indices,,1)=$A25),INDEX(base_indices,,),0)))) -> 105.2 | H25: =IF(A25>date,"",IF(OR(H$13="",H$13="Fioul lourd"),#N/A,SUM(IF((INDEX(base_indices,1,)=H$13)*(INDEX(base_indices,,1)=$A25),INDEX(base_indices,,),0)))) -> 118.3
A26: 2019-10-01 | B26: =IF(A26>date,"",SUM(IF((INDEX(base_index,1,)=B$13)*(INDEX(base_index,,1)=$A26),INDEX(base_index,,),0))) -> 111.2 | C26: =IF(A26>date,"",IF((SUM(IF((INDEX(base_index,1,)=C$13)*(INDEX(base_index,,1)=$A26),INDEX(base_index,,),0)))=0,#N/A,SUM(IF((INDEX(base_index,1,)=C$13)*(INDEX(base_index,,1)=$A26),INDEX(base_index,,),0)))) -> 114.2 | D26: =IF(A26>date,"",SUM(IF((INDEX(base_indices,1,)=D$13)*(INDEX(base_indices,,1)=$A26),INDEX(base_indices,,),0))) -> 105.6 | E26: =IF(A26>date,"",SUM(IF((INDEX(base_indices,1,)=E$13)*(INDEX(base_indices,,1)=$A26),INDEX(base_indices,,),0))) -> 123.5 | F26: =IF(A26>date,"",SUM(IF((INDEX(base_indices,1,)=F$13)*(INDEX(base_indices,,1)=$A26),INDEX(base_indices,,),0))) -> 122.4 | G26: =IF(A26>date,"",IF(OR(G$13="",G$13="Fioul lourd"),#N/A,SUM(IF((INDEX(base_indices,1,)=G$13)*(INDEX(base_indices,,1)=$A26),INDEX(base_indices,,),0)))) -> 104.7 | H26: =IF(A26>date,"",IF(OR(H$13="",H$13="Fioul lourd"),#N/A,SUM(IF((INDEX(base_indices,1,)=H$13)*(INDEX(base_indices,,1)=$A26),INDEX(base_indices,,),0)))) -> 114.1
A27: 2019-11-01 | B27: =IF(A27>date,"",SUM(IF((INDEX(base_index,1,)=B$13)*(INDEX(base_index,,1)=$A27),INDEX(base_index,,),0))) -> 110.5 | C27: =IF(A27>date,"",IF((SUM(IF((INDEX(base_index,1,)=C$13)*(INDEX(base_index,,1)=$A27),INDEX(base_index,,),0)))=0,#N/A,SUM(IF((INDEX(base_index,1,)=C$13)*(INDEX(base_index,,1)=$A27),INDEX(base_index,,),0)))) -> 114.2 | D27: =IF(A27>date,"",SUM(IF((INDEX(base_indices,1,)=D$13)*(INDEX(base_indices,,1)=$A27),INDEX(base_indices,,),0))) -> 105.1 | E27: =IF(A27>date,"",SUM(IF((INDEX(base_indices,1,)=E$13)*(INDEX(base_indices,,1)=$A27),INDEX(base_indices,,),0))) -> 123.7 | F27: =IF(A27>date,"",SUM(IF((INDEX(base_indices,1,)=F$13)*(INDEX(base_indices,,1)=$A27),INDEX(base_indices,,),0))) -> 122.5 | G27: =IF(A27>date,"",IF(OR(G$13="",G$13="Fioul lourd"),#N/A,SUM(IF((INDEX(base_indices,1,)=G$13)*(INDEX(base_indices,,1)=$A27),INDEX(base_indices,,),0)))) -> 104.5 | H27: =IF(A27>date,"",IF(OR(H$13="",H$13="Fioul lourd"),#N/A,SUM(IF((INDEX(base_indices,1,)=H$13)*(INDEX(base_indices,,1)=$A27),INDEX(base_indices,,),0)))) -> 111.3
A28: 2019-12-01 | B28: =IF(A28>date,"",SUM(IF((INDEX(base_index,1,)=B$13)*(INDEX(base_index,,1)=$A28),INDEX(base_index,,),0))) -> 110.4 | C28: =IF(A28>date,"",IF((SUM(IF((INDEX(base_index,1,)=C$13)*(INDEX(base_index,,1)=$A28),INDEX(base_index,,),0)))=0,#N/A,SUM(IF((INDEX(base_index,1,)=C$13)*(INDEX(base_index,,1)=$A28),INDEX(base_index,,),0)))) -> 114.3 | D28: =IF(A28>date,"",SUM(IF((INDEX(base_indices,1,)=D$13)*(INDEX(base_indices,,1)=$A28),INDEX(base_indices,,),0))) -> 104.6 | E28: =IF(A28>date,"",SUM(IF((INDEX(base_indices,1,)=E$13)*(INDEX(base_indices,,1)=$A28),INDEX(base_indices,,),0))) -> 123.9 | F28: =IF(A28>date,"",SUM(IF((INDEX(base_indices,1,)=F$13)*(INDEX(base_indices,,1)=$A28),INDEX(base_indices,,),0))) -> 124.1 | G28: =IF(A28>date,"",IF(OR(G$13="",G$13="Fioul lourd"),#N/A,SUM(IF((INDEX(base_indices,1,)=G$13)*(INDEX(base_indices,,1)=$A28),INDEX(base_indices,,),0)))) -> 104.8 | H28: =IF(A28>date,"",IF(OR(H$13="",H$13="Fioul lourd"),#N/A,SUM(IF((INDEX(base_indices,1,)=H$13)*(INDEX(base_indices,,1)=$A28),INDEX(base_indices,,),0)))) -> 111.2
A29: 2020-01-01 | B29: =IF(A29>date,"",SUM(IF((INDEX(base_index,1,)=B$13)*(INDEX(base_index,,1)=$A29),INDEX(base_index,,),0))) -> 111.4 | C29: =IF(A29>date,"",IF((SUM(IF((INDEX(base_index,1,)=C$13)*(INDEX(base_index,,1)=$A29),INDEX(base_index,,),0)))=0,#N/A,SUM(IF((INDEX(base_index,1,)=C$13)*(INDEX(base_index,,1)=$A29),INDEX(base_index,,),0)))) -> 114.7 | D29: =IF(A29>date,"",SUM(IF((INDEX(base_indices,1,)=D$13)*(INDEX(base_indices,,1)=$A29),INDEX(base_indices,,),0))) -> 104.7 | E29: =IF(A29>date,"",SUM(IF((INDEX(base_indices,1,)=E$13)*(INDEX(base_indices,,1)=$A29),INDEX(base_indices,,),0))) -> 123.7 | F29: =IF(A29>date,"",SUM(IF((INDEX(base_indices,1,)=F$13)*(INDEX(base_indices,,1)=$A29),INDEX(base_indices,,),0))) -> 120.9 | G29: =IF(A29>date,"",IF(OR(G$13="",G$13="Fioul lourd"),#N/A,SUM(IF((INDEX(base_indices,1,)=G$13)*(INDEX(base_indices,,1)=$A29),INDEX(base_indices,,),0)))) -> 105.2 | H29: =IF(A29>date,"",IF(OR(H$13="",H$13="Fioul lourd"),#N/A,SUM(IF((INDEX(base_indices,1,)=H$13)*(INDEX(base_indices,,1)=$A29),INDEX(base_indices,,),0)))) -> 112.6
A30: 2020-02-01 | B30: =IF(A30>date,"",SUM(IF((INDEX(base_index,1,)=B$13)*(INDEX(base_index,,1)=$A30),INDEX(base_index,,),0))) -> 111.7 | C30: =IF(A30>date,"",IF((SUM(IF((INDEX(base_index,1,)=C$13)*(INDEX(base_index,,1)=$A30),INDEX(base_index,,),0)))=0,#N/A,SUM(IF((INDEX(base_index,1,)=C$13)*(INDEX(base_index,,1)=$A30),INDEX(base_index,,),0)))) -> 114.8 | D30: =IF(A30>date,"",SUM(IF((INDEX(base_indices,1,)=D$13)*(INDEX(base_indices,,1)=$A30),INDEX(base_indices,,),0))) -> 105.5 | E30: =IF(A30>date,"",SUM(IF((INDEX(base_indices,1,)=E$13)*(INDEX(base_indices,,1)=$A30),INDEX(base_indices,,),0))) -> 123.5 | F30: =IF(A30>date,"",SUM(IF((INDEX(base_indices,1,)=F$13)*(INDEX(base_indices,,1)=$A30),INDEX(base_indices,,),0))) -> 115.3 | G30: =IF(A30>date,"",IF(OR(G$13="",G$13="Fioul lourd"),#N/A,SUM(IF((INDEX(base_indices,1,)=G$13)*(INDEX(base_indices,,1)=$A30),INDEX(base_indices,,),0)))) -> 103.7 | H30: =IF(A30>date,"",IF(OR(H$13="",H$13="Fioul lourd"),#N/A,SUM(IF((INDEX(base_indices,1,)=H$13)*(INDEX(base_indices,,1)=$A30),INDEX(base_indices,,),0)))) -> 113.5
A31: 2020-03-01 | B31: =IF(A31>date,"",SUM(IF((INDEX(base_index,1,)=B$13)*(INDEX(base_index,,1)=$A31),INDEX(base_index,,),0))) -> 110.8 | C31: =IF(A31>date,"",IF((SUM(IF((INDEX(base_index,1,)=C$13)*(INDEX(base_index,,1)=$A31),INDEX(base_index,,),0)))=0,#N/A,SUM(IF((INDEX(base_index,1,)=C$13)*(INDEX(base_index,,1)=$A31),INDEX(base_index,,),0)))) -> 114.7 | D31: =IF(A31>date,"",SUM(IF((INDEX(base_indices,1,)=D$13)*(INDEX(base_indices,,1)=$A31),INDEX(base_indices,,),0))) -> 105.3 | E31: =IF(A31>date,"",SUM(IF((INDEX(base_indices,1,)=E$13)*(INDEX(base_indices,,1)=$A31),INDEX(base_indices,,),0))) -> 123.3 | F31: =IF(A31>date,"",SUM(IF((INDEX(base_indices,1,)=F$13)*(INDEX(base_indices,,1)=$A31),INDEX(base_indices,,),0))) -> 99.2 | G31: =IF(A31>date,"",IF(OR(G$13="",G$13="Fioul lourd"),#N/A,SUM(IF((INDEX(base_indices,1,)=G$13)*(INDEX(base_indices,,1)=$A31),INDEX(base_indices,,),0)))) -> 103.5 | H31: =IF(A31>date,"",IF(OR(H$13="",H$13="Fioul lourd"),#N/A,SUM(IF((INDEX(base_indices,1,)=H$13)*(INDEX(base_indices,,1)=$A31),INDEX(base_indices,,),0)))) -> 112.3
A32: 2020-04-01 | B32: =IF(A32>date,"",SUM(IF((INDEX(base_index,1,)=B$13)*(INDEX(base_index,,1)=$A32),INDEX(base_index,,),0))) -> 108.9 | C32: =IF(A32>date,"",IF((SUM(IF((INDEX(base_index,1,)=C$13)*(INDEX(base_index,,1)=$A32),INDEX(base_index,,),0)))=0,#N/A,SUM(IF((INDEX(base_index,1,)=C$13)*(INDEX(base_index,,1)=$A32),INDEX(base_index,,),0)))) -> 114.4 | D32: =IF(A32>date,"",SUM(IF((INDEX(base_indices,1,)=D$13)*(INDEX(base_indices,,1)=$A32),INDEX(base_indices,,),0))) -> 105.5 | E32: =IF(A32>date,"",SUM(IF((INDEX(base_indices,1,)=E$13)*(INDEX(base_indices,,1)=$A32),INDEX(base_indices,,),0))) -> 123.6 | F32: =IF(A32>date,"",SUM(IF((INDEX(base_indices,1,)=F$13)*(INDEX(base_indices,,1)=$A32),INDEX(base_indices,,),0))) -> 88.2 | G32: =IF(A32>date,"",IF(OR(G$13="",G$13="Fioul lourd"),#N/A,SUM(IF((INDEX(base_indices,1,)=G$13)*(INDEX(base_indices,,1)=$A32),INDEX(base_indices,,),0)))) -> 102.7 | H32: =IF(A32>date,"",IF(OR(H$13="",H$13="Fioul lourd"),#N/A,SUM(IF((INDEX(base_indices,1,)=H$13)*(INDEX(base_indices,,1)=$A32),INDEX(base_indices,,),0)))) -> 112.1
A33: 2020-05-01 | B33: =IF(A33>date,"",SUM(IF((INDEX(base_index,1,)=B$13)*(INDEX(base_index,,1)=$A33),INDEX(base_index,,),0))) -> 108.7 | C33: =IF(A33>date,"",IF((SUM(IF((INDEX(base_index,1,)=C$13)*(INDEX(base_index,,1)=$A33),INDEX(base_index,,),0)))=0,#N/A,SUM(IF((INDEX(base_index,1,)=C$13)*(INDEX(base_index,,1)=$A33),INDEX(base_index,,),0)))) -> 114.2 | D33: =IF(A33>date,"",SUM(IF((INDEX(base_indices,1,)=D$13)*(INDEX(base_indices,,1)=$A33),INDEX(base_indices,,),0))) -> 104.9 | E33: =IF(A33>date,"",SUM(IF((INDEX(base_indices,1,)=E$13)*(INDEX(base_indices,,1)=$A33),INDEX(base_indices,,),0))) -> 123.8 | F33: =IF(A33>date,"",SUM(IF((INDEX(base_indices,1,)=F$13)*(INDEX(base_indices,,1)=$A33),INDEX(base_indices,,),0))) -> 91.2 | G33: =IF(A33>date,"",IF(OR(G$13="",G$13="Fioul lourd"),#N/A,SUM(IF((INDEX(base_indices,1,)=G$13)*(INDEX(base_indices,,1)=$A33),INDEX(base_indices,,),0)))) -> 104.4 | H33: =IF(A33>date,"",IF(OR(H$13="",H$13="Fioul lourd"),#N/A,SUM(IF((INDEX(base_indices,1,)=H$13)*(INDEX(base_indices,,1)=$A33),INDEX(base_indices,,),0)))) -> 111.3
A34: 2020-06-01 | B34: =IF(A34>date,"",SUM(IF((INDEX(base_index,1,)=B$13)*(INDEX(base_index,,1)=$A34),INDEX(base_index,,),0))) -> 108.8 | C34: =IF(A34>date,"",IF((SUM(IF((INDEX(base_index,1,)=C$13)*(INDEX(base_index,,1)=$A34),INDEX(base_index,,),0)))=0,#N/A,SUM(IF((INDEX(base_index,1,)=C$13)*(INDEX(base_index,,1)=$A34),INDEX(base_index,,),0)))) -> 113.7 | D34: =IF(A34>date,"",SUM(IF((INDEX(base_indices,1,)=D$13)*(INDEX(base_indices,,1)=$A34),INDEX(base_indices,,),0))) -> 103 | E34: =IF(A34>date,"",SUM(IF((INDEX(base_indices,1,)=E$13)*(INDEX(base_indices,,1)=$A34),INDEX(base_indices,,),0))) -> 124 | F34: =IF(A34>date,"",SUM(IF((INDEX(base_indices,1,)=F$13)*(INDEX(base_indices,,1)=$A34),INDEX(base_indices,,),0))) -> 97.2 | G34: =IF(A34>date,"",IF(OR(G$13="",G$13="Fioul lourd"),#N/A,SUM(IF((INDEX(base_indices,1,)=G$13)*(INDEX(base_indices,,1)=$A34),INDEX(base_indices,,),0)))) -> 105.4 | H34: =IF(A34>date,"",IF(OR(H$13="",H$13="Fioul lourd"),#N/A,SUM(IF((INDEX(base_indices,1,)=H$13)*(INDEX(base_indices,,1)=$A34),INDEX(base_indices,,),0)))) -> 109.7
A35: 2020-07-01 | B35: =IF(A35>date,"",SUM(IF((INDEX(base_index,1,)=B$13)*(INDEX(base_index,,1)=$A35),INDEX(base_index,,),0))) -> 109.9 | C35: =IF(A35>date,"",IF((SUM(IF((INDEX(base_index,1,)=C$13)*(INDEX(base_index,,1)=$A35),INDEX(base_index,,),0)))=0,#N/A,SUM(IF((INDEX(base_index,1,)=C$13)*(INDEX(base_index,,1)=$A35),INDEX(base_index,,),0)))) -> 113.7 | D35: =IF(A35>date,"",SUM(IF((INDEX(base_indices,1,)=D$13)*(INDEX(base_indices,,1)=$A35),INDEX(base_indices,,),0))) -> 102.6 | E35: =IF(A35>date,"",SUM(IF((INDEX(base_indices,1,)=E$13)*(INDEX(base_indices,,1)=$A35),INDEX(base_indices,,),0))) -> 123.8 | F35: =IF(A35>date,"",SUM(IF((INDEX(base_indices,1,)=F$13)*(INDEX(base_indices,,1)=$A35),INDEX(base_indices,,),0))) -> 99.7 | G35: =IF(A35>date,"",IF(OR(G$13="",G$13="Fioul lourd"),#N/A,SUM(IF((INDEX(base_indices,1,)=G$13)*(INDEX(base_indices,,1)=$A35),INDEX(base_indices,,),0)))) -> 105.6 | H35: =IF(A35>date,"",IF(OR(H$13="",H$13="Fioul lourd"),#N/A,SUM(IF((INDEX(base_indices,1,)=H$13)*(INDEX(base_indices,,1)=$A35),INDEX(base_indices,,),0)))) -> 108
A36: 2020-08-01 | B36: =IF(A36>date,"",SUM(IF((INDEX(base_index,1,)=B$13)*(INDEX(base_index,,1)=$A36),INDEX(base_index,,),0))) -> 110 | C36: =IF(A36>date,"",IF((SUM(IF((INDEX(base_index,1,)=C$13)*(INDEX(base_index,,1)=$A36),INDEX(base_index,,),0)))=0,#N/A,SUM(IF((INDEX(base_index,1,)=C$13)*(INDEX(base_index,,1)=$A36),INDEX(base_index,,),0)))) -> 113.8 | D36: =IF(A36>date,"",SUM(IF((INDEX(base_indices,1,)=D$13)*(INDEX(base_indices,,1)=$A36),INDEX(base_indices,,),0))) -> 102.8 | E36: =IF(A36>date,"",SUM(IF((INDEX(base_indices,1,)=E$13)*(INDEX(base_indices,,1)=$A36),INDEX(base_indices,,),0))) -> 123.7 | F36: =IF(A36>date,"",SUM(IF((INDEX(base_indices,1,)=F$13)*(INDEX(base_indices,,1)=$A36),INDEX(base_indices,,),0))) -> 98.3 | G36: =IF(A36>date,"",IF(OR(G$13="",G$13="Fioul lourd"),#N/A,SUM(IF((INDEX(base_indices,1,)=G$13)*(INDEX(base_indices,,1)=$A36),INDEX(base_indices,,),0)))) -> 105.4 | H36: =IF(A36>date,"",IF(OR(H$13="",H$13="Fioul lourd"),#N/A,SUM(IF((INDEX(base_indices,1,)=H$13)*(INDEX(base_indices,,1)=$A36),INDEX(base_indices,,),0)))) -> 107.4
A37: 2020-09-01 | B37: =IF(A37>date,"",SUM(IF((INDEX(base_index,1,)=B$13)*(INDEX(base_index,,1)=$A37),INDEX(base_index,,),0))) -> 110.1 | C37: =IF(A37>date,"",IF((SUM(IF((INDEX(base_index,1,)=C$13)*(INDEX(base_index,,1)=$A37),INDEX(base_index,,),0)))=0,#N/A,SUM(IF((INDEX(base_index,1,)=C$13)*(INDEX(base_index,,1)=$A37),INDEX(base_index,,),0)))) -> 114.4 | D37: =IF(A37>date,"",SUM(IF((INDEX(base_indices,1,)=D$13)*(INDEX(base_indices,,1)=$A37),INDEX(base_indices,,),0))) -> 104.4 | E37: =IF(A37>date,"",SUM(IF((INDEX(base_indices,1,)=E$13)*(INDEX(base_indices,,1)=$A37),INDEX(base_indices,,),0))) -> 123.6 | F37: =IF(A37>date,"",SUM(IF((INDEX(base_indices,1,)=F$13)*(INDEX(base_indices,,1)=$A37),INDEX(base_indices,,),0))) -> 94.9 | G37: =IF(A37>date,"",IF(OR(G$13="",G$13="Fioul lourd"),#N/A,SUM(IF((INDEX(base_indices,1,)=G$13)*(INDEX(base_indices,,1)=$A37),INDEX(base_indices,,),0)))) -> 106.5 | H37: =IF(A37>date,"",IF(OR(H$13="",H$13="Fioul lourd"),#N/A,SUM(IF((INDEX(base_indices,1,)=H$13)*(INDEX(base_indices,,1)=$A37),INDEX(base_indices,,),0)))) -> 108.5
A38: 2020-10-01 | B38: =IF(A38>date,"",SUM(IF((INDEX(base_index,1,)=B$13)*(INDEX(base_index,,1)=$A38),INDEX(base_index,,),0))) -> 109.5 | C38: =IF(A38>date,"",IF((SUM(IF((INDEX(base_index,1,)=C$13)*(INDEX(base_index,,1)=$A38),INDEX(base_index,,),0)))=0,#N/A,SUM(IF((INDEX(base_index,1,)=C$13)*(INDEX(base_index,,1)=$A38),INDEX(base_index,,),0)))) -> 114.4 | D38: =IF(A38>date,"",SUM(IF((INDEX(base_indices,1,)=D$13)*(INDEX(base_indices,,1)=$A38),INDEX(base_indices,,),0))) -> 104.1 | E38: =IF(A38>date,"",SUM(IF((INDEX(base_indices,1,)=E$13)*(INDEX(base_indices,,1)=$A38),INDEX(base_indices,,),0))) -> 123.5 | F38: =IF(A38>date,"",SUM(IF((INDEX(base_indices,1,)=F$13)*(INDEX(base_indices,,1)=$A38),INDEX(base_indices,,),0))) -> 95 | G38: =IF(A38>date,"",IF(OR(G$13="",G$13="Fioul lourd"),#N/A,SUM(IF((INDEX(base_indices,1,)=G$13)*(INDEX(base_indices,,1)=$A38),INDEX(base_indices,,),0)))) -> 105.9 | H38: =IF(A38>date,"",IF(OR(H$13="",H$13="Fioul lourd"),#N/A,SUM(IF((INDEX(base_indices,1,)=H$13)*(INDEX(base_indices,,1)=$A38),INDEX(base_indices,,),0)))) -> 110.7
A39: 2020-11-01 | B39: =IF(A39>date,"",SUM(IF((INDEX(base_index,1,)=B$13)*(INDEX(base_index,,1)=$A39),INDEX(base_index,,),0))) -> 109.5 | C39: =IF(A39>date,"",IF((SUM(IF((INDEX(base_index,1,)=C$13)*(INDEX(base_index,,1)=$A39),INDEX(base_index,,),0)))=0,#N/A,SUM(IF((INDEX(base_index,1,)=C$13)*(INDEX(base_index,,1)=$A39),INDEX(base_index,,),0)))) -> 114.5 | D39: =IF(A39>date,"",SUM(IF((INDEX(base_indices,1,)=D$13)*(INDEX(base_indices,,1)=$A39),INDEX(base_indices,,),0))) -> 104.4 | E39: =IF(A39>date,"",SUM(IF((INDEX(base_indices,1,)=E$13)*(INDEX(base_indices,,1)=$A39),INDEX(base_indices,,),0))) -> 123.5 | F39: =IF(A39>date,"",SUM(IF((INDEX(base_indices,1,)=F$13)*(INDEX(base_indices,,1)=$A39),INDEX(base_indices,,),0))) -> 96.6 | G39: =IF(A39>date,"",IF(OR(G$13="",G$13="Fioul lourd"),#N/A,SUM(IF((INDEX(base_indices,1,)=G$13)*(INDEX(base_indices,,1)=$A39),INDEX(base_indices,,),0)))) -> 105.4 | H39: =IF(A39>date,"",IF(OR(H$13="",H$13="Fioul lourd"),#N/A,SUM(IF((INDEX(base_indices,1,)=H$13)*(INDEX(base_indices,,1)=$A39),INDEX(base_indices,,),0)))) -> 112.6
A40: 2020-12-01 | B40: =IF(A40>date,"",SUM(IF((INDEX(base_index,1,)=B$13)*(INDEX(base_index,,1)=$A40),INDEX(base_index,,),0))) -> 109.8 | C40: =IF(A40>date,"",IF((SUM(IF((INDEX(base_index,1,)=C$13)*(INDEX(base_index,,1)=$A40),INDEX(base_index,,),0)))=0,#N/A,SUM(IF((INDEX(base_index,1,)=C$13)*(INDEX(base_index,,1)=$A40),INDEX(base_index,,),0)))) -> 114.9 | D40: =IF(A40>date,"",SUM(IF((INDEX(base_indices,1,)=D$13)*(INDEX(base_indices,,1)=$A40),INDEX(base_indices,,),0))) -> 104.4 | E40: =IF(A40>date,"",SUM(IF((INDEX(base_indices,1,)=E$13)*(INDEX(base_indices,,1)=$A40),INDEX(base_indices,,),0))) -> 123.4 | F40: =IF(A40>date,"",SUM(IF((INDEX(base_indices,1,)=F$13)*(INDEX(base_indices,,1)=$A40),INDEX(base_indices,,),0))) -> 101.2 | G40: =IF(A40>date,"",IF(OR(G$13="",G$13="Fioul lourd"),#N/A,SUM(IF((INDEX(base_indices,1,)=G$13)*(INDEX(base_indices,,1)=$A40),INDEX(base_indices,,),0)))) -> 104.7 | H40: =IF(A40>date,"",IF(OR(H$13="",H$13="Fioul lourd"),#N/A,SUM(IF((INDEX(base_indices,1,)=H$13)*(INDEX(base_indices,,1)=$A40),INDEX(base_indices,,),0)))) -> 116.1
A41: 2021-01-01 | B41: =IF(A41>date,"",SUM(IF((INDEX(base_index,1,)=B$13)*(INDEX(base_index,,1)=$A41),INDEX(base_index,,),0))) -> 111.2 | C41: =IF(A41>date,"",IF((SUM(IF((INDEX(base_index,1,)=C$13)*(INDEX(base_index,,1)=$A41),INDEX(base_index,,),0)))=0,#N/A,SUM(IF((INDEX(base_index,1,)=C$13)*(INDEX(base_index,,1)=$A41),INDEX(base_index,,),0)))) -> 116.3 | D41: =IF(A41>date,"",SUM(IF((INDEX(base_indices,1,)=D$13)*(INDEX(base_indices,,1)=$A41),INDEX(base_indices,,),0))) -> 104.5 | E41: =IF(A41>date,"",SUM(IF((INDEX(base_indices,1,)=E$13)*(INDEX(base_indices,,1)=$A41),INDEX(base_indices,,),0))) -> 123.4 | F41: =IF(A41>date,"",SUM(IF((INDEX(base_indices,1,)=F$13)*(INDEX(base_indices,,1)=$A41),INDEX(base_indices,,),0))) -> 104.6 | G41: =IF(A41>date,"",IF(OR(G$13="",G$13="Fioul lourd"),#N/A,SUM(IF((INDEX(base_indices,1,)=G$13)*(INDEX(base_indices,,1)=$A41),INDEX(base_indices,,),0)))) -> 105.8 | H41: =IF(A41>date,"",IF(OR(H$13="",H$13="Fioul lourd"),#N/A,SUM(IF((INDEX(base_indices,1,)=H$13)*(INDEX(base_indices,,1)=$A41),INDEX(base_indices,,),0)))) -> 130.8
A42: 2021-02-01 | B42: =IF(A42>date,"",SUM(IF((INDEX(base_index,1,)=B$13)*(INDEX(base_index,,1)=$A42),INDEX(base_index,,),0))) -> 112.1 | C42: =IF(A42>date,"",IF((SUM(IF((INDEX(base_index,1,)=C$13)*(INDEX(base_index,,1)=$A42),INDEX(base_index,,),0)))=0,#N/A,SUM(IF((INDEX(base_index,1,)=C$13)*(INDEX(base_index,,1)=$A42),INDEX(base_index,,),0)))) -> 117.2 | D42: =IF(A42>date,"",SUM(IF((INDEX(base_indices,1,)=D$13)*(INDEX(base_indices,,1)=$A42),INDEX(base_indices,,),0))) -> 104.5 | E42: =IF(A42>date,"",SUM(IF((INDEX(base_indices,1,)=E$13)*(INDEX(base_indices,,1)=$A42),INDEX(base_indices,,),0))) -> 123.3 | F42: =IF(A42>date,"",SUM(IF((INDEX(base_indices,1,)=F$13)*(INDEX(base_indices,,1)=$A42),INDEX(base_indices,,),0))) -> 109.6 | G42: =IF(A42>date,"",IF(OR(G$13="",G$13="Fioul lourd"),#N/A,SUM(IF((INDEX(base_indices,1,)=G$13)*(INDEX(base_indices,,1)=$A42),INDEX(base_indices,,),0)))) -> 105.9 | H42: =IF(A42>date,"",IF(OR(H$13="",H$13="Fioul lourd"),#N/A,SUM(IF((INDEX(base_indices,1,)=H$13)*(INDEX(base_indices,,1)=$A42),INDEX(base_indices,,),0)))) -> 139.2
A43: 2021-03-01 | B43: =IF(A43>date,"",SUM(IF((INDEX(base_index,1,)=B$13)*(INDEX(base_index,,1)=$A43),INDEX(base_index,,),0))) -> 113.5 | C43: =IF(A43>date,"",IF((SUM(IF((INDEX(base_index,1,)=C$13)*(INDEX(base_index,,1)=$A43),INDEX(base_index,,),0)))=0,#N/A,SUM(IF((INDEX(base_index,1,)=C$13)*(INDEX(base_index,,1)=$A43),INDEX(base_index,,),0)))) -> 118.3 | D43: =IF(A43>date,"",SUM(IF((INDEX(base_indices,1,)=D$13)*(INDEX(base_indices,,1)=$A43),INDEX(base_indices,,),0))) -> 107.6 | E43: =IF(A43>date,"",SUM(IF((INDEX(base_indices,1,)=E$13)*(INDEX(base_indices,,1)=$A43),INDEX(base_indices,,),0))) -> 123.3 | F43: =IF(A43>date,"",SUM(IF((INDEX(base_indices,1,)=F$13)*(INDEX(base_indices,,1)=$A43),INDEX(base_indices,,),0))) -> 111.5 | G43: =IF(A43>date,"",IF(OR(G$13="",G$13="Fioul lourd"),#N/A,SUM(IF((INDEX(base_indices,1,)=G$13)*(INDEX(base_indices,,1)=$A43),INDEX(base_indices,,),0)))) -> 106.2 | H43: =IF(A43>date,"",IF(OR(H$13="",H$13="Fioul lourd"),#N/A,SUM(IF((INDEX(base_indices,1,)=H$13)*(INDEX(base_indices,,1)=$A43),INDEX(base_indices,,),0)))) -> 144.6
A44: 2021-04-01 | B44: =IF(A44>date,"",SUM(IF((INDEX(base_index,1,)=B$13)*(INDEX(base_index,,1)=$A44),INDEX(base_index,,),0))) -> 113.8 | C44: =IF(A44>date,"",IF((SUM(IF((INDEX(base_index,1,)=C$13)*(INDEX(base_index,,1)=$A44),INDEX(base_index,,),0)))=0,#N/A,SUM(IF((INDEX(base_index,1,)=C$13)*(INDEX(base_index,,1)=$A44),INDEX(base_index,,),0)))) -> 118.9 | D44: =IF(A44>date,"",SUM(IF((INDEX(base_indices,1,)=D$13)*(INDEX(base_indices,,1)=$A44),INDEX(base_indices,,),0))) -> 107.8 | E44: =IF(A44>date,"",SUM(IF((INDEX(base_indices,1,)=E$13)*(INDEX(base_indices,,1)=$A44),INDEX(base_indices,,),0))) -> 123 | F44: =IF(A44>date,"",SUM(IF((INDEX(base_indices,1,)=F$13)*(INDEX(base_indices,,1)=$A44),INDEX(base_indices,,),0))) -> 110.9 | G44: =IF(A44>date,"",IF(OR(G$13="",G$13="Fioul lourd"),#N/A,SUM(IF((INDEX(base_indices,1,)=G$13)*(INDEX(base_indices,,1)=$A44),INDEX(base_indices,,),0)))) -> 106.4 | H44: =IF(A44>date,"",IF(OR(H$13="",H$13="Fioul lourd"),#N/A,SUM(IF((INDEX(base_indices,1,)=H$13)*(INDEX(base_indices,,1)=$A44),INDEX(base_indices,,),0)))) -> 149.4
A45: 2021-05-01 | B45: =IF(A45>date,"",SUM(IF((INDEX(base_index,1,)=B$13)*(INDEX(base_index,,1)=$A45),INDEX(base_index,,),0))) -> 114 | C45: =IF(A45>date,"",IF((SUM(IF((INDEX(base_index,1,)=C$13)*(INDEX(base_index,,1)=$A45),INDEX(base_index,,),0)))=0,#N/A,SUM(IF((INDEX(base_index,1,)=C$13)*(INDEX(base_index,,1)=$A45),INDEX(base_index,,),0)))) -> 119 | D45: =IF(A45>date,"",SUM(IF((INDEX(base_indices,1,)=D$13)*(INDEX(base_indices,,1)=$A45),INDEX(base_indices,,),0))) -> 107.2 | E45: =IF(A45>date,"",SUM(IF((INDEX(base_indices,1,)=E$13)*(INDEX(base_indices,,1)=$A45),INDEX(base_indices,,),0))) -> 122.7 | F45: =IF(A45>date,"",SUM(IF((INDEX(base_indices,1,)=F$13)*(INDEX(base_indices,,1)=$A45),INDEX(base_indices,,),0))) -> 112.9 | G45: =IF(A45>date,"",IF(OR(G$13="",G$13="Fioul lourd"),#N/A,SUM(IF((INDEX(base_indices,1,)=G$13)*(INDEX(base_indices,,1)=$A45),INDEX(base_indices,,),0)))) -> 106 | H45: =IF(A45>date,"",IF(OR(H$13="",H$13="Fioul lourd"),#N/A,SUM(IF((INDEX(base_indices,1,)=H$13)*(INDEX(base_indices,,1)=$A45),INDEX(base_indices,,),0)))) -> 153.5
A46: 2021-06-01 | B46: =IF(A46>date,"",SUM(IF((INDEX(base_index,1,)=B$13)*(INDEX(base_index,,1)=$A46),INDEX(base_index,,),0))) -> 114.8 | C46: =IF(A46>date,"",IF((SUM(IF((INDEX(base_index,1,)=C$13)*(INDEX(base_index,,1)=$A46),INDEX(base_index,,),0)))=0,#N/A,SUM(IF((INDEX(base_index,1,)=C$13)*(INDEX(base_index,,1)=$A46),INDEX(base_index,,),0)))) -> 120.8 | D46: =IF(A46>date,"",SUM(IF((INDEX(base_indices,1,)=D$13)*(INDEX(base_indices,,1)=$A46),INDEX(base_indices,,),0))) -> 107.8 | E46: =IF(A46>date,"",SUM(IF((INDEX(base_indices,1,)=E$13)*(INDEX(base_indices,,1)=$A46),INDEX(base_indices,,),0))) -> 122.5 | F46: =IF(A46>date,"",SUM(IF((INDEX(base_indices,1,)=F$13)*(INDEX(base_indices,,1)=$A46),INDEX(base_indices,,),0))) -> 117.1 | G46: =IF(A46>date,"",IF(OR(G$13="",G$13="Fioul lourd"),#N/A,SUM(IF((INDEX(base_indices,1,)=G$13)*(INDEX(base_indices,,1)=$A46),INDEX(base_indices,,),0)))) -> 105.6 | H46: =IF(A46>date,"",IF(OR(H$13="",H$13="Fioul lourd"),#N/A,SUM(IF((INDEX(base_indices,1,)=H$13)*(INDEX(base_indices,,1)=$A46),INDEX(base_indices,,),0)))) -> 167.7
A47: 2021-07-01 | B47: =IF(A47>date,"",SUM(IF((INDEX(base_index,1,)=B$13)*(INDEX(base_index,,1)=$A47),INDEX(base_index,,),0))) -> 115.9 | C47: =IF(A47>date,"",IF((SUM(IF((INDEX(base_index,1,)=C$13)*(INDEX(base_index,,1)=$A47),INDEX(base_index,,),0)))=0,#N/A,SUM(IF((INDEX(base_index,1,)=C$13)*(INDEX(base_index,,1)=$A47),INDEX(base_index,,),0)))) -> 122.7 | D47: =IF(A47>date,"",SUM(IF((INDEX(base_indices,1,)=D$13)*(INDEX(base_indices,,1)=$A47),INDEX(base_indices,,),0))) -> 108.3 | E47: =IF(A47>date,"",SUM(IF((INDEX(base_indices,1,)=E$13)*(INDEX(base_indices,,1)=$A47),INDEX(base_indices,,),0))) -> 122.5 | F47: =IF(A47>date,"",SUM(IF((INDEX(base_indices,1,)=F$13)*(INDEX(base_indices,,1)=$A47),INDEX(base_indices,,),0))) -> 120.9 | G47: =IF(A47>date,"",IF(OR(G$13="",G$13="Fioul lourd"),#N/A,SUM(IF((INDEX(base_indices,1,)=G$13)*(INDEX(base_indices,,1)=$A47),INDEX(base_indices,,),0)))) -> 106.7 | H47: =IF(A47>date,"",IF(OR(H$13="",H$13="Fioul lourd"),#N/A,SUM(IF((INDEX(base_indices,1,)=H$13)*(INDEX(base_indices,,1)=$A47),INDEX(base_indices,,),0)))) -> 185.7
A48: 2021-08-01 | B48: =IF(A48>date,"",SUM(IF((INDEX(base_index,1,)=B$13)*(INDEX(base_index,,1)=$A48),INDEX(base_index,,),0))) -> 116.1 | C48: =IF(A48>date,"",IF((SUM(IF((INDEX(base_index,1,)=C$13)*(INDEX(base_index,,1)=$A48),INDEX(base_index,,),0)))=0,#N/A,SUM(IF((INDEX(base_index,1,)=C$13)*(INDEX(base_index,,1)=$A48),INDEX(base_index,,),0)))) -> 123.1 | D48: =IF(A48>date,"",SUM(IF((INDEX(base_indices,1,)=D$13)*(INDEX(base_indices,,1)=$A48),INDEX(base_indices,,),0))) -> 108.2 | E48: =IF(A48>date,"",SUM(IF((INDEX(base_indices,1,)=E$13)*(INDEX(base_indices,,1)=$A48),INDEX(base_indices,,),0))) -> 122.6 | F48: =IF(A48>date,"",SUM(IF((INDEX(base_indices,1,)=F$13)*(INDEX(base_indices,,1)=$A48),INDEX(base_indices,,),0))) -> 122.5 | G48: =IF(A48>date,"",IF(OR(G$13="",G$13="Fioul lourd"),#N/A,SUM(IF((INDEX(base_indices,1,)=G$13)*(INDEX(base_indices,,1)=$A48),INDEX(base_indices,,),0)))) -> 108.3 | H48: =IF(A48>date,"",IF(OR(H$13="",H$13="Fioul lourd"),#N/A,SUM(IF((INDEX(base_indices,1,)=H$13)*(INDEX(base_indices,,1)=$A48),INDEX(base_indices,,),0)))) -> 191.7
A49: 2021-09-01 | B49: =IF(A49>date,"",SUM(IF((INDEX(base_index,1,)=B$13)*(INDEX(base_index,,1)=$A49),INDEX(base_index,,),0))) -> 116.4 | C49: =IF(A49>date,"",IF((SUM(IF((INDEX(base_index,1,)=C$13)*(INDEX(base_index,,1)=$A49),INDEX(base_index,,),0)))=0,#N/A,SUM(IF((INDEX(base_index,1,)=C$13)*(INDEX(base_index,,1)=$A49),INDEX(base_index,,),0)))) -> 123.7 | D49: =IF(A49>date,"",SUM(IF((INDEX(base_indices,1,)=D$13)*(INDEX(base_indices,,1)=$A49),INDEX(base_indices,,),0))) -> 108.6 | E49: =IF(A49>date,"",SUM(IF((INDEX(base_indices,1,)=E$13)*(INDEX(base_indices,,1)=$A49),INDEX(base_indices,,),0))) -> 122.7 | F49: =IF(A49>date,"",SUM(IF((INDEX(base_indices,1,)=F$13)*(INDEX(base_indices,,1)=$A49),INDEX(base_indices,,),0))) -> 123.3 | G49: =IF(A49>date,"",IF(OR(G$13="",G$13="Fioul lourd"),#N/A,SUM(IF((INDEX(base_indices,1,)=G$13)*(INDEX(base_indices,,1)=$A49),INDEX(base_indices,,),0)))) -> 105.5 | H49: =IF(A49>date,"",IF(OR(H$13="",H$13="Fioul lourd"),#N/A,SUM(IF((INDEX(base_indices,1,)=H$13)*(INDEX(base_indices,,1)=$A49),INDEX(base_indices,,),0)))) -> 196.7
A50: 2021-10-01 | B50: =IF(A50>date,"",SUM(IF((INDEX(base_index,1,)=B$13)*(INDEX(base_index,,1)=$A50),INDEX(base_index,,),0))) -> 117.5 | C50: =IF(A50>date,"",IF((SUM(IF((INDEX(base_index,1,)=C$13)*(INDEX(base_index,,1)=$A50),INDEX(base_index,,),0)))=0,#N/A,SUM(IF((INDEX(base_index,1,)=C$13)*(INDEX(base_index,,1)=$A50),INDEX(base_index,,),0)))) -> 123.6 | D50: =IF(A50>date,"",SUM(IF((INDEX(base_indices,1,)=D$13)*(INDEX(base_indices,,1)=$A50),INDEX(base_indices,,),0))) -> 109 | E50: =IF(A50>date,"",SUM(IF((INDEX(base_indices,1,)=E$13)*(INDEX(base_indices,,1)=$A50),INDEX(base_indices,,),0))) -> 122.7 | F50: =IF(A50>date,"",SUM(IF((INDEX(base_indices,1,)=F$13)*(INDEX(base_indices,,1)=$A50),INDEX(base_indices,,),0))) -> 133 | G50: =IF(A50>date,"",IF(OR(G$13="",G$13="Fioul lourd"),#N/A,SUM(IF((INDEX(base_indices,1,)=G$13)*(INDEX(base_indices,,1)=$A50),INDEX(base_indices,,),0)))) -> 106.4 | H50: =IF(A50>date,"",IF(OR(H$13="",H$13="Fioul lourd"),#N/A,SUM(IF((INDEX(base_indices,1,)=H$13)*(INDEX(base_indices,,1)=$A50),INDEX(base_indices,,),0)))) -> 193
A52: ='Résultats depuis janvier'!B4 -> TP02
A54: =OFFSET('Composition index'!$J$2,0,I54) -> Travail activités spécialisées | B54: =SUM(IF((INDEX(compo,2,)='Données cumul depuis janvier'!A54)*(INDEX(compo,,1)=$A$52),INDEX(compo,,),0)) -> 0 | C54: =_xlfn._xlws.SORT(A54:B88,2,-1) -> Béton prêt à l'emploi | D54: 0.12 | E54: =HLOOKUP(C54,'Composition index'!$A$2:$AR$3,2,FALSE) -> 010534646 | F54: =SUM(IF((INDEX(base_indices,1,)=E54)*(INDEX(base_indices,,1)>='Données cumul depuis janvier'!$B$1)*(INDEX(base_indices,,1)<='Données cumul depuis janvier'!$C$1),INDEX(base_indices,,),0))/SUM(IF((INDEX(base_indices,1,)=E54)*(INDEX(base_indices,,1)>='Données cumul depuis janvier'!$D$1)*(INDEX(base_indices,,1)<='Données cumul depuis janvier'!$E$1),INDEX(base_indices,,),0))-1 -> 0.01354186534 | G54: =SUM(IF((INDEX(base_indices,1,)=E54)*(INDEX(base_indices,,1)>=$B$3)*(INDEX(base_indices,,1)<=$C$3),INDEX(base_indices,,),0))/SUM(IF((INDEX(base_indices,1,)=E54)*(INDEX(base_indices,,1)>=$D$3)*(INDEX(base_indices,,1)<=$E$3),INDEX(base_indices,,),0))-1 -> 0.01383191834 | H54: =INDEX('Indice prix'!$B$1:$AP$2,1,MATCH('Données cumul depuis janvier'!E54,'Indice prix'!$B$2:$AP$2,0)) -> base 2015 | J54: =IF(D54=0,"","base 100 en "&RIGHT(H54,4)) -> base 100 en 2015 | K54: =SUM(IF((INDEX(base_indices,1,)=E54)*(INDEX(base_indices,,1)='Indice prix'!A$59),INDEX(base_indices,,),0)) -> 0
A55: =OFFSET('Composition index'!$J$2,0,I55) -> Électricité vendue aux entreprises consommatrices finales | B55: =SUM(IF((INDEX(compo,2,)='Données cumul depuis janvier'!A55)*(INDEX(compo,,1)=$A$52),INDEX(compo,,),0)) -> 0.01 | C55: Barres crénelées ou nervurées pour béton armé | D55: 0.09 | E55: =HLOOKUP(C55,'Composition index'!$A$2:$AR$3,2,FALSE) -> 010546545 | F55: =SUM(IF((INDEX(base_indices,1,)=E55)*(INDEX(base_indices,,1)>='Données cumul depuis janvier'!$B$1)*(INDEX(base_indices,,1)<='Données cumul depuis janvier'!$C$1),INDEX(base_indices,,),0))/SUM(IF((INDEX(base_indices,1,)=E55)*(INDEX(base_indices,,1)>='Données cumul depuis janvier'!$D$1)*(INDEX(base_indices,,1)<='Données cumul depuis janvier'!$E$1),INDEX(base_indices,,),0))-1 -> 0.3612621519 | G55: =SUM(IF((INDEX(base_indices,1,)=E55)*(INDEX(base_indices,,1)>=$B$3)*(INDEX(base_indices,,1)<=$C$3),INDEX(base_indices,,),0))/SUM(IF((INDEX(base_indices,1,)=E55)*(INDEX(base_indices,,1)>=$D$3)*(INDEX(base_indices,,1)<=$E$3),INDEX(base_indices,,),0))-1 -> 0.4938070699 | H55: =INDEX('Indice prix'!$B$1:$AP$2,1,MATCH('Données cumul depuis janvier'!E55,'Indice prix'!$B$2:$AP$2,0)) -> base 2015 | I55: 1 | J55: =IF(D55=0,"","base 100 en "&RIGHT(H55,4)) -> base 100 en 2015 | K55: =SUM(IF((INDEX(base_indices,1,)=E55)*(INDEX(base_indices,,1)='Indice prix'!A$59),INDEX(base_indices,,),0)) -> 0
A56: =OFFSET('Composition index'!$J$2,0,I56) -> Fioul lourd | B56: =SUM(IF((INDEX(compo,2,)='Données cumul depuis janvier'!A56)*(INDEX(compo,,1)=$A$52),INDEX(compo,,),0)) -> 0 | C56: Tubes, tuyaux en matière plastique | D56: 0.04 | E56: =HLOOKUP(C56,'Composition index'!$A$2:$AR$3,2,FALSE) -> 010534207 | F56: =SUM(IF((INDEX(base_indices,1,)=E56)*(INDEX(base_indices,,1)>='Données cumul depuis janvier'!$B$1)*(INDEX(base_indices,,1)<='Données cumul depuis janvier'!$C$1),INDEX(base_indices,,),0))/SUM(IF((INDEX(base_indices,1,)=E56)*(INDEX(base_indices,,1)>='Données cumul depuis janvier'!$D$1)*(INDEX(base_indices,,1)<='Données cumul depuis janvier'!$E$1),INDEX(base_indices,,),0))-1 -> 0.1190880912 | G56: =SUM(IF((INDEX(base_indices,1,)=E56)*(INDEX(base_indices,,1)>=$B$3)*(INDEX(base_indices,,1)<=$C$3),INDEX(base_indices,,),0))/SUM(IF((INDEX(base_indices,1,)=E56)*(INDEX(base_indices,,1)>=$D$3)*(INDEX(base_indices,,1)<=$E$3),INDEX(base_indices,,),0))-1 -> 0.1223425592 | I56: 2 | K56: =SUM(IF((INDEX(base_indices,1,)=E56)*(INDEX(base_indices,,1)='Indice prix'!A$59),INDEX(base_indices,,),0)) -> 0
A57: =OFFSET('Composition index'!$J$2,0,I57) -> Gazole routier HTT | B57: =SUM(IF((INDEX(compo,2,)='Données cumul depuis janvier'!A57)*(INDEX(compo,,1)=$A$52),INDEX(compo,,),0)) -> 0 | C57: Ensemble des produits du sciage | D57: 0.02 | E57: =HLOOKUP(C57,'Composition index'!$A$2:$AR$3,2,FALSE) -> 010534575 | F57: =SUM(IF((INDEX(base_indices,1,)=E57)*(INDEX(base_indices,,1)>='Données cumul depuis janvier'!$B$1)*(INDEX(base_indices,,1)<='Données cumul depuis janvier'!$C$1),INDEX(base_indices,,),0))/SUM(IF((INDEX(base_indices,1,)=E57)*(INDEX(base_indices,,1)>='Données cumul depuis janvier'!$D$1)*(INDEX(base_indices,,1)<='Données cumul depuis janvier'!$E$1),INDEX(base_indices,,),0))-1 -> 0.1589093914 | G57: =SUM(IF((INDEX(base_indices,1,)=E57)*(INDEX(base_indices,,1)>=$B$3)*(INDEX(base_indices,,1)<=$C$3),INDEX(base_indices,,),0))/SUM(IF((INDEX(base_indices,1,)=E57)*(INDEX(base_indices,,1)>=$D$3)*(INDEX(base_indices,,1)<=$E$3),INDEX(base_indices,,),0))-1 -> 0.1797028315 | I57: 3 | K57: =SUM(IF((INDEX(base_indices,1,)=E57)*(INDEX(base_indices,,1)='Indice prix'!A$59),INDEX(base_indices,,),0)) -> 0
A58: =OFFSET('Composition index'!$J$2,0,I58) -> Tubes, tuyaux en matière plastique | B58: =SUM(IF((INDEX(compo,2,)='Données cumul depuis janvier'!A58)*(INDEX(compo,,1)=$A$52),INDEX(compo,,),0)) -> 0.04 | C58: Électricité vendue aux entreprises consommatrices finales | D58: 0.01 | E58: =HLOOKUP(C58,'Composition index'!$A$2:$AR$3,2,FALSE) -> 010534769 | F58: =SUM(IF((INDEX(base_indices,1,)=E58)*(INDEX(base_indices,,1)>='Données cumul depuis janvier'!$B$1)*(INDEX(base_indices,,1)<='Données cumul depuis janvier'!$C$1),INDEX(base_indices,,),0))/SUM(IF((INDEX(base_indices,1,)=E58)*(INDEX(base_indices,,1)>='Données cumul depuis janvier'!$D$1)*(INDEX(base_indices,,1)<='Données cumul depuis janvier'!$E$1),INDEX(base_indices,,),0))-1 -> 0.08345221113 | G58: =SUM(IF((INDEX(base_indices,1,)=E58)*(INDEX(base_indices,,1)>=$B$3)*(INDEX(base_indices,,1)<=$C$3),INDEX(base_indices,,),0))/SUM(IF((INDEX(base_indices,1,)=E58)*(INDEX(base_indices,,1)>=$D$3)*(INDEX(base_indices,,1)<=$E$3),INDEX(base_indices,,),0))-1 -> 0.03987677563 | I58: 4 | K58: =SUM(IF((INDEX(base_indices,1,)=E58)*(INDEX(base_indices,,1)='Indice prix'!A$59),INDEX(base_indices,,),0)) -> 0
A59: =OFFSET('Composition index'!$J$2,0,I59) -> Ensemble des produits du sciage | B59: =SUM(IF((INDEX(compo,2,)='Données cumul depuis janvier'!A59)*(INDEX(compo,,1)=$A$52),INDEX(compo,,),0)) -> 0.02 | C59: Travail activités spécialisées | D59: 0 | E59: =HLOOKUP(C59,'Composition index'!$A$2:$AR$3,2,FALSE) -> 001565195 | F59: =SUM(IF((INDEX(base_indices,1,)=E59)*(INDEX(base_indices,,1)>='Données cumul depuis janvier'!$B$1)*(INDEX(base_indices,,1)<='Données cumul depuis janvier'!$C$1),INDEX(base_indices,,),0))/SUM(IF((INDEX(base_indices,1,)=E59)*(INDEX(base_indices,,1)>='Données cumul depuis janvier'!$D$1)*(INDEX(base_indices,,1)<='Données cumul depuis janvier'!$E$1),INDEX(base_indices,,),0))-1 -> 0.03308207705 | G59: =SUM(IF((INDEX(base_indices,1,)=E59)*(INDEX(base_indices,,1)>=$B$3)*(INDEX(base_indices,,1)<=$C$3),INDEX(base_indices,,),0))/SUM(IF((INDEX(base_indices,1,)=E59)*(INDEX(base_indices,,1)>=$D$3)*(INDEX(base_indices,,1)<=$E$3),INDEX(base_indices,,),0))-1 -> 0.01547707253 | I59: 5 | K59: =SUM(IF((INDEX(base_indices,1,)=E59)*(INDEX(base_indices,,1)='Indice prix'!A$59),INDEX(base_indices,,),0)) -> 1
A60: =OFFSET('Composition index'!$J$2,0,I60) -> Béton prêt à l'emploi | B60: =SUM(IF((INDEX(compo,2,)='Données cumul depuis janvier'!A60)*(INDEX(compo,,1)=$A$52),INDEX(compo,,),0)) -> 0.12 | C60: Fioul lourd | D60: 0 | E60: =HLOOKUP(C60,'Composition index'!$A$2:$AR$3,2,FALSE) -> Fioul lourd | F60: =SUM(IF((INDEX(base_indices,1,)=E60)*(INDEX(base_indices,,1)>='Données cumul depuis janvier'!$B$1)*(INDEX(base_indices,,1)<='Données cumul depuis janvier'!$C$1),INDEX(base_indices,,),0))/SUM(IF((INDEX(base_indices,1,)=E60)*(INDEX(base_indices,,1)>='Données cumul depuis janvier'!$D$1)*(INDEX(base_indices,,1)<='Données cumul depuis janvier'!$E$1),INDEX(base_indices,,),0))-1 -> -0.1532319623 | G60: =SUM(IF((INDEX(base_indices,1,)=E60)*(INDEX(base_indices,,1)>=$B$3)*(INDEX(base_indices,,1)<=$C$3),INDEX(base_indices,,),0))/SUM(IF((INDEX(base_indices,1,)=E60)*(INDEX(base_indices,,1)>=$D$3)*(INDEX(base_indices,,1)<=$E$3),INDEX(base_indices,,),0))-1 -> 0.3477670999 | I60: 6 | K60: =SUM(IF((INDEX(base_indices,1,)=E60)*(INDEX(base_indices,,1)='Indice prix'!A$59),INDEX(base_indices,,),0)) -> 0
A61: =OFFSET('Composition index'!$J$2,0,I61) -> Barres crénelées ou nervurées pour béton armé | B61: =SUM(IF((INDEX(compo,2,)='Données cumul depuis janvier'!A61)*(INDEX(compo,,1)=$A$52),INDEX(compo,,),0)) -> 0.09 | C61: Gazole routier HTT | D61: 0 | E61: =HLOOKUP(C61,'Composition index'!$A$2:$AR$3,2,FALSE) -> Gazole routier HTT | F61: =SUM(IF((INDEX(base_indices,1,)=E61)*(INDEX(base_indices,,1)>='Données cumul depuis janvier'!$B$1)*(INDEX(base_indices,,1)<='Données cumul depuis janvier'!$C$1),INDEX(base_indices,,),0))/SUM(IF((INDEX(base_indices,1,)=E61)*(INDEX(base_indices,,1)>='Données cumul depuis janvier'!$D$1)*(INDEX(base_indices,,1)<='Données cumul depuis janvier'!$E$1),INDEX(base_indices,,),0))-1 -> -0.1500508924 | G61: =SUM(IF((INDEX(base_indices,1,)=E61)*(INDEX(base_indices,,1)>=$B$3)*(INDEX(base_indices,,1)<=$C$3),INDEX(base_indices,,),0))/SUM(IF((INDEX(base_indices,1,)=E61)*(INDEX(base_indices,,1)>=$D$3)*(INDEX(base_indices,,1)<=$E$3),INDEX(base_indices,,),0))-1 -> 0.3528302827 | I61: 7 | K61: =SUM(IF((INDEX(base_indices,1,)=E61)*(INDEX(base_indices,,1)='Indice prix'!A$59),INDEX(base_indices,,),0)) -> 0
A62: =OFFSET('Composition index'!$J$2,0,I62) -> Sables et granulats | B62: =SUM(IF((INDEX(compo,2,)='Données cumul depuis janvier'!A62)*(INDEX(compo,,1)=$A$52),INDEX(compo,,),0)) -> 0 | C62: Sables et granulats | D62: 0 | E62: =HLOOKUP(C62,'Composition index'!$A$2:$AR$3,2,FALSE) -> 010536067 | F62: =SUM(IF((INDEX(base_indices,1,)=E62)*(INDEX(base_indices,,1)>='Données cumul depuis janvier'!$B$1)*(INDEX(base_indices,,1)<='Données cumul depuis janvier'!$C$1),INDEX(base_indices,,),0))/SUM(IF((INDEX(base_indices,1,)=E62)*(INDEX(base_indices,,1)>='Données cumul depuis janvier'!$D$1)*(INDEX(base_indices,,1)<='Données cumul depuis janvier'!$E$1),INDEX(base_indices,,),0))-1 -> 0.02841077242 | G62: =SUM(IF((INDEX(base_indices,1,)=E62)*(INDEX(base_indices,,1)>=$B$3)*(INDEX(base_indices,,1)<=$C$3),INDEX(base_indices,,),0))/SUM(IF((INDEX(base_indices,1,)=E62)*(INDEX(base_indices,,1)>=$D$3)*(INDEX(base_indices,,1)<=$E$3),INDEX(base_indices,,),0))-1 -> 0.01174301242 | I62: 8 | K62: =SUM(IF((INDEX(base_indices,1,)=E62)*(INDEX(base_indices,,1)='Indice prix'!A$59),INDEX(base_indices,,),0)) -> 0
A63: =OFFSET('Composition index'!$J$2,0,I63) -> Plaques, feuilles, tubes et profilés en matières plastiques | B63: =SUM(IF((INDEX(compo,2,)='Données cumul depuis janvier'!A63)*(INDEX(compo,,1)=$A$52),INDEX(compo,,),0)) -> 0 | C63: Plaques, feuilles, tubes et profilés en matières plastiques | D63: 0 | E63: =HLOOKUP(C63,'Composition index'!$A$2:$AR$3,2,FALSE) -> 010534625 | F63: =SUM(IF((INDEX(base_indices,1,)=E63)*(INDEX(base_indices,,1)>='Données cumul depuis janvier'!$B$1)*(INDEX(base_indices,,1)<='Données cumul depuis janvier'!$C$1),INDEX(base_indices,,),0))/SUM(IF((INDEX(base_indices,1,)=E63)*(INDEX(base_indices,,1)>='Données cumul depuis janvier'!$D$1)*(INDEX(base_indices,,1)<='Données cumul depuis janvier'!$E$1),INDEX(base_indices,,),0))-1 -> 0.1107459416 | G63: =SUM(IF((INDEX(base_indices,1,)=E63)*(INDEX(base_indices,,1)>=$B$3)*(INDEX(base_indices,,1)<=$C$3),INDEX(base_indices,,),0))/SUM(IF((INDEX(base_indices,1,)=E63)*(INDEX(base_indices,,1)>=$D$3)*(INDEX(base_indices,,1)<=$E$3),INDEX(base_indices,,),0))-1 -> 0.1608034971 | I63: 9 | K63: =SUM(IF((INDEX(base_indices,1,)=E63)*(INDEX(base_indices,,1)='Indice prix'!A$59),INDEX(base_indices,,),0)) -> 0
A64: =OFFSET('Composition index'!$J$2,0,I64) -> Ciment, chaux et plâtre | B64: =SUM(IF((INDEX(compo,2,)='Données cumul depuis janvier'!A64)*(INDEX(compo,,1)=$A$52),INDEX(compo,,),0)) -> 0 | C64: Ciment, chaux et plâtre | D64: 0 | E64: =HLOOKUP(C64,'Composition index'!$A$2:$AR$3,2,FALSE) -> 010534642 | F64: =SUM(IF((INDEX(base_indices,1,)=E64)*(INDEX(base_indices,,1)>='Données cumul depuis janvier'!$B$1)*(INDEX(base_indices,,1)<='Données cumul depuis janvier'!$C$1),INDEX(base_indices,,),0))/SUM(IF((INDEX(base_indices,1,)=E64)*(INDEX(base_indices,,1)>='Données cumul depuis janvier'!$D$1)*(INDEX(base_indices,,1)<='Données cumul depuis janvier'!$E$1),INDEX(base_indices,,),0))-1 -> 0.02482408131 | G64: =SUM(IF((INDEX(base_indices,1,)=E64)*(INDEX(base_indices,,1)>=$B$3)*(INDEX(base_indices,,1)<=$C$3),INDEX(base_indices,,),0))/SUM(IF((INDEX(base_indices,1,)=E64)*(INDEX(base_indices,,1)>=$D$3)*(INDEX(base_indices,,1)<=$E$3),INDEX(base_indices,,),0))-1 -> 0.02332389968 | I64: 10 | K64: =SUM(IF((INDEX(base_indices,1,)=E64)*(INDEX(base_indices,,1)='Indice prix'!A$59),INDEX(base_indices,,),0)) -> 0
A65: =OFFSET('Composition index'!$J$2,0,I65) -> Produits explosifs | B65: =SUM(IF((INDEX(compo,2,)='Données cumul depuis janvier'!A65)*(INDEX(compo,,1)=$A$52),INDEX(compo,,),0)) -> 0 | C65: Produits explosifs | D65: 0 | E65: =HLOOKUP(C65,'Composition index'!$A$2:$AR$3,2,FALSE) -> 010534614 | F65: =SUM(IF((INDEX(base_indices,1,)=E65)*(INDEX(base_indices,,1)>='Données cumul depuis janvier'!$B$1)*(INDEX(base_indices,,1)<='Données cumul depuis janvier'!$C$1),INDEX(base_indices,,),0))/SUM(IF((INDEX(base_indices,1,)=E65)*(INDEX(base_indices,,1)>='Données cumul depuis janvier'!$D$1)*(INDEX(base_indices,,1)<='Données cumul depuis janvier'!$E$1),INDEX(base_indices,,),0))-1 -> 0.006684751017 | G65: =SUM(IF((INDEX(base_indices,1,)=E65)*(INDEX(base_indices,,1)>=$B$3)*(INDEX(base_indices,,1)<=$C$3),INDEX(base_indices,,),0))/SUM(IF((INDEX(base_indices,1,)=E65)*(INDEX(base_indices,,1)>=$D$3)*(INDEX(base_indices,,1)<=$E$3),INDEX(base_indices,,),0))-1 -> -0.001633358955 | I65: 11 | K65: =SUM(IF((INDEX(base_indices,1,)=E65)*(INDEX(base_indices,,1)='Indice prix'!A$59),INDEX(base_indices,,),0)) -> 0
A66: =OFFSET('Composition index'!$J$2,0,I66) -> Acier pour la construction | B66: =SUM(IF((INDEX(compo,2,)='Données cumul depuis janvier'!A66)*(INDEX(compo,,1)=$A$52),INDEX(compo,,),0)) -> 0 | C66: Acier pour la construction | D66: 0 | E66: =HLOOKUP(C66,'Composition index'!$A$2:$AR$3,2,FALSE) -> 010536462 | F66: =SUM(IF((INDEX(base_indices,1,)=E66)*(INDEX(base_indices,,1)>='Données cumul depuis janvier'!$B$1)*(INDEX(base_indices,,1)<='Données cumul depuis janvier'!$C$1),INDEX(base_indices,,),0))/SUM(IF((INDEX(base_indices,1,)=E66)*(INDEX(base_indices,,1)>='Données cumul depuis janvier'!$D$1)*(INDEX(base_indices,,1)<='Données cumul depuis janvier'!$E$1),INDEX(base_indices,,),0))-1 -> 0.3467606579 | G66: =SUM(IF((INDEX(base_indices,1,)=E66)*(INDEX(base_indices,,1)>=$B$3)*(INDEX(base_indices,,1)<=$C$3),INDEX(base_indices,,),0))/SUM(IF((INDEX(base_indices,1,)=E66)*(INDEX(base_indices,,1)>=$D$3)*(INDEX(base_indices,,1)<=$E$3),INDEX(base_indices,,),0))-1 -> 0.4745934026 | I66: 12 | K66: =SUM(IF((INDEX(base_indices,1,)=E66)*(INDEX(base_indices,,1)='Indice prix'!A$59),INDEX(base_indices,,),0)) -> 0
A67: =OFFSET('Composition index'!$J$2,0,I67) -> Bitume | B67: =SUM(IF((INDEX(compo,2,)='Données cumul depuis janvier'!A67)*(INDEX(compo,,1)=$A$52),INDEX(compo,,),0)) -> 0 | C67: Bitume | D67: 0 | E67: =HLOOKUP(C67,'Composition index'!$A$2:$AR$3,2,FALSE) -> 010534598 | F67: =SUM(IF((INDEX(base_indices,1,)=E67)*(INDEX(base_indices,,1)>='Données cumul depuis janvier'!$B$1)*(INDEX(base_indices,,1)<='Données cumul depuis janvier'!$C$1),INDEX(base_indices,,),0))/SUM(IF((INDEX(base_indices,1,)=E67)*(INDEX(base_indices,,1)>='Données cumul depuis janvier'!$D$1)*(INDEX(base_indices,,1)<='Données cumul depuis janvier'!$E$1),INDEX(base_indices,,),0))-1 -> 0.06057576969 | G67: =SUM(IF((INDEX(base_indices,1,)=E67)*(INDEX(base_indices,,1)>=$B$3)*(INDEX(base_indices,,1)<=$C$3),INDEX(base_indices,,),0))/SUM(IF((INDEX(base_indices,1,)=E67)*(INDEX(base_indices,,1)>=$D$3)*(INDEX(base_indices,,1)<=$E$3),INDEX(base_indices,,),0))-1 -> 0.178452425 | I67: 13 | K67: =SUM(IF((INDEX(base_indices,1,)=E67)*(INDEX(base_indices,,1)='Indice prix'!A$59),INDEX(base_indices,,),0)) -> 0
A68: =OFFSET('Composition index'!$J$2,0,I68) -> Produits de voierie en béton | B68: =SUM(IF((INDEX(compo,2,)='Données cumul depuis janvier'!A68)*(INDEX(compo,,1)=$A$52),INDEX(compo,,),0)) -> 0 | C68: Produits de voierie en béton | D68: 0 | E68: =HLOOKUP(C68,'Composition index'!$A$2:$AR$3,2,FALSE) -> 010534252 | F68: =SUM(IF((INDEX(base_indices,1,)=E68)*(INDEX(base_indices,,1)>='Données cumul depuis janvier'!$B$1)*(INDEX(base_indices,,1)<='Données cumul depuis janvier'!$C$1),INDEX(base_indices,,),0))/SUM(IF((INDEX(base_indices,1,)=E68)*(INDEX(base_indices,,1)>='Données cumul depuis janvier'!$D$1)*(INDEX(base_indices,,1)<='Données cumul depuis janvier'!$E$1),INDEX(base_indices,,),0))-1 -> 0.07773816597 | G68: =SUM(IF((INDEX(base_indices,1,)=E68)*(INDEX(base_indices,,1)>=$B$3)*(INDEX(base_indices,,1)<=$C$3),INDEX(base_indices,,),0))/SUM(IF((INDEX(base_indices,1,)=E68)*(INDEX(base_indices,,1)>=$D$3)*(INDEX(base_indices,,1)<=$E$3),INDEX(base_indices,,),0))-1 -> 0.04073826145 | I68: 14 | K68: =SUM(IF((INDEX(base_indices,1,)=E68)*(INDEX(base_indices,,1)='Indice prix'!A$59),INDEX(base_indices,,),0)) -> 0
A69: =OFFSET('Composition index'!$J$2,0,I69) -> Mortiers et bétons secs | B69: =SUM(IF((INDEX(compo,2,)='Données cumul depuis janvier'!A69)*(INDEX(compo,,1)=$A$52),INDEX(compo,,),0)) -> 0 | C69: Mortiers et bétons secs | D69: 0 | E69: =HLOOKUP(C69,'Composition index'!$A$2:$AR$3,2,FALSE) -> 010534647 | F69: =SUM(IF((INDEX(base_indices,1,)=E69)*(INDEX(base_indices,,1)>='Données cumul depuis janvier'!$B$1)*(INDEX(base_indices,,1)<='Données cumul depuis janvier'!$C$1),INDEX(base_indices,,),0))/SUM(IF((INDEX(base_indices,1,)=E69)*(INDEX(base_indices,,1)>='Données cumul depuis janvier'!$D$1)*(INDEX(base_indices,,1)<='Données cumul depuis janvier'!$E$1),INDEX(base_indices,,),0))-1 -> 0.02036312569 | G69: =SUM(IF((INDEX(base_indices,1,)=E69)*(INDEX(base_indices,,1)>=$B$3)*(INDEX(base_indices,,1)<=$C$3),INDEX(base_indices,,),0))/SUM(IF((INDEX(base_indices,1,)=E69)*(INDEX(base_indices,,1)>=$D$3)*(INDEX(base_indices,,1)<=$E$3),INDEX(base_indices,,),0))-1 -> 0.009928514694 | I69: 15 | K69: =SUM(IF((INDEX(base_indices,1,)=E69)*(INDEX(base_indices,,1)='Indice prix'!A$59),INDEX(base_indices,,),0)) -> 0
A70: =OFFSET('Composition index'!$J$2,0,I70) -> Travaux de fonderie de fonte | B70: =SUM(IF((INDEX(compo,2,)='Données cumul depuis janvier'!A70)*(INDEX(compo,,1)=$A$52),INDEX(compo,,),0)) -> 0 | C70: Travaux de fonderie de fonte | D70: 0 | E70: =HLOOKUP(C70,'Composition index'!$A$2:$AR$3,2,FALSE) -> 010534662 | F70: =SUM(IF((INDEX(base_indices,1,)=E70)*(INDEX(base_indices,,1)>='Données cumul depuis janvier'!$B$1)*(INDEX(base_indices,,1)<='Données cumul depuis janvier'!$C$1),INDEX(base_indices,,),0))/SUM(IF((INDEX(base_indices,1,)=E70)*(INDEX(base_indices,,1)>='Données cumul depuis janvier'!$D$1)*(INDEX(base_indices,,1)<='Données cumul depuis janvier'!$E$1),INDEX(base_indices,,),0))-1 -> 0.04494144952 | G70: =SUM(IF((INDEX(base_indices,1,)=E70)*(INDEX(base_indices,,1)>=$B$3)*(INDEX(base_indices,,1)<=$C$3),INDEX(base_indices,,),0))/SUM(IF((INDEX(base_indices,1,)=E70)*(INDEX(base_indices,,1)>=$D$3)*(INDEX(base_indices,,1)<=$E$3),INDEX(base_indices,,),0))-1 -> 0.05305124389 | I70: 16 | K70: =SUM(IF((INDEX(base_indices,1,)=E70)*(INDEX(base_indices,,1)='Indice prix'!A$59),INDEX(base_indices,,),0)) -> 0
A71: =OFFSET('Composition index'!$J$2,0,I71) -> Tuiles, briques et produits de construction en terre cuite | B71: =SUM(IF((INDEX(compo,2,)='Données cumul depuis janvier'!A71)*(INDEX(compo,,1)=$A$52),INDEX(compo,,),0)) -> 0 | C71: Tuiles, briques et produits de construction en terre cuite | D71: 0 | E71: =HLOOKUP(C71,'Composition index'!$A$2:$AR$3,2,FALSE) -> 010534638 | F71: =SUM(IF((INDEX(base_indices,1,)=E71)*(INDEX(base_indices,,1)>='Données cumul depuis janvier'!$B$1)*(INDEX(base_indices,,1)<='Données cumul depuis janvier'!$C$1),INDEX(base_indices,,),0))/SUM(IF((INDEX(base_indices,1,)=E71)*(INDEX(base_indices,,1)>='Données cumul depuis janvier'!$D$1)*(INDEX(base_indices,,1)<='Données cumul depuis janvier'!$E$1),INDEX(base_indices,,),0))-1 -> 0.02619399311 | G71: =SUM(IF((INDEX(base_indices,1,)=E71)*(INDEX(base_indices,,1)>=$B$3)*(INDEX(base_indices,,1)<=$C$3),INDEX(base_indices,,),0))/SUM(IF((INDEX(base_indices,1,)=E71)*(INDEX(base_indices,,1)>=$D$3)*(INDEX(base_indices,,1)<=$E$3),INDEX(base_indices,,),0))-1 -> 0.009200077474 | I71: 17 | K71: =SUM(IF((INDEX(base_indices,1,)=E71)*(INDEX(base_indices,,1)='Indice prix'!A$59),INDEX(base_indices,,),0)) -> 0
A72: =OFFSET('Composition index'!$J$2,0,I72) -> Tuyaux d'assainissement | B72: =SUM(IF((INDEX(compo,2,)='Données cumul depuis janvier'!A72)*(INDEX(compo,,1)=$A$52),INDEX(compo,,),0)) -> 0 | C72: Tuyaux d'assainissement | D72: 0 | E72: =HLOOKUP(C72,'Composition index'!$A$2:$AR$3,2,FALSE) -> 010534253 | F72: =SUM(IF((INDEX(base_indices,1,)=E72)*(INDEX(base_indices,,1)>='Données cumul depuis janvier'!$B$1)*(INDEX(base_indices,,1)<='Données cumul depuis janvier'!$C$1),INDEX(base_indices,,),0))/SUM(IF((INDEX(base_indices,1,)=E72)*(INDEX(base_indices,,1)>='Données cumul depuis janvier'!$D$1)*(INDEX(base_indices,,1)<='Données cumul depuis janvier'!$E$1),INDEX(base_indices,,),0))-1 -> 0.03441718958 | G72: =SUM(IF((INDEX(base_indices,1,)=E72)*(INDEX(base_indices,,1)>=$B$3)*(INDEX(base_indices,,1)<=$C$3),INDEX(base_indices,,),0))/SUM(IF((INDEX(base_indices,1,)=E72)*(INDEX(base_indices,,1)>=$D$3)*(INDEX(base_indices,,1)<=$E$3),INDEX(base_indices,,),0))-1 -> 0.05620813513 | I72: 18 | K72: =SUM(IF((INDEX(base_indices,1,)=E72)*(INDEX(base_indices,,1)='Indice prix'!A$59),INDEX(base_indices,,),0)) -> 1
A73: =OFFSET('Composition index'!$J$2,0,I73) -> Autres textiles n.c.a. | B73: =SUM(IF((INDEX(compo,2,)='Données cumul depuis janvier'!A73)*(INDEX(compo,,1)=$A$52),INDEX(compo,,),0)) -> 0 | C73: Autres textiles n.c.a. | D73: 0 | E73: =HLOOKUP(C73,'Composition index'!$A$2:$AR$3,2,FALSE) -> 010534559 | F73: =SUM(IF((INDEX(base_indices,1,)=E73)*(INDEX(base_indices,,1)>='Données cumul depuis janvier'!$B$1)*(INDEX(base_indices,,1)<='Données cumul depuis janvier'!$C$1),INDEX(base_indices,,),0))/SUM(IF((INDEX(base_indices,1,)=E73)*(INDEX(base_indices,,1)>='Données cumul depuis janvier'!$D$1)*(INDEX(base_indices,,1)<='Données cumul depuis janvier'!$E$1),INDEX(base_indices,,),0))-1 -> 0.001018801519 | G73: =SUM(IF((INDEX(base_indices,1,)=E73)*(INDEX(base_indices,,1)>=$B$3)*(INDEX(base_indices,,1)<=$C$3),INDEX(base_indices,,),0))/SUM(IF((INDEX(base_indices,1,)=E73)*(INDEX(base_indices,,1)>=$D$3)*(INDEX(base_indices,,1)<=$E$3),INDEX(base_indices,,),0))-1 -> -0.004329801935 | I73: 19 | K73: =SUM(IF((INDEX(base_indices,1,)=E73)*(INDEX(base_indices,,1)='Indice prix'!A$59),INDEX(base_indices,,),0)) -> 0
A74: =OFFSET('Composition index'!$J$2,0,I74) -> Matières plastiques sous formes primaires | B74: =SUM(IF((INDEX(compo,2,)='Données cumul depuis janvier'!A74)*(INDEX(compo,,1)=$A$52),INDEX(compo,,),0)) -> 0 | C74: Matières plastiques sous formes primaires | D74: 0 | E74: =HLOOKUP(C74,'Composition index'!$A$2:$AR$3,2,FALSE) -> 010534606 | F74: =SUM(IF((INDEX(base_indices,1,)=E74)*(INDEX(base_indices,,1)>='Données cumul depuis janvier'!$B$1)*(INDEX(base_indices,,1)<='Données cumul depuis janvier'!$C$1),INDEX(base_indices,,),0))/SUM(IF((INDEX(base_indices,1,)=E74)*(INDEX(base_indices,,1)>='Données cumul depuis janvier'!$D$1)*(INDEX(base_indices,,1)<='Données cumul depuis janvier'!$E$1),INDEX(base_indices,,),0))-1 -> 0.2469588724 | G74: =SUM(IF((INDEX(base_indices,1,)=E74)*(INDEX(base_indices,,1)>=$B$3)*(INDEX(base_indices,,1)<=$C$3),INDEX(base_indices,,),0))/SUM(IF((INDEX(base_indices,1,)=E74)*(INDEX(base_indices,,1)>=$D$3)*(INDEX(base_indices,,1)<=$E$3),INDEX(base_indices,,),0))-1 -> 0.4179383028 | I74: 20 | K74: =SUM(IF((INDEX(base_indices,1,)=E74)*(INDEX(base_indices,,1)='Indice prix'!A$59),INDEX(base_indices,,),0)) -> 0
A75: =OFFSET('Composition index'!$J$2,0,I75) -> Tubes, tuyaux, profilés creux et accessoires correspondants en acier | B75: =SUM(IF((INDEX(compo,2,)='Données cumul depuis janvier'!A75)*(INDEX(compo,,1)=$A$52),INDEX(compo,,),0)) -> 0 | C75: Tubes, tuyaux, profilés creux et accessoires correspondants en acier | D75: 0 | E75: =HLOOKUP(C75,'Composition index'!$A$2:$AR$3,2,FALSE) -> 010534654 | F75: =SUM(IF((INDEX(base_indices,1,)=E75)*(INDEX(base_indices,,1)>='Données cumul depuis janvier'!$B$1)*(INDEX(base_indices,,1)<='Données cumul depuis janvier'!$C$1),INDEX(base_indices,,),0))/SUM(IF((INDEX(base_indices,1,)=E75)*(INDEX(base_indices,,1)>='Données cumul depuis janvier'!$D$1)*(INDEX(base_indices,,1)<='Données cumul depuis janvier'!$E$1),INDEX(base_indices,,),0))-1 -> 0.05957367588 | G75: =SUM(IF((INDEX(base_indices,1,)=E75)*(INDEX(base_indices,,1)>=$B$3)*(INDEX(base_indices,,1)<=$C$3),INDEX(base_indices,,),0))/SUM(IF((INDEX(base_indices,1,)=E75)*(INDEX(base_indices,,1)>=$D$3)*(INDEX(base_indices,,1)<=$E$3),INDEX(base_indices,,),0))-1 -> 0.0805961648 | I75: 21 | K75: =SUM(IF((INDEX(base_indices,1,)=E75)*(INDEX(base_indices,,1)='Indice prix'!A$59),INDEX(base_indices,,),0)) -> 0
A76: =OFFSET('Composition index'!$J$2,0,I76) -> Éléments en béton pour la construction | B76: =SUM(IF((INDEX(compo,2,)='Données cumul depuis janvier'!A76)*(INDEX(compo,,1)=$A$52),INDEX(compo,,),0)) -> 0 | C76: Éléments en béton pour la construction | D76: 0 | E76: =HLOOKUP(C76,'Composition index'!$A$2:$AR$3,2,FALSE) -> 010534645 | F76: =SUM(IF((INDEX(base_indices,1,)=E76)*(INDEX(base_indices,,1)>='Données cumul depuis janvier'!$B$1)*(INDEX(base_indices,,1)<='Données cumul depuis janvier'!$C$1),INDEX(base_indices,,),0))/SUM(IF((INDEX(base_indices,1,)=E76)*(INDEX(base_indices,,1)>='Données cumul depuis janvier'!$D$1)*(INDEX(base_indices,,1)<='Données cumul depuis janvier'!$E$1),INDEX(base_indices,,),0))-1 -> 0.04200595829 | G76: =SUM(IF((INDEX(base_indices,1,)=E76)*(INDEX(base_indices,,1)>=$B$3)*(INDEX(base_indices,,1)<=$C$3),INDEX(base_indices,,),0))/SUM(IF((INDEX(base_indices,1,)=E76)*(INDEX(base_indices,,1)>=$D$3)*(INDEX(base_indices,,1)<=$E$3),INDEX(base_indices,,),0))-1 -> 0.01597598761 | I76: 22 | K76: =SUM(IF((INDEX(base_indices,1,)=E76)*(INDEX(base_indices,,1)='Indice prix'!A$59),INDEX(base_indices,,),0)) -> 0
A77: =OFFSET('Composition index'!$J$2,0,I77) -> Fils et câbles d'énergie | B77: =SUM(IF((INDEX(compo,2,)='Données cumul depuis janvier'!A77)*(INDEX(compo,,1)=$A$52),INDEX(compo,,),0)) -> 0 | C77: Fils et câbles d'énergie | D77: 0 | E77: =HLOOKUP(C77,'Composition index'!$A$2:$AR$3,2,FALSE) -> 010534330 | F77: =SUM(IF((INDEX(base_indices,1,)=E77)*(INDEX(base_indices,,1)>='Données cumul depuis janvier'!$B$1)*(INDEX(base_indices,,1)<='Données cumul depuis janvier'!$C$1),INDEX(base_indices,,),0))/SUM(IF((INDEX(base_indices,1,)=E77)*(INDEX(base_indices,,1)>='Données cumul depuis janvier'!$D$1)*(INDEX(base_indices,,1)<='Données cumul depuis janvier'!$E$1),INDEX(base_indices,,),0))-1 -> 0.1773522065 | G77: =SUM(IF((INDEX(base_indices,1,)=E77)*(INDEX(base_indices,,1)>=$B$3)*(INDEX(base_indices,,1)<=$C$3),INDEX(base_indices,,),0))/SUM(IF((INDEX(base_indices,1,)=E77)*(INDEX(base_indices,,1)>=$D$3)*(INDEX(base_indices,,1)<=$E$3),INDEX(base_indices,,),0))-1 -> 0.1878609682 | I77: 23 | K77: =SUM(IF((INDEX(base_indices,1,)=E77)*(INDEX(base_indices,,1)='Indice prix'!A$59),INDEX(base_indices,,),0)) -> 1
A78: =OFFSET('Composition index'!$J$2,0,I78) -> Moteurs, génératrices, transfo. électr., matér. distrib., cmde électr. | B78: =SUM(IF((INDEX(compo,2,)='Données cumul depuis janvier'!A78)*(INDEX(compo,,1)=$A$52),INDEX(compo,,),0)) -> 0 | C78: Moteurs, génératrices, transfo. électr., matér. distrib., cmde électr. | D78: 0 | E78: =HLOOKUP(C78,'Composition index'!$A$2:$AR$3,2,FALSE) -> 010534696 | F78: =SUM(IF((INDEX(base_indices,1,)=E78)*(INDEX(base_indices,,1)>='Données cumul depuis janvier'!$B$1)*(INDEX(base_indices,,1)<='Données cumul depuis janvier'!$C$1),INDEX(base_indices,,),0))/SUM(IF((INDEX(base_indices,1,)=E78)*(INDEX(base_indices,,1)>='Données cumul depuis janvier'!$D$1)*(INDEX(base_indices,,1)<='Données cumul depuis janvier'!$E$1),INDEX(base_indices,,),0))-1 -> 0.02641840515 | G78: =SUM(IF((INDEX(base_indices,1,)=E78)*(INDEX(base_indices,,1)>=$B$3)*(INDEX(base_indices,,1)<=$C$3),INDEX(base_indices,,),0))/SUM(IF((INDEX(base_indices,1,)=E78)*(INDEX(base_indices,,1)>=$D$3)*(INDEX(base_indices,,1)<=$E$3),INDEX(base_indices,,),0))-1 -> 0.01601852745 | I78: 24 | K78: =SUM(IF((INDEX(base_indices,1,)=E78)*(INDEX(base_indices,,1)='Indice prix'!A$59),INDEX(base_indices,,),0)) -> 0
A79: =OFFSET('Composition index'!$J$2,0,I79) -> Matériel de distribution et de commande électrique | B79: =SUM(IF((INDEX(compo,2,)='Données cumul depuis janvier'!A79)*(INDEX(compo,,1)=$A$52),INDEX(compo,,),0)) -> 0 | C79: Matériel de distribution et de commande électrique | D79: 0 | E79: =HLOOKUP(C79,'Composition index'!$A$2:$AR$3,2,FALSE) -> 010534698 | F79: =SUM(IF((INDEX(base_indices,1,)=E79)*(INDEX(base_indices,,1)>='Données cumul depuis janvier'!$B$1)*(INDEX(base_indices,,1)<='Données cumul depuis janvier'!$C$1),INDEX(base_indices,,),0))/SUM(IF((INDEX(base_indices,1,)=E79)*(INDEX(base_indices,,1)>='Données cumul depuis janvier'!$D$1)*(INDEX(base_indices,,1)<='Données cumul depuis janvier'!$E$1),INDEX(base_indices,,),0))-1 -> 0.04517656342 | G79: =SUM(IF((INDEX(base_indices,1,)=E79)*(INDEX(base_indices,,1)>=$B$3)*(INDEX(base_indices,,1)<=$C$3),INDEX(base_indices,,),0))/SUM(IF((INDEX(base_indices,1,)=E79)*(INDEX(base_indices,,1)>=$D$3)*(INDEX(base_indices,,1)<=$E$3),INDEX(base_indices,,),0))-1 -> 0.0248573363 | I79: 25 | K79: =SUM(IF((INDEX(base_indices,1,)=E79)*(INDEX(base_indices,,1)='Indice prix'!A$59),INDEX(base_indices,,),0)) -> 0
